Workbook

Sheet START

Sheet Instructions
D2: 2020
X4: Yes
X5: No
W7: Type of Entities Range:
X8: Parent Municipality
X9: Consolidated Information
F14: START
F15: Instructions
F16: Template names
F17: Lookup and lists | W17: MTREF Range: | X17: 2013
F18: Org structure | X18: 2014
F19: Contacts | X19: 2015
F20: A1-Sum | X20: 2016
F21: A2-FinPerf SC | X21: 2017
F22: A2A | X22: 2018
F23: A3-FinPerf V | X23: 2019
F24: A3A | X24: 2020
F25: A4-FinPerf RE | X25: 2021
F26: A5-Capex | X26: 2022
F27: A5A | X27: 2023
F28: A6-FinPos | X28: 2024
F29: A7-CFlow | X29: 2025
F30: A8-ResRecon | X30: 2026
F31: A9-Asset | X31: 2027
F32: A10-SerDel
F33: SA1 | W33: MTREF Linked: | X33: 9
F34: SA2 | W34: MTREF: | X34: =INDEX(X17:X26,X33,1) -> 2021
F35: SA3
F36: SA4 | W36: Fin Year: | X36: =MTREF&"/"&RIGHT(MTREF,2)+1 -> 2021/22
F37: SA5
F38: SA6
F39: SA7
F40: SA8
F41: SA9
F42: SA10
F43: SA11
F44: SA12a
F45: SA12b
F46: SA13a
F47: SA13b
F48: SA14
F49: SA15
F50: SA16
F51: SA17
F52: SA18
F53: SA19
F54: SA20
F55: SA21
F56: SA22
F57: SA23
F58: SA24
F59: SA25
F60: SA26
F61: SA27
F62: SA28
F63: SA29
F64: SA30
F65: SA31
F66: SA32
F67: SA33
F68: SA34a
F69: SA34b
F70: SA34c
F71: SA34d
F72: SA34e
F73: SA35
F74: SA36
F75: SA37
F76: SA38
F77: LGDB_EXPORT

Sheet Template names (hidden)
A1: Common sheet headings
A2: Head1 | B2: =HLOOKUP(MTREF,Headings,2) -> 2019/20 | C2: Prior year -1
A3: Head1A | B3: =HLOOKUP(MTREF,Headings,3) -> 2018/19 | C3: Prior year -2
A4: Head1B | B4: =HLOOKUP(MTREF,Headings,4) -> 2017/18 | C4: Prior year -3
A5: Head2 | B5: =HLOOKUP(MTREF,Headings,5) -> Current Year 2020/21 | C5: Year in which budget is being prepared
A6: Head2A | B6: =HLOOKUP(MTREF,Headings,6) -> 2020/21 | C6: Year in which budget is being prepared
A7: Head3 | B7: =HLOOKUP(MTREF,Headings,7) -> 2021/22 Medium Term Revenue & Expenditure Framework | C7: MTREF name
A8: Head4 | B8: LTFS | C8: Long term financial strategy
A9: Head5 | B9: Audited Outcome
A10: Head5A | B10: Outcome
A11: Head5B | B11: Pre-audit outcome
A12: Head6 | B12: Original Budget
A13: Head7 | B13: Adjusted Budget
A14: Head8 | B14: Full Year Forecast
A15: Head9 | B15: =HLOOKUP(MTREF,Headings,8) -> Budget Year 2021/22 | C15: 1st year of MTREF | D15: Year1
A16: Head10 | B16: =HLOOKUP(MTREF,Headings,9) -> Budget Year +1 2022/23 | C16: 2nd year of MTREF | D16: Year2
A17: Head11 | B17: =HLOOKUP(MTREF,Headings,10) -> Budget Year +2 2023/24 | C17: 3rd year of MTREF | D17: Year3
A18: Head12 | B18: =HLOOKUP(MTREF,Headings,11) -> Forecast 2024/25 | C18: 1st yr of long term forecast | D18: Year4
A19: Head13 | B19: =HLOOKUP(MTREF,Headings,12) -> Forecast 2025/26 | C19: Next yr of long term forecast | D19: Year5
A20: Head14 | B20: =HLOOKUP(MTREF,Headings,13) -> Forecast 2026/27 | C20: Next yr of long term forecast | D20: Year6
A21: Head15 | B21: =HLOOKUP(MTREF,Headings,14) -> Forecast 2027/28 | C21: Next yr of long term forecast | D21: Year7
A22: Head16 | B22: =HLOOKUP(MTREF,Headings,15) -> Forecast 2028/29 | C22: Next yr of long term forecast | D22: Year8
A23: Head17 | B23: =HLOOKUP(MTREF,Headings,16) -> Forecast 2029/30 | C23: Next yr of long term forecast | D23: Year9
A24: Head18 | B24: =HLOOKUP(MTREF,Headings,17) -> Forecast 2030/31 | C24: Next yr of long term forecast | D24: Year10
A25: Head19 | B25: =HLOOKUP(MTREF,Headings,18) -> Forecast 2031/32 | C25: Next yr of long term forecast | D25: Year11
A26: Head20 | B26: =HLOOKUP(MTREF,Headings,19) -> Forecast 2032/33 | C26: Next yr of long term forecast | D26: Year12
A27: Head21 | B27: =HLOOKUP(MTREF,Headings,20) -> Forecast 2033/34 | C27: Next yr of long term forecast | D27: Year13
A28: Head22 | B28: =HLOOKUP(MTREF,Headings,21) -> Forecast 2034/35 | C28: Next yr of long term forecast | D28: Year14
A29: Head23 | B29: =HLOOKUP(MTREF,Headings,22) -> Forecast 2035/36 | C29: Next yr of long term forecast | D29: Year15
A30: Head24 | B30: Description
A31: Head25
A32: Head26 | B32: Vote Description
A33: Head27 | B33: Ref
A34: Head27a | B34: References
A35: Head28 | B35: Surplus/(Deficit) for the year | D35: Result
A36: Head29 | B36: =HLOOKUP(MTREF,Headings,23) -> Annual target 2021/22
A37: Head30 | B37: =HLOOKUP(MTREF,Headings,24) -> Revised target 2021/22
A38: Head31 | B38: Quarter ended 30 September
A39: Head32 | B39: Quarter ended 31 December
A40: Head33 | B40: Quarter ended 31 March
A41: Head34 | B41: Quarter ended 30 June
A42: Head35 | B42: Variance explanation
A43: Head36 | B43: YTD Actual 31 Dec
A44: Head37 | B44: YTD Budget 31 Dec
A45: Head38 | B45: Monthly actual
A46: Head39 | B46: YTD actual
A47: Head40 | B47: YTD budget
A48: Head41 | B48: YTD variance
A49: Head42 | B49: Surplus/ (Deficit) for the yr/period
A50: Head43 | B50: =Head3&" Summary" -> 2021/22 Medium Term Revenue & Expenditure Framework Summary
A51: Head44 | B51: 2001 Census
A52: Head45 | B52: 2011 Census
A53: Head46 | B53: - Adjustments Budget - January 2007
A54: Head47 | B54: Previous target year to complete
A55: Head48 | B55: Present value
A56: Head49
A57: Head50 | B57: Other Adjusts.
A58: Head51 | B58: Accum. Funds
A59: Head52 | B59: Multi-year capital
A60: Head53 | B60: Unfore. Unavoid.
A61: Head54 | B61: Prior Adjusted
A62: Head55 | B62: Nat. or Prov. Govt
A63: Head56 | B63: Total Adjusts.
A64: SFPerf1 | B64: Budgeted Financial Performance
A65: SFPerf2 | B65: Forecast Financial Performance
A66: SFPos1 | B66: Budgeted Financial Position
A67: SFPos2 | B67: Forecast Financial Position
A68: Cash1 | B68: Budget Cash Flow
A69: Cash2 | B69: Forecast Cash Flow
A70: RandM | B70: Expenditure includes repairs & maintenance of R'000
A71: Depart1 | B71: Department 1 - | D71: DEP1
A72: Depart2 | B72: Department 2 - | D72: DEP2
A73: Depart3 | B73: Department 3 - | D73: DEP3
A74: Depart4 | B74: Department 4 - | D74: DEP4
A75: Depart5 | B75: Department 5 - | D75: DEP5
A76: Depart6 | B76: Department 6 - | D76: DEP6
A77: Depart7 | B77: Department 7 - | D77: DEP7
A78: Depart8 | B78: Department 8 - | D78: DEP8
A79: Depart9 | B79: Department 9 - | D79: DEP9
A80: Depart10 | B80: Department 10 - | D80: DEP10
A81: Depart11 | B81: Department 11 - | D81: DEP11
A82: Depart12 | B82: Department 12 - | D82: DEP12
A83: Depart13 | B83: Department 13 - | D83: DEP13
A84: Depart14 | B84: Department 14 - | D84: DEP14
A87: Base year of forecast column selection names
A88: Choose | B88: ACT
B89: APP
B90: ADJ
A92: Standard nomenclature
A93: Muni | B93: ='Lookup and lists'!B28 -> LIM351 Blouberg
A94: Municipal Entities | B94: 2 | C94: Type of report: | D94: 1
A95: =IF((MuniEntities=1)*(MuniType=2),"YES","NO") -> NO | B95: Does this municipality have entities (consolidated budget and entity budgets required)? YES/NO
A96: Entity 1 | B96: (Pty) Ltd Example 1 - Municipal entity - | D96: Ent1
A97: Entity 2 | B97: (Pty) Ltd Example 2 - Municipal entity - | D97: Ent2
A98: Entity 3 | B98: Municipal Entity Example 3 | D98: Ent3
A99: Budget approval tables | C99: Chart x-ref | D99: Sch/Tab/Ch | E99: Alternative for municipalities without entities | F99: Alternative for municipalities without entities
B100: =IF(Consolques="YES",E100,F100) -> Table A1 Budget Summary | D100: Table A1 | E100: =D100&"Consolidated Budget Summary" -> Table A1 Consolidated Budget Summary | F100: =D100&"Budget Summary" -> Table A1 Budget Summary
B101: Table A2 Budgeted Financial Performance (revenue and expenditure by functional classification) | C101: Charts 5, 6 | D101: Table A2 | E101: =D101&"Consolidated Budgeted Financial Performance (revenue and expenditure by functional classification)" -> Table A2 Consolidated Budgeted Financial Performance (revenue and expenditure by functional classification) | F101: =D101&"Budgeted Financial Performance (revenue and expenditure by functional classification)" -> Table A2 Budgeted Financial Performance (revenue and expenditure by functional classification)
B102: Table A3 Budgeted Financial Performance (revenue and expenditure by municipal vote) | D102: Table A3 | E102: =D102&"Consolidated Budgeted Financial Performance (revenue and expenditure by municipal vote)" -> Table A3 Consolidated Budgeted Financial Performance (revenue and expenditure by municipal vote) | F102: =D102&"Budgeted Financial Performance (revenue and expenditure by municipal vote)" -> Table A3 Budgeted Financial Performance (revenue and expenditure by municipal vote)
B103: Table A4 Budgeted Financial Performance (revenue and expenditure) | C103: Charts 1, 2, 3, 4 | D103: Table A4 | E103: =D103&"Consolidated Budgeted Financial Performance (revenue and expenditure)" -> Table A4 Consolidated Budgeted Financial Performance (revenue and expenditure) | F103: =D103&"Budgeted Financial Performance (revenue and expenditure)" -> Table A4 Budgeted Financial Performance (revenue and expenditure)
B104: Table A5 Budgeted Capital Expenditure by vote, functional classification and funding | C104: Charts 7, 8, 9, 10, 20 | D104: Table A5 | E104: =D104&"Consolidated Budgeted Capital Expenditure by vote, functional classification and funding" -> Table A5 Consolidated Budgeted Capital Expenditure by vote, functional classification and funding | F104: =D104&"Budgeted Capital Expenditure by vote, functional classification and funding" -> Table A5 Budgeted Capital Expenditure by vote, functional classification and funding
B105: Table A6 Budgeted Financial Position | D105: Table A6 | E105: =D105&"Consolidated Budgeted Financial Position" -> Table A6 Consolidated Budgeted Financial Position | F105: =D105&"Budgeted Financial Position" -> Table A6 Budgeted Financial Position
B106: Table A7 Budgeted Cash Flows | D106: Table A7 | E106: =D106&"Consolidated Budgeted Cash Flows" -> Table A7 Consolidated Budgeted Cash Flows | F106: =D106&"Budgeted Cash Flows" -> Table A7 Budgeted Cash Flows
B107: Table A8 Cash backed reserves/accumulated surplus reconciliation | D107: Table A8 | E107: =D107&"Consolidated Cash backed reserves/accumulated surplus reconciliation" -> Table A8 Consolidated Cash backed reserves/accumulated surplus reconciliation | F107: =D107&"Cash backed reserves/accumulated surplus reconciliation" -> Table A8 Cash backed reserves/accumulated surplus reconciliation
B108: Table A9 Asset Management | D108: Table A9 | E108: =D108&"Consolidated Asset Management" -> Table A9 Consolidated Asset Management | F108: =D108&"Asset Management" -> Table A9 Asset Management
B109: Table A10 Basic service delivery measurement | D109: Table A10 | E109: =D109&"Consolidated basic service delivery measurement" -> Table A10 Consolidated basic service delivery measurement | F109: =D109&"Basic service delivery measurement" -> Table A10 Basic service delivery measurement
A110: Supportinging Tables to the Budget Approval Tables | C110: =$C$99 -> Chart x-ref | D110: =$D$99 -> Sch/Tab/Ch
A111: Supporting Table SA1 | B111: =A111&" Supportinging detail to 'Budgeted Financial Performance'" -> Supporting Table SA1 Supportinging detail to 'Budgeted Financial Performance'
A112: Supporting Table SA2 | B112: =IF(Consolques="YES",E112,F112) -> Supporting Table SA2 Matrix Financial Performance Budget (revenue source/expenditure type and dept.) | E112: =A112&"Consolidated Matrix Financial Performance Budget (revenue source/expenditure type & dept.)" -> Supporting Table SA2 Consolidated Matrix Financial Performance Budget (revenue source/expenditure type & dept.) | F112: =A112&"Matrix Financial Performance Budget (revenue source/expenditure type and dept.)" -> Supporting Table SA2 Matrix Financial Performance Budget (revenue source/expenditure type and dept.)
A113: Supporting Table SA3 | B113: =A113&"Supportinging detail to 'Budgeted Financial Position'" -> Supporting Table SA3 Supportinging detail to 'Budgeted Financial Position'
A114: Supporting Table SA4 | B114: =A114&"Reconciliation of IDP strategic objectives and budget (revenue)" -> Supporting Table SA4 Reconciliation of IDP strategic objectives and budget (revenue) | C114: Chart 11
A115: Supporting Table SA5 | B115: =A115&"Reconciliation of IDP strategic objectives and budget (operating expenditure)" -> Supporting Table SA5 Reconciliation of IDP strategic objectives and budget (operating expenditure) | C115: Chart 12
A116: Supporting Table SA6 | B116: =A116&"Reconciliation of IDP strategic objectives and budget (capital expenditure)" -> Supporting Table SA6 Reconciliation of IDP strategic objectives and budget (capital expenditure) | C116: Chart 13
A117: Supporting Table SA7 | B117: =A117&" Measureable performance objectives" -> Supporting Table SA7 Measureable performance objectives
A118: Supporting Table SA8 | B118: =A118&" Performance indicators and benchmarks" -> Supporting Table SA8 Performance indicators and benchmarks | C118: Chts 15-19
A119: Supporting Table SA9 | B119: =A119&" Social, economic and demographic statistics and assumptions" -> Supporting Table SA9 Social, economic and demographic statistics and assumptions
A120: Supporting Table SA10 | B120: =A120&" Funding measurement" -> Supporting Table SA10 Funding measurement | C120: Chart 14
A121: Supporting Table SA11 | B121: =A121&" Property rates summary" -> Supporting Table SA11 Property rates summary
A122: Supporting Table SA12a | B122: =A122&" Property rates by category (current year)" -> Supporting Table SA12a Property rates by category (current year)
A123: Supporting Table SA12b | B123: =A123&" Property rates by category (budget year)" -> Supporting Table SA12b Property rates by category (budget year)
A124: Supporting Table SA13a | B124: =A124&" Service Tariffs by category" -> Supporting Table SA13a Service Tariffs by category
A125: Supporting Table SA13b | B125: =A125&" Service Tariffs by category - explanatory" -> Supporting Table SA13b Service Tariffs by category - explanatory
A126: Supporting Table SA14 | B126: =A126&" Household bills" -> Supporting Table SA14 Household bills
A127: Supporting Table SA15 | B127: =A127&" Investment particulars by type" -> Supporting Table SA15 Investment particulars by type
A128: Supporting Table SA16 | B128: =A128&" Investment particulars by maturity" -> Supporting Table SA16 Investment particulars by maturity
A129: Supporting Table SA17 | B129: =A129&" Borrowing" -> Supporting Table SA17 Borrowing
A130: Supporting Table SA18 | B130: =A130&" Transfers and grant receipts" -> Supporting Table SA18 Transfers and grant receipts
A131: Supporting Table SA19 | B131: =A131&" Expenditure on transfers and grant programme" -> Supporting Table SA19 Expenditure on transfers and grant programme
A132: Supporting Table SA20 | B132: =A132&" Reconciliation of transfers, grant receipts and unspent funds" -> Supporting Table SA20 Reconciliation of transfers, grant receipts and unspent funds
A133: Supporting Table SA21 | B133: =A133&" Transfers and grants made by the municipality" -> Supporting Table SA21 Transfers and grants made by the municipality
A134: Supporting Table SA22 | B134: =A134&" Summary councillor and staff benefits" -> Supporting Table SA22 Summary councillor and staff benefits
A135: Supporting Table SA23 | B135: =A135&" Salaries, allowances & benefits (political office bearers/councillors/senior managers)" -> Supporting Table SA23 Salaries, allowances & benefits (political office bearers/councillors/senior managers)
A136: Supporting Table SA24 | B136: =A136&" Summary of personnel numbers" -> Supporting Table SA24 Summary of personnel numbers
A137: Supporting Table SA25 | B137: =IF(Consolques="YES",E137,F137) -> Supporting Table SA25 Budgeted monthly revenue and expenditure | E137: =A137&" Consolidated budgeted monthly revenue and expenditure" -> Supporting Table SA25 Consolidated budgeted monthly revenue and expenditure | F137: =A137&" Budgeted monthly revenue and expenditure" -> Supporting Table SA25 Budgeted monthly revenue and expenditure
A138: Supporting Table SA26 | B138: Supporting Table SA26 Budgeted monthly revenue and expenditure (municipal vote) | E138: =A138&" Consolidated budgeted monthly revenue and expenditure (municipal vote)" -> Supporting Table SA26 Consolidated budgeted monthly revenue and expenditure (municipal vote) | F138: =A138&" Budgeted monthly revenue and expenditure (municipal vote)" -> Supporting Table SA26 Budgeted monthly revenue and expenditure (municipal vote)
A139: Supporting Table SA27 | B139: Supporting Table SA27 Budgeted monthly revenue and expenditure (functional classification) | E139: =A139&" Consolidated budgeted monthly revenue and expenditure (functional classification)" -> Supporting Table SA27 Consolidated budgeted monthly revenue and expenditure (functional classification) | F139: =A139&" Budgeted monthly revenue and expenditure (functional classification)" -> Supporting Table SA27 Budgeted monthly revenue and expenditure (functional classification)
A140: Supporting Table SA28 | B140: Supporting Table SA28 Budgeted monthly capital expenditure (municipal vote) | E140: =A140&" Consolidated budgeted monthly capital expenditure (municipal vote)" -> Supporting Table SA28 Consolidated budgeted monthly capital expenditure (municipal vote) | F140: =A140&" Budgeted monthly capital expenditure (municipal vote)" -> Supporting Table SA28 Budgeted monthly capital expenditure (municipal vote)
A141: Supporting Table SA29 | B141: Supporting Table SA29 Budgeted monthly capital expenditure (functional classification) | E141: =A141&" Consolidated budgeted monthly capital expenditure (functional classification)" -> Supporting Table SA29 Consolidated budgeted monthly capital expenditure (functional classification) | F141: =A141&" Budgeted monthly capital expenditure (functional classification)" -> Supporting Table SA29 Budgeted monthly capital expenditure (functional classification)
A142: Supporting Table SA30 | B142: Supporting Table SA30 Budgeted monthly cash flow | E142: =A142&" Consolidated budgeted monthly cash flow" -> Supporting Table SA30 Consolidated budgeted monthly cash flow | F142: =A142&" Budgeted monthly cash flow" -> Supporting Table SA30 Budgeted monthly cash flow
A143: Supporting Table SA31 | B143: NOT REQUIRED - municipality does not have entities | E143: =A143&" Aggregated entity budget" -> Supporting Table SA31 Aggregated entity budget | F143: NOT REQUIRED - municipality does not have entities
A144: Supporting Table SA32 | B144: =A144&" List of external mechanisms" -> Supporting Table SA32 List of external mechanisms
A145: Supporting Table SA33 | B145: =A145&" Contracts having future budgetary implications" -> Supporting Table SA33 Contracts having future budgetary implications
A146: Supporting Table SA34a | B146: =IF(Consolques="YES",E146,F146) -> Supporting Table SA34a Capital expenditure on new assets by asset class | E146: =A146&" Consolidated capital expenditure on new assets by asset class" -> Supporting Table SA34a Consolidated capital expenditure on new assets by asset class | F146: =A146&" Capital expenditure on new assets by asset class" -> Supporting Table SA34a Capital expenditure on new assets by asset class
A147: Supporting Table SA34b | B147: Supporting Table SA34b Capital expenditure on the renewal of existing assets by asset class | E147: =A147&" Consolidated capital expenditure on the renewal of existing assets by asset class" -> Supporting Table SA34b Consolidated capital expenditure on the renewal of existing assets by asset class | F147: =A147&" Capital expenditure on the renewal of existing assets by asset class" -> Supporting Table SA34b Capital expenditure on the renewal of existing assets by asset class
A148: Supporting Table SA34c | B148: Supporting Table SA34c Repairs and maintenance expenditure by asset class | E148: =A148&" Consolidated repairs and maintenance by asset class" -> Supporting Table SA34c Consolidated repairs and maintenance by asset class | F148: =A148&" Repairs and maintenance expenditure by asset class" -> Supporting Table SA34c Repairs and maintenance expenditure by asset class
A149: Supporting Table SA34d | B149: =IF(Consolques="YES",E149,F149) -> Supporting Table SA34d Depreciation by asset class | E149: =A149&" Consolidated Depreciation by asset class" -> Supporting Table SA34d Consolidated Depreciation by asset class | F149: =A149&" Depreciation by asset class" -> Supporting Table SA34d Depreciation by asset class
A150: Supporting Table SA34e | B150: =IF(Consolques="YES",E150,F150) -> Supporting Table SA34e Capital expenditure on the upgrading of existing assets by asset class | E150: =A150&" Consolidated capital expenditure on the upgrading of existing assets by asset class" -> Supporting Table SA34e Consolidated capital expenditure on the upgrading of existing assets by asset class | F150: =A150&" Capital expenditure on the upgrading of existing assets by asset class" -> Supporting Table SA34e Capital expenditure on the upgrading of existing assets by asset class
A151: Supporting Table SA35 | B151: Supporting Table SA35 Future financial implications of the capital budget | E151: =A151&" Consolidated future financial implications of the capital budget" -> Supporting Table SA35 Consolidated future financial implications of the capital budget | F151: =A151& " Future financial implications of the capital budget" -> Supporting Table SA35 Future financial implications of the capital budget
A152: Supporting Table SA36 | B152: Supporting Table SA36 Detailed capital budget | E152: =A152&" Consolidated detailed capital budget" -> Supporting Table SA36 Consolidated detailed capital budget | F152: =A152& " Detailed capital budget" -> Supporting Table SA36 Detailed capital budget
A153: Supporting Table SA37 | B153: Supporting Table SA37 Projects delayed from previous financial year/s | E153: =A153&" Consolidated projects delayed from previous financial year/s" -> Supporting Table SA37 Consolidated projects delayed from previous financial year/s | F153: =A153& " Projects delayed from previous financial year/s" -> Supporting Table SA37 Projects delayed from previous financial year/s
A154: Supporting Table SA38 | B154: =IF(Consolques="YES",E154,F154) -> Supporting Table SA38 Detailed operational projects | E154: =A154&" Consolidated detailed operational projects" -> Supporting Table SA38 Consolidated detailed operational projects | F154: =A154& " Detailed operational projects" -> Supporting Table SA38 Detailed operational projects
A156: Budget Charts | B156: Charts | C156: Cross reference
A157: Chart A1 | B157: =A157&"Revenue by Municipal Vote" -> Chart A1 Revenue by Municipal Vote
A158: Chart A2 | B158: =A158&"Expenditure by Municipal Vote" -> Chart A2 Expenditure by Municipal Vote
A159: Chart A3 | B159: =A159&"Revenue by Standard Classification" -> Chart A3 Revenue by Standard Classification | C159: A2
A160: Chart A4 | B160: =A160&"Expenditure by Standard Classification" -> Chart A4 Expenditure by Standard Classification | C160: A2
A161: Chart A5 | B161: =A161&"Revenue by Major Source (refer 'Minor' source for 'Other Revenue' allocation" -> Chart A5 Revenue by Major Source (refer 'Minor' source for 'Other Revenue' allocation | C161: A3
A162: Chart A6 | B162: =A162&"Revenue by Minor Source (Other)" -> Chart A6 Revenue by Minor Source (Other) | C162: A3
A163: Chart A7 | B163: =A163&"Expenditure by Major Type" -> Chart A7 Expenditure by Major Type | C163: A3
A164: Chart A8 | B164: =A164&"Expenditure by Minor Type (Other)" -> Chart A8 Expenditure by Minor Type (Other) | C164: A3
A165: Chart A9 | B165: =A165&"Capital Expenditure by Municipal Vote/Appropriation (Major)" -> Chart A9 Capital Expenditure by Municipal Vote/Appropriation (Major) | C165: A5
A166: Chart A10 | B166: =A166&"Capital Expenditure by Municipal Vote/Appropriation (Minor)" -> Chart A10 Capital Expenditure by Municipal Vote/Appropriation (Minor) | C166: A5
A167: Chart A11 | B167: =A166&"Capital Expenditure by Standard Classification" -> Chart A10 Capital Expenditure by Standard Classification | C167: A5
A168: Chart A12 | B168: =A168&"Capital expenditure performance trend" -> Chart A12 Capital expenditure performance trend | C168: A5
A169: Chart A13 | B169: =A169&"Capital funding by Source" -> Chart A13 Capital funding by Source | C169: A5
A170: Chart A14 | B170: =A170&"Cash flow trend" -> Chart A14 Cash flow trend | C170: A7
A171: Chart A15 | B171: =A171&"IDP Strategic Objective - Revenue" -> Chart A15 IDP Strategic Objective - Revenue | C171: Table A4
A172: Chart A16 | B172: =A172&"IDP Strategic Objective - Expenditure" -> Chart A16 IDP Strategic Objective - Expenditure | C172: Table A5
A173: Chart A17 | B173: =A173&"IDP Strategic Objective - Capital Expenditure" -> Chart A17 IDP Strategic Objective - Capital Expenditure | C173: Table A6
A174: Chart A18 | B174: =A174&"Debt (borrowing to Total Revenue)" -> Chart A18 Debt (borrowing to Total Revenue) | C174: Table A8
A175: Chart A19 | B175: =A175&"Debtors' trend analysis" -> Chart A19 Debtors' trend analysis | C175: Table A8
A176: Chart A20 | B176: =A176&"Distribution losses" -> Chart A20 Distribution losses | C176: Table A8
A177: Chart A21 | B177: =A177&"Borrowed funding of capital expenditure" -> Chart A21 Borrowed funding of capital expenditure | C177: Table A8
A178: Chart A22 | B178: =A178&"Expenditure analysis (% of Revenue)" -> Chart A22 Expenditure analysis (% of Revenue) | C178: Table A8
A179: Chart A23 | B179: =A179&"Increases in service charges" -> Chart A23 Increases in service charges | C179: Table A10

Sheet Lookup and lists (hidden)
A1: Description | B1: 2013 | C1: 2014 | D1: 2015 | E1: 2016 | F1: 2017 | G1: 2018 | H1: 2019 | I1: 2020 | J1: 2021 | K1: 2022 | L1: 2023 | M1: 2024 | N1: 2025 | O1: 2026 | Q1: Lists | Y1: Grants: | Z1: National - opex | AA1: Provincial - opex | AB1: National - capex | AC1: Provincial - capex
A2: ='Template names'!C2 -> Prior year -1 | B2: =B1-2&"/"&RIGHT(B1,2)-1 -> 2011/12 | C2: 2012/13 | D2: 2013/14 | E2: 2014/15 | F2: 2015/16 | G2: 2016/17 | H2: 2017/18 | I2: 2018/19 | J2: =J1-2&"/"&RIGHT(J1,2)-1 -> 2019/20 | K2: 2020/21 | L2: 2021/22 | M2: 2022/23 | N2: 2023/24 | O2: 2024/25 | Q2: Yes | R2: <1 | S2: <4 | T2: Market | U2: Land & impr. | V2: Yes | W2: Uniform | X2: Yrs | Z2: Local Government Equitable Share | AA2: Health subsidy | AB2: Municipal Infrastructure Grant (MIG) | AC2: Agriculture
A3: ='Template names'!C3 -> Prior year -2 | B3: =B1-3&"/"&RIGHT(B1,2)-2 -> 2010/11 | C3: 2011/12 | D3: 2012/13 | E3: 2013/14 | F3: 2014/15 | G3: 2015/16 | H3: 2016/17 | I3: 2017/18 | J3: =J1-3&"/"&RIGHT(J1,2)-2 -> 2018/19 | K3: 2019/20 | L3: 2020/21 | M3: 2021/22 | N3: 2022/23 | O3: 2023/24 | Q3: No | R3: 1 | S3: 4 | T3: Dep.Replace | U3: Land only | V3: No | W3: Variable | X3: Mths | Z3: RSC Levy Replacement | AA3: Ambulance subsidy | AB3: Public Transport and Systems | AC3: Education
A4: ='Template names'!C4 -> Prior year -3 | B4: =B1-4&"/"&RIGHT(B1,2)-3 -> 2009/10 | C4: 2010/11 | D4: 2011/12 | E4: 2012/13 | F4: 2013/14 | G4: 2014/15 | H4: 2015/16 | I4: 2016/17 | J4: =J1-4&"/"&RIGHT(J1,2)-3 -> 2017/18 | K4: 2018/19 | L4: 2019/20 | M4: 2020/21 | N4: 2021/22 | O4: 2022/23 | R4: 2 | S4: 5 | T4: Other | U4: Other | Z4: Finance Management | AA4: Housing | AB4: Rural Transport Services and Infrastructure | AC4: Health
A5: ='Template names'!C5 -> Year in which budget is being prepared | B5: ="Current Year "& B1-1&"/"&RIGHT(B1,2) -> Current Year 2012/13 | C5: Current Year 2013/14 | D5: Current Year 2014/15 | E5: Current Year 2015/16 | F5: Current Year 2016/17 | G5: Current Year 2017/18 | H5: Current Year 2018/19 | I5: Current Year 2019/20 | J5: ="Current Year "& J1-1&"/"&RIGHT(J1,2) -> Current Year 2020/21 | K5: Current Year 2021/22 | L5: Current Year 2022/23 | M5: Current Year 2023/24 | N5: Current Year 2024/25 | O5: Current Year 2025/26 | R5: 3 | S5: 6 | Z5: Municipal Systems Improvement | AA5: Sport and Recreation | AB5: Regional Bulk Infrastructure | AC5: Housing and Local Government
A6: ='Template names'!C6 -> Year in which budget is being prepared | B6: =B1-1&"/"&RIGHT(B1,2) -> 2012/13 | C6: 2013/14 | D6: 2014/15 | E6: 2015/16 | F6: 2016/17 | G6: 2017/18 | H6: 2018/19 | I6: 2019/20 | J6: =J1-1&"/"&RIGHT(J1,2) -> 2020/21 | K6: 2021/22 | L6: 2022/23 | M6: 2023/24 | N6: 2024/25 | O6: 2025/26 | R6: 4 | S6: 6-10 | Z6: Water Services Operating Subsidy | AB6: Rural Households Infrastructure | AC6: Other Departments
A7: ='Template names'!C7 -> MTREF name | B7: =B1&"/"&RIGHT(B1,2)+1&" Medium Term Revenue & Expenditure Framework" -> 2013/14 Medium Term Revenue & Expenditure Framework | C7: 2014/15 Medium Term Revenue & Expenditure Framework | D7: 2015/16 Medium Term Revenue & Expenditure Framework | E7: 2016/17 Medium Term Revenue & Expenditure Framework | F7: 2017/18 Medium Term Revenue & Expenditure Framework | G7: 2018/19 Medium Term Revenue & Expenditure Framework | H7: 2019/20 Medium Term Revenue & Expenditure Framework | I7: 2020/21 Medium Term Revenue & Expenditure Framework | J7: =J1&"/"&RIGHT(J1,2)+1&" Medium Term Revenue & Expenditure Framework" -> 2021/22 Medium Term Revenue & Expenditure Framework | K7: 2022/23 Medium Term Revenue & Expenditure Framework | L7: 2023/24 Medium Term Revenue & Expenditure Framework | M7: 2024/25 Medium Term Revenue & Expenditure Framework | N7: 2025/26 Medium Term Revenue & Expenditure Framework | O7: 2026/27 Medium Term Revenue & Expenditure Framework | R7: 5 | S7: >10 | Z7: Energy Efficiency and Demand Management | AB7: Neighbourhood Development Partnership | AC7: Public Works, Roads, Transport
A8: ='Template names'!C15 -> 1st year of MTREF | B8: ="Budget Year "&B1&"/"&RIGHT(B1,2)+1 -> Budget Year 2013/14 | C8: Budget Year 2014/15 | D8: Budget Year 2015/16 | E8: Budget Year 2016/17 | F8: Budget Year 2017/18 | G8: Budget Year 2018/19 | H8: Budget Year 2019/20 | I8: Budget Year 2020/21 | J8: ="Budget Year "&J1&"/"&RIGHT(J1,2)+1 -> Budget Year 2021/22 | K8: Budget Year 2022/23 | L8: Budget Year 2023/24 | M8: Budget Year 2024/25 | N8: Budget Year 2025/26 | O8: Budget Year 2026/27 | R8: >5 | Z8: Integrated National Electrification Programme | AB8: 2010 FIFA World Cup Stadiums Development | AC8: Sport and Recreation
A9: ='Template names'!C16 -> 2nd year of MTREF | B9: ="Budget Year +1 "&B1+1&"/"&RIGHT(B1,2)+2 -> Budget Year +1 2014/15 | C9: Budget Year +1 2015/16 | D9: Budget Year +1 2016/17 | E9: Budget Year +1 2017/18 | F9: Budget Year +1 2018/19 | G9: Budget Year +1 2019/20 | H9: Budget Year +1 2020/21 | I9: Budget Year +1 2021/22 | J9: ="Budget Year +1 "&J1+1&"/"&RIGHT(J1,2)+2 -> Budget Year +1 2022/23 | K9: Budget Year +1 2023/24 | L9: Budget Year +1 2024/25 | M9: Budget Year +1 2025/26 | N9: Budget Year +1 2026/27 | O9: Budget Year +1 2027/28 | Z9: Municipal Drought Relief
A10: ='Template names'!C17 -> 3rd year of MTREF | B10: ="Budget Year +2 "&B1+2&"/"&RIGHT(B1,2)+3 -> Budget Year +2 2015/16 | C10: Budget Year +2 2016/17 | D10: Budget Year +2 2017/18 | E10: Budget Year +2 2018/19 | F10: Budget Year +2 2019/20 | G10: Budget Year +2 2020/21 | H10: Budget Year +2 2021/22 | I10: Budget Year +2 2022/23 | J10: ="Budget Year +2 "&J1+2&"/"&RIGHT(J1,2)+3 -> Budget Year +2 2023/24 | K10: Budget Year +2 2024/25 | L10: Budget Year +2 2025/26 | M10: Budget Year +2 2026/27 | N10: Budget Year +2 2027/28 | O10: Budget Year +2 2028/29 | Z10: 2010 FIFA World Cup Operating
A11: ='Template names'!C18 -> 1st yr of long term forecast | B11: ="Forecast "&B1+3&"/"&RIGHT(B1,2)+4 -> Forecast 2016/17 | C11: Forecast 2017/18 | D11: Forecast 2018/19 | E11: Forecast 2019/20 | F11: Forecast 2020/21 | G11: Forecast 2021/22 | H11: Forecast 2022/23 | I11: Forecast 2023/24 | J11: ="Forecast "&J1+3&"/"&RIGHT(J1,2)+4 -> Forecast 2024/25 | K11: Forecast 2025/26 | L11: Forecast 2026/27 | M11: Forecast 2027/28 | N11: Forecast 2028/29 | O11: Forecast 2029/30 | Z11: Electricity Demand Side Management
A12: ='Template names'!C19 -> Next yr of long term forecast | B12: ="Forecast "&B1+4&"/"&RIGHT(B1,2)+5 -> Forecast 2017/18 | C12: Forecast 2018/19 | D12: Forecast 2019/20 | E12: Forecast 2020/21 | F12: Forecast 2021/22 | G12: Forecast 2022/23 | H12: Forecast 2023/24 | I12: Forecast 2024/25 | J12: ="Forecast "&J1+4&"/"&RIGHT(J1,2)+5 -> Forecast 2025/26 | K12: Forecast 2026/27 | L12: Forecast 2027/28 | M12: Forecast 2028/29 | N12: Forecast 2029/30 | O12: Forecast 2030/31 | Z12: EPWP Incentive
A13: ='Template names'!C20 -> Next yr of long term forecast | B13: ="Forecast "&B1+5&"/"&RIGHT(B1,2)+6 -> Forecast 2018/19 | C13: Forecast 2019/20 | D13: Forecast 2020/21 | E13: Forecast 2021/22 | F13: Forecast 2022/23 | G13: Forecast 2023/24 | H13: Forecast 2024/25 | I13: Forecast 2025/26 | J13: ="Forecast "&J1+5&"/"&RIGHT(J1,2)+6 -> Forecast 2026/27 | K13: Forecast 2027/28 | L13: Forecast 2028/29 | M13: Forecast 2029/30 | N13: Forecast 2030/31 | O13: Forecast 2031/32
A14: ='Template names'!C21 -> Next yr of long term forecast | B14: ="Forecast "&B1+6&"/"&RIGHT(B1,2)+7 -> Forecast 2019/20 | C14: Forecast 2020/21 | D14: Forecast 2021/22 | E14: Forecast 2022/23 | F14: Forecast 2023/24 | G14: Forecast 2024/25 | H14: Forecast 2025/26 | I14: Forecast 2026/27 | J14: ="Forecast "&J1+6&"/"&RIGHT(J1,2)+7 -> Forecast 2027/28 | K14: Forecast 2028/29 | L14: Forecast 2029/30 | M14: Forecast 2030/31 | N14: Forecast 2031/32 | O14: Forecast 2032/33 | Z14: Asset Class | AA14: Asset sub-class old | AB14: Asset sub-class | AC14: IUDF | AD14: MTSF
A15: ='Template names'!C22 -> Next yr of long term forecast | B15: ="Forecast "&B1+7&"/"&RIGHT(B1,2)+8 -> Forecast 2020/21 | C15: Forecast 2021/22 | D15: Forecast 2022/23 | E15: Forecast 2023/24 | F15: Forecast 2024/25 | G15: Forecast 2025/26 | H15: Forecast 2026/27 | I15: Forecast 2027/28 | J15: ="Forecast "&J1+7&"/"&RIGHT(J1,2)+8 -> Forecast 2028/29 | K15: Forecast 2029/30 | L15: Forecast 2030/31 | M15: Forecast 2031/32 | N15: Forecast 2032/33 | O15: Forecast 2033/34
A16: ='Template names'!C23 -> Next yr of long term forecast | B16: ="Forecast "&B1+8&"/"&RIGHT(B1,2)+9 -> Forecast 2021/22 | C16: Forecast 2022/23 | D16: Forecast 2023/24 | E16: Forecast 2024/25 | F16: Forecast 2025/26 | G16: Forecast 2026/27 | H16: Forecast 2027/28 | I16: Forecast 2028/29 | J16: ="Forecast "&J1+8&"/"&RIGHT(J1,2)+9 -> Forecast 2029/30 | K16: Forecast 2030/31 | L16: Forecast 2031/32 | M16: Forecast 2032/33 | N16: Forecast 2033/34 | O16: Forecast 2034/35 | Z16: Roads Infrastructure | AA16: Roads, Pavements & Bridges | AB16: Roads | AC16: Spatial integration | AD16: Quality basic education
A17: ='Template names'!C24 -> Next yr of long term forecast | B17: ="Forecast "&B1+9&"/"&RIGHT(B1,2)+10 -> Forecast 2022/23 | C17: Forecast 2023/24 | D17: Forecast 2024/25 | E17: Forecast 2025/26 | F17: Forecast 2026/27 | G17: Forecast 2027/28 | H17: Forecast 2028/29 | I17: Forecast 2029/30 | J17: ="Forecast "&J1+9&"/"&RIGHT(J1,2)+10 -> Forecast 2030/31 | K17: Forecast 2031/32 | L17: Forecast 2032/33 | M17: Forecast 2033/34 | N17: Forecast 2034/35 | O17: Forecast 2035/36 | Z17: Storm water Infrastructure | AA17: Storm water | AB17: Road Structures | AC17: Inclusion and access | AD17: A long and healthy life for all South Africans
A18: ='Template names'!C25 -> Next yr of long term forecast | B18: ="Forecast "&B1+10&"/"&RIGHT(B1,2)+11 -> Forecast 2023/24 | C18: Forecast 2024/25 | D18: Forecast 2025/26 | E18: Forecast 2026/27 | F18: Forecast 2027/28 | G18: Forecast 2028/29 | H18: Forecast 2029/30 | I18: Forecast 2030/31 | J18: ="Forecast "&J1+10&"/"&RIGHT(J1,2)+11 -> Forecast 2031/32 | K18: Forecast 2032/33 | L18: Forecast 2033/34 | M18: Forecast 2034/35 | N18: Forecast 2035/36 | O18: Forecast 2036/37 | Z18: Electrical Infrastructure | AA18: Generation | AB18: Road Furniture | AC18: Growth | AD18: All people in South Africa are and feel safe
A19: ='Template names'!C26 -> Next yr of long term forecast | B19: ="Forecast "&B1+11&"/"&RIGHT(B1,2)+12 -> Forecast 2024/25 | C19: Forecast 2025/26 | D19: Forecast 2026/27 | E19: Forecast 2027/28 | F19: Forecast 2028/29 | G19: Forecast 2029/30 | H19: Forecast 2030/31 | I19: Forecast 2031/32 | J19: ="Forecast "&J1+11&"/"&RIGHT(J1,2)+12 -> Forecast 2032/33 | K19: Forecast 2033/34 | L19: Forecast 2034/35 | M19: Forecast 2035/36 | N19: Forecast 2036/37 | O19: Forecast 2037/38 | Z19: Water Supply Infrastructure | AA19: Transmission & Reticulation | AB19: Capital Spares | AC19: Governance | AD19: Decent employment through inclusive growth
A20: ='Template names'!C27 -> Next yr of long term forecast | B20: ="Forecast "&B1+12&"/"&RIGHT(B1,2)+13 -> Forecast 2025/26 | C20: Forecast 2026/27 | D20: Forecast 2027/28 | E20: Forecast 2028/29 | F20: Forecast 2029/30 | G20: Forecast 2030/31 | H20: Forecast 2031/32 | I20: Forecast 2032/33 | J20: ="Forecast "&J1+12&"/"&RIGHT(J1,2)+13 -> Forecast 2033/34 | K20: Forecast 2034/35 | L20: Forecast 2035/36 | M20: Forecast 2036/37 | N20: Forecast 2037/38 | O20: Forecast 2038/39 | Z20: Sanitation Infrastructure | AA20: Street Lighting | AB20: Drainage Collection | AD20: A skilled and capable workforce to support an inclusive growth path
A21: ='Template names'!C28 -> Next yr of long term forecast | B21: ="Forecast "&B1+13&"/"&RIGHT(B1,2)+14 -> Forecast 2026/27 | C21: Forecast 2027/28 | D21: Forecast 2028/29 | E21: Forecast 2029/30 | F21: Forecast 2030/31 | G21: Forecast 2031/32 | H21: Forecast 2032/33 | I21: Forecast 2033/34 | J21: ="Forecast "&J1+13&"/"&RIGHT(J1,2)+14 -> Forecast 2034/35 | K21: Forecast 2035/36 | L21: Forecast 2036/37 | M21: Forecast 2037/38 | N21: Forecast 2038/39 | O21: Forecast 2039/40 | Z21: Solid Waste Infrastructure | AA21: Dams & Reservoirs | AB21: Storm water Conveyance | AD21: An efficient, competitive and responsive economic infrastructure network
A22: ='Template names'!C29 -> Next yr of long term forecast | B22: ="Forecast "&B1+14&"/"&RIGHT(B1,2)+15 -> Forecast 2027/28 | C22: Forecast 2028/29 | D22: Forecast 2029/30 | E22: Forecast 2030/31 | F22: Forecast 2031/32 | G22: Forecast 2032/33 | H22: Forecast 2033/34 | I22: Forecast 2034/35 | J22: ="Forecast "&J1+14&"/"&RIGHT(J1,2)+15 -> Forecast 2035/36 | K22: Forecast 2036/37 | L22: Forecast 2037/38 | M22: Forecast 2038/39 | N22: Forecast 2039/40 | O22: Forecast 2040/41 | Z22: Rail Infrastructure | AA22: Water purification | AB22: Attenuation | AD22: Vibrant, equitable, sustainable rural communities contributing towards food security for all
A23: Adjustments Budget | B23: ="Annual target " & B1&"/"&RIGHT(B1,2)+1 -> Annual target 2013/14 | C23: Annual target 2014/15 | D23: Annual target 2015/16 | E23: Annual target 2016/17 | F23: Annual target 2017/18 | G23: Annual target 2018/19 | H23: Annual target 2019/20 | I23: Annual target 2020/21 | J23: ="Annual target " & J1&"/"&RIGHT(J1,2)+1 -> Annual target 2021/22 | K23: Annual target 2022/23 | L23: Annual target 2023/24 | M23: Annual target 2024/25 | N23: Annual target 2025/26 | O23: Annual target 2026/27 | Z23: Coastal Infrastructure | AA23: Reticulation | AB23: Power Plants | AD23: Sustainable human settlements and improved quality of household life
A24: =A23 -> Adjustments Budget | B24: ="Revised target "& B1&"/"&RIGHT(B1,2)+1 -> Revised target 2013/14 | C24: Revised target 2014/15 | D24: Revised target 2015/16 | E24: Revised target 2016/17 | F24: Revised target 2017/18 | G24: Revised target 2018/19 | H24: Revised target 2019/20 | I24: Revised target 2020/21 | J24: ="Revised target "& J1&"/"&RIGHT(J1,2)+1 -> Revised target 2021/22 | K24: Revised target 2022/23 | L24: Revised target 2023/24 | M24: Revised target 2024/25 | N24: Revised target 2025/26 | O24: Revised target 2026/27 | Z24: Information and Communication Infrastructure | AA24: Sewerage purification | AB24: HV Substations | AD24: Responsive, accountable, effective and efficient local government
A25: NOTE: This sheet should not be directly amended - select headings from sheet 'S' | Z25: Community Facilities | AA25: Waste Management | AB25: HV Switching Station | AD25: Protect and enhance our environmental assets and natural resources
Z26: Sport and Recreation Facilities | AA26: Transportation | AB26: HV Transmission Conductors | AD26: Create a better South Africa and contribute to a better Africa and a better world
A27: Name link | B27: 140 | Z27: Heritage assets | AA27: Gas | AB27: MV Substations | AD27: An efficient, effective and development-oriented public service
A28: Name of Muni | B28: =INDEX(B29:B307,B27,1) -> LIM351 Blouberg | Z28: Revenue Generating | AA28: Parks & gardens | AB28: MV Switching Stations | AD28: A comprehensive, responsive and sustainable social protection system
B29: Choose name from list | C29: Set name on 'Instructions' sheet | Z29: Non-revenue Generating | AA29: Sportsfields & stadia | AB29: MV Networks | AD29: A diverse, socially cohesive society with a common national identity
B30: BUF Buffalo City | C30: EC EASTERN CAPE | Z30: Operational Buildings | AA30: Swimming pools | AB30: LV Networks
B31: NMA Nelson Mandela Bay | C31: EC EASTERN CAPE | Z31: Housing | AA31: Community halls | AB31: Capital Spares
B32: EC101 Dr Beyers Naude | C32: EC EASTERN CAPE | Z32: Biological or Cultivated Assets | AA32: Libraries | AB32: Dams and Weirs
B33: EC102 Blue Crane Route | C33: EC EASTERN CAPE | Z33: Servitudes | AA33: Recreational facilities | AB33: Boreholes
B34: EC104 Makana | C34: EC EASTERN CAPE | Z34: Licences and Rights | AA34: Fire, safety & emergency | AB34: Reservoirs
B35: EC105 Ndlambe | C35: EC EASTERN CAPE | Z35: Computer Equipment | AA35: Security and policing | AB35: Pump Stations
B36: EC106 Sundays River Valley | C36: EC EASTERN CAPE | Z36: Furniture and Office Equipment | AA36: Buses | AB36: Water Treatment Works
B37: EC108 Kouga | C37: EC EASTERN CAPE | Z37: Machinery and Equipment | AA37: Clinics | AB37: Bulk Mains
B38: EC109 Kou-Kamma | C38: EC EASTERN CAPE | Z38: Transport Assets | AA38: Museums & Art Galleries | AB38: Distribution
B39: DC10 Sarah Baartman | C39: EC EASTERN CAPE | Z39: Land | AA39: Cemeteries | AB39: Distribution Points
B40: EC121 Mbhashe | C40: EC EASTERN CAPE | Z40: Zoo's, Marine and Non-biological Animals | AA40: Social rental housing | AB40: PRV Stations
B41: EC122 Mnquma | C41: EC EASTERN CAPE | AA41: Buildings | AB41: Capital Spares
B42: EC123 Great Kei | C42: EC EASTERN CAPE | AA42: Housing development | AB42: Pump Station
B43: EC124 Amahlathi | C43: EC EASTERN CAPE | AA43: General vehicles | AB43: Reticulation
B44: EC126 Ngqushwa | C44: EC EASTERN CAPE | AA44: Specialised vehicles - Refuse | AB44: Waste Water Treatment Works
B45: EC129 Raymond Mhlaba | C45: EC EASTERN CAPE | AA45: Specialised vehicles - Fire | AB45: Outfall Sewers
B46: DC12 Amathole | C46: EC EASTERN CAPE | AA46: Specialised vehicles - Conservancy | AB46: Toilet Facilities
B47: EC131 Inxuba Yethemba | C47: EC EASTERN CAPE | AA47: Specialised vehicles - Ambulances | AB47: Capital Spares
B48: EC135 Intsika Yethu | C48: EC EASTERN CAPE | AA48: Plant & equipment | AB48: Landfill Sites
B49: EC136 Emalahleni (Ec) | C49: EC EASTERN CAPE | AA49: Computers - hardware/equipment | AB49: Waste Transfer Stations
B50: EC137 Engcobo | C50: EC EASTERN CAPE | AA50: Furniture and other office equipment | AB50: Waste Processing Facilities
B51: EC138 Sakhisizwe | C51: EC EASTERN CAPE | AA51: Abattoirs | AB51: Waste Drop-off Points
B52: EC139 Enoch Mgijima | C52: EC EASTERN CAPE | AA52: Markets | AB52: Waste Separation Facilities
B53: DC13 Chris Hani | C53: EC EASTERN CAPE | AA53: Civic Land and Buildings | AB53: Electricity Generation Facilities
B54: EC141 Elundini | C54: EC EASTERN CAPE | AA54: Other Buildings | AB54: Capital Spares
B55: EC142 Senqu | C55: EC EASTERN CAPE | AA55: Other Land | AB55: Rail Lines
B56: EC145 Walter Sisulu | C56: EC EASTERN CAPE | AA56: Surplus Assets - (Investment or Inventory) | AB56: Rail Structures
B57: DC14 Joe Gqabi | C57: EC EASTERN CAPE | AA57: Computers - software & programming | AB57: Rail Furniture
B58: EC153 Ngquza Hills | C58: EC EASTERN CAPE | AA58: Other | AB58: Drainage Collection
B59: EC154 Port St Johns | C59: EC EASTERN CAPE | AB59: Storm water Conveyance
B60: EC155 Nyandeni | C60: EC EASTERN CAPE | Z60: SA16 - Investments | AB60: Attenuation
B61: EC156 Mhlontlo | C61: EC EASTERN CAPE | Z61: Security | AA61: Interest rate | AB61: MV Substations
B62: EC157 King Sabata Dalindyebo | C62: EC EASTERN CAPE | Z62: Yes | AA62: Fixed | AB62: LV Networks
B63: DC15 O .R. Tambo | C63: EC EASTERN CAPE | Z63: No | AA63: Variable | AB63: Capital Spares
B64: EC441 Matatiele | C64: EC EASTERN CAPE | AB64: Sand Pumps
B65: EC442 Umzimvubu | C65: EC EASTERN CAPE | AB65: Piers
B66: EC443 Mbizana | C66: EC EASTERN CAPE | Z66: SA36, SA37 - Capital projects | AB66: Revetments
B67: EC444 Ntabankulu | C67: EC EASTERN CAPE | Z67: Yes | AB67: Promenades
B68: DC44 Alfred Nzo | C68: EC EASTERN CAPE | Z68: No | AB68: Capital Spares
B69: MAN Mangaung | C69: FS FREE STATE | AB69: Data Centres
B70: FS161 Letsemeng | C70: FS FREE STATE | AB70: Core Layers
B71: FS162 Kopanong | C71: FS FREE STATE | AB71: Distribution Layers
B72: FS163 Mohokare | C72: FS FREE STATE | AB72: Capital Spares
B73: DC16 Xhariep | C73: FS FREE STATE | AB73: Halls
B74: FS181 Masilonyana | C74: FS FREE STATE | AB74: Centres
B75: FS182 Tokologo | C75: FS FREE STATE | AB75: Crèches
B76: FS183 Tswelopele | C76: FS FREE STATE | AB76: Clinics/Care Centres
B77: FS184 Matjhabeng | C77: FS FREE STATE | AB77: Fire/Ambulance Stations
B78: FS185 Nala | C78: FS FREE STATE | AB78: Testing Stations
B79: DC18 Lejweleputswa | C79: FS FREE STATE | AB79: Museums
B80: FS191 Setsoto | C80: FS FREE STATE | AB80: Galleries
B81: FS192 Dihlabeng | C81: FS FREE STATE | AB81: Theatres
B82: FS193 Nketoana | C82: FS FREE STATE | AB82: Libraries
B83: FS194 Maluti-a-Phofung | C83: FS FREE STATE | AB83: Cemeteries/Crematoria
B84: FS195 Phumelela | C84: FS FREE STATE | AB84: Police
B85: FS196 Mantsopa | C85: FS FREE STATE | AB85: Purls
B86: DC19 Thabo Mofutsanyana | C86: FS FREE STATE | AB86: Public Open Space
B87: FS201 Moqhaka | C87: FS FREE STATE | AB87: Nature Reserves
B88: FS203 Ngwathe | C88: FS FREE STATE | AB88: Public Ablution Facilities
B89: FS204 Metsimaholo | C89: FS FREE STATE | AB89: Markets
B90: FS205 Mafube | C90: FS FREE STATE | AB90: Stalls
B91: DC20 Fezile Dabi | C91: FS FREE STATE | AB91: Abattoirs
B92: EKU City of Ekurhuleni | C92: GT GAUTENG | AB92: Airports
B93: JHB City Of Johannesburg | C93: GT GAUTENG | AB93: Taxi Ranks/Bus Terminals
B94: TSH City Of Tshwane | C94: GT GAUTENG | AB94: Capital Spares
B95: GT421 Emfuleni | C95: GT GAUTENG | AB95: Indoor Facilities
B96: GT422 Midvaal | C96: GT GAUTENG | AB96: Outdoor Facilities
B97: GT423 Lesedi | C97: GT GAUTENG | AB97: Capital Spares
B98: DC42 Sedibeng | C98: GT GAUTENG | AB98: Monuments
B99: GT481 Mogale City | C99: GT GAUTENG | AB99: Historic Buildings
B100: GT484 Merafong City | C100: GT GAUTENG | AB100: Works of Art
B101: GT485 Rand West City | C101: GT GAUTENG | AB101: Conservation Areas
B102: DC48 West Rand | C102: GT GAUTENG | AB102: Other Heritage
B103: ETH eThekwini | C103: KZN KWAZULU-NATAL | AB103: Improved Property
B104: KZN212 Umdoni | C104: KZN KWAZULU-NATAL | AB104: Unimproved Property
B105: KZN213 Umzumbe | C105: KZN KWAZULU-NATAL | AB105: Municipal Offices
B106: KZN214 uMuziwabantu | C106: KZN KWAZULU-NATAL | AB106: Pay/Enquiry Points
B107: KZN216 Ray Nkonyeni | C107: KZN KWAZULU-NATAL | AB107: Building Plan Offices
B108: DC21 Ugu | C108: KZN KWAZULU-NATAL | AB108: Workshops
B109: KZN221 uMshwathi | C109: KZN KWAZULU-NATAL | AB109: Yards
B110: KZN222 uMngeni | C110: KZN KWAZULU-NATAL | AB110: Stores
B111: KZN223 Mpofana | C111: KZN KWAZULU-NATAL | AB111: Laboratories
B112: KZN224 Impendle | C112: KZN KWAZULU-NATAL | AB112: Training Centres
B113: KZN225 Msunduzi | C113: KZN KWAZULU-NATAL | AB113: Manufacturing Plant
B114: KZN226 Mkhambathini | C114: KZN KWAZULU-NATAL | AB114: Depots
B115: KZN227 Richmond | C115: KZN KWAZULU-NATAL | AB115: Capital Spares
B116: DC22 uMgungundlovu | C116: KZN KWAZULU-NATAL | AB116: Staff Housing
B117: KZN235 Okhahlamba | C117: KZN KWAZULU-NATAL | AB117: Social Housing
B118: KZN237 Inkosi Langalibalele | C118: KZN KWAZULU-NATAL | AB118: Capital Spares
B119: KZN238 Alfred Duma | C119: KZN KWAZULU-NATAL | AB119: Water Rights
B120: DC23 Uthukela | C120: KZN KWAZULU-NATAL | AB120: Effluent Licenses
B121: KZN241 Endumeni | C121: KZN KWAZULU-NATAL | AB121: Solid Waste Licenses
B122: KZN242 Nquthu | C122: KZN KWAZULU-NATAL | AB122: Computer Software and Applications
B123: KZN244 Msinga | C123: KZN KWAZULU-NATAL | AB123: Load Settlement Software Applications
B124: KZN245 Umvoti | C124: KZN KWAZULU-NATAL | AB124: Unspecified
B125: DC24 Umzinyathi | C125: KZN KWAZULU-NATAL
B126: KZN252 Newcastle | C126: KZN KWAZULU-NATAL
B127: KZN253 Emadlangeni | C127: KZN KWAZULU-NATAL
B128: KZN254 Dannhauser | C128: KZN KWAZULU-NATAL
B129: DC25 Amajuba | C129: KZN KWAZULU-NATAL
B130: KZN261 eDumbe | C130: KZN KWAZULU-NATAL
B131: KZN262 uPhongolo | C131: KZN KWAZULU-NATAL
B132: KZN263 Abaqulusi | C132: KZN KWAZULU-NATAL
B133: KZN265 Nongoma | C133: KZN KWAZULU-NATAL
B134: KZN266 Ulundi | C134: KZN KWAZULU-NATAL
B135: DC26 Zululand | C135: KZN KWAZULU-NATAL
B136: KZN271 Umhlabuyalingana | C136: KZN KWAZULU-NATAL
B137: KZN272 Jozini | C137: KZN KWAZULU-NATAL
B138: KZN275 Mtubatuba | C138: KZN KWAZULU-NATAL
B139: KZN276 Hlabisa Big Five | C139: KZN KWAZULU-NATAL
B140: DC27 Umkhanyakude | C140: KZN KWAZULU-NATAL
B141: KZN281 Mfolozi | C141: KZN KWAZULU-NATAL
B142: KZN282 uMhlathuze | C142: KZN KWAZULU-NATAL
B143: KZN284 uMlalazi | C143: KZN KWAZULU-NATAL
B144: KZN285 Mthonjaneni | C144: KZN KWAZULU-NATAL
B145: KZN286 Nkandla | C145: KZN KWAZULU-NATAL
B146: DC28 King Cetshwayo | C146: KZN KWAZULU-NATAL
B147: KZN291 Mandeni | C147: KZN KWAZULU-NATAL
B148: KZN292 KwaDukuza | C148: KZN KWAZULU-NATAL
B149: KZN293 Ndwedwe | C149: KZN KWAZULU-NATAL
B150: KZN294 Maphumulo | C150: KZN KWAZULU-NATAL
B151: DC29 iLembe | C151: KZN KWAZULU-NATAL
B152: KZN433 Greater Kokstad | C152: KZN KWAZULU-NATAL
B153: KZN434 Ubuhlebezwe | C153: KZN KWAZULU-NATAL
B154: KZN435 Umzimkhulu | C154: KZN KWAZULU-NATAL
B155: KZN436 Dr Nkosazana Dlamini Zuma | C155: KZN KWAZULU-NATAL
B156: DC43 Harry Gwala | C156: KZN KWAZULU-NATAL
B157: LIM331 Greater Giyani | C157: LIM LIMPOPO
B158: LIM332 Greater Letaba | C158: LIM LIMPOPO
B159: LIM333 Greater Tzaneen | C159: LIM LIMPOPO
B160: LIM334 Ba-Phalaborwa | C160: LIM LIMPOPO
B161: LIM335 Maruleng | C161: LIM LIMPOPO
B162: DC33 Mopani | C162: LIM LIMPOPO
B163: LIM341 Musina | C163: LIM LIMPOPO
B164: LIM343 Thulamela | C164: LIM LIMPOPO
B165: LIM344 Makhado | C165: LIM LIMPOPO
B166: LIM345 Collins Chabane | C166: LIM LIMPOPO
B167: DC34 Vhembe | C167: LIM LIMPOPO
B168: LIM351 Blouberg | C168: LIM LIMPOPO
B169: LIM353 Molemole | C169: LIM LIMPOPO
B170: LIM354 Polokwane | C170: LIM LIMPOPO
B171: LIM355 Lepelle-Nkumpi | C171: LIM LIMPOPO
B172: DC35 Capricorn | C172: LIM LIMPOPO
B173: LIM361 Thabazimbi | C173: LIM LIMPOPO
B174: LIM362 Lephalale | C174: LIM LIMPOPO
B175: LIM366 Bela Bela | C175: LIM LIMPOPO
B176: LIM367 Mogalakwena | C176: LIM LIMPOPO
B177: LIM368 Modimolle-Mookgopong | C177: LIM LIMPOPO
B178: DC36 Waterberg | C178: LIM LIMPOPO
B179: LIM471 Ephraim Mogale | C179: LIM LIMPOPO
B180: LIM472 Elias Motsoaledi | C180: LIM LIMPOPO
B181: LIM473 Makhuduthamaga | C181: LIM LIMPOPO
B182: LIM476 Tubatse Fetakgomo | C182: LIM LIMPOPO
B183: DC47 Sekhukhune | C183: LIM LIMPOPO
B184: MP301 Albert Luthuli | C184: MP MPUMALANGA
B185: MP302 Msukaligwa | C185: MP MPUMALANGA
B186: MP303 Mkhondo | C186: MP MPUMALANGA
B187: MP304 Pixley Ka Seme (MP) | C187: MP MPUMALANGA
B188: MP305 Lekwa | C188: MP MPUMALANGA
B189: MP306 Dipaleseng | C189: MP MPUMALANGA
B190: MP307 Govan Mbeki | C190: MP MPUMALANGA
B191: DC30 Gert Sibande | C191: MP MPUMALANGA
B192: MP311 Victor Khanye | C192: MP MPUMALANGA
B193: MP312 Emalahleni (Mp) | C193: MP MPUMALANGA
B194: MP313 Steve Tshwete | C194: MP MPUMALANGA
B195: MP314 Emakhazeni | C195: MP MPUMALANGA
B196: MP315 Thembisile Hani | C196: MP MPUMALANGA
B197: MP316 Dr J.S. Moroka | C197: MP MPUMALANGA
B198: DC31 Nkangala | C198: MP MPUMALANGA
B199: MP321 Thaba Chweu | C199: MP MPUMALANGA
B200: MP324 Nkomazi | C200: MP MPUMALANGA
... 87 more rows

Sheet Org structure
A1: Organisational Structure Votes | C1: Organisational Structure Sub-Votes | E1: Display Sub-Votes
A2: =B2&" - "&C2 -> Vote 01 - Executive & Council | B2: Vote 01 | C2: Executive & Council
A3: =B4&" - "&C4 -> Vote 02 - Finance And Administration | B3: 01.1 | C3: Council General | D3: =CONCATENATE(B3, " - ", C3) -> 01.1 - Council General | E3: 01.1 - Council General
A4: =B6&" - "&C6 -> Vote 03 - Community Service | B4: Vote 02 | C4: Finance And Administration
A5: =B8&" - "&C8 -> Vote 04 - Public And Safety | B5: 02.1 | C5: Municipal Manager | D5: =CONCATENATE(B5, " - ", C5) -> 02.1 - Municipal Manager | E5: 02.1 - Municipal Manager
A6: =B10&" - "&C10 -> Vote 05 - Waste Management | B6: Vote 03 | C6: Community Service
A7: =B18&" - "&C18 -> Vote 06 - Roads Services | B7: 03.1 | C7: Finance Services Administration | D7: =CONCATENATE(B7, " - ", C7) -> 03.1 - Finance Services Administration | E7: 03.1 - Finance Services Administration
A8: =B33&" - "&C33 -> Vote 07 - Econominc Development And Planning | B8: Vote 04 | C8: Public And Safety
A9: =B35&" - "&C35 -> Vote 08 - | B9: 04.1 | C9: Corporate Services Administration | D9: =CONCATENATE(B9, " - ", C9) -> 04.1 - Corporate Services Administration | E9: 04.1 - Corporate Services Administration
A10: Vote 09 - | B10: Vote 05 | C10: Waste Management
A11: Vote 10 - | B11: 05.1 | C11: Technical Services Administration | D11: =CONCATENATE(B11, " - ", C11) -> 05.1 - Technical Services Administration | E11: 05.1 - Technical Services Administration
A12: Vote 11 - | B12: 05.2 | C12: Electrical Services | D12: 05.2 - Electrical Services | E12: 05.2 - Electrical Services
A13: Vote 12 - | B13: 05.3 | C13: Water Services | D13: 05.3 - Water Services | E13: 05.3 - Water Services
A14: Vote 13 - | B14: 05.4 | C14: Sanitation Services | D14: 05.4 - Sanitation Services | E14: 05.4 - Sanitation Services
A15: Vote 14 - | B15: 05.5 | C15: Roads Services | D15: 05.5 - Roads Services | E15: 05.5 - Roads Services
A16: Vote 15 - Other | B16: 05.6 | C16: Storm Water Services | D16: 05.6 - Storm Water Services | E16: 05.6 - Storm Water Services
B17: 05.7 | C17: Water Reporting Function | D17: 05.7 - Water Reporting Function | E17: 05.7 - Water Reporting Function
B18: Vote 06 | C18: Roads Services
B19: 06.1 | C19: Community Services Administration | D19: =CONCATENATE(B19, " - ", C19) -> 06.1 - Community Services Administration | E19: 06.1 - Community Services Administration
B20: 06.2 | C20: Traffic Services | D20: 06.2 - Traffic Services | E20: 06.2 - Traffic Services
B21: 06.3 | C21: Traffic Services | D21: 06.3 - Traffic Services | E21: 06.3 - Traffic Services
B22: 06.4 | C22: Libraries | D22: 06.4 - Libraries | E22: 06.4 - Libraries
B23: 06.5 | C23: Sport | D23: 06.5 - Sport | E23: 06.5 - Sport
B24: 06.6 | C24: Cemetery | D24: 06.6 - Cemetery | E24: 06.6 - Cemetery
B25: 06.7 | C25: Refuse | D25: 06.7 - Refuse | E25: 06.7 - Refuse
B26: 06.8 | C26: Pound Services | D26: 06.8 - Pound Services | E26: 06.8 - Pound Services
B27: 06.9 | C27: Pound Services | D27: 06.9 - Pound Services | E27: 06.9 - Pound Services
B28: 06.10 | C28: Satellite Offices | D28: 06.10 - Satellite Offices | E28: 06.10 - Satellite Offices
B29: 06.11 | C29: Alldays Offices | D29: 06.11 - Alldays Offices | E29: 06.11 - Alldays Offices
B30: 06.12 | C30: Eldorado Offices | D30: 06.12 - Eldorado Offices | E30: 06.12 - Eldorado Offices
B31: 06.13 | C31: Tolwe Offices | D31: 06.13 - Tolwe Offices | E31: 06.13 - Tolwe Offices
B32: 06.14 | C32: Senwabarwarna Offices | D32: 06.14 - Senwabarwarna Offices | E32: 06.14 - Senwabarwarna Offices
B33: Vote 07 | C33: Econominc Development And Planning
B34: 07.1 | C34: Economic Development And Planning | D34: =CONCATENATE(B34, " - ", C34) -> 07.1 - Economic Development And Planning | E34: 07.1 - Economic Development And Planning
B35: Vote 08
B36: Vote 09
B37: Vote 10
B38: Vote 11
B39: Vote 12
B40: Vote 13
B41: Vote 14
B42: Vote 15 | C42: Other

Sheet Contacts
A1: =muni&" - "&" Contact Information" -> LIM351 Blouberg - Contact Information
A3: A. GENERAL INFORMATION
A4: Municipality | B4: =muni -> LIM351 Blouberg | C4: =IF(B4="Choose name from List","Set name on 'Instructions' sheet", "") -> 
A6: Grade | B6: 3 | C6: 1 Grade in terms of the Remuneration of Public Office Bearers Act.
A8: Province | B8: =IF(B4>" ",VLOOKUP(B4,'Lookup and lists'!B29:C307,2, FALSE)," ") -> LIM LIMPOPO
A10: Web Address | B10: www.blouberg.gov.za
A12: e-mail Address | B12: blou@blouberg.gov.za
A14: B. CONTACT INFORMATION
A15: Postal address:
A16: P.O. Box | B16: Box 1593
A17: City / Town | B17: Senwabarwana
A18: Postal Code | B18: 0790
A20: Street address
A21: Building | B21: 2nd Building
A22: Street No. & Name | B22: Senwabarwana/Dendron Road
A23: City / Town | B23: Senwabarwana
A24: Postal Code | B24: 0790
A26: General Contacts
A27: Telephone number | B27: 015 505 7100
A28: Fax number | B28: 015 505 0296
A30: C. POLITICAL LEADERSHIP
A31: Speaker: | C31: Secretary/PA to the Speaker:
A32: ID Number | C32: ID Number
A33: Title | B33: Mrs | C33: Title | D33: Mrs
A34: Name | B34: THAMAGA MN | C34: Name | D34: MALATJI PJ
A35: Telephone number | B35: 015 505 7117 | C35: Telephone number | D35: 015 505 7189
A36: Cell number | B36: 071 234 4190 | C36: Cell number | D36: 076 654 3873
A37: Fax number | B37: 015 505 0296 | C37: Fax number | D37: 105 505 0296
A38: E-mail address | B38: mariankholane@gmail.com | C38: E-mail address | D38: Malatjip@blouberg.gov.za
A40: Mayor/Executive Mayor: | C40: Secretary/PA to the Mayor/Executive Mayor:
A41: ID Number | C41: ID Number
A42: Title | B42: Mr | C42: Title | D42: Ms
A43: Name | B43: PHEEDI S | C43: Name | D43: MATLAPU M
A44: Telephone number | B44: 015 505 7191 | C44: Telephone number | D44: 015 505 7191
A45: Cell number | B45: 082 515 7596 | C45: Cell number | D45: 082 515 7596
A46: Fax number | B46: 015 505 0296 | C46: Fax number | D46: 015 505 0296
A47: E-mail address | B47: Masekapheedi3@gmail.com | C47: E-mail address | D47: matlapum@blouberg.gov.za
A49: Deputy Mayor/Executive Mayor: | C49: Secretary/PA to the Deputy Mayor/Executive Mayor:
A50: ID Number | C50: ID Number
A51: Title | C51: Title
A52: Name | C52: Name
A53: Telephone number | C53: Telephone number
A54: Cell number | C54: Cell number
A55: Fax number | C55: Fax number
A56: E-mail address | C56: E-mail address
A58: D. MANAGEMENT LEADERSHIP
A59: Municipal Manager: | C59: Secretary/PA to the Municipal Manager:
A60: ID Number | C60: ID Number | D60: 8402021376082
A61: Title | B61: Mr | C61: Title | D61: Mrs
A62: Name | B62: MACHABA M.J | C62: Name | D62: RAMOLOMO MS
A63: Telephone number | B63: 015 505 7163 | C63: Telephone number | D63: 015 505 7100/21
A64: Cell number | B64: 0825234435 | C64: Cell number | D64: 0786875828
A65: Fax number | B65: 015 505 0296 | C65: Fax number | D65: 015 505 0296
A66: E-mail address | B66: 0825234435 | C66: E-mail address | D66: RamolomoM@blouberg.gov.za
A68: Chief Financial Officer | C68: Secretary/PA to the Chief Financial Officer
A69: ID Number | C69: ID Number
A70: Title | B70: Mr | C70: Title
A71: Name | B71: Mabote N.J | C71: Name
A72: Telephone number | B72: 015 505 7147 | C72: Telephone number
A73: Cell number | B73: 082 818 0008 | C73: Cell number
A74: Fax number | B74: 015 505 0296 | C74: Fax number
A75: E-mail address | B75: Mabotej@blouberg.gov.za | C75: E-mail address
A77: Official responsible for submitting financial information | C77: Official responsible for submitting financial information
A78: ID Number | B78: 8107260490086 | C78: ID Number
A79: Title | B79: Ms | C79: Title
A80: Name | B80: Riba M | C80: Name
A81: Telephone number | B81: 015 505 7156 | C81: Telephone number
A82: Cell number | B82: 083 561 9472 | C82: Cell number
A83: Fax number | B83: 015 505 0296 | C83: Fax number
A84: E-mail address | B84: Ribam@blouberg.gov.za | C84: E-mail address
A85: Official responsible for submitting financial information | C85: Official responsible for submitting financial information
A86: ID Number | C86: ID Number
A87: Title | C87: Title
A88: Name | C88: Name
A89: Telephone number | C89: Telephone number
A90: Cell number | C90: Cell number
A91: Fax number | C91: Fax number
A92: E-mail address | C92: E-mail address
A93: Official responsible for submitting financial information | C93: Official responsible for submitting financial information
A94: ID Number | C94: ID Number
A95: Title | C95: Title
A96: Name | C96: Name
A97: Telephone number | C97: Telephone number
A98: Cell number | C98: Cell number
A99: Fax number | C99: Fax number
A100: E-mail address | C100: E-mail address
A101: Official responsible for submitting financial information | C101: Official responsible for submitting financial information
A102: ID Number | C102: ID Number
A103: Title | C103: Title
A104: Name | C104: Name
A105: Telephone number | C105: Telephone number
A106: Cell number | C106: Cell number
A107: Fax number | C107: Fax number
A108: E-mail address | C108: E-mail address
A109: Official responsible for submitting financial information | C109: Official responsible for submitting financial information
A110: ID Number | C110: ID Number
A111: Title | C111: Title
A112: Name | C112: Name
A113: Telephone number | C113: Telephone number
A114: Cell number | C114: Cell number
A115: Fax number | C115: Fax number
A116: E-mail address | C116: E-mail address
A117: Official responsible for submitting financial information | C117: Official responsible for submitting financial information
A118: ID Number | C118: ID Number
A119: Title | C119: Title
A120: Name | C120: Name
A121: Telephone number | C121: Telephone number
A122: Cell number | C122: Cell number
A123: Fax number | C123: Fax number
A124: E-mail address | C124: E-mail address
A125: Official responsible for submitting financial information | C125: Official responsible for submitting financial information
A126: ID Number | C126: ID Number
A127: Title | C127: Title
A128: Name | C128: Name
A129: Telephone number | C129: Telephone number
A130: Cell number | C130: Cell number
A131: Fax number | C131: Fax number
A132: E-mail address | C132: E-mail address
A133: Official responsible for submitting financial information
A134: ID Number
A135: Title
A136: Name
A137: Telephone number
A138: Cell number
A139: Fax number
A140: E-mail address

Sheet A1-Sum
A1: =muni&" - "&Approve1 -> LIM351 Blouberg - Table A1 Budget Summary
A2: =desc -> Description | B2: =head1b -> 2017/18 | C2: =head1A -> 2018/19 | D2: =Head1 -> 2019/20 | E2: =Head2 -> Current Year 2020/21 | I2: =Head3 -> 2021/22 Medium Term Revenue & Expenditure Framework
A3: R thousands | B3: =Head5 -> Audited Outcome | C3: =Head5 -> Audited Outcome | D3: =Head5 -> Audited Outcome | E3: =Head6 -> Original Budget | F3: =Head7 -> Adjusted Budget | G3: =Head8 -> Full Year Forecast | H3: =Head5b -> Pre-audit outcome | I3: =Head9 -> Budget Year 2021/22 | J3: =Head10 -> Budget Year +1 2022/23 | K3: =Head11 -> Budget Year +2 2023/24
A4: Financial Performance
A5: Property rates | B5: ='A4-FinPerf RE'!C5 -> 26601780.26 | C5: ='A4-FinPerf RE'!D5 -> 24056426.6 | D5: ='A4-FinPerf RE'!E5 -> 25567365 | E5: ='A4-FinPerf RE'!F5 -> 32475401 | F5: ='A4-FinPerf RE'!G5 -> 29475401 | G5: ='A4-FinPerf RE'!H5 -> 29475401 | H5: ='A4-FinPerf RE'!I5 -> 26218859.02 | I5: ='A4-FinPerf RE'!J5 -> 31243927 | J5: ='A4-FinPerf RE'!K5 -> 33118562 | K5: ='A4-FinPerf RE'!L5 -> 35105676
A6: Service charges | B6: =SUM('A4-FinPerf RE'!C6:C9) -> 22942387.2 | C6: =SUM('A4-FinPerf RE'!D6:D9) -> 22984034.94 | D6: =SUM('A4-FinPerf RE'!E6:E9) -> 29269181.94 | E6: =SUM('A4-FinPerf RE'!F6:F9) -> 40148009 | F6: =SUM('A4-FinPerf RE'!G6:G9) -> 40448009 | G6: =SUM('A4-FinPerf RE'!H6:H9) -> 40448009 | H6: =SUM('A4-FinPerf RE'!I6:I9) -> 24036389.22 | I6: =SUM('A4-FinPerf RE'!J6:J9) -> 42874895 | J6: =SUM('A4-FinPerf RE'!K6:K9) -> 45447391 | K6: =SUM('A4-FinPerf RE'!L6:L9) -> 48174238
A7: Investment revenue | B7: ='A4-FinPerf RE'!C12 -> 2475497.02 | C7: ='A4-FinPerf RE'!D12 -> 1307930.57 | D7: ='A4-FinPerf RE'!E12 -> 1452859.93 | E7: ='A4-FinPerf RE'!F12 -> 1802000 | F7: ='A4-FinPerf RE'!G12 -> 1802000 | G7: ='A4-FinPerf RE'!H12 -> 1802000 | H7: ='A4-FinPerf RE'!I12 -> 916565.38 | I7: ='A4-FinPerf RE'!J12 -> 1910120 | J7: ='A4-FinPerf RE'!K12 -> 2024728 | K7: ='A4-FinPerf RE'!L12 -> 2146212
A8: Transfers recognised - operational | B8: ='A4-FinPerf RE'!C18 -> 209412876.3 | C8: ='A4-FinPerf RE'!D18 -> 182423931.8 | D8: ='A4-FinPerf RE'!E18 -> 193208163.3 | E8: ='A4-FinPerf RE'!F18 -> 201645000 | F8: ='A4-FinPerf RE'!G18 -> 239125000 | G8: ='A4-FinPerf RE'!H18 -> 239125000 | H8: ='A4-FinPerf RE'!I18 -> 238663913 | I8: ='A4-FinPerf RE'!J18 -> 207281000 | J8: ='A4-FinPerf RE'!K18 -> 214327000 | K8: ='A4-FinPerf RE'!L18 -> 207572000
A9: Other own revenue | B9: ='A4-FinPerf RE'!C11+'A4-FinPerf RE'!C13+'A4-FinPerf RE'!C14+'A4-FinPerf RE'!C15+'A4-FinPerf RE'!C16+'A4-FinPerf RE'!C17+'A4-FinPerf RE'!C19+'A4-FinPerf RE'!C20 -> 11121094.39 | C9: ='A4-FinPerf RE'!D11+'A4-FinPerf RE'!D13+'A4-FinPerf RE'!D14+'A4-FinPerf RE'!D15+'A4-FinPerf RE'!D16+'A4-FinPerf RE'!D17+'A4-FinPerf RE'!D19+'A4-FinPerf RE'!D20 -> 9575336.47 | D9: ='A4-FinPerf RE'!E11+'A4-FinPerf RE'!E13+'A4-FinPerf RE'!E14+'A4-FinPerf RE'!E15+'A4-FinPerf RE'!E16+'A4-FinPerf RE'!E17+'A4-FinPerf RE'!E19+'A4-FinPerf RE'!E20 -> 9367307.67 | E9: ='A4-FinPerf RE'!F11+'A4-FinPerf RE'!F13+'A4-FinPerf RE'!F14+'A4-FinPerf RE'!F15+'A4-FinPerf RE'!F16+'A4-FinPerf RE'!F17+'A4-FinPerf RE'!F19+'A4-FinPerf RE'!F20 -> 17497016 | F9: ='A4-FinPerf RE'!G11+'A4-FinPerf RE'!G13+'A4-FinPerf RE'!G14+'A4-FinPerf RE'!G15+'A4-FinPerf RE'!G16+'A4-FinPerf RE'!G17+'A4-FinPerf RE'!G19+'A4-FinPerf RE'!G20 -> 16497016 | G9: ='A4-FinPerf RE'!H11+'A4-FinPerf RE'!H13+'A4-FinPerf RE'!H14+'A4-FinPerf RE'!H15+'A4-FinPerf RE'!H16+'A4-FinPerf RE'!H17+'A4-FinPerf RE'!H19+'A4-FinPerf RE'!H20 -> 16497016 | H9: ='A4-FinPerf RE'!I11+'A4-FinPerf RE'!I13+'A4-FinPerf RE'!I14+'A4-FinPerf RE'!I15+'A4-FinPerf RE'!I16+'A4-FinPerf RE'!I17+'A4-FinPerf RE'!I19+'A4-FinPerf RE'!I20 -> 5071532.78 | I9: ='A4-FinPerf RE'!J11+'A4-FinPerf RE'!J13+'A4-FinPerf RE'!J14+'A4-FinPerf RE'!J15+'A4-FinPerf RE'!J16+'A4-FinPerf RE'!J17+'A4-FinPerf RE'!J19+'A4-FinPerf RE'!J20 -> 26206840 | J9: ='A4-FinPerf RE'!K11+'A4-FinPerf RE'!K13+'A4-FinPerf RE'!K14+'A4-FinPerf RE'!K15+'A4-FinPerf RE'!K16+'A4-FinPerf RE'!K17+'A4-FinPerf RE'!K19+'A4-FinPerf RE'!K20 -> 23041655 | K9: ='A4-FinPerf RE'!L11+'A4-FinPerf RE'!L13+'A4-FinPerf RE'!L14+'A4-FinPerf RE'!L15+'A4-FinPerf RE'!L16+'A4-FinPerf RE'!L17+'A4-FinPerf RE'!L19+'A4-FinPerf RE'!L20 -> 23884155
A10: ='A4-FinPerf RE'!A21 -> Total Revenue (excluding capital transfers and contributions) | B10: =SUM(B5:B9) -> 272553635.2 | C10: 240347660.4 | D10: 258864877.9 | E10: 293567426 | F10: 327347426 | G10: 327347426 | H10: 294907259.4 | I10: 309516782 | J10: 317959336 | K10: 316882281
A11: Employee costs | B11: ='A4-FinPerf RE'!C24 -> 99327666.72 | C11: ='A4-FinPerf RE'!D24 -> 103612611.1 | D11: ='A4-FinPerf RE'!E24 -> 110728267.5 | E11: ='A4-FinPerf RE'!F24 -> 128058729 | F11: ='A4-FinPerf RE'!G24 -> 127968729 | G11: ='A4-FinPerf RE'!H24 -> 127968729 | H11: ='A4-FinPerf RE'!I24 -> 75437788.01 | I11: ='A4-FinPerf RE'!J24 -> 133004350 | J11: ='A4-FinPerf RE'!K24 -> 138590538 | K11: ='A4-FinPerf RE'!L24 -> 144688521
A12: Remuneration of councillors | B12: ='A4-FinPerf RE'!C25 -> 15739124.61 | C12: ='A4-FinPerf RE'!D25 -> 16186992.01 | D12: ='A4-FinPerf RE'!E25 -> 16975677.53 | E12: ='A4-FinPerf RE'!F25 -> 18116396 | F12: ='A4-FinPerf RE'!G25 -> 18116396 | G12: ='A4-FinPerf RE'!H25 -> 18116396 | H12: ='A4-FinPerf RE'!I25 -> 10994516.44 | I12: ='A4-FinPerf RE'!J25 -> 18841061 | J12: ='A4-FinPerf RE'!K25 -> 19632388 | K12: ='A4-FinPerf RE'!L25 -> 20496207
A13: Depreciation & asset impairment | B13: ='A4-FinPerf RE'!C27 -> 35462508.13 | C13: ='A4-FinPerf RE'!D27 -> 35257581.19 | D13: ='A4-FinPerf RE'!E27 -> 35725380.62 | E13: ='A4-FinPerf RE'!F27 -> 43988216 | F13: ='A4-FinPerf RE'!G27 -> 43988216 | G13: ='A4-FinPerf RE'!H27 -> 43988216 | H13: ='A4-FinPerf RE'!I27 -> 0 | I13: ='A4-FinPerf RE'!J27 -> 40140615 | J13: ='A4-FinPerf RE'!K27 -> 42549050 | K13: ='A4-FinPerf RE'!L27 -> 45101995
A14: Finance charges | B14: ='A4-FinPerf RE'!C28 -> 0 | C14: ='A4-FinPerf RE'!D28 -> 0 | D14: ='A4-FinPerf RE'!E28 -> 0 | E14: ='A4-FinPerf RE'!F28 -> 0 | F14: ='A4-FinPerf RE'!G28 -> 0 | G14: ='A4-FinPerf RE'!H28 -> 0 | H14: ='A4-FinPerf RE'!I28 -> 0 | I14: ='A4-FinPerf RE'!J28 -> 0 | J14: ='A4-FinPerf RE'!K28 -> 0 | K14: ='A4-FinPerf RE'!L28 -> 0
A15: Inventory consumed and bulk purchases | B15: ='A4-FinPerf RE'!C29+'A4-FinPerf RE'!C30 -> 30340752.49 | C15: ='A4-FinPerf RE'!D29+'A4-FinPerf RE'!D30 -> 37341543.73 | D15: ='A4-FinPerf RE'!E29+'A4-FinPerf RE'!E30 -> 39636556.2 | E15: ='A4-FinPerf RE'!F29+'A4-FinPerf RE'!F30 -> 37100000 | F15: ='A4-FinPerf RE'!G29+'A4-FinPerf RE'!G30 -> 40100000 | G15: ='A4-FinPerf RE'!H29+'A4-FinPerf RE'!H30 -> 40100000 | H15: ='A4-FinPerf RE'!I29+'A4-FinPerf RE'!I30 -> 27622330.85 | I15: ='A4-FinPerf RE'!J29+'A4-FinPerf RE'!J30 -> 42506000 | J15: ='A4-FinPerf RE'!K29+'A4-FinPerf RE'!K30 -> 45056360 | K15: ='A4-FinPerf RE'!L29+'A4-FinPerf RE'!L30 -> 45056360
A16: Transfers and grants | B16: ='A4-FinPerf RE'!C32 -> 0 | C16: ='A4-FinPerf RE'!D32 -> 73220 | D16: ='A4-FinPerf RE'!E32 -> 0 | E16: ='A4-FinPerf RE'!F32 -> 0 | F16: ='A4-FinPerf RE'!G32 -> 0 | G16: ='A4-FinPerf RE'!H32 -> 0 | H16: ='A4-FinPerf RE'!I32 -> 0 | I16: ='A4-FinPerf RE'!J32 -> 0 | J16: ='A4-FinPerf RE'!K32 -> 0 | K16: ='A4-FinPerf RE'!L32 -> 0
A17: Other expenditure | B17: ='A4-FinPerf RE'!C26+'A4-FinPerf RE'!C31+'A4-FinPerf RE'!C33+'A4-FinPerf RE'!C34 -> 115399420.8 | C17: ='A4-FinPerf RE'!D26+'A4-FinPerf RE'!D31+'A4-FinPerf RE'!D33+'A4-FinPerf RE'!D34 -> 87494793.85 | D17: ='A4-FinPerf RE'!E26+'A4-FinPerf RE'!E31+'A4-FinPerf RE'!E33+'A4-FinPerf RE'!E34 -> 96152748.18 | E17: ='A4-FinPerf RE'!F26+'A4-FinPerf RE'!F31+'A4-FinPerf RE'!F33+'A4-FinPerf RE'!F34 -> 104555761 | F17: ='A4-FinPerf RE'!G26+'A4-FinPerf RE'!G31+'A4-FinPerf RE'!G33+'A4-FinPerf RE'!G34 -> 124535407 | G17: ='A4-FinPerf RE'!H26+'A4-FinPerf RE'!H31+'A4-FinPerf RE'!H33+'A4-FinPerf RE'!H34 -> 124535407 | H17: ='A4-FinPerf RE'!I26+'A4-FinPerf RE'!I31+'A4-FinPerf RE'!I33+'A4-FinPerf RE'!I34 -> 59787742.28 | I17: ='A4-FinPerf RE'!J26+'A4-FinPerf RE'!J31+'A4-FinPerf RE'!J33+'A4-FinPerf RE'!J34 -> 107628276 | J17: ='A4-FinPerf RE'!K26+'A4-FinPerf RE'!K31+'A4-FinPerf RE'!K33+'A4-FinPerf RE'!K34 -> 106901966 | K17: ='A4-FinPerf RE'!L26+'A4-FinPerf RE'!L31+'A4-FinPerf RE'!L33+'A4-FinPerf RE'!L34 -> 99225161
A18: ='A4-FinPerf RE'!A35 -> Total Expenditure | B18: =SUM(B11:B17) -> 296269472.8 | C18: =SUM(C11:C17) -> 279966741.9 | D18: 299218630 | E18: 331819102 | F18: 354708748 | G18: 354708748 | H18: 173842377.6 | I18: 342120302 | J18: 352730302 | K18: 354568244
A19: ='A4-FinPerf RE'!A37 -> Surplus/(Deficit) | B19: =B10-B18 -> -23715837.6 | C19: -39619081.5 | D19: -40353752.11 | E19: -38251676 | F19: -27361322 | G19: -27361322 | H19: 121064881.9 | I19: -32603520 | J19: -34770966 | K19: -37685963
A20: ='A4-FinPerf RE'!A38 -> Transfers and subsidies - capital (monetary allocations) (National / Provincial and District) | B20: ='A4-FinPerf RE'!C38 -> 0 | C20: ='A4-FinPerf RE'!D38 -> 51875091.49 | D20: ='A4-FinPerf RE'!E38 -> 55496147.8 | E20: ='A4-FinPerf RE'!F38 -> 50066000 | F20: ='A4-FinPerf RE'!G38 -> 56640183 | G20: ='A4-FinPerf RE'!H38 -> 56640183 | H20: ='A4-FinPerf RE'!I38 -> 40570000 | I20: ='A4-FinPerf RE'!J38 -> 56764000 | J20: ='A4-FinPerf RE'!K38 -> 74408000 | K20: ='A4-FinPerf RE'!L38 -> 75582000
A21: ='A4-FinPerf RE'!A39&" & "&'A4-FinPerf RE'!A40 -> Transfers and subsidies - capital (monetary allocations) (National / Provincial Departmental Agencies, Households, Non-profit Institutions, Private Enterprises, Public Corporatons, Higher Educational Institutions) & Transfers and subsidies - capital (in-kind - all) | B21: ='A4-FinPerf RE'!C39+'A4-FinPerf RE'!C40 -> 46554516.37 | C21: ='A4-FinPerf RE'!D39+'A4-FinPerf RE'!D40 -> 0 | D21: ='A4-FinPerf RE'!E39+'A4-FinPerf RE'!E40 -> 0 | E21: ='A4-FinPerf RE'!F39+'A4-FinPerf RE'!F40 -> 0 | F21: ='A4-FinPerf RE'!G39+'A4-FinPerf RE'!G40 -> 0 | G21: ='A4-FinPerf RE'!H39+'A4-FinPerf RE'!H40 -> 0 | H21: ='A4-FinPerf RE'!I39+'A4-FinPerf RE'!I40 -> 0 | I21: ='A4-FinPerf RE'!J39+'A4-FinPerf RE'!J40 -> 0 | J21: ='A4-FinPerf RE'!K39+'A4-FinPerf RE'!K40 -> 0 | K21: ='A4-FinPerf RE'!L39+'A4-FinPerf RE'!L40 -> 0
A22: ='A4-FinPerf RE'!A41 -> Surplus/(Deficit) after capital transfers & contributions | B22: =B19+SUM(B20:B21) -> 22838678.77 | C22: =C19+SUM(C20:C21) -> 12256009.99 | E22: 11814324 | F22: 29278861 | G22: 29278861 | H22: 161634881.9 | I22: 24160480 | J22: 39637034 | K22: 37896037
A23: ='A4-FinPerf RE'!A46 -> Share of surplus/ (deficit) of associate | B23: ='A4-FinPerf RE'!C46 -> 0 | C23: ='A4-FinPerf RE'!D46 -> 0 | D23: ='A4-FinPerf RE'!E46 -> 0 | E23: ='A4-FinPerf RE'!F46 -> 0 | F23: ='A4-FinPerf RE'!G46 -> 0 | G23: ='A4-FinPerf RE'!H46 -> 0 | H23: ='A4-FinPerf RE'!I46 -> 0 | I23: ='A4-FinPerf RE'!J46 -> 0 | J23: ='A4-FinPerf RE'!K46 -> 0 | K23: ='A4-FinPerf RE'!L46 -> 0
A24: ='A4-FinPerf RE'!A47 -> Surplus/(Deficit) for the year | B24: =B22+B23 -> 22838678.77 | C24: =C22+C23 -> 12256009.99 | D24: 0 | E24: 11814324 | F24: 29278861 | G24: 29278861 | H24: 161634881.9 | I24: 24160480 | J24: 39637034 | K24: 37896037
A26: Capital expenditure & funds sources
A27: Capital expenditure | B27: ='A5-Capex'!C63 -> 36098769.79 | C27: ='A5-Capex'!D63 -> 2093058.11 | D27: ='A5-Capex'!E63 -> 2292691.46 | E27: ='A5-Capex'!F63 -> 60873788 | F27: ='A5-Capex'!G63 -> 69583035 | G27: ='A5-Capex'!H63 -> 69583035 | H27: ='A5-Capex'!I63 -> 31197105.57 | I27: ='A5-Capex'!J63 -> 64895383 | J27: ='A5-Capex'!K63 -> 83603000 | K27: ='A5-Capex'!L63 -> 84689880
A28: Transfers recognised - capital | B28: ='A5-Capex'!C70 -> 5590792.56 | C28: ='A5-Capex'!D70 -> 0 | D28: ='A5-Capex'!E70 -> 256396.24 | E28: ='A5-Capex'!F70 -> 47912701 | F28: ='A5-Capex'!G70 -> 54486884 | G28: ='A5-Capex'!H70 -> 54486884 | H28: ='A5-Capex'!I70 -> 26654741.87 | I28: ='A5-Capex'!J70 -> 56764000 | J28: ='A5-Capex'!K70 -> 73508000 | K28: ='A5-Capex'!L70 -> 72582000
A30: ='A5-Capex'!A72 -> Borrowing | B30: ='A5-Capex'!C72 -> 0 | C30: ='A5-Capex'!D72 -> 0 | D30: ='A5-Capex'!E72 -> 0 | E30: ='A5-Capex'!F72 -> 0 | F30: ='A5-Capex'!G72 -> 0 | G30: ='A5-Capex'!H72 -> 0 | H30: ='A5-Capex'!I72 -> 0 | I30: ='A5-Capex'!J72 -> 0 | J30: ='A5-Capex'!K72 -> 0 | K30: ='A5-Capex'!L72 -> 0
A31: ='A5-Capex'!A73 -> Internally generated funds | B31: ='A5-Capex'!C73 -> 0 | C31: ='A5-Capex'!D73 -> 499220.91 | D31: ='A5-Capex'!E73 -> 2036295.22 | E31: ='A5-Capex'!F73 -> 12961087 | F31: ='A5-Capex'!G73 -> 15096151 | G31: ='A5-Capex'!H73 -> 15096151 | H31: ='A5-Capex'!I73 -> 4542363.7 | I31: ='A5-Capex'!J73 -> 8131383 | J31: ='A5-Capex'!K73 -> 10095000 | K31: ='A5-Capex'!L73 -> 12107880
A32: Total sources of capital funds | B32: =+B28+B30+B31 -> 5590792.56 | C32: =+C28+C30+C31 -> 499220.91 | D32: 2292691.46 | E32: 60873788 | F32: 69583035 | G32: 69583035 | H32: 31197105.57 | I32: 64895383 | J32: 83603000 | K32: 84689880
A34: Financial position
A35: ='A6-FinPos'!A12 -> Total current assets | B35: ='A6-FinPos'!C12 -> 122580101.4 | C35: ='A6-FinPos'!D12 -> 128880465.8 | D35: ='A6-FinPos'!E12 -> 135415813.2 | E35: ='A6-FinPos'!F12 -> 223293301 | F35: ='A6-FinPos'!G12 -> 217375855 | G35: ='A6-FinPos'!H12 -> 217375855 | H35: ='A6-FinPos'!I12 -> 223625314 | I35: ='A6-FinPos'!J12 -> 209349291 | J35: ='A6-FinPos'!K12 -> 182850892 | K35: ='A6-FinPos'!L12 -> 185460690
A36: ='A6-FinPos'!A24 -> Total non current assets | B36: ='A6-FinPos'!C24 -> 894159338.1 | C36: ='A6-FinPos'!D24 -> 919944775.4 | D36: ='A6-FinPos'!E24 -> 932522788.7 | E36: ='A6-FinPos'!F24 -> 631301153 | F36: ='A6-FinPos'!G24 -> 640010400 | G36: ='A6-FinPos'!H24 -> 640010400 | H36: ='A6-FinPos'!I24 -> 963719894.3 | I36: ='A6-FinPos'!J24 -> 987395659 | J36: ='A6-FinPos'!K24 -> 1092196051 | K36: ='A6-FinPos'!L24 -> 1093282931
A37: ='A6-FinPos'!A34 -> Total current liabilities | B37: ='A6-FinPos'!C34 -> 52079411.47 | C37: ='A6-FinPos'!D34 -> 57533593.62 | D37: ='A6-FinPos'!E34 -> 55805692.17 | E37: ='A6-FinPos'!F34 -> 63398649 | F37: ='A6-FinPos'!G34 -> 63398649 | G37: ='A6-FinPos'!H34 -> 63398649 | H37: ='A6-FinPos'!I34 -> 54364660.8 | I37: ='A6-FinPos'!J34 -> 10436702 | J37: ='A6-FinPos'!K34 -> 44174745 | K37: ='A6-FinPos'!L34 -> 44174745
A38: ='A6-FinPos'!A39 -> Total non current liabilities | B38: ='A6-FinPos'!C39 -> 16766266.51 | C38: ='A6-FinPos'!D39 -> 18008366.15 | D38: ='A6-FinPos'!E39 -> 20244346.11 | E38: ='A6-FinPos'!F39 -> 20726325 | F38: ='A6-FinPos'!G39 -> 20726325 | G38: ='A6-FinPos'!H39 -> 20726325 | H38: ='A6-FinPos'!I39 -> 20244346.11 | I38: ='A6-FinPos'!J39 -> 19940599 | J38: ='A6-FinPos'!K39 -> 20535679 | K38: ='A6-FinPos'!L39 -> 20535679
A39: Community wealth/Equity | B39: ='A6-FinPos'!C48 -> 947893761.5 | C39: ='A6-FinPos'!D48 -> 973283281.4 | D39: ='A6-FinPos'!E48 -> 991888563.7 | E39: ='A6-FinPos'!F48 -> 770469480 | F39: ='A6-FinPos'!G48 -> 773261281 | G39: ='A6-FinPos'!H48 -> 773261281 | H39: ='A6-FinPos'!I48 -> 1112736201 | I39: ='A6-FinPos'!J48 -> 1166367649 | J39: ='A6-FinPos'!K48 -> 1210336519 | K39: ='A6-FinPos'!L48 -> 1214033197
A41: Cash flows
A42: Net cash from (used) operating | B42: ='A7-CFlow'!C17 -> 0 | C42: ='A7-CFlow'!D17 -> 0 | D42: ='A7-CFlow'!E17 -> 0 | E42: ='A7-CFlow'!F17 -> 74107868 | F42: ='A7-CFlow'!G17 -> 80790422 | G42: ='A7-CFlow'!H17 -> 80790422 | H42: ='A7-CFlow'!I17 -> 52740744.51 | I42: ='A7-CFlow'!J17 -> 67311443.53 | J42: ='A7-CFlow'!K17 -> 85767149.12 | K42: ='A7-CFlow'!L17 -> 86836094.34
A43: Net cash from (used) investing | B43: ='A7-CFlow'!C27 -> 0 | C43: ='A7-CFlow'!D27 -> 0 | D43: ='A7-CFlow'!E27 -> 0 | E43: ='A7-CFlow'!F27 -> -60873788 | F43: ='A7-CFlow'!G27 -> -69583035 | G43: ='A7-CFlow'!H27 -> -69583035 | H43: ='A7-CFlow'!I27 -> -27672444.33 | I43: ='A7-CFlow'!J27 -> -64895383 | J43: ='A7-CFlow'!K27 -> -83603000 | K43: ='A7-CFlow'!L27 -> -84689880
A44: Net cash from (used) financing | B44: ='A7-CFlow'!C36 -> 8680.44 | C44: ='A7-CFlow'!D36 -> 0 | D44: ='A7-CFlow'!E36 -> 0 | E44: ='A7-CFlow'!F36 -> -8680.44 | F44: ='A7-CFlow'!G36 -> 0 | G44: ='A7-CFlow'!H36 -> 0 | H44: ='A7-CFlow'!I36 -> 0 | I44: ='A7-CFlow'!J36 -> -8681 | J44: ='A7-CFlow'!K36 -> 7960 | K44: ='A7-CFlow'!L36 -> 0
A45: =LEFT('A7-CFlow'!A40,37) -> Cash/cash equivalents at the year end | B45: ='A7-CFlow'!C40 -> 44213183.23 | C45: ='A7-CFlow'!D40 -> 18672940.14 | D45: ='A7-CFlow'!E40 -> 10654219.61 | E45: ='A7-CFlow'!F40 -> 26000899.56 | F45: ='A7-CFlow'!G40 -> 23982887 | G45: ='A7-CFlow'!H40 -> 23982887 | H45: ='A7-CFlow'!I40 -> 25068300.18 | I45: ='A7-CFlow'!J40 -> 8832989.526 | J45: ='A7-CFlow'!K40 -> 11005098.64 | K45: ='A7-CFlow'!L40 -> 13151312.99
A47: Cash backing/surplus reconciliation
A48: ='A8-ResRecon'!A4 -> Cash and investments available | B48: ='A8-ResRecon'!C8 -> 19350476.69 | C48: ='A8-ResRecon'!D8 -> 10654219.61 | D48: ='A8-ResRecon'!E8 -> 41259903.39 | E48: ='A8-ResRecon'!F8 -> 86883368 | F48: ='A8-ResRecon'!G8 -> 83165922 | G48: ='A8-ResRecon'!H8 -> 83165922 | H48: ='A8-ResRecon'!I8 -> 89820474.68 | I48: ='A8-ResRecon'!J8 -> 113460664 | J48: ='A8-ResRecon'!K8 -> 80469194 | K48: ='A8-ResRecon'!L8 -> 82609667
A49: ='A8-ResRecon'!A10 -> Application of cash and investments | B49: ='A8-ResRecon'!C18 -> 51417366.22 | C49: ='A8-ResRecon'!D18 -> 49177624.21 | D49: ='A8-ResRecon'!E18 -> 52464084.57 | E49: ='A8-ResRecon'!F18 -> -51934351 | F49: ='A8-ResRecon'!G18 -> -53232351 | G49: ='A8-ResRecon'!H18 -> -53232351 | H49: ='A8-ResRecon'!I18 -> -325709876.6 | I49: ='A8-ResRecon'!J18 -> -76102617 | J49: ='A8-ResRecon'!K18 -> -48262534 | K49: ='A8-ResRecon'!L18 -> -48676534
A50: Balance - surplus (shortfall) | B50: =B48-B49 -> -32066889.53 | C50: =C48-C49 -> -38523404.6 | D50: -11204181.18 | E50: 138817719 | F50: 136398273 | G50: 136398273 | H50: 415530351.3 | I50: 189563281 | J50: 128731728 | K50: 131286201
A52: Asset management
A53: Asset register summary (WDV) | B53: ='A9-Asset'!C165 -> 855172870 | C53: ='A9-Asset'!D165 -> 846254840.8 | D53: ='A9-Asset'!E165 -> 839831760.3 | E53: ='A9-Asset'!F165 -> 557611219 | F53: ='A9-Asset'!G165 -> 566320466 | G53: ='A9-Asset'!H165 -> 566320466 | H53: ='A9-Asset'!H165 -> 566320466 | I53: ='A9-Asset'!I165 -> 894704630 | J53: ='A9-Asset'!J165 -> 1001298704 | K53: ='A9-Asset'!K165 -> 1002385584
A54: ='A9-Asset'!A168 -> Depreciation | B54: ='A9-Asset'!C168 -> 35462508.13 | C54: ='A9-Asset'!D168 -> 35257581.19 | D54: ='A9-Asset'!E168 -> 35725380.62 | E54: ='A9-Asset'!F168 -> 43988216 | F54: ='A9-Asset'!G168 -> 43988216 | G54: ='A9-Asset'!H168 -> 43988216 | H54: ='A9-Asset'!H168 -> 43988216 | I54: ='A9-Asset'!I168 -> 40140615 | J54: ='A9-Asset'!J168 -> 42549050 | K54: ='A9-Asset'!K168 -> 45101995
A55: Renewal and Upgrading of Existing Assets | B55: ='A9-Asset'!C37+'A9-Asset'!C69 -> 0 | C55: ='A9-Asset'!D37+'A9-Asset'!D69 -> 499220.91 | D55: ='A9-Asset'!E37+'A9-Asset'!E69 -> 1290520.77 | E55: ='A9-Asset'!F37+'A9-Asset'!F69 -> 0 | F55: ='A9-Asset'!G37+'A9-Asset'!G69 -> 1600000 | G55: ='A9-Asset'!H37+'A9-Asset'!H69 -> 1600000 | H55: ='A9-Asset'!H37+'A9-Asset'!H69 -> 1600000 | I55: ='A9-Asset'!I37+'A9-Asset'!I69 -> 5186284 | J55: ='A9-Asset'!J37+'A9-Asset'!J69 -> 48735599 | K55: ='A9-Asset'!K37+'A9-Asset'!K69 -> 43480880
A56: Repairs and Maintenance | B56: ='A9-Asset'!C169 -> 2606651.15 | C56: ='A9-Asset'!D169 -> 1852804.99 | D56: ='A9-Asset'!E169 -> 3348361.85 | E56: ='A9-Asset'!F169 -> 9982141 | F56: ='A9-Asset'!G169 -> 16839708 | G56: ='A9-Asset'!H169 -> 16839708 | H56: ='A9-Asset'!H169 -> 16839708 | I56: ='A9-Asset'!I169 -> 9947072 | J56: ='A9-Asset'!J169 -> 12723197 | K56: ='A9-Asset'!K169 -> 10870889
A58: Free services
A59: Cost of Free Basic Services provided | B59: ='A10-SerDel'!C60 -> 50 | C59: ='A10-SerDel'!D60 -> 50 | D59: ='A10-SerDel'!E60 -> 50 | E59: ='A10-SerDel'!F60 -> 50 | F59: ='A10-SerDel'!G60 -> 50 | G59: ='A10-SerDel'!H60 -> 50 | H59: ='A10-SerDel'!I60 -> 50 | I59: ='A10-SerDel'!I60 -> 50 | J59: ='A10-SerDel'!J60 -> 50 | K59: ='A10-SerDel'!K60 -> 50
A60: Revenue cost of free services provided | B60: ='A10-SerDel'!C79 -> 25151231.21 | C60: ='A10-SerDel'!D79 -> 21466415.36 | D60: ='A10-SerDel'!E79 -> 21199410.54 | E60: ='A10-SerDel'!F79 -> 21009013 | F60: ='A10-SerDel'!G79 -> 21009013 | G60: ='A10-SerDel'!H79 -> 21009013 | H60: ='A10-SerDel'!I79 -> 21369556 | I60: ='A10-SerDel'!I79 -> 21369556 | J60: ='A10-SerDel'!J79 -> 21751729 | K60: ='A10-SerDel'!K79 -> 22156834
A61: Households below minimum service level
A62: ='A10-SerDel'!A5 -> Water: | B62: ='A10-SerDel'!C14 -> 0 | C62: ='A10-SerDel'!D14 -> 0 | D62: ='A10-SerDel'!E14 -> 0 | E62: ='A10-SerDel'!F14 -> 0 | F62: ='A10-SerDel'!G14 -> 0 | G62: ='A10-SerDel'!H14 -> 0 | H62: ='A10-SerDel'!I14 -> 0 | I62: ='A10-SerDel'!I14 -> 0 | J62: ='A10-SerDel'!J14 -> 0 | K62: ='A10-SerDel'!K14 -> 0
A63: ='A10-SerDel'!A16 -> Sanitation/sewerage: | B63: ='A10-SerDel'!C26 -> 0 | C63: ='A10-SerDel'!D26 -> 0 | D63: ='A10-SerDel'!E26 -> 0 | E63: ='A10-SerDel'!F26 -> 0 | F63: ='A10-SerDel'!G26 -> 0 | G63: ='A10-SerDel'!H26 -> 0 | H63: ='A10-SerDel'!I26 -> 0 | I63: ='A10-SerDel'!I26 -> 0 | J63: ='A10-SerDel'!J26 -> 0 | K63: ='A10-SerDel'!K26 -> 0
A64: ='A10-SerDel'!A28 -> Energy: | B64: ='A10-SerDel'!C35 -> 0 | C64: ='A10-SerDel'!D35 -> 0 | D64: ='A10-SerDel'!E35 -> 0 | E64: ='A10-SerDel'!F35 -> 0 | F64: ='A10-SerDel'!G35 -> 0 | G64: ='A10-SerDel'!H35 -> 0 | H64: ='A10-SerDel'!I35 -> 0 | I64: ='A10-SerDel'!I35 -> 0 | J64: ='A10-SerDel'!J35 -> 0 | K64: ='A10-SerDel'!K35 -> 0
A65: ='A10-SerDel'!A37 -> Refuse: | B65: ='A10-SerDel'!C45 -> 0 | C65: ='A10-SerDel'!D45 -> 0 | D65: ='A10-SerDel'!E45 -> 0 | E65: ='A10-SerDel'!F45 -> 0 | F65: ='A10-SerDel'!G45 -> 0 | G65: ='A10-SerDel'!H45 -> 0 | H65: ='A10-SerDel'!I45 -> 0 | I65: ='A10-SerDel'!I45 -> 0 | J65: ='A10-SerDel'!J45 -> 0 | K65: ='A10-SerDel'!K45 -> 0

Sheet A2-FinPerf SC
A1: =muni&" - "&Approve3 -> LIM351 Blouberg - Table A2 Budgeted Financial Performance (revenue and expenditure by functional classification)
A2: ="Functional Classification "&desc -> Functional Classification Description | B2: =head27 -> Ref | C2: =head1b -> 2017/18 | D2: =head1A -> 2018/19 | E2: =Head1 -> 2019/20 | F2: =Head2 -> Current Year 2020/21 | I2: =Head3 -> 2021/22 Medium Term Revenue & Expenditure Framework
A3: R thousand | B3: 1 | C3: =Head5 -> Audited Outcome | D3: =Head5 -> Audited Outcome | E3: =Head5 -> Audited Outcome | F3: =Head6 -> Original Budget | G3: =Head7 -> Adjusted Budget | H3: =Head8 -> Full Year Forecast | I3: =Head9 -> Budget Year 2021/22 | J3: =Head10 -> Budget Year +1 2022/23 | K3: =Head11 -> Budget Year +2 2023/24
A4: Revenue - Functional
A5: Governance and administration | C5: =SUM(C6:C8) -> 225902490.7 | D5: =SUM(D6:D8) -> 207441527.9 | E5: 220150493.4 | F5: 238343830 | G5: 272823830 | H5: 272823830 | I5: 243375582 | J5: 253929221 | K5: 249550355
A6: Executive and council | C6: =A2A!C6 -> 25855950 | D6: =A2A!D6 -> 6783826.47 | E6: =A2A!E6 -> 2663.33 | F6: =A2A!F6 -> 0 | G6: =A2A!G6 -> 0 | H6: =A2A!H6 -> 0 | I6: =A2A!I6 -> 0 | J6: =A2A!J6 -> 0 | K6: =A2A!K6 -> 0
A7: Finance and administration | C7: =A2A!C9 -> 200046540.7 | D7: =A2A!D9 -> 200657701.4 | E7: =A2A!E9 -> 220147830.1 | F7: =A2A!F9 -> 238343830 | G7: =A2A!G9 -> 272823830 | H7: =A2A!H9 -> 272823830 | I7: =A2A!I9 -> 243375582 | J7: =A2A!J9 -> 253929221 | K7: =A2A!K9 -> 249550355
A8: Internal audit | C8: =A2A!C23 -> 0 | D8: =A2A!D23 -> 0 | E8: =A2A!E23 -> 0 | F8: =A2A!F23 -> 0 | G8: =A2A!G23 -> 0 | H8: =A2A!H23 -> 0 | I8: =A2A!I23 -> 0 | J8: =A2A!J23 -> 0 | K8: =A2A!K23 -> 0
A9: Community and public safety | C9: =SUM(C10:C14) -> 6223925.27 | D9: =SUM(D10:D14) -> 4690691.95 | E9: 3825617.25 | F9: 6688600 | G9: 6688600 | H9: 6688600 | I9: 7089917 | J9: 7515312 | K9: 7966230
A10: Community and social services | C10: =A2A!C26 -> 0 | D10: =A2A!D26 -> 0 | E10: =A2A!E26 -> 0 | F10: =A2A!F26 -> 0 | G10: =A2A!G26 -> 0 | H10: =A2A!H26 -> 0 | I10: =A2A!I26 -> 0 | J10: =A2A!J26 -> 0 | K10: =A2A!K26 -> 0
A11: Sport and recreation | C11: =A2A!C48 -> 0 | D11: =A2A!D48 -> 0 | E11: =A2A!E48 -> 0 | F11: =A2A!F48 -> 0 | G11: =A2A!G48 -> 0 | H11: =A2A!H48 -> 0 | I11: =A2A!I48 -> 0 | J11: =A2A!J48 -> 0 | K11: =A2A!K48 -> 0
A12: Public safety | C12: =A2A!C54 -> 6223925.27 | D12: =A2A!D54 -> 4690691.95 | E12: =A2A!E54 -> 3825617.25 | F12: =A2A!F54 -> 6688600 | G12: =A2A!G54 -> 6688600 | H12: =A2A!H54 -> 6688600 | I12: =A2A!I54 -> 7089917 | J12: =A2A!J54 -> 7515312 | K12: =A2A!K54 -> 7966230
A13: Housing | C13: =A2A!C63 -> 0 | D13: =A2A!D63 -> 0 | E13: =A2A!E63 -> 0 | F13: =A2A!F63 -> 0 | G13: =A2A!G63 -> 0 | H13: =A2A!H63 -> 0 | I13: =A2A!I63 -> 0 | J13: =A2A!J63 -> 0 | K13: =A2A!K63 -> 0
A14: Health | C14: =A2A!C66 -> 0 | D14: =A2A!D66 -> 0 | E14: =A2A!E66 -> 0 | F14: =A2A!F66 -> 0 | G14: =A2A!G66 -> 0 | H14: =A2A!H66 -> 0 | I14: =A2A!I66 -> 0 | J14: =A2A!J66 -> 0 | K14: =A2A!K66 -> 0
A15: Economic and environmental services | C15: =SUM(C16:C18) -> 47045998.96 | D15: =SUM(D16:D18) -> 44149887.75 | E15: 1198548.22 | F15: 5329677 | G15: 4329677 | H15: 4329677 | I15: 13309459 | J15: 9370426 | K15: 9392652
A16: Planning and development | C16: =A2A!C75 -> 491482.59 | D16: =A2A!D75 -> 658887.75 | E16: =A2A!E75 -> 1198548.22 | F16: =A2A!F75 -> 5329677 | G16: =A2A!G75 -> 4329677 | H16: =A2A!H75 -> 4329677 | I16: =A2A!I75 -> 13309459 | J16: =A2A!J75 -> 9370426 | K16: =A2A!K75 -> 9392652
A17: Road transport | C17: =A2A!C86 -> 46554516.37 | D17: =A2A!D86 -> 43491000 | E17: =A2A!E86 -> 0 | F17: =A2A!F86 -> 0 | G17: =A2A!G86 -> 0 | H17: =A2A!H86 -> 0 | I17: =A2A!I86 -> 0 | J17: =A2A!J86 -> 0 | K17: =A2A!K86 -> 0
A18: Environmental protection | C18: =A2A!C91 -> 0 | D18: =A2A!D91 -> 0 | E18: =A2A!E91 -> 0 | F18: =A2A!F91 -> 0 | G18: =A2A!G91 -> 0 | H18: =A2A!H91 -> 0 | I18: =A2A!I91 -> 0 | J18: =A2A!J91 -> 0 | K18: =A2A!K91 -> 0
A19: Trading services | C19: =SUM(C20:C23) -> 39935786.62 | D19: =SUM(D20:D23) -> 35940694.28 | E19: 89186416.75 | F19: 93271369 | G19: 100145552 | H19: 100145552 | I19: 102505874 | J19: =SUM(J20:J23) -> 121552427 | K19: 125555094
A20: Energy sources | C20: =A2A!C99 -> 33113181.98 | D20: =A2A!D99 -> 31067556.43 | E20: =A2A!E99 -> 83948546.87 | F20: =A2A!F99 -> 89697929 | G20: =A2A!G99 -> 96272112 | H20: =A2A!H99 -> 96272112 | I20: =A2A!I99 -> 98773847 | J20: =A2A!J99 -> 118938438 | K20: =A2A!K99 -> 122784264
A21: Water management | C21: =A2A!C103 -> 0 | D21: =A2A!D103 -> 0 | E21: =A2A!E103 -> 4371.39 | F21: =A2A!F103 -> 0 | G21: =A2A!G103 -> 0 | H21: =A2A!H103 -> 0 | I21: =A2A!I103 -> 0 | J21: =A2A!J103 -> 0 | K21: =A2A!K103 -> 0
A22: Waste water management | C22: =A2A!C107 -> 0 | D22: =A2A!D107 -> 0 | E22: =A2A!E107 -> 0 | F22: =A2A!F107 -> 0 | G22: =A2A!G107 -> 0 | H22: =A2A!H107 -> 0 | I22: =A2A!I107 -> 0 | J22: =A2A!J107 -> 0 | K22: =A2A!K107 -> 0
A23: Waste management | C23: =A2A!C112 -> 6822604.64 | D23: =A2A!D112 -> 4873137.85 | E23: =A2A!E112 -> 5233498.49 | F23: =A2A!F112 -> 3573440 | G23: =A2A!G112 -> 3873440 | H23: =A2A!H112 -> 3873440 | I23: =A2A!I112 -> 3732027 | J23: =A2A!J112 -> 2613989 | K23: =A2A!K112 -> 2770830
A24: Other | B24: 4 | C24: =A2A!C117 -> 0 | D24: =A2A!D117 -> 0 | E24: =A2A!E117 -> 0 | F24: =A2A!F117 -> 0 | G24: =A2A!G117 -> 0 | H24: =A2A!H117 -> 0 | I24: =A2A!I117 -> 0 | J24: =A2A!J117 -> 0 | K24: =A2A!K117 -> 0
A25: ="Total "&A4 -> Total Revenue - Functional | B25: 2 | C25: =C5+C9+C15+C19+C24 -> 319108201.5 | D25: =D5+D9+D15+D19+D24 -> 292222801.9 | E25: =E5+E9+E15+E19+E24 -> 314361075.7 | F25: 343633476 | G25: 383987659 | H25: 383987659 | I25: =I5+I9+I15+I19+I24 -> 366280832 | J25: 392367386 | K25: 392464331
A27: Expenditure - Functional
A28: Governance and administration | C28: =SUM(C29:C31) -> 200315526.9 | D28: =SUM(D29:D31) -> 150187440.2 | E28: 162856726 | F28: 171470568 | G28: 183379673 | H28: 183379673 | I28: 175712548 | J28: 185593326 | K28: 186521307
A29: Executive and council | C29: =A2A!C128 -> 80862852.17 | D29: =A2A!D128 -> 63171190.82 | E29: =A2A!E128 -> 57313934.67 | F29: =A2A!F128 -> 60634395 | G29: =A2A!G128 -> 63034990 | H29: =A2A!H128 -> 63034990 | I29: =A2A!I128 -> 60278374 | J29: =A2A!J128 -> 65480022 | K29: =A2A!K128 -> 64029064
A30: Finance and administration | C30: =A2A!C131 -> 119452674.7 | D30: =A2A!D131 -> 87016249.38 | E30: =A2A!E131 -> 105542791.4 | F30: =A2A!F131 -> 110836173 | G30: =A2A!G131 -> 120344683 | H30: =A2A!H131 -> 120344683 | I30: =A2A!I131 -> 115434174 | J30: =A2A!J131 -> 120113304 | K30: =A2A!K131 -> 122492243
A31: Internal audit | C31: =A2A!C145 -> 0 | D31: =A2A!D145 -> 0 | E31: =A2A!E145 -> 0 | F31: =A2A!F145 -> 0 | G31: =A2A!G145 -> 0 | H31: =A2A!H145 -> 0 | I31: =A2A!I145 -> 0 | J31: =A2A!J145 -> 0 | K31: =A2A!K145 -> 0
A32: Community and public safety | C32: =SUM(C33:C37) -> 13048897.55 | D32: =SUM(D33:D37) -> 14889814.97 | E32: 18847387.14 | F32: 14685334 | G32: 14685334 | H32: 14685334 | I32: 15979617 | J32: 16777908 | K32: 17371972
A33: Community and social services | C33: =A2A!C148 -> 0 | D33: =A2A!D148 -> 0 | E33: =A2A!E148 -> 0 | F33: =A2A!F148 -> 0 | G33: =A2A!G148 -> 0 | H33: =A2A!H148 -> 0 | I33: =A2A!I148 -> 0 | J33: =A2A!J148 -> 0 | K33: =A2A!K148 -> 0
A34: Sport and recreation | C34: =A2A!C170 -> 0 | D34: =A2A!D170 -> 0 | E34: =A2A!E170 -> 0 | F34: =A2A!F170 -> 0 | G34: =A2A!G170 -> 0 | H34: =A2A!H170 -> 0 | I34: =A2A!I170 -> 0 | J34: =A2A!J170 -> 0 | K34: =A2A!K170 -> 0
A35: Public safety | C35: =A2A!C176 -> 13048897.55 | D35: =A2A!D176 -> 14889814.97 | E35: =A2A!E176 -> 18847387.14 | F35: =A2A!F176 -> 14685334 | G35: =A2A!G176 -> 14685334 | H35: =A2A!H176 -> 14685334 | I35: =A2A!I176 -> 15979617 | J35: =A2A!J176 -> 16777908 | K35: =A2A!K176 -> 17371972
A36: Housing | C36: =A2A!C185 -> 0 | D36: =A2A!D185 -> 0 | E36: =A2A!E185 -> 0 | F36: =A2A!F185 -> 0 | G36: =A2A!G185 -> 0 | H36: =A2A!H185 -> 0 | I36: =A2A!I185 -> 0 | J36: =A2A!J185 -> 0 | K36: =A2A!K185 -> 0
A37: Health | C37: =A2A!C188 -> 0 | D37: =A2A!D188 -> 0 | E37: =A2A!E188 -> 0 | F37: =A2A!F188 -> 0 | G37: =A2A!G188 -> 0 | H37: =A2A!H188 -> 0 | I37: =A2A!I188 -> 0 | J37: =A2A!J188 -> 0 | K37: =A2A!K188 -> 0
A38: Economic and environmental services | C38: =SUM(C39:C41) -> 19261660.67 | D38: =SUM(D39:D41) -> 31357966.14 | E38: 34739637.94 | F38: 59016535 | G38: 65106902 | H38: 65106902 | I38: 56771039 | J38: 57043665 | K38: 58090048
A39: Planning and development | C39: =A2A!C197 -> 9661257.78 | D39: =A2A!D197 -> 9851544.11 | E39: =A2A!E197 -> 11244040.17 | F39: =A2A!F197 -> 16138577 | G39: =A2A!G197 -> 16433377 | H39: =A2A!H197 -> 16433377 | I39: =A2A!I197 -> 14380879 | J39: =A2A!J197 -> 11501279 | K39: =A2A!K197 -> 11959624
A40: Road transport | C40: =A2A!C208 -> 9600402.89 | D40: =A2A!D208 -> 21506422.03 | E40: =A2A!E208 -> 23495597.77 | F40: =A2A!F208 -> 42877958 | G40: =A2A!G208 -> 48673525 | H40: =A2A!H208 -> 48673525 | I40: =A2A!I208 -> 42390160 | J40: =A2A!J208 -> 45542386 | K40: =A2A!K208 -> 46130424
A41: Environmental protection | C41: =A2A!C213 -> 0 | D41: =A2A!D213 -> 0 | E41: =A2A!E213 -> 0 | F41: =A2A!F213 -> 0 | G41: =A2A!G213 -> 0 | H41: =A2A!H213 -> 0 | I41: =A2A!I213 -> 0 | J41: =A2A!J213 -> 0 | K41: =A2A!K213 -> 0
A42: Trading services | C42: =SUM(C43:C46) -> 64937888.14 | D42: =SUM(D43:D46) -> 79601324.66 | E42: 79657132.56 | F42: =SUM(F43:F46) -> 89216914 | G42: 93957088 | H42: 93957088 | I42: 96307098 | J42: 95735403 | K42: =SUM(K43:K46) -> 95106917
A43: Energy sources | C43: =A2A!C221 -> 43394428.55 | D43: =A2A!D221 -> 59271369.77 | E43: =A2A!E221 -> 61394299.4 | F43: =A2A!F221 -> 64755874 | G43: =A2A!G221 -> 68334770 | H43: =A2A!H221 -> 68334770 | I43: =A2A!I221 -> 69276513 | J43: =A2A!J221 -> 73203914 | K43: =A2A!K221 -> 74617951
A44: Water management | C44: =A2A!C225 -> 0 | D44: =A2A!D225 -> 0 | E44: =A2A!E225 -> 0 | F44: =A2A!F225 -> 0 | G44: =A2A!G225 -> 0 | H44: =A2A!H225 -> 0 | I44: =A2A!I225 -> 0 | J44: =A2A!J225 -> 0 | K44: =A2A!K225 -> 0
A45: Waste water management | C45: =A2A!C229 -> 0 | D45: =A2A!D229 -> 0 | E45: =A2A!E229 -> 0 | F45: =A2A!F229 -> 0 | G45: =A2A!G229 -> 0 | H45: =A2A!H229 -> 0 | I45: =A2A!I229 -> 0 | J45: =A2A!J229 -> 0 | K45: =A2A!K229 -> 0
A46: Waste management | C46: =A2A!C234 -> 21543459.59 | D46: =A2A!D234 -> 20329954.89 | E46: =A2A!E234 -> 18262833.16 | F46: =A2A!F234 -> 24461040 | G46: =A2A!G234 -> 25622318 | H46: =A2A!H234 -> 25622318 | I46: =A2A!I234 -> 27030585 | J46: =A2A!J234 -> 22531489 | K46: =A2A!K234 -> 20488966
A47: Other | B47: 4 | C47: =A2A!C239 -> 0 | D47: =A2A!D239 -> 0 | E47: =A2A!E239 -> 0 | F47: =A2A!F239 -> 0 | G47: =A2A!G239 -> 0 | H47: =A2A!H239 -> 0 | I47: =A2A!I239 -> 0 | J47: =A2A!J239 -> 0 | K47: =A2A!K239 -> 0
A48: ="Total "&A27 -> Total Expenditure - Functional | B48: 3 | C48: =C28+C32+C38+C42+C47 -> 297563973.3 | D48: =D28+D32+D38+D42+D47 -> 276036546 | E48: =E28+E32+E38+E42+E47 -> 296100883.7 | F48: =F28+F32+F38+F42+F47 -> 334389351 | G48: 357128997 | H48: 357128997 | I48: 344770302 | J48: 355150302 | K48: 357090244
A49: =result -> Surplus/(Deficit) for the year | C49: =C25-C48 -> 21544228.26 | D49: =D25-D48 -> 16186255.9 | E49: 18260191.99 | F49: 9244125 | G49: 26858662 | H49: 26858662 | I49: 21510530 | J49: 37217084 | K49: 35374087
A50: =head27a -> References
A51: 1. Government Finance Statistics Functions and Sub-functions are standardised to assist the compilation of national and international accounts for comparison purposes
A52: 2. Total Revenue by functional classification must reconcile to Total Operating Revenue shown in Budgeted Financial Performance (revenue and expenditure)
A53: 3. Total Expenditure by Functional Classification must reconcile to Total Operating Expenditure shown in Budgeted Financial Performance (revenue and expenditure)
A54: 4. All amounts must be classified under a functional classification . The GFS function 'Other' is only for Abbatoirs, Air Transport, Forestry, Licensing and Regulation, Markets and Tourism - and if used must be supported by footnotes. Nothing else may be placed under 'Other'. Assign associate share to relevant classification.
A57: check oprev balance | C57: =C25-'A4-FinPerf RE'!C59 -> 50.00000006 | D57: =D25-'A4-FinPerf RE'!D59 -> 50 | E57: =E25-'A4-FinPerf RE'!E59 -> 49.99999994 | F57: =F25-'A4-FinPerf RE'!F59 -> 50 | G57: =G25-'A4-FinPerf RE'!G59 -> 50 | H57: =H25-'A4-FinPerf RE'!H59 -> 50 | I57: =I25-'A4-FinPerf RE'!J59 -> 50 | J57: =J25-'A4-FinPerf RE'!K59 -> 50 | K57: =K25-'A4-FinPerf RE'!L59 -> 50
A58: check opexp balance | C58: =C48-'A4-FinPerf RE'!C35 -> 1294500.51 | D58: =D48-'A4-FinPerf RE'!D35 -> -3930195.91 | E58: =E48-'A4-FinPerf RE'!E35 -> -3117746.3 | F58: =F48-'A4-FinPerf RE'!F35 -> 2570249 | G58: =G48-'A4-FinPerf RE'!G35 -> 2420249 | H58: =H48-'A4-FinPerf RE'!H35 -> 2420249 | I58: =I48-'A4-FinPerf RE'!J35 -> 2650000 | J58: =J48-'A4-FinPerf RE'!K35 -> 2420000 | K58: =K48-'A4-FinPerf RE'!L35 -> 2522000

Sheet A2A
A1: =muni&" - "&Approve3 -> LIM351 Blouberg - Table A2 Budgeted Financial Performance (revenue and expenditure by functional classification)
A2: ="Functional Classification "&desc -> Functional Classification Description | B2: =head27 -> Ref | C2: =head1b -> 2017/18 | D2: =head1A -> 2018/19 | E2: =Head1 -> 2019/20 | F2: =Head2 -> Current Year 2020/21 | I2: =Head3 -> 2021/22 Medium Term Revenue & Expenditure Framework
A3: R thousand | B3: 1 | C3: =Head5 -> Audited Outcome | D3: =Head5 -> Audited Outcome | E3: =Head5 -> Audited Outcome | F3: =Head6 -> Original Budget | G3: =Head7 -> Adjusted Budget | H3: =Head8 -> Full Year Forecast | I3: =Head9 -> Budget Year 2021/22 | J3: =Head10 -> Budget Year +1 2022/23 | K3: =Head11 -> Budget Year +2 2023/24
A4: Revenue - Functional
A5: Municipal governance and administration | C5: =C6+C9+C23 -> 225902490.7 | D5: 207441527.9 | E5: 220150493.4 | F5: 238343830 | G5: 272823830 | H5: 272823830 | I5: 243375582 | J5: 253929221 | K5: 249550355
A6: Executive and council | C6: =SUM(C7:C8) -> 25855950 | D6: =SUM(D7:D8) -> 6783826.47 | E6: 2663.33 | F6: 0 | G6: 0 | H6: 0 | I6: 0 | J6: 0 | K6: 0
A7: Mayor and Council | C7: 0 | D7: 0 | E7: 0 | F7: 0 | G7: 0 | H7: 0 | I7: 0 | J7: 0 | K7: 0
A8: Municipal Manager, Town Secretary and Chief Executive | C8: 25855950 | D8: 6783826.47 | E8: 2663.33 | F8: 0 | G8: 0 | H8: 0 | I8: 0 | J8: 0 | K8: 0
A9: Finance and administration | C9: =SUM(C10:C22) -> 200046540.7 | D9: 200657701.4 | E9: 220147830.1 | F9: 238343830 | G9: 272823830 | H9: 272823830 | I9: 243375582 | J9: 253929221 | K9: 249550355
A10: Administrative and Corporate Support | C10: 167008.87 | D10: 55476.72 | E10: 408921.92 | F10: 700000 | G10: 342000 | H10: 342000 | I10: 401846 | J10: 425958 | K10: 451515
A11: Asset Management
A12: Finance | C12: 199879531.8 | D12: 200602224.7 | E12: 219738908.2 | F12: 237643830 | G12: 272481830 | H12: 272481830 | I12: 242973736 | J12: 253503263 | K12: 249098840
A13: Fleet Management
A14: Human Resources
A15: Information Technology
A16: Legal Services
A17: Marketing, Customer Relations, Publicity and Media Co-ordination
A18: Property Services
A19: Risk Management
A20: Security Services
A21: Supply Chain Management
A22: Valuation Service
A23: Internal audit | C23: =SUM(C24:C24) -> 0 | D23: 0 | E23: 0 | F23: 0 | G23: 0 | H23: 0 | I23: 0 | J23: 0 | K23: 0
A24: Governance Function
A25: Community and public safety | C25: =C26+C48+C54+C63+C66 -> 6223925.27 | D25: 4690691.95 | E25: 3825617.25 | F25: 6688600 | G25: 6688600 | H25: 6688600 | I25: 7089917 | J25: 7515312 | K25: 7966230
A26: Community and social services | C26: =SUM(C27:C47) -> 0 | D26: =SUM(D27:D47) -> 0 | E26: 0 | F26: 0 | G26: 0 | H26: 0 | I26: 0 | J26: 0 | K26: 0
A27: Aged Care
A28: Agricultural
A29: Animal Care and Diseases
A30: Cemeteries, Funeral Parlours and Crematoriums | C30: 0 | D30: 0 | E30: 0 | F30: 0 | G30: 0 | H30: 0 | I30: 0 | J30: 0 | K30: 0
A31: Child Care Facilities
A32: Community Halls and Facilities
A33: Consumer Protection
A34: Cultural Matters
A35: Disaster Management
A36: Education
A37: Indigenous and Customary Law
A38: Industrial Promotion
A39: Language Policy
A40: Libraries and Archives
A41: Literacy Programmes
A42: Media Services
A43: Museums and Art Galleries
A44: Population Development
A45: Provincial Cultural Matters
A46: Theatres
A47: Zoo's
A48: Sport and recreation | C48: =SUM(C49:C53) -> 0 | D48: =SUM(D49:D53) -> 0 | E48: 0 | F48: 0 | G48: 0 | H48: 0 | I48: 0 | J48: 0 | K48: 0
A49: Beaches and Jetties
A50: Casinos, Racing, Gambling, Wagering
A51: Community Parks (including Nurseries)
A52: Recreational Facilities
A53: Sports Grounds and Stadiums
A54: Public safety | C54: =SUM(C55:C62) -> 6223925.27 | D54: 4690691.95 | E54: 3825617.25 | F54: 6688600 | G54: 6688600 | H54: 6688600 | I54: 7089917 | J54: 7515312 | K54: 7966230
A55: Civil Defence
A56: Cleansing
A57: Control of Public Nuisances
A58: Fencing and Fences
A59: Fire Fighting and Protection
A60: Licensing and Control of Animals
A61: Police Forces, Traffic and Street Parking Control | C61: 6223925.27 | D61: 4690691.95 | E61: 3825617.25 | F61: 6688600 | G61: 6688600 | H61: 6688600 | I61: 7089917 | J61: 7515312 | K61: 7966230
A62: Pounds | C62: 0 | D62: 0 | E62: 0 | F62: 0 | G62: 0 | H62: 0 | I62: 0 | J62: 0 | K62: 0
A63: Housing | C63: =SUM(C64:C65) -> 0 | D63: =SUM(D64:D65) -> 0 | E63: 0 | F63: 0 | G63: 0 | H63: 0 | I63: 0 | J63: 0 | K63: 0
A64: Housing
A65: Informal Settlements
A66: Health | C66: =SUM(C67:C73) -> 0 | D66: =SUM(D67:D73) -> 0 | E66: 0 | F66: 0 | G66: 0 | H66: 0 | I66: 0 | J66: 0 | K66: 0
A67: Ambulance
A68: Health Services
A69: Laboratory Services
A70: Food Control
A71: Health Surveillance and Prevention of Communicable Diseases including immunizations
A72: Vector Control
A73: Chemical Safety
A74: Economic and environmental services | C74: =C75+C86+C91 -> 47045998.96 | D74: 44149887.75 | E74: 1198548.22 | F74: 5329677 | G74: 4329677 | H74: 4329677 | I74: 13309459 | J74: 9370426 | K74: 9392652
A75: Planning and development | C75: =SUM(C76:C85) -> 491482.59 | D75: =SUM(D76:D85) -> 658887.75 | E75: 1198548.22 | F75: 5329677 | G75: 4329677 | H75: 4329677 | I75: 13309459 | J75: 9370426 | K75: 9392652
A76: Billboards
A77: Corporate Wide Strategic Planning (IDPs, LEDs)
A78: Central City Improvement District
A79: Development Facilitation
A80: Economic Development/Planning | C80: 491482.59 | D80: 658887.75 | E80: 1198548.22 | F80: 5329677 | G80: 4329677 | H80: 4329677 | I80: 13309459 | J80: 9370426 | K80: 9392652
A81: Regional Planning and Development
A82: Town Planning, Building Regulations and Enforcement, and City Engineer
A83: Project Management Unit
A84: Provincial Planning
A85: Support to Local Municipalities
A86: Road transport | C86: =SUM(C87:C90) -> 46554516.37 | D86: 43491000 | E86: 0 | F86: 0 | G86: 0 | H86: 0 | I86: 0 | J86: 0 | K86: 0
A87: Public Transport
A88: Road and Traffic Regulation
A89: Roads | C89: 46554516.37 | D89: 43491000 | E89: 0 | F89: 0 | G89: 0 | H89: 0 | I89: 0 | J89: 0 | K89: 0
A90: Taxi Ranks
A91: Environmental protection | C91: =SUM(C92:C97) -> 0 | D91: =SUM(D92:D97) -> 0 | E91: 0 | F91: 0 | G91: 0 | H91: 0 | I91: 0 | J91: 0 | K91: 0
A92: Biodiversity and Landscape
A93: Coastal Protection
A94: Indigenous Forests
A95: Nature Conservation
A96: Pollution Control
A97: Soil Conservation
A98: Trading services | C98: =C99+C103+C107+C112 -> 39935786.62 | D98: =D99+D103+D107+D112 -> 35940694.28 | E98: 89186416.75 | F98: 93271369 | G98: 100145552 | H98: 100145552 | I98: 102505874 | J98: 121552427 | K98: =K99+K103+K107+K112 -> 125555094
A99: Energy sources | C99: =SUM(C100:C102) -> 33113181.98 | D99: =SUM(D100:D102) -> 31067556.43 | E99: 83948546.87 | F99: 89697929 | G99: 96272112 | H99: 96272112 | I99: 98773847 | J99: 118938438 | K99: 122784264
A100: Electricity | C100: 33113181.98 | D100: 31067556.43 | E100: 83948546.87 | F100: 89697929 | G100: 96272112 | H100: 96272112 | I100: 98773847 | J100: 118938438 | K100: 122784264
A101: Street Lighting and Signal Systems
A102: Nonelectric Energy
A103: Water management | C103: =SUM(C104:C106) -> 0 | D103: =SUM(D104:D106) -> 0 | E103: 4371.39 | F103: 0 | G103: 0 | H103: 0 | I103: 0 | J103: 0 | K103: 0
A104: Water Treatment | C104: 0 | D104: 0 | E104: 4371.39 | F104: 0 | G104: 0 | H104: 0 | I104: 0 | J104: 0 | K104: 0
A105: Water Distribution
A106: Water Storage
A107: Waste water management | C107: =SUM(C108:C111) -> 0 | D107: =SUM(D108:D111) -> 0 | E107: 0 | F107: 0 | G107: 0 | H107: 0 | I107: 0 | J107: 0 | K107: 0
A108: Public Toilets
A109: Sewerage
A110: Storm Water Management | C110: 0 | D110: 0 | E110: 0 | F110: 0 | G110: 0 | H110: 0 | I110: 0 | J110: 0 | K110: 0
A111: Waste Water Treatment | C111: 0 | D111: 0 | E111: 0 | F111: 0 | G111: 0 | H111: 0 | I111: 0 | J111: 0 | K111: 0
A112: Waste management | C112: =SUM(C113:C116) -> 6822604.64 | D112: =SUM(D113:D116) -> 4873137.85 | E112: 5233498.49 | F112: 3573440 | G112: 3873440 | H112: 3873440 | I112: 3732027 | J112: 2613989 | K112: 2770830
A113: Recycling
A114: Solid Waste Disposal (Landfill Sites) | C114: 6822604.64 | D114: 4873137.85 | E114: 5233498.49 | F114: 3573440 | G114: 3873440 | H114: 3873440 | I114: 3732027 | J114: 2613989 | K114: 2770830
A115: Solid Waste Removal
A116: Street Cleaning
A117: Other | C117: =SUM(C118:C123) -> 0 | D117: =SUM(D118:D123) -> 0 | E117: 0 | F117: 0 | G117: 0 | H117: 0 | I117: 0 | J117: 0 | K117: 0
A118: Abattoirs
A119: Air Transport
A120: Forestry
A121: Licensing and Regulation
A122: Markets
A123: Tourism
A124: ="Total "&A4 -> Total Revenue - Functional | B124: 2 | C124: =C5+C25+C74+C98+C117 -> 319108201.5 | D124: 292222801.9 | E124: 314361075.7 | F124: 343633476 | G124: 383987659 | H124: 383987659 | I124: 366280832 | J124: 392367386 | K124: 392464331
A126: Expenditure - Functional
A127: =A5 -> Municipal governance and administration | C127: =C128+C131+C145 -> 200315526.9 | D127: 150187440.2 | E127: 162856726 | F127: 171470568 | G127: 183379673 | H127: 183379673 | I127: 175712548 | J127: 185593326 | K127: 186521307
A128: Executive and council | C128: =SUM(C129:C130) -> 80862852.17 | D128: 63171190.82 | E128: 57313934.67 | F128: 60634395 | G128: 63034990 | H128: 63034990 | I128: 60278374 | J128: 65480022 | K128: 64029064
A129: Mayor and Council | C129: 25390234.07 | D129: 27014465.8 | E129: 18486159.77 | F129: 22193875 | G129: 20227715 | H129: 20227715 | I129: 20111905 | J129: 20926388 | K129: 21976207
A130: Municipal Manager, Town Secretary and Chief Executive | C130: 55472618.1 | D130: 36156725.02 | E130: 38827774.9 | F130: 38440520 | G130: 42807275 | H130: 42807275 | I130: 40166469 | J130: 44553634 | K130: 42052857
A131: Finance and administration | C131: =SUM(C132:C144) -> 119452674.7 | D131: 87016249.38 | E131: 105542791.4 | F131: 110836173 | G131: 120344683 | H131: 120344683 | I131: 115434174 | J131: 120113304 | K131: 122492243
A132: Administrative and Corporate Support | C132: 48925496.79 | D132: 51180798.31 | E132: 55285253.19 | F132: 63307723 | G132: 67166233 | H132: 67166233 | I132: 66989141 | J132: 69933158 | K132: 71524010
A133: Asset Management
A134: Finance | C134: 70527177.95 | D134: 35835451.07 | E134: 50257538.18 | F134: 47528450 | G134: 53178450 | H134: 53178450 | I134: 48445033 | J134: 50180146 | K134: 50968233
A135: Fleet Management
A136: Human Resources
A137: Information Technology
A138: Legal Services
A139: Marketing, Customer Relations, Publicity and Media Co-ordination
A140: Property Services
A141: Risk Management
A142: Security Services
A143: Supply Chain Management
A144: Valuation Service
A145: Internal audit | C145: =SUM(C146:C146) -> 0 | D145: 0 | E145: 0 | F145: 0 | G145: 0 | H145: 0 | I145: 0 | J145: 0 | K145: 0
A146: Governance Function
A147: Community and public safety | C147: =C148+C170+C176+C185+C188 -> 13048897.55 | D147: 14889814.97 | E147: 18847387.14 | F147: 14685334 | G147: 14685334 | H147: 14685334 | I147: 15979617 | J147: 16777908 | K147: 17371972
A148: Community and social services | C148: =SUM(C149:C169) -> 0 | D148: =SUM(D149:D169) -> 0 | E148: 0 | F148: 0 | G148: 0 | H148: 0 | I148: 0 | J148: 0 | K148: 0
A149: Aged Care
A150: Agricultural
A151: Animal Care and Diseases
A152: Cemeteries, Funeral Parlours and Crematoriums | C152: 0 | D152: 0 | E152: 0 | F152: 0 | G152: 0 | H152: 0 | I152: 0 | J152: 0 | K152: 0
A153: Child Care Facilities
A154: Community Halls and Facilities
A155: Consumer Protection
A156: Cultural Matters
A157: Disaster Management
A158: Education
A159: =A37 -> Indigenous and Customary Law
A160: Industrial Promotion
A161: Language Policy
A162: Libraries and Archives | C162: 0 | D162: 0 | E162: 0 | F162: 0 | G162: 0 | H162: 0 | I162: 0 | J162: 0 | K162: 0
A163: Literacy Programmes
A164: Media Services
A165: Museums and Art Galleries
A166: Population Development
A167: Provincial Cultural Matters
A168: Theatres
A169: Zoo's
A170: Sport and recreation | C170: =SUM(C171:C175) -> 0 | D170: 0 | E170: 0 | F170: 0 | G170: 0 | H170: 0 | I170: 0 | J170: 0 | K170: 0
A171: Beaches and Jetties
A172: Casinos, Racing, Gambling, Wagering
A173: Community Parks (including Nurseries)
A174: Recreational Facilities | C174: 0 | D174: 0 | E174: 0 | F174: 0 | G174: 0 | H174: 0 | I174: 0 | J174: 0 | K174: 0
A175: Sports Grounds and Stadiums
A176: Public safety | C176: =SUM(C177:C184) -> 13048897.55 | D176: 14889814.97 | E176: 18847387.14 | F176: 14685334 | G176: 14685334 | H176: 14685334 | I176: 15979617 | J176: 16777908 | K176: 17371972
A177: Civil Defence
A178: Cleansing
A179: =A57 -> Control of Public Nuisances
A180: Fencing and Fences
A181: Fire Fighting and Protection
A182: Licensing and Control of Animals
A183: Police Forces, Traffic and Street Parking Control | C183: 13048897.55 | D183: 14889814.97 | E183: 18847387.14 | F183: 14685334 | G183: 14685334 | H183: 14685334 | I183: 15779617 | J183: 16527908 | K183: 17071972
A184: Pounds | C184: 0 | D184: 0 | E184: 0 | F184: 0 | G184: 0 | H184: 0 | I184: 200000 | J184: 250000 | K184: 300000
A185: =A63 -> Housing | C185: =SUM(C186:C187) -> 0 | D185: 0 | E185: 0 | F185: 0 | G185: 0 | H185: 0 | I185: 0 | J185: 0 | K185: 0
A186: Housing
A187: Informal Settlements
A188: Health | C188: =SUM(C189:C195) -> 0 | D188: =SUM(D189:D195) -> 0 | E188: 0 | F188: 0 | G188: 0 | H188: 0 | I188: 0 | J188: 0 | K188: 0
A189: Ambulance
A190: Health Services
A191: Laboratory Services
A192: Food Control
A193: Health Surveillance and Prevention of Communicable Diseases including immunizations
A194: Vector Control
A195: Chemical Safety
A196: Economic and environmental services | C196: =C197+C208+C213 -> 19261660.67 | D196: 31357966.14 | E196: 34739637.94 | F196: 59016535 | G196: 65106902 | H196: 65106902 | I196: 56771039 | J196: 57043665 | K196: 58090048
A197: Planning and development | C197: =SUM(C198:C207) -> 9661257.78 | D197: =SUM(D198:D207) -> 9851544.11 | E197: 11244040.17 | F197: 16138577 | G197: 16433377 | H197: 16433377 | I197: 14380879 | J197: 11501279 | K197: 11959624
A198: Billboards
A199: Corporate Wide Strategic Planning (IDPs, LEDs)
A200: Central City Improvement District
A201: Development Facilitation
... 53 more rows

Sheet A3-FinPerf V
A1: =muni&" - "&Approve2 -> LIM351 Blouberg - Table A3 Budgeted Financial Performance (revenue and expenditure by municipal vote)
A2: =Vdesc -> Vote Description | B2: =head27 -> Ref | C2: =head1b -> 2017/18 | D2: =head1A -> 2018/19 | E2: =Head1 -> 2019/20 | F2: =Head2 -> Current Year 2020/21 | I2: =Head3 -> 2021/22 Medium Term Revenue & Expenditure Framework | L2: =Head4 -> LTFS
A3: R thousand | C3: =Head5 -> Audited Outcome | D3: =Head5 -> Audited Outcome | E3: =Head5 -> Audited Outcome | F3: =Head6 -> Original Budget | G3: =Head7 -> Adjusted Budget | H3: =Head8 -> Full Year Forecast | I3: =Head9 -> Budget Year 2021/22 | J3: =Head10 -> Budget Year +1 2022/23 | K3: =Head11 -> Budget Year +2 2023/24 | L3: =Head12 -> Forecast 2024/25 | M3: =Head13 -> Forecast 2025/26 | N3: =Head14 -> Forecast 2026/27 | O3: =Head15 -> Forecast 2027/28 | P3: =Head16 -> Forecast 2028/29 | Q3: =Head17 -> Forecast 2029/30 | R3: =Head18 -> Forecast 2030/31 | S3: =Head19 -> Forecast 2031/32 | T3: =Head20 -> Forecast 2032/33 | U3: =Head21 -> Forecast 2033/34 | V3: =Head22 -> Forecast 2034/35 | W3: =Head23 -> Forecast 2035/36
A4: Revenue by Vote | B4: 1
A5: =A3A!A5 -> Vote 01 - Executive & Council | C5: =A3A!C5 -> 0 | D5: =A3A!D5 -> 0 | E5: =A3A!E5 -> 0 | F5: =A3A!F5 -> 0 | G5: =A3A!G5 -> 0 | H5: =A3A!H5 -> 0 | I5: =A3A!I5 -> 0 | J5: =A3A!J5 -> 0 | K5: =A3A!K5 -> 0
A6: =A3A!A7 -> Vote 02 - Finance And Administration | C6: =A3A!C7 -> 25855950 | D6: =A3A!D7 -> 6783826.47 | E6: =A3A!E7 -> 2663.33 | F6: =A3A!F7 -> 0 | G6: =A3A!G7 -> 0 | H6: =A3A!H7 -> 0 | I6: =A3A!I7 -> 0 | J6: =A3A!J7 -> 0 | K6: =A3A!K7 -> 0
A7: =A3A!A9 -> Vote 03 - Community Service | C7: =A3A!C9 -> 199879531.8 | D7: =A3A!D9 -> 200602224.7 | E7: =A3A!E9 -> 219738908.2 | F7: =A3A!F9 -> 237643830 | G7: =A3A!G9 -> 272481830 | H7: =A3A!H9 -> 272481830 | I7: =A3A!I9 -> 242973736 | J7: =A3A!J9 -> 253503263 | K7: =A3A!K9 -> 249098840
A8: =A3A!A11 -> Vote 04 - Public And Safety | C8: =A3A!C11 -> 167008.87 | D8: =A3A!D11 -> 55476.72 | E8: =A3A!E11 -> 408921.92 | F8: =A3A!F11 -> 700000 | G8: =A3A!G11 -> 342000 | H8: =A3A!H11 -> 342000 | I8: =A3A!I11 -> 401846 | J8: =A3A!J11 -> 425958 | K8: =A3A!K11 -> 451515
A9: =A3A!A13 -> Vote 05 - Waste Management | C9: =A3A!C13 -> 79667698.35 | D9: =A3A!D13 -> 74558556.43 | E9: =A3A!E13 -> 83952918.26 | F9: =A3A!F13 -> 89697929 | G9: =A3A!G13 -> 96272112 | H9: =A3A!H13 -> 96272112 | I9: =A3A!I13 -> 98773847 | J9: =A3A!J13 -> 118938438 | K9: =A3A!K13 -> 122784264
A10: =A3A!A21 -> Vote 06 - Roads Services | C10: =A3A!C21 -> 13046529.91 | D10: =A3A!D21 -> 9563829.8 | E10: =A3A!E21 -> 9059115.74 | F10: =A3A!F21 -> 10262040 | G10: =A3A!G21 -> 10562040 | H10: =A3A!H21 -> 10562040 | I10: =A3A!I21 -> 10821944 | J10: =A3A!J21 -> 10129301 | K10: =A3A!K21 -> 10737060
A11: =A3A!A36 -> Vote 07 - Econominc Development And Planning | C11: =A3A!C36 -> 491482.59 | D11: =A3A!D36 -> 658887.75 | E11: =A3A!E36 -> 1198548.22 | F11: =A3A!F36 -> 5329677 | G11: =A3A!G36 -> 4329677 | H11: =A3A!H36 -> 4329677 | I11: =A3A!I36 -> 13309459 | J11: =A3A!J36 -> 9370426 | K11: =A3A!K36 -> 9392652
A12: ='Org structure'!A9 -> Vote 08 - | C12: =A3A!C38 -> 0 | D12: =A3A!D38 -> 0 | E12: =A3A!E38 -> 0 | F12: =A3A!F38 -> 0 | G12: =A3A!G38 -> 0 | H12: =A3A!H38 -> 0 | I12: =A3A!I38 -> 0 | J12: =A3A!J38 -> 0 | K12: =A3A!K38 -> 0
A13: ='Org structure'!A10 -> Vote 09 - | C13: =A3A!C39 -> 0 | D13: =A3A!D39 -> 0 | E13: =A3A!E39 -> 0 | F13: =A3A!F39 -> 0 | G13: =A3A!G39 -> 0 | H13: =A3A!H39 -> 0 | I13: =A3A!I39 -> 0 | J13: =A3A!J39 -> 0 | K13: =A3A!K39 -> 0
A14: ='Org structure'!A11 -> Vote 10 - | C14: =A3A!C40 -> 0 | D14: =A3A!D40 -> 0 | E14: =A3A!E40 -> 0 | F14: =A3A!F40 -> 0 | G14: =A3A!G40 -> 0 | H14: =A3A!H40 -> 0 | I14: =A3A!I40 -> 0 | J14: =A3A!J40 -> 0 | K14: =A3A!K40 -> 0
A15: ='Org structure'!A12 -> Vote 11 - | C15: =A3A!C41 -> 0 | D15: =A3A!D41 -> 0 | E15: =A3A!E41 -> 0 | F15: =A3A!F41 -> 0 | G15: =A3A!G41 -> 0 | H15: =A3A!H41 -> 0 | I15: =A3A!I41 -> 0 | J15: =A3A!J41 -> 0 | K15: =A3A!K41 -> 0 | L15: =A5A!#REF! -> 
A16: ='Org structure'!A13 -> Vote 12 - | C16: =A3A!C42 -> 0 | D16: =A3A!D42 -> 0 | E16: =A3A!E42 -> 0 | F16: =A3A!F42 -> 0 | G16: =A3A!G42 -> 0 | H16: =A3A!H42 -> 0 | I16: =A3A!I42 -> 0 | J16: =A3A!J42 -> 0 | K16: =A3A!K42 -> 0 | L16: =A5A!#REF! -> 
A17: ='Org structure'!A14 -> Vote 13 - | C17: =A3A!C43 -> 0 | D17: =A3A!D43 -> 0 | E17: =A3A!E43 -> 0 | F17: =A3A!F43 -> 0 | G17: =A3A!G43 -> 0 | H17: =A3A!H43 -> 0 | I17: =A3A!I43 -> 0 | J17: =A3A!J43 -> 0 | K17: =A3A!K43 -> 0 | L17: =A5A!#REF! -> 
A18: ='Org structure'!A15 -> Vote 14 - | C18: =A3A!C44 -> 0 | D18: =A3A!D44 -> 0 | E18: =A3A!E44 -> 0 | F18: =A3A!F44 -> 0 | G18: =A3A!G44 -> 0 | H18: =A3A!H44 -> 0 | I18: =A3A!I44 -> 0 | J18: =A3A!J44 -> 0 | K18: =A3A!K44 -> 0 | L18: =A5A!#REF! -> 
A19: ='Org structure'!A16 -> Vote 15 - Other | C19: =A3A!C45 -> 0 | D19: =A3A!D45 -> 0 | E19: =A3A!E45 -> 0 | F19: =A3A!F45 -> 0 | G19: =A3A!G45 -> 0 | H19: =A3A!H45 -> 0 | I19: =A3A!I45 -> 0 | J19: =A3A!J45 -> 0 | K19: =A3A!K45 -> 0 | L19: =A5A!#REF! -> 
A20: Total Revenue by Vote | B20: 2 | C20: =SUM(C5:C19) -> 319108201.5 | D20: =SUM(D5:D19) -> 292222801.9 | E20: 314361075.7 | F20: 343633476 | G20: 383987659 | H20: 383987659 | I20: 366280832 | J20: 392367386 | K20: 392464331
A22: Expenditure by Vote to be appropriated | B22: 1
A23: =A3A!A49 -> Vote 01 - Executive & Council | C23: =A3A!C49 -> 25390234.07 | D23: =A3A!D49 -> 27014465.8 | E23: =A3A!E49 -> 18486159.77 | F23: =A3A!F49 -> 22193875 | G23: =A3A!G49 -> 20227715 | H23: =A3A!H49 -> 20227715 | I23: =A3A!I49 -> 20111905 | J23: =A3A!J49 -> 20926388 | K23: =A3A!K49 -> 21976207
A24: =A3A!A51 -> Vote 02 - Finance And Administration | C24: =A3A!C51 -> 55472618.1 | D24: =A3A!D51 -> 36156725.02 | E24: =A3A!E51 -> 38827774.9 | F24: =A3A!F51 -> 38440520 | G24: =A3A!G51 -> 42807275 | H24: =A3A!H51 -> 42807275 | I24: =A3A!I51 -> 40166469 | J24: =A3A!J51 -> 44553634 | K24: =A3A!K51 -> 42052857
A25: =A3A!A53 -> Vote 03 - Community Service | C25: =A3A!C53 -> 70527177.95 | D25: =A3A!D53 -> 35835451.07 | E25: =A3A!E53 -> 50257538.18 | F25: =A3A!F53 -> 47528450 | G25: =A3A!G53 -> 53178450 | H25: =A3A!H53 -> 53178450 | I25: =A3A!I53 -> 48445033 | J25: =A3A!J53 -> 50180146 | K25: =A3A!K53 -> 50968233
A26: =A3A!A55 -> Vote 04 - Public And Safety | C26: =A3A!C55 -> 48925496.79 | D26: =A3A!D55 -> 51180798.31 | E26: =A3A!E55 -> 55285253.19 | F26: =A3A!F55 -> 63307723 | G26: =A3A!G55 -> 67166233 | H26: =A3A!H55 -> 67166233 | I26: =A3A!I55 -> 66989141 | J26: =A3A!J55 -> 69933158 | K26: =A3A!K55 -> 71524010
A27: =A3A!A57 -> Vote 05 - Waste Management | C27: =A3A!C57 -> 52994831.44 | D27: =A3A!D57 -> 80777791.8 | E27: =A3A!E57 -> 84889897.17 | F27: =A3A!F57 -> 107633832 | G27: =A3A!G57 -> 117008295 | H27: =A3A!H57 -> 117008295 | I27: =A3A!I57 -> 111666673 | J27: =A3A!J57 -> 118746300 | K27: =A3A!K57 -> 120748375
A28: =A3A!A65 -> Vote 06 - Roads Services | C28: =A3A!C65 -> 34592357.14 | D28: =A3A!D65 -> 35219769.86 | E28: =A3A!E65 -> 37110220.3 | F28: =A3A!F65 -> 39146374 | G28: =A3A!G65 -> 40307652 | H28: =A3A!H65 -> 40307652 | I28: =A3A!I65 -> 43010202 | J28: =A3A!J65 -> 39309397 | K28: =A3A!K65 -> 37860938
A29: =A3A!A80 -> Vote 07 - Econominc Development And Planning | C29: =A3A!C80 -> 9661257.78 | D29: =A3A!D80 -> 9851544.11 | E29: =A3A!E80 -> 11244040.17 | F29: =A3A!F80 -> 16138577 | G29: =A3A!G80 -> 16433377 | H29: =A3A!H80 -> 16433377 | I29: =A3A!I80 -> 14380879 | J29: =A3A!J80 -> 11501279 | K29: =A3A!K80 -> 11959624
A30: ='Org structure'!A9 -> Vote 08 - | C30: =A3A!C82 -> 0 | D30: =A3A!D82 -> 0 | E30: =A3A!E82 -> 0 | F30: =A3A!F82 -> 0 | G30: =A3A!G82 -> 0 | H30: =A3A!H82 -> 0 | I30: =A3A!I82 -> 0 | J30: =A3A!J82 -> 0 | K30: =A3A!K82 -> 0
A31: ='Org structure'!A10 -> Vote 09 - | C31: =A3A!C83 -> 0 | D31: =A3A!D83 -> 0 | E31: =A3A!E83 -> 0 | F31: =A3A!F83 -> 0 | G31: =A3A!G83 -> 0 | H31: =A3A!H83 -> 0 | I31: =A3A!I83 -> 0 | J31: =A3A!J83 -> 0 | K31: =A3A!K83 -> 0
A32: ='Org structure'!A11 -> Vote 10 - | C32: =A3A!C84 -> 0 | D32: =A3A!D84 -> 0 | E32: =A3A!E84 -> 0 | F32: =A3A!F84 -> 0 | G32: =A3A!G84 -> 0 | H32: =A3A!H84 -> 0 | I32: =A3A!I84 -> 0 | J32: =A3A!J84 -> 0 | K32: =A3A!K84 -> 0
A33: ='Org structure'!A12 -> Vote 11 - | C33: =A3A!C85 -> 0 | D33: =A3A!D85 -> 0 | E33: =A3A!E85 -> 0 | F33: =A3A!F85 -> 0 | G33: =A3A!G85 -> 0 | H33: =A3A!H85 -> 0 | I33: =A3A!I85 -> 0 | J33: =A3A!J85 -> 0 | K33: =A3A!K85 -> 0 | L33: =A3A!#REF! -> 
A34: ='Org structure'!A13 -> Vote 12 - | C34: =A3A!C86 -> 0 | D34: =A3A!D86 -> 0 | E34: =A3A!E86 -> 0 | F34: =A3A!F86 -> 0 | G34: =A3A!G86 -> 0 | H34: =A3A!H86 -> 0 | I34: =A3A!I86 -> 0 | J34: =A3A!J86 -> 0 | K34: =A3A!K86 -> 0 | L34: =A3A!#REF! -> 
A35: ='Org structure'!A14 -> Vote 13 - | C35: =A3A!C87 -> 0 | D35: =A3A!D87 -> 0 | E35: =A3A!E87 -> 0 | F35: =A3A!F87 -> 0 | G35: =A3A!G87 -> 0 | H35: =A3A!H87 -> 0 | I35: =A3A!I87 -> 0 | J35: =A3A!J87 -> 0 | K35: =A3A!K87 -> 0 | L35: =A3A!#REF! -> 
A36: ='Org structure'!A15 -> Vote 14 - | C36: =A3A!C88 -> 0 | D36: =A3A!D88 -> 0 | E36: =A3A!E88 -> 0 | F36: =A3A!F88 -> 0 | G36: =A3A!G88 -> 0 | H36: =A3A!H88 -> 0 | I36: =A3A!I88 -> 0 | J36: =A3A!J88 -> 0 | K36: =A3A!K88 -> 0 | L36: =A3A!#REF! -> 
A37: ='Org structure'!A16 -> Vote 15 - Other | C37: =A3A!C89 -> 0 | D37: =A3A!D89 -> 0 | E37: =A3A!E89 -> 0 | F37: =A3A!F89 -> 0 | G37: =A3A!G89 -> 0 | H37: =A3A!H89 -> 0 | I37: =A3A!I89 -> 0 | J37: =A3A!J89 -> 0 | K37: =A3A!K89 -> 0 | L37: =A3A!#REF! -> 
A38: Total Expenditure by Vote | B38: 2 | C38: =SUM(C23:C37) -> 297563973.3 | D38: =SUM(D23:D37) -> 276036546 | E38: 296100883.7 | F38: 334389351 | G38: 357128997 | H38: 357128997 | I38: 344770302 | J38: 355150302 | K38: 357090244 | L38: =SUM(L23:L29) -> 0 | M38: 0 | N38: 0 | O38: 0 | P38: 0 | Q38: 0 | R38: 0 | S38: 0 | T38: 0 | U38: 0 | V38: 0 | W38: 0
A39: =result -> Surplus/(Deficit) for the year | B39: 2 | C39: =C20-C38 -> 21544228.26 | D39: 16186255.9 | E39: 18260191.99 | F39: 9244125 | G39: 26858662 | H39: 26858662 | I39: 21510530 | J39: 37217084 | K39: 35374087 | L39: 0 | M39: 0 | N39: 0 | O39: 0 | P39: 0 | Q39: 0 | R39: 0 | S39: 0 | T39: 0 | U39: 0 | V39: 0 | W39: 0
A40: =head27a -> References
A41: 1. Insert 'Vote'; e.g. department, if different to functional classification structure
A42: 2. Must reconcile to Budgeted Financial Performance (revenue and expenditure)
A43: 3. Assign share in 'associate' to relevant Vote
A45: ="check "&A39 -> check Surplus/(Deficit) for the year | C45: =C39-A3A!C92 -> 0 | D45: =D39-A3A!D92 -> 0 | E45: =E39-A3A!E92 -> 0 | F45: =F39-A3A!F92 -> 0 | G45: =G39-A3A!G92 -> 0 | H45: =H39-A3A!H92 -> 0 | I45: =I39-A3A!I92 -> 0 | J45: =J39-A3A!J92 -> 0 | K45: =K39-A3A!K92 -> 0

Sheet A3A
A1: =muni&" - "&Approve2&"A" -> LIM351 Blouberg - Table A3 Budgeted Financial Performance (revenue and expenditure by municipal vote)A
A2: =Vdesc -> Vote Description | B2: =head27 -> Ref | C2: =head1b -> 2017/18 | D2: =head1A -> 2018/19 | E2: =Head1 -> 2019/20 | F2: =Head2 -> Current Year 2020/21 | I2: =Head3 -> 2021/22 Medium Term Revenue & Expenditure Framework | L2: =Head4 -> LTFS
A3: R thousand | C3: =Head5 -> Audited Outcome | D3: =Head5 -> Audited Outcome | E3: =Head5 -> Audited Outcome | F3: =Head6 -> Original Budget | G3: =Head7 -> Adjusted Budget | H3: =Head8 -> Full Year Forecast | I3: =Head9 -> Budget Year 2021/22 | J3: =Head10 -> Budget Year +1 2022/23 | K3: =Head11 -> Budget Year +2 2023/24 | L3: =Head12 -> Forecast 2024/25 | M3: =Head13 -> Forecast 2025/26 | N3: =Head14 -> Forecast 2026/27 | O3: =Head15 -> Forecast 2027/28 | P3: =Head16 -> Forecast 2028/29 | Q3: =Head17 -> Forecast 2029/30 | R3: =Head18 -> Forecast 2030/31 | S3: =Head19 -> Forecast 2031/32 | T3: =Head20 -> Forecast 2032/33 | U3: =Head21 -> Forecast 2033/34 | V3: =Head22 -> Forecast 2034/35 | W3: =Head23 -> Forecast 2035/36
A4: Revenue by Vote | B4: 1
A5: ='Org structure'!A2 -> Vote 01 - Executive & Council | C5: =SUM(C6:C6) -> 0 | D5: 0 | E5: 0 | F5: 0 | G5: 0 | H5: 0 | I5: 0 | J5: 0 | K5: 0
A6: ='Org structure'!E3 -> 01.1 - Council General | C6: 0 | D6: 0 | E6: 0 | F6: 0 | G6: 0 | H6: 0 | I6: 0 | J6: 0 | K6: 0
A7: ='Org structure'!A3 -> Vote 02 - Finance And Administration | C7: =SUM(C8:C8) -> 25855950 | D7: 6783826.47 | E7: 2663.33 | F7: 0 | G7: 0 | H7: 0 | I7: 0 | J7: 0 | K7: 0
A8: ='Org structure'!E5 -> 02.1 - Municipal Manager | C8: 25855950 | D8: 6783826.47 | E8: 2663.33 | F8: 0 | G8: 0 | H8: 0 | I8: 0 | J8: 0 | K8: 0
A9: ='Org structure'!A4 -> Vote 03 - Community Service | C9: =SUM(C10:C10) -> 199879531.8 | D9: 200602224.7 | E9: 219738908.2 | F9: 237643830 | G9: 272481830 | H9: 272481830 | I9: 242973736 | J9: 253503263 | K9: 249098840
A10: ='Org structure'!E7 -> 03.1 - Finance Services Administration | C10: 199879531.8 | D10: 200602224.7 | E10: 219738908.2 | F10: 237643830 | G10: 272481830 | H10: 272481830 | I10: 242973736 | J10: 253503263 | K10: 249098840
A11: ='Org structure'!A5 -> Vote 04 - Public And Safety | C11: =SUM(C12:C12) -> 167008.87 | D11: 55476.72 | E11: 408921.92 | F11: 700000 | G11: 342000 | H11: 342000 | I11: 401846 | J11: 425958 | K11: 451515
A12: ='Org structure'!E9 -> 04.1 - Corporate Services Administration | C12: 167008.87 | D12: 55476.72 | E12: 408921.92 | F12: 700000 | G12: 342000 | H12: 342000 | I12: 401846 | J12: 425958 | K12: 451515
A13: ='Org structure'!A6 -> Vote 05 - Waste Management | C13: =SUM(C14:C20) -> 79667698.35 | D13: 74558556.43 | E13: 83952918.26 | F13: 89697929 | G13: 96272112 | H13: 96272112 | I13: 98773847 | J13: 118938438 | K13: 122784264
A14: ='Org structure'!E11 -> 05.1 - Technical Services Administration | C14: 0 | D14: 0 | E14: 0 | F14: 0 | G14: 0 | H14: 0 | I14: 0 | J14: 0 | K14: 0
A15: ='Org structure'!E12 -> 05.2 - Electrical Services | C15: 33113181.98 | D15: 31067556.43 | E15: 83948546.87 | F15: 89697929 | G15: 96272112 | H15: 96272112 | I15: 98773847 | J15: 118938438 | K15: 122784264
A16: ='Org structure'!E13 -> 05.3 - Water Services | C16: 0 | D16: 0 | E16: 4371.39 | F16: 0 | G16: 0 | H16: 0 | I16: 0 | J16: 0 | K16: 0
A17: ='Org structure'!E14 -> 05.4 - Sanitation Services | C17: 0 | D17: 0 | E17: 0 | F17: 0 | G17: 0 | H17: 0 | I17: 0 | J17: 0 | K17: 0
A18: ='Org structure'!E15 -> 05.5 - Roads Services | C18: 46554516.37 | D18: 43491000 | E18: 0 | F18: 0 | G18: 0 | H18: 0 | I18: 0 | J18: 0 | K18: 0
A19: ='Org structure'!E16 -> 05.6 - Storm Water Services | C19: 0 | D19: 0 | E19: 0 | F19: 0 | G19: 0 | H19: 0 | I19: 0 | J19: 0 | K19: 0
A20: ='Org structure'!E17 -> 05.7 - Water Reporting Function | C20: 0 | D20: 0 | E20: 0 | F20: 0 | G20: 0 | H20: 0 | I20: 0 | J20: 0 | K20: 0
A21: ='Org structure'!A7 -> Vote 06 - Roads Services | C21: =SUM(C22:C35) -> 13046529.91 | D21: 9563829.8 | E21: 9059115.74 | F21: 10262040 | G21: 10562040 | H21: 10562040 | I21: 10821944 | J21: 10129301 | K21: 10737060
A22: ='Org structure'!E19 -> 06.1 - Community Services Administration | C22: 6364739.88 | D22: 4321105.33 | E22: 4004500 | F22: 2647000 | G22: 2647000 | H22: 2647000 | I22: 2432000 | J22: 1235960 | K22: 1310118
A23: ='Org structure'!E20 -> 06.2 - Traffic Services | C23: 2941165.27 | D23: 2906211.95 | E23: 0 | F23: 0 | G23: 0 | H23: 0 | I23: 0 | J23: 0 | K23: 0
A24: ='Org structure'!E21 -> 06.3 - Traffic Services | C24: 3282760 | D24: 1784480 | E24: 3825617.25 | F24: 6688600 | G24: 6688600 | H24: 6688600 | I24: 7089917 | J24: 7515312 | K24: 7966230
A25: ='Org structure'!E22 -> 06.4 - Libraries | C25: 0 | D25: 0 | E25: 0 | F25: 0 | G25: 0 | H25: 0 | I25: 0 | J25: 0 | K25: 0
A26: ='Org structure'!E23 -> 06.5 - Sport | C26: 0 | D26: 0 | E26: 0 | F26: 0 | G26: 0 | H26: 0 | I26: 0 | J26: 0 | K26: 0
A27: ='Org structure'!E24 -> 06.6 - Cemetery | C27: 0 | D27: 0 | E27: 0 | F27: 0 | G27: 0 | H27: 0 | I27: 0 | J27: 0 | K27: 0
A28: ='Org structure'!E25 -> 06.7 - Refuse | C28: 457864.76 | D28: 552032.52 | E28: 1228998.49 | F28: 926440 | G28: 1226440 | H28: 1226440 | I28: 1300027 | J28: 1378029 | K28: 1460712
A29: ='Org structure'!E26 -> 06.8 - Pound Services | C29: 0 | D29: 0 | E29: 0 | F29: 0 | G29: 0 | H29: 0 | I29: 0 | J29: 0 | K29: 0
A30: ='Org structure'!E27 -> 06.9 - Pound Services | C30: 0 | D30: 0 | E30: 0 | F30: 0 | G30: 0 | H30: 0 | I30: 0 | J30: 0 | K30: 0
A31: ='Org structure'!E28 -> 06.10 - Satellite Offices | C31: 0 | D31: 0 | E31: 0 | F31: 0 | G31: 0 | H31: 0 | I31: 0 | J31: 0 | K31: 0
A32: ='Org structure'!E29 -> 06.11 - Alldays Offices | C32: 0 | D32: 0 | E32: 0 | F32: 0 | G32: 0 | H32: 0 | I32: 0 | J32: 0 | K32: 0
A33: ='Org structure'!E30 -> 06.12 - Eldorado Offices | C33: 0 | D33: 0 | E33: 0 | F33: 0 | G33: 0 | H33: 0 | I33: 0 | J33: 0 | K33: 0
A34: ='Org structure'!E31 -> 06.13 - Tolwe Offices | C34: 0 | D34: 0 | E34: 0 | F34: 0 | G34: 0 | H34: 0 | I34: 0 | J34: 0 | K34: 0
A35: ='Org structure'!E32 -> 06.14 - Senwabarwarna Offices | C35: 0 | D35: 0 | E35: 0 | F35: 0 | G35: 0 | H35: 0 | I35: 0 | J35: 0 | K35: 0
A36: ='Org structure'!A8 -> Vote 07 - Econominc Development And Planning | C36: =SUM(C37:C37) -> 491482.59 | D36: 658887.75 | E36: 1198548.22 | F36: 5329677 | G36: 4329677 | H36: 4329677 | I36: 13309459 | J36: 9370426 | K36: 9392652
A37: ='Org structure'!E34 -> 07.1 - Economic Development And Planning | C37: 491482.59 | D37: 658887.75 | E37: 1198548.22 | F37: 5329677 | G37: 4329677 | H37: 4329677 | I37: 13309459 | J37: 9370426 | K37: 9392652
A38: ='Org structure'!A9 -> Vote 08 - | C38: 0 | D38: 0 | E38: 0 | F38: 0 | G38: 0 | H38: 0 | I38: 0 | J38: 0 | K38: 0
A39: ='Org structure'!A10 -> Vote 09 - | C39: 0 | D39: 0 | E39: 0 | F39: 0 | G39: 0 | H39: 0 | I39: 0 | J39: 0 | K39: 0
A40: ='Org structure'!A11 -> Vote 10 - | C40: 0 | D40: 0 | E40: 0 | F40: 0 | G40: 0 | H40: 0 | I40: 0 | J40: 0 | K40: 0
A41: ='Org structure'!A12 -> Vote 11 - | C41: 0 | D41: 0 | E41: 0 | F41: 0 | G41: 0 | H41: 0 | I41: 0 | J41: 0 | K41: 0
A42: ='Org structure'!A13 -> Vote 12 - | C42: 0 | D42: 0 | E42: 0 | F42: 0 | G42: 0 | H42: 0 | I42: 0 | J42: 0 | K42: 0
A43: ='Org structure'!A14 -> Vote 13 - | C43: 0 | D43: 0 | E43: 0 | F43: 0 | G43: 0 | H43: 0 | I43: 0 | J43: 0 | K43: 0
A44: ='Org structure'!A15 -> Vote 14 - | C44: 0 | D44: 0 | E44: 0 | F44: 0 | G44: 0 | H44: 0 | I44: 0 | J44: 0 | K44: 0
A45: ='Org structure'!A16 -> Vote 15 - Other | C45: 0 | D45: 0 | E45: 0 | F45: 0 | G45: 0 | H45: 0 | I45: 0 | J45: 0 | K45: 0
A46: Total Revenue by Vote | B46: 2 | C46: =C5+C7+C9+C11+C13+C21+C36+C38+C39+C40+C41+C42+C43+C44+C45 -> 319108201.5 | D46: 292222801.9 | E46: 314361075.7 | F46: 343633476 | G46: 383987659 | H46: 383987659 | I46: 366280832 | J46: 392367386 | K46: 392464331 | L46: =SUM(#REF!) ->  | M46: =SUM(#REF!) ->  | N46: =SUM(#REF!) ->  | O46: =SUM(#REF!) ->  | P46: =SUM(#REF!) ->  | Q46: =SUM(#REF!) ->  | R46: =SUM(#REF!) ->  | S46: =SUM(#REF!) ->  | T46: =SUM(#REF!) ->  | U46: =SUM(#REF!) ->  | V46: =SUM(#REF!) ->  | W46: =SUM(#REF!) -> 
A48: Expenditure by Vote | B48: 1
A49: ='Org structure'!A2 -> Vote 01 - Executive & Council | C49: =SUM(C50:C50) -> 25390234.07 | D49: 27014465.8 | E49: 18486159.77 | F49: 22193875 | G49: 20227715 | H49: 20227715 | I49: 20111905 | J49: 20926388 | K49: 21976207
A50: ='Org structure'!E3 -> 01.1 - Council General | C50: 25390234.07 | D50: 27014465.8 | E50: 18486159.77 | F50: 22193875 | G50: 20227715 | H50: 20227715 | I50: 20111905 | J50: 20926388 | K50: 21976207
A51: ='Org structure'!A3 -> Vote 02 - Finance And Administration | C51: =SUM(C52:C52) -> 55472618.1 | D51: 36156725.02 | E51: 38827774.9 | F51: 38440520 | G51: 42807275 | H51: 42807275 | I51: 40166469 | J51: 44553634 | K51: 42052857
A52: ='Org structure'!E5 -> 02.1 - Municipal Manager | C52: 55472618.1 | D52: 36156725.02 | E52: 38827774.9 | F52: 38440520 | G52: 42807275 | H52: 42807275 | I52: 40166469 | J52: 44553634 | K52: 42052857
A53: ='Org structure'!A4 -> Vote 03 - Community Service | C53: =SUM(C54:C54) -> 70527177.95 | D53: 35835451.07 | E53: 50257538.18 | F53: 47528450 | G53: 53178450 | H53: 53178450 | I53: 48445033 | J53: 50180146 | K53: 50968233
A54: ='Org structure'!E7 -> 03.1 - Finance Services Administration | C54: 70527177.95 | D54: 35835451.07 | E54: 50257538.18 | F54: 47528450 | G54: 53178450 | H54: 53178450 | I54: 48445033 | J54: 50180146 | K54: 50968233
A55: ='Org structure'!A5 -> Vote 04 - Public And Safety | C55: =SUM(C56:C56) -> 48925496.79 | D55: 51180798.31 | E55: 55285253.19 | F55: 63307723 | G55: 67166233 | H55: 67166233 | I55: 66989141 | J55: 69933158 | K55: 71524010
A56: ='Org structure'!E9 -> 04.1 - Corporate Services Administration | C56: 48925496.79 | D56: 51180798.31 | E56: 55285253.19 | F56: 63307723 | G56: 67166233 | H56: 67166233 | I56: 66989141 | J56: 69933158 | K56: 71524010
A57: ='Org structure'!A6 -> Vote 05 - Waste Management | C57: =SUM(C58:C64) -> 52994831.44 | D57: 80777791.8 | E57: 84889897.17 | F57: 107633832 | G57: 117008295 | H57: 117008295 | I57: 111666673 | J57: 118746300 | K57: 120748375
A58: ='Org structure'!E11 -> 05.1 - Technical Services Administration | C58: 4690961.18 | D58: 2443709.76 | E58: 1369269.99 | F58: 5285578 | G58: 5435578 | H58: 5435578 | I58: 5661010 | J58: 5901724 | K58: 6164172
A59: ='Org structure'!E12 -> 05.2 - Electrical Services | C59: 38703467.37 | D59: 56827660.01 | E59: 60025029.41 | F59: 59470296 | G59: 62899192 | H59: 62899192 | I59: 63615503 | J59: 67302190 | K59: 68453779
A60: ='Org structure'!E13 -> 05.3 - Water Services | C60: 0 | D60: 0 | E60: 0 | F60: 0 | G60: 0 | H60: 0 | I60: 0 | J60: 0 | K60: 0
A61: ='Org structure'!E14 -> 05.4 - Sanitation Services | C61: 0 | D61: 0 | E61: 0 | F61: 0 | G61: 0 | H61: 0 | I61: 0 | J61: 0 | K61: 0
A62: ='Org structure'!E15 -> 05.5 - Roads Services | C62: 9600402.89 | D62: 21506422.03 | E62: 23495597.77 | F62: 42877958 | G62: 48673525 | H62: 48673525 | I62: 42390160 | J62: 45542386 | K62: 46130424
A63: ='Org structure'!E16 -> 05.6 - Storm Water Services | C63: 0 | D63: 0 | E63: 0 | F63: 0 | G63: 0 | H63: 0 | I63: 0 | J63: 0 | K63: 0
A64: ='Org structure'!E17 -> 05.7 - Water Reporting Function | C64: 0 | D64: 0 | E64: 0 | F64: 0 | G64: 0 | H64: 0 | I64: 0 | J64: 0 | K64: 0
A65: ='Org structure'!A7 -> Vote 06 - Roads Services | C65: =SUM(C66:C79) -> 34592357.14 | D65: 35219769.86 | E65: 37110220.3 | F65: 39146374 | G65: 40307652 | H65: 40307652 | I65: 43010202 | J65: 39309397 | K65: 37860938
A66: ='Org structure'!E19 -> 06.1 - Community Services Administration | C66: 21549559.59 | D66: 20170141.16 | E66: 18148699.79 | F66: 20033840 | G66: 21445118 | H66: 21445118 | I66: 23230585 | J66: 18671489 | K66: 19968966
A67: ='Org structure'!E20 -> 06.2 - Traffic Services | C67: 0 | D67: 175500 | E67: 0 | F67: 0 | G67: 0 | H67: 0 | I67: 0 | J67: 0 | K67: 0
A68: ='Org structure'!E21 -> 06.3 - Traffic Services | C68: 13048897.55 | D68: 14714314.97 | E68: 18847387.14 | F68: 14685334 | G68: 14685334 | H68: 14685334 | I68: 15779617 | J68: 16527908 | K68: 17071972
A69: ='Org structure'!E22 -> 06.4 - Libraries | C69: 0 | D69: 0 | E69: 0 | F69: 0 | G69: 0 | H69: 0 | I69: 0 | J69: 0 | K69: 0
A70: ='Org structure'!E23 -> 06.5 - Sport | C70: 0 | D70: 0 | E70: 0 | F70: 0 | G70: 0 | H70: 0 | I70: 0 | J70: 0 | K70: 0
A71: ='Org structure'!E24 -> 06.6 - Cemetery | C71: 0 | D71: 0 | E71: 0 | F71: 0 | G71: 0 | H71: 0 | I71: 0 | J71: 0 | K71: 0
A72: ='Org structure'!E25 -> 06.7 - Refuse | C72: -6100 | D72: 159813.73 | E72: 114133.37 | F72: 4427200 | G72: 4177200 | H72: 4177200 | I72: 3800000 | J72: 3860000 | K72: 520000
A73: ='Org structure'!E26 -> 06.8 - Pound Services | C73: 0 | D73: 0 | E73: 0 | F73: 0 | G73: 0 | H73: 0 | I73: 200000 | J73: 250000 | K73: 300000
A74: ='Org structure'!E27 -> 06.9 - Pound Services | C74: 0 | D74: 0 | E74: 0 | F74: 0 | G74: 0 | H74: 0 | I74: 0 | J74: 0 | K74: 0
A75: ='Org structure'!E28 -> 06.10 - Satellite Offices | C75: 0 | D75: 0 | E75: 0 | F75: 0 | G75: 0 | H75: 0 | I75: 0 | J75: 0 | K75: 0
A76: ='Org structure'!E29 -> 06.11 - Alldays Offices | C76: 0 | D76: 0 | E76: 0 | F76: 0 | G76: 0 | H76: 0 | I76: 0 | J76: 0 | K76: 0
A77: ='Org structure'!E30 -> 06.12 - Eldorado Offices | C77: 0 | D77: 0 | E77: 0 | F77: 0 | G77: 0 | H77: 0 | I77: 0 | J77: 0 | K77: 0
A78: ='Org structure'!E31 -> 06.13 - Tolwe Offices | C78: 0 | D78: 0 | E78: 0 | F78: 0 | G78: 0 | H78: 0 | I78: 0 | J78: 0 | K78: 0
A79: ='Org structure'!E32 -> 06.14 - Senwabarwarna Offices | C79: 0 | D79: 0 | E79: 0 | F79: 0 | G79: 0 | H79: 0 | I79: 0 | J79: 0 | K79: 0
A80: ='Org structure'!A8 -> Vote 07 - Econominc Development And Planning | C80: =SUM(C81:C81) -> 9661257.78 | D80: 9851544.11 | E80: 11244040.17 | F80: 16138577 | G80: 16433377 | H80: 16433377 | I80: 14380879 | J80: 11501279 | K80: 11959624
A81: ='Org structure'!E34 -> 07.1 - Economic Development And Planning | C81: 9661257.78 | D81: 9851544.11 | E81: 11244040.17 | F81: 16138577 | G81: 16433377 | H81: 16433377 | I81: 14380879 | J81: 11501279 | K81: 11959624
A82: ='Org structure'!A9 -> Vote 08 - | C82: 0 | D82: 0 | E82: 0 | F82: 0 | G82: 0 | H82: 0 | I82: 0 | J82: 0 | K82: 0
A83: ='Org structure'!A10 -> Vote 09 - | C83: 0 | D83: 0 | E83: 0 | F83: 0 | G83: 0 | H83: 0 | I83: 0 | J83: 0 | K83: 0
A84: ='Org structure'!A11 -> Vote 10 - | C84: 0 | D84: 0 | E84: 0 | F84: 0 | G84: 0 | H84: 0 | I84: 0 | J84: 0 | K84: 0
A85: ='Org structure'!A12 -> Vote 11 - | C85: 0 | D85: 0 | E85: 0 | F85: 0 | G85: 0 | H85: 0 | I85: 0 | J85: 0 | K85: 0
A86: ='Org structure'!A13 -> Vote 12 - | C86: 0 | D86: 0 | E86: 0 | F86: 0 | G86: 0 | H86: 0 | I86: 0 | J86: 0 | K86: 0
A87: ='Org structure'!A14 -> Vote 13 - | C87: 0 | D87: 0 | E87: 0 | F87: 0 | G87: 0 | H87: 0 | I87: 0 | J87: 0 | K87: 0
A88: ='Org structure'!A15 -> Vote 14 - | C88: 0 | D88: 0 | E88: 0 | F88: 0 | G88: 0 | H88: 0 | I88: 0 | J88: 0 | K88: 0
A89: ='Org structure'!A16 -> Vote 15 - Other | C89: 0 | D89: 0 | E89: 0 | F89: 0 | G89: 0 | H89: 0 | I89: 0 | J89: 0 | K89: 0
A90: Total Expenditure by Vote | B90: 2 | C90: =C49+C51+C53+C55+C57+C65+C80+C82+C83+C84+C85+C86+C87+C88+C89 -> 297563973.3 | D90: 276036546 | E90: 296100883.7 | F90: 334389351 | G90: 357128997 | H90: 357128997 | I90: 344770302 | J90: 355150302 | K90: 357090244 | L90: =SUM(L49:L81) -> 0 | M90: 0 | N90: 0 | O90: 0 | P90: 0 | Q90: 0 | R90: 0 | S90: 0 | T90: 0 | U90: 0 | V90: 0 | W90: 0
A92: =result -> Surplus/(Deficit) for the year | B92: 2 | C92: =C46-C90 -> 21544228.26 | D92: 16186255.9 | E92: 18260191.99 | F92: 9244125 | G92: 26858662 | H92: 26858662 | I92: 21510530 | J92: 37217084 | K92: 35374087
A93: =head27a -> References
A94: 1. Insert 'Vote'; e.g. Department, if different to Functional structure
A95: 2. Must reconcile to Financial Performance ('Revenue and Expenditure by Functional Classification' and 'Revenue and Expenditure')
A96: 3. Assign share in 'associate' to relevant Vote
A98: check revenue | C98: =C46-'A4-FinPerf RE'!C59 -> 50 | D98: =D46-'A4-FinPerf RE'!D59 -> 50 | E98: =E46-'A4-FinPerf RE'!E59 -> 50 | F98: =F46-'A4-FinPerf RE'!F59 -> 50 | G98: =G46-'A4-FinPerf RE'!G59 -> 50 | H98: =H46-'A4-FinPerf RE'!H59 -> 50 | I98: =I46-'A4-FinPerf RE'!J59 -> 50 | J98: =J46-'A4-FinPerf RE'!K59 -> 50 | K98: =K46-'A4-FinPerf RE'!L59 -> 50
A99: check expenditure | C99: =C90-'A4-FinPerf RE'!C35 -> 1294500.51 | D99: =D90-'A4-FinPerf RE'!D35 -> -3930195.91 | E99: =E90-'A4-FinPerf RE'!E35 -> -3117746.3 | F99: =F90-'A4-FinPerf RE'!F35 -> 2570249 | G99: =G90-'A4-FinPerf RE'!G35 -> 2420249 | H99: =H90-'A4-FinPerf RE'!H35 -> 2420249 | I99: =I90-'A4-FinPerf RE'!J35 -> 2650000 | J99: =J90-'A4-FinPerf RE'!K35 -> 2420000 | K99: =K90-'A4-FinPerf RE'!L35 -> 2522000

Sheet A4-FinPerf RE
A1: =muni&" - "&Approve4 -> LIM351 Blouberg - Table A4 Budgeted Financial Performance (revenue and expenditure)
A2: =desc -> Description | B2: =head27 -> Ref | C2: =head1b -> 2017/18 | D2: =head1A -> 2018/19 | E2: =Head1 -> 2019/20 | F2: =Head2 -> Current Year 2020/21 | J2: =Head3 -> 2021/22 Medium Term Revenue & Expenditure Framework | M2: =Head4 -> LTFS
A3: R thousand | B3: 1 | C3: =Head5 -> Audited Outcome | D3: =Head5 -> Audited Outcome | E3: =Head5 -> Audited Outcome | F3: =Head6 -> Original Budget | G3: =Head7 -> Adjusted Budget | H3: =Head8 -> Full Year Forecast | I3: =Head5b -> Pre-audit outcome | J3: =Head9 -> Budget Year 2021/22 | K3: =Head10 -> Budget Year +1 2022/23 | L3: =Head11 -> Budget Year +2 2023/24 | M3: =Head12 -> Forecast 2024/25 | N3: =Head13 -> Forecast 2025/26 | O3: =Head14 -> Forecast 2026/27 | P3: =Head15 -> Forecast 2027/28 | Q3: =Head16 -> Forecast 2028/29 | R3: =Head17 -> Forecast 2029/30 | S3: =Head18 -> Forecast 2030/31 | T3: =Head19 -> Forecast 2031/32 | U3: =Head20 -> Forecast 2032/33 | V3: =Head21 -> Forecast 2033/34 | W3: =Head22 -> Forecast 2034/35 | X3: =Head23 -> Forecast 2035/36
A4: Revenue By Source
A5: Property rates | B5: 2 | C5: ='SA1'!C9 -> 26601780.26 | D5: ='SA1'!D9 -> 24056426.6 | E5: ='SA1'!E9 -> 25567365 | F5: ='SA1'!F9 -> 32475401 | G5: ='SA1'!G9 -> 29475401 | H5: ='SA1'!H9 -> 29475401 | I5: ='SA1'!I9 -> 26218859.02 | J5: ='SA1'!J9 -> 31243927 | K5: ='SA1'!K9 -> 33118562 | L5: ='SA1'!L9 -> 35105676
A6: Service charges - electricity revenue | B6: 2 | C6: ='SA1'!C15 -> 22515554.9 | D6: ='SA1'!D15 -> 22470403.13 | E6: ='SA1'!E15 -> 28092955.95 | F6: ='SA1'!F15 -> 39316969 | G6: ='SA1'!G15 -> 39316969 | H6: ='SA1'!H15 -> 39316969 | I6: ='SA1'!I15 -> 19666084.33 | J6: ='SA1'!J15 -> 41675992 | K6: ='SA1'!K15 -> 44176554 | L6: ='SA1'!L15 -> 46827150
A7: Service charges - water revenue | B7: 2 | C7: ='SA1'!C21 -> 0 | D7: ='SA1'!D21 -> 0 | E7: ='SA1'!E21 -> 0 | F7: ='SA1'!F21 -> 0 | G7: ='SA1'!G21 -> 0 | H7: ='SA1'!H21 -> 0 | I7: ='SA1'!I21 -> 3388746.91 | J7: ='SA1'!J21 -> 0 | K7: ='SA1'!K21 -> 0 | L7: ='SA1'!L21 -> 0
A8: Service charges - sanitation revenue | B8: 2 | C8: ='SA1'!C27 -> 0 | D8: ='SA1'!D27 -> 0 | E8: ='SA1'!E27 -> 4371.39 | F8: ='SA1'!F27 -> 0 | G8: ='SA1'!G27 -> 0 | H8: ='SA1'!H27 -> 0 | I8: ='SA1'!I27 -> 24841.6 | J8: ='SA1'!J27 -> 0 | K8: ='SA1'!K27 -> 0 | L8: ='SA1'!L27 -> 0
A9: Service charges - refuse revenue | B9: 2 | C9: ='SA1'!C34 -> 426832.3 | D9: ='SA1'!D34 -> 513631.81 | E9: ='SA1'!E34 -> 1171854.6 | F9: ='SA1'!F34 -> 831040 | G9: ='SA1'!G34 -> 1131040 | H9: ='SA1'!H34 -> 1131040 | I9: ='SA1'!I34 -> 956716.38 | J9: ='SA1'!J34 -> 1198903 | K9: ='SA1'!K34 -> 1270837 | L9: ='SA1'!L34 -> 1347088
A11: Rental of facilities and equipment | C11: 0 | D11: 0 | E11: 0 | F11: 218000 | G11: 218000 | H11: 218000 | I11: 0 | J11: 231080 | K11: 244945 | L11: 259642
A12: Interest earned - external investments | C12: 2475497.02 | D12: 1307930.57 | E12: 1452859.93 | F12: 1802000 | G12: 1802000 | H12: 1802000 | I12: 916565.38 | J12: 1910120 | K12: 2024728 | L12: 2146212
A13: Interest earned - outstanding debtors | C13: 522577.05 | D13: 1286914.29 | E13: 2222812.17 | F13: 1587075 | G13: 1587075 | H13: 1587075 | I13: 1626933.89 | J13: 1682300 | K13: 1783240 | L13: 1890234
A14: Dividends received
A15: Fines, penalties and forfeits | C15: 3300527.94 | D15: 1814775.66 | E15: 1332039.57 | F15: 3593764 | G15: 3593764 | H15: 3593764 | I15: 120874.26 | J15: 3809390 | K15: 4037954 | L15: 4280231
A16: Licences and permits | C16: 3999117.55 | D16: 3699165.54 | E16: 3372309.15 | F16: 4355825 | G16: 4355825 | H16: 4355825 | I16: 2414169.65 | J16: 4617176 | K16: 4894206 | L16: 5187859
A17: Agency services | C17: 0 | D17: 0 | E17: 0 | F17: 1100000 | G17: 1100000 | H17: 1100000 | I17: 0 | J17: 1166000 | K17: 1235960 | L17: 1310118
A18: Transfers and subsidies | C18: 209412876.3 | D18: 182423931.8 | E18: 193208163.3 | F18: 201645000 | G18: 239125000 | H18: 239125000 | I18: 238663913 | J18: 207281000 | K18: 214327000 | L18: 207572000
A19: Other revenue | B19: 2 | C19: ='SA1'!C49 -> 3298871.85 | D19: ='SA1'!D49 -> 2774480.98 | E19: ='SA1'!E49 -> 2440146.78 | F19: ='SA1'!F49 -> 6642352 | G19: ='SA1'!G49 -> 5642352 | H19: ='SA1'!H49 -> 5642352 | I19: ='SA1'!I49 -> 909554.98 | J19: ='SA1'!J49 -> 14700894 | K19: ='SA1'!K49 -> 10845350 | L19: ='SA1'!L49 -> 10956071
A20: Gains | C20: 0 | D20: 0 | E20: 0 | F20: 0 | G20: 0 | H20: 0 | I20: 0 | J20: 0 | K20: 0 | L20: 0
A21: Total Revenue (excluding capital transfers and contributions) | C21: =SUM(C5:C9)+SUM(C11:C20) -> 272553635.2 | D21: =SUM(D5:D9)+SUM(D11:D20) -> 240347660.4 | E21: 258864877.9 | F21: 293567426 | G21: 327347426 | H21: 327347426 | I21: 294907259.4 | J21: 309516782 | K21: 317959336 | L21: 316882281 | M21: =SUM(M5:M20) -> 0 | N21: 0 | O21: 0 | P21: 0 | Q21: 0 | R21: 0 | S21: 0 | T21: 0 | U21: 0 | V21: 0 | W21: 0 | X21: 0
A23: Expenditure By Type
A24: Employee related costs | B24: 2 | C24: ='SA1'!C67 -> 99327666.72 | D24: ='SA1'!D67 -> 103612611.1 | E24: ='SA1'!E67 -> 110728267.5 | F24: ='SA1'!F67 -> 128058729 | G24: ='SA1'!G67 -> 127968729 | H24: ='SA1'!H67 -> 127968729 | I24: ='SA1'!I67 -> 75437788.01 | J24: ='SA1'!J67 -> 133004350 | K24: ='SA1'!K67 -> 138590538 | L24: ='SA1'!L67 -> 144688521
A25: Remuneration of councillors | C25: 15739124.61 | D25: 16186992.01 | E25: 16975677.53 | F25: 18116396 | G25: 18116396 | H25: 18116396 | I25: 10994516.44 | J25: 18841061 | K25: 19632388 | L25: 20496207
A26: Debt impairment | B26: 3 | C26: 2308637.4 | D26: -2313301.99 | E26: 11679384.83 | F26: 8746928 | G26: 8746928 | H26: 8746928 | I26: 0 | J26: 9271744 | K26: 9828049 | L26: 10417732
A27: Depreciation & asset impairment | B27: 2 | C27: ='SA1'!C83 -> 35462508.13 | D27: ='SA1'!D83 -> 35257581.19 | E27: ='SA1'!E83 -> 35725380.62 | F27: ='SA1'!F83 -> 43988216 | G27: ='SA1'!G83 -> 43988216 | H27: ='SA1'!H83 -> 43988216 | I27: ='SA1'!I83 -> 0 | J27: ='SA1'!J83 -> 40140615 | K27: ='SA1'!K83 -> 42549050 | L27: ='SA1'!L83 -> 45101995
A28: Finance charges
A29: Bulk purchases - electricity | B29: 2 | C29: ='SA1'!C88 -> 30340752.49 | D29: ='SA1'!D88 -> 31566418.79 | E29: ='SA1'!E88 -> 33970658.28 | F29: ='SA1'!F88 -> 37100000 | G29: ='SA1'!G88 -> 40100000 | H29: ='SA1'!H88 -> 40100000 | I29: ='SA1'!I88 -> 27622330.85 | J29: ='SA1'!J88 -> 42506000 | K29: ='SA1'!K88 -> 45056360 | L29: ='SA1'!L88 -> 45056360
A30: Inventory consumed | B30: 8 | C30: ='SA1'!C169 -> 0 | D30: ='SA1'!D169 -> 5775124.94 | E30: ='SA1'!E169 -> 5665897.92 | F30: ='SA1'!F169 -> 0 | G30: ='SA1'!G169 -> 0 | H30: ='SA1'!H169 -> 0 | I30: ='SA1'!I169 -> 0 | J30: ='SA1'!J169 -> 0 | K30: ='SA1'!K169 -> 0 | L30: ='SA1'!L169 -> 0
A31: Contracted services | C31: ='SA1'!C127 -> 66532219.32 | D31: ='SA1'!D127 -> 45573510.67 | E31: ='SA1'!E127 -> 45500379.86 | F31: ='SA1'!F127 -> 57005990 | G31: ='SA1'!G127 -> 74143490 | H31: ='SA1'!H127 -> 74143490 | I31: ='SA1'!I127 -> 36891326.57 | J31: ='SA1'!J127 -> 55543340 | K31: ='SA1'!K127 -> 52772986 | L31: ='SA1'!L127 -> 42949213
A32: Transfers and subsidies | C32: ='SA1'!C93 -> 0 | D32: ='SA1'!D93 -> 73220 | E32: ='SA1'!E93 -> 0 | F32: ='SA1'!F93 -> 0 | G32: ='SA1'!G93 -> 0 | H32: ='SA1'!H93 -> 0 | I32: ='SA1'!I93 -> 0 | J32: ='SA1'!J93 -> 0 | K32: ='SA1'!K93 -> 0 | L32: ='SA1'!L93 -> 0
A33: Other expenditure | B33: 4, 5 | C33: ='SA1'!C157 -> 45803718.52 | D33: ='SA1'!D157 -> 44115455.38 | E33: ='SA1'!E157 -> 37998544.47 | F33: ='SA1'!F157 -> 38802843 | G33: ='SA1'!G157 -> 41644989 | H33: ='SA1'!H157 -> 41644989 | I33: ='SA1'!I157 -> 22896415.71 | J33: ='SA1'!J157 -> 42813192 | K33: ='SA1'!K157 -> 44300931 | L33: ='SA1'!L157 -> 45858216
A34: Losses | C34: 754845.57 | D34: 119129.79 | E34: 974439.02 | F34: 0 | G34: 0 | H34: 0 | I34: 0 | J34: 0 | K34: 0 | L34: 0
A35: Total Expenditure | C35: =SUM(C24:C34) -> 296269472.8 | D35: =SUM(D24:D34) -> 279966741.9 | E35: 299218630 | F35: 331819102 | G35: 354708748 | H35: 354708748 | I35: 173842377.6 | J35: 342120302 | K35: 352730302 | L35: 354568244 | M35: =SUM(M24:M34) -> 0 | N35: 0 | O35: 0 | P35: 0 | Q35: 0 | R35: 0 | S35: 0 | T35: 0 | U35: 0 | V35: 0 | W35: 0 | X35: 0
A37: Surplus/(Deficit) | C37: =C21-C35 -> -23715837.6 | D37: -39619081.5 | E37: -40353752.11 | F37: -38251676 | G37: -27361322 | H37: -27361322 | I37: 121064881.9 | J37: -32603520 | K37: -34770966 | L37: -37685963 | M37: =M21+M35 -> 0 | N37: 0 | O37: 0 | P37: 0 | Q37: 0 | R37: 0 | S37: 0 | T37: 0 | U37: 0 | V37: 0 | W37: 0 | X37: 0
A38: Transfers and subsidies - capital (monetary allocations) (National / Provincial and District) | C38: 0 | D38: 51875091.49 | E38: 55496147.8 | F38: 50066000 | G38: 56640183 | H38: 56640183 | I38: 40570000 | J38: 56764000 | K38: 74408000 | L38: 75582000
A39: Transfers and subsidies - capital (monetary allocations) (National / Provincial Departmental Agencies, Households, Non-profit Institutions, Private Enterprises, Public Corporatons, Higher Educational Institutions) | B39: 6
A40: Transfers and subsidies - capital (in-kind - all) | C40: 46554516.37 | D40: 0 | E40: 0 | F40: 0 | G40: 0 | H40: 0 | I40: 0 | J40: 0 | K40: 0 | L40: 0
A41: Surplus/(Deficit) after capital transfers & contributions | C41: =SUM(C37:C40) -> 22838678.77 | D41: 12256009.99 | E41: 15142395.69 | F41: 11814324 | G41: 29278861 | H41: 29278861 | I41: 161634881.9 | J41: 24160480 | K41: 39637034 | L41: 37896037
A42: Taxation
A43: Surplus/(Deficit) after taxation | C43: =C41-C42 -> 22838678.77 | D43: 12256009.99 | E43: 15142395.69 | F43: 11814324 | G43: 29278861 | H43: 29278861 | I43: 161634881.9 | J43: 24160480 | K43: 39637034 | L43: 37896037
A44: Attributable to minorities
A45: Surplus/(Deficit) attributable to municipality | C45: =SUM(C43:C44) -> 22838678.77 | D45: 12256009.99 | E45: 15142395.69 | F45: 11814324 | G45: 29278861 | H45: 29278861 | I45: 161634881.9 | J45: 24160480 | K45: 39637034 | L45: 37896037
A46: Share of surplus/ (deficit) of associate | B46: 7
A47: =result -> Surplus/(Deficit) for the year | C47: =SUM(C45:C46) -> 22838678.77 | D47: 12256009.99 | E47: 15142395.69 | F47: 11814324 | G47: 29278861 | H47: 29278861 | I47: 161634881.9 | J47: 24160480 | K47: 39637034 | L47: 37896037 | M47: =M25+M46 -> 0 | N47: 0 | O47: 0 | P47: 0 | Q47: 0 | R47: 0 | S47: 0 | T47: 0 | U47: 0 | V47: 0 | W47: 0 | X47: 0
A48: =head27a -> References
A49: 1. Classifications are revenue sources and expenditure type
A50: 2. Detail to be provided in Table SA1
A51: 3. Previously described as 'bad or doubtful debts' - amounts shown should reflect the change in the provision for debt impairment
A52: 4. Expenditure type components previously shown under repairs and maintenance should be allocated back to the originating expenditure group/item; e.g. employee costs
A53: 5. Repairs & maintenance detailed in Table A9 and Table SA34c
A54: 6. Contributions are funds provided by external organisations to assist with infrastructure development; e.g. developer contributions (detail to be provided in Table SA1)
A55: 7. Equity method ( Includes Joint Ventures)
A56: 8. All materials not part of 'bulk' e.g road making materials, pipe, cable etc.
A57: check balance | C57: =C45-'A3-FinPerf V'!C39 -> 1294450.51 | D57: =D45-'A3-FinPerf V'!D39 -> -3930245.91 | E57: =E45-'A3-FinPerf V'!E39 -> -3117796.3 | F57: =F45-'A3-FinPerf V'!F39 -> 2570199 | G57: =G45-'A3-FinPerf V'!G39 -> 2420199 | H57: =H45-'A3-FinPerf V'!H39 -> 2420199 | J57: =J45-'A3-FinPerf V'!I39 -> 2649950 | K57: =K45-'A3-FinPerf V'!J39 -> 2419950 | L57: =L45-'A3-FinPerf V'!K39 -> 2521950
A59: Total revenue | C59: =C21+SUM(C38:C40) -> 319108151.5 | D59: 292222751.9 | E59: 314361025.7 | F59: 343633426 | G59: 383987609 | H59: 383987609 | I59: 335477259.4 | J59: 366280782 | K59: 392367336 | L59: 392464281

Sheet A5-Capex
A2: =Vdesc -> Vote Description | B2: =head27 -> Ref | C2: =head1b -> 2017/18 | D2: =head1A -> 2018/19 | E2: =Head1 -> 2019/20 | F2: =Head2 -> Current Year 2020/21 | J2: =Head3 -> 2021/22 Medium Term Revenue & Expenditure Framework
A3: R thousand | B3: 1 | C3: =Head5 -> Audited Outcome | D3: =Head5 -> Audited Outcome | E3: =Head5 -> Audited Outcome | F3: =Head6 -> Original Budget | G3: =Head7 -> Adjusted Budget | H3: =Head8 -> Full Year Forecast | I3: =Head5b -> Pre-audit outcome | J3: =Head9 -> Budget Year 2021/22 | K3: =Head10 -> Budget Year +1 2022/23 | L3: =Head11 -> Budget Year +2 2023/24
A4: Capital expenditure - Vote
A5: Multi-year expenditure to be appropriated | B5: 2
A6: =A5A!A6 -> Vote 01 - Executive & Council | C6: =A5A!C6 -> 0 | D6: =A5A!D6 -> 0 | E6: =A5A!E6 -> 0 | F6: =A5A!F6 -> 0 | G6: =A5A!G6 -> 0 | H6: =A5A!H6 -> 0 | I6: =A5A!I6 -> 0 | J6: =A5A!J6 -> 0 | K6: =A5A!K6 -> 0 | L6: =A5A!L6 -> 0
A7: =A5A!A8 -> Vote 02 - Finance And Administration | C7: =A5A!C8 -> 0 | D7: =A5A!D8 -> 0 | E7: =A5A!E8 -> 0 | F7: =A5A!F8 -> 0 | G7: =A5A!G8 -> 0 | H7: =A5A!H8 -> 0 | I7: =A5A!I8 -> 0 | J7: =A5A!J8 -> 0 | K7: =A5A!K8 -> 0 | L7: =A5A!L8 -> 0
A8: =A5A!A10 -> Vote 03 - Community Service | C8: =A5A!C10 -> 0 | D8: =A5A!D10 -> 0 | E8: =A5A!E10 -> 0 | F8: =A5A!F10 -> 0 | G8: =A5A!G10 -> 0 | H8: =A5A!H10 -> 0 | I8: =A5A!I10 -> 0 | J8: =A5A!J10 -> 0 | K8: =A5A!K10 -> 0 | L8: =A5A!L10 -> 0
A9: =A5A!A12 -> Vote 04 - Public And Safety | C9: =A5A!C12 -> 0 | D9: =A5A!D12 -> 0 | E9: =A5A!E12 -> 0 | F9: =A5A!F12 -> 0 | G9: =A5A!G12 -> 0 | H9: =A5A!H12 -> 0 | I9: =A5A!I12 -> 0 | J9: =A5A!J12 -> 0 | K9: =A5A!K12 -> 0 | L9: =A5A!L12 -> 0
A10: =A5A!A14 -> Vote 05 - Waste Management | C10: =A5A!C14 -> 0 | D10: =A5A!D14 -> 0 | E10: =A5A!E14 -> 0 | F10: =A5A!F14 -> 0 | G10: =A5A!G14 -> 0 | H10: =A5A!H14 -> 0 | I10: =A5A!I14 -> 0 | J10: =A5A!J14 -> 0 | K10: =A5A!K14 -> 0 | L10: =A5A!L14 -> 0
A11: =A5A!A22 -> Vote 06 - Roads Services | C11: =A5A!C22 -> 0 | D11: =A5A!D22 -> 0 | E11: =A5A!E22 -> 0 | F11: =A5A!F22 -> 0 | G11: =A5A!G22 -> 0 | H11: =A5A!H22 -> 0 | I11: =A5A!I22 -> 0 | J11: =A5A!J22 -> 0 | K11: =A5A!K22 -> 0 | L11: =A5A!L22 -> 0
A12: =A5A!A37 -> Vote 07 - Econominc Development And Planning | C12: =A5A!C37 -> 0 | D12: =A5A!D37 -> 0 | E12: =A5A!E37 -> 0 | F12: =A5A!F37 -> 0 | G12: =A5A!G37 -> 0 | H12: =A5A!H37 -> 0 | I12: =A5A!I37 -> 0 | J12: =A5A!J37 -> 0 | K12: =A5A!K37 -> 0 | L12: =A5A!L37 -> 0
A13: ='Org structure'!A9 -> Vote 08 - | C13: =A5A!C39 -> 0 | D13: =A5A!D39 -> 0 | E13: =A5A!E39 -> 0 | F13: =A5A!F39 -> 0 | G13: =A5A!G39 -> 0 | H13: =A5A!H39 -> 0 | I13: =A5A!I39 -> 0 | J13: =A5A!J39 -> 0 | K13: =A5A!K39 -> 0 | L13: =A5A!L39 -> 0
A14: ='Org structure'!A10 -> Vote 09 - | C14: =A5A!C40 -> 0 | D14: =A5A!D40 -> 0 | E14: =A5A!E40 -> 0 | F14: =A5A!F40 -> 0 | G14: =A5A!G40 -> 0 | H14: =A5A!H40 -> 0 | I14: =A5A!I40 -> 0 | J14: =A5A!J40 -> 0 | K14: =A5A!K40 -> 0 | L14: =A5A!L40 -> 0
A15: ='Org structure'!A11 -> Vote 10 - | C15: =A5A!C41 -> 0 | D15: =A5A!D41 -> 0 | E15: =A5A!E41 -> 0 | F15: =A5A!F41 -> 0 | G15: =A5A!G41 -> 0 | H15: =A5A!H41 -> 0 | I15: =A5A!I41 -> 0 | J15: =A5A!J41 -> 0 | K15: =A5A!K41 -> 0 | L15: =A5A!L41 -> 0
A16: ='Org structure'!A12 -> Vote 11 - | C16: =A5A!C42 -> 0 | D16: =A5A!D42 -> 0 | E16: =A5A!E42 -> 0 | F16: =A5A!F42 -> 0 | G16: =A5A!G42 -> 0 | H16: =A5A!H42 -> 0 | I16: =A5A!I42 -> 0 | J16: =A5A!J42 -> 0 | K16: =A5A!K42 -> 0 | L16: =A5A!L42 -> 0
A17: ='Org structure'!A13 -> Vote 12 - | C17: =A5A!C43 -> 0 | D17: =A5A!D43 -> 0 | E17: =A5A!E43 -> 0 | F17: =A5A!F43 -> 0 | G17: =A5A!G43 -> 0 | H17: =A5A!H43 -> 0 | I17: =A5A!I43 -> 0 | J17: =A5A!J43 -> 0 | K17: =A5A!K43 -> 0 | L17: =A5A!L43 -> 0
A18: ='Org structure'!A14 -> Vote 13 - | C18: =A5A!C44 -> 0 | D18: =A5A!D44 -> 0 | E18: =A5A!E44 -> 0 | F18: =A5A!F44 -> 0 | G18: =A5A!G44 -> 0 | H18: =A5A!H44 -> 0 | I18: =A5A!I44 -> 0 | J18: =A5A!J44 -> 0 | K18: =A5A!K44 -> 0 | L18: =A5A!L44 -> 0
A19: ='Org structure'!A15 -> Vote 14 - | C19: =A5A!C45 -> 0 | D19: =A5A!D45 -> 0 | E19: =A5A!E45 -> 0 | F19: =A5A!F45 -> 0 | G19: =A5A!G45 -> 0 | H19: =A5A!H45 -> 0 | I19: =A5A!I45 -> 0 | J19: =A5A!J45 -> 0 | K19: =A5A!K45 -> 0 | L19: =A5A!L45 -> 0
A20: ='Org structure'!A16 -> Vote 15 - Other | C20: =A5A!C46 -> 0 | D20: =A5A!D46 -> 0 | E20: =A5A!E46 -> 0 | F20: =A5A!F46 -> 0 | G20: =A5A!G46 -> 0 | H20: =A5A!H46 -> 0 | I20: =A5A!I46 -> 0 | J20: =A5A!J46 -> 0 | K20: =A5A!K46 -> 0 | L20: =A5A!L46 -> 0
A21: Capital multi-year expenditure sub-total | B21: 7 | C21: =SUM(C6:C20) -> 0 | D21: =SUM(D6:D20) -> 0 | E21: 0 | F21: 0 | G21: 0 | H21: =SUM(H6:H20) -> 0 | I21: 0 | J21: 0 | K21: 0 | L21: 0
A23: Single-year expenditure to be appropriated | B23: 2
A24: =A5A!A51 -> Vote 01 - Executive & Council | C24: =A5A!C51 -> 0 | D24: =A5A!D51 -> 0 | E24: =A5A!E51 -> 0 | F24: =A5A!F51 -> 0 | G24: =A5A!G51 -> 0 | H24: =A5A!H51 -> 0 | I24: =A5A!I51 -> 0 | J24: =A5A!J51 -> 0 | K24: =A5A!K51 -> 0 | L24: =A5A!L51 -> 0
A25: =A5A!A53 -> Vote 02 - Finance And Administration | C25: =A5A!C53 -> 0 | D25: =A5A!D53 -> 0 | E25: =A5A!E53 -> 0 | F25: =A5A!F53 -> 800000 | G25: =A5A!G53 -> 400000 | H25: =A5A!H53 -> 400000 | I25: =A5A!I53 -> 59750.4 | J25: =A5A!J53 -> 50000 | K25: =A5A!K53 -> 860000 | L25: =A5A!L53 -> 970000
A26: =A5A!A55 -> Vote 03 - Community Service | C26: =A5A!C55 -> 6801972.23 | D26: =A5A!D55 -> 931898.47 | E26: =A5A!E55 -> 514147.62 | F26: =A5A!F55 -> 350000 | G26: =A5A!G55 -> 100000 | H26: =A5A!H55 -> 100000 | I26: =A5A!I55 -> 228408.42 | J26: =A5A!J55 -> 0 | K26: =A5A!K55 -> 0 | L26: =A5A!L55 -> 0
A27: =A5A!A57 -> Vote 04 - Public And Safety | C27: =A5A!C57 -> 0 | D27: =A5A!D57 -> 0 | E27: =A5A!E57 -> 0 | F27: =A5A!F57 -> 5578000 | G27: =A5A!G57 -> 3088000 | H27: =A5A!H57 -> 3088000 | I27: =A5A!I57 -> 1625278.17 | J27: =A5A!J57 -> 4335000 | K27: =A5A!K57 -> 5217000 | L27: =A5A!L57 -> 5133000
A28: =A5A!A59 -> Vote 05 - Waste Management | C28: =A5A!C59 -> 29296797.56 | D28: =A5A!D59 -> 1018018.33 | E28: =A5A!E59 -> 624191.05 | F28: =A5A!F59 -> 50945788 | G28: =A5A!G59 -> 62095035 | H28: =A5A!H59 -> 62095035 | I28: =A5A!I59 -> 28944129.42 | J28: =A5A!J59 -> 59110383 | K28: =A5A!K59 -> 76156000 | L28: =A5A!L59 -> 77116880
A29: =A5A!A67 -> Vote 06 - Roads Services | C29: =A5A!C67 -> 0 | D29: =A5A!D67 -> 143141.31 | E29: =A5A!E67 -> 1154352.79 | F29: =A5A!F67 -> 2750000 | G29: =A5A!G67 -> 3200000 | H29: =A5A!H67 -> 3200000 | I29: =A5A!I67 -> 192979.16 | J29: =A5A!J67 -> 1330000 | K29: =A5A!K67 -> 1200000 | L29: =A5A!L67 -> 1300000
A30: =A5A!A82 -> Vote 07 - Econominc Development And Planning | C30: =A5A!C82 -> 0 | D30: =A5A!D82 -> 0 | E30: =A5A!E82 -> 0 | F30: =A5A!F82 -> 450000 | G30: =A5A!G82 -> 700000 | H30: =A5A!H82 -> 700000 | I30: =A5A!I82 -> 146560 | J30: =A5A!J82 -> 70000 | K30: =A5A!K82 -> 170000 | L30: =A5A!L82 -> 170000
A31: ='Org structure'!A9 -> Vote 08 - | C31: =A5A!C84 -> 0 | D31: =A5A!D84 -> 0 | E31: =A5A!E84 -> 0 | F31: =A5A!F84 -> 0 | G31: =A5A!G84 -> 0 | H31: =A5A!H84 -> 0 | I31: =A5A!I84 -> 0 | J31: =A5A!J84 -> 0 | K31: =A5A!K84 -> 0 | L31: =A5A!L84 -> 0
A32: ='Org structure'!A10 -> Vote 09 - | C32: =A5A!C85 -> 0 | D32: =A5A!D85 -> 0 | E32: =A5A!E85 -> 0 | F32: =A5A!F85 -> 0 | G32: =A5A!G85 -> 0 | H32: =A5A!H85 -> 0 | I32: =A5A!I85 -> 0 | J32: =A5A!J85 -> 0 | K32: =A5A!K85 -> 0 | L32: =A5A!L85 -> 0
A33: ='Org structure'!A11 -> Vote 10 - | C33: =A5A!C86 -> 0 | D33: =A5A!D86 -> 0 | E33: =A5A!E86 -> 0 | F33: =A5A!F86 -> 0 | G33: =A5A!G86 -> 0 | H33: =A5A!H86 -> 0 | I33: =A5A!I86 -> 0 | J33: =A5A!J86 -> 0 | K33: =A5A!K86 -> 0 | L33: =A5A!L86 -> 0
A34: ='Org structure'!A12 -> Vote 11 - | C34: =A5A!C87 -> 0 | D34: =A5A!D87 -> 0 | E34: =A5A!E87 -> 0 | F34: =A5A!F87 -> 0 | G34: =A5A!G87 -> 0 | H34: =A5A!H87 -> 0 | I34: =A5A!I87 -> 0 | J34: =A5A!J87 -> 0 | K34: =A5A!K87 -> 0 | L34: =A5A!L87 -> 0
A35: ='Org structure'!A13 -> Vote 12 - | C35: =A5A!C88 -> 0 | D35: =A5A!D88 -> 0 | E35: =A5A!E88 -> 0 | F35: =A5A!F88 -> 0 | G35: =A5A!G88 -> 0 | H35: =A5A!H88 -> 0 | I35: =A5A!I88 -> 0 | J35: =A5A!J88 -> 0 | K35: =A5A!K88 -> 0 | L35: =A5A!L88 -> 0
A36: ='Org structure'!A14 -> Vote 13 - | C36: =A5A!C89 -> 0 | D36: =A5A!D89 -> 0 | E36: =A5A!E89 -> 0 | F36: =A5A!F89 -> 0 | G36: =A5A!G89 -> 0 | H36: =A5A!H89 -> 0 | I36: =A5A!I89 -> 0 | J36: =A5A!J89 -> 0 | K36: =A5A!K89 -> 0 | L36: =A5A!L89 -> 0
A37: ='Org structure'!A15 -> Vote 14 - | C37: =A5A!C90 -> 0 | D37: =A5A!D90 -> 0 | E37: =A5A!E90 -> 0 | F37: =A5A!F90 -> 0 | G37: =A5A!G90 -> 0 | H37: =A5A!H90 -> 0 | I37: =A5A!I90 -> 0 | J37: =A5A!J90 -> 0 | K37: =A5A!K90 -> 0 | L37: =A5A!L90 -> 0
A38: ='Org structure'!A16 -> Vote 15 - Other | C38: =A5A!C91 -> 0 | D38: =A5A!D91 -> 0 | E38: =A5A!E91 -> 0 | F38: =A5A!F91 -> 0 | G38: =A5A!G91 -> 0 | H38: =A5A!H91 -> 0 | I38: =A5A!I91 -> 0 | J38: =A5A!J91 -> 0 | K38: =A5A!K91 -> 0 | L38: =A5A!L91 -> 0
A39: Capital single-year expenditure sub-total | C39: =SUM(C24:C38) -> 36098769.79 | D39: =SUM(D24:D38) -> 2093058.11 | E39: 2292691.46 | F39: 60873788 | G39: 69583035 | H39: 69583035 | I39: 31197105.57 | J39: 64895383 | K39: 83603000 | L39: 84689880
A40: Total Capital Expenditure - Vote | C40: =C39+C21 -> 36098769.79 | D40: =D39+D21 -> 2093058.11 | E40: 2292691.46 | F40: 60873788 | G40: 69583035 | H40: 69583035 | I40: 31197105.57 | J40: 64895383 | K40: 83603000 | L40: 84689880
A42: Capital Expenditure - Functional
A43: Governance and administration | C43: =SUM(C44:C46) -> 6801972.23 | D43: =SUM(D44:D46) -> 931898.47 | E43: 514147.62 | F43: 6728000 | G43: 3588000 | H43: 3588000 | I43: 1913436.99 | J43: 4385000 | K43: 6077000 | L43: 6103000
A44: Executive and council | C44: 0 | D44: 0 | E44: 0 | F44: 800000 | G44: 400000 | H44: 400000 | I44: 59750.4 | J44: 50000 | K44: 860000 | L44: 970000
A45: Finance and administration | C45: 6801972.23 | D45: 931898.47 | E45: 514147.62 | F45: 5928000 | G45: 3188000 | H45: 3188000 | I45: 1853686.59 | J45: 4335000 | K45: 5217000 | L45: 5133000
A46: Internal audit
A47: Community and public safety | C47: =SUM(C48:C52) -> 0 | D47: =SUM(D48:D52) -> 143141.31 | E47: 345780 | F47: 400000 | G47: 200000 | H47: 200000 | I47: 0 | J47: 380000 | K47: 450000 | L47: 500000
A48: Community and social services
A49: Sport and recreation
A50: Public safety | C50: 0 | D50: 143141.31 | E50: 345780 | F50: 400000 | G50: 200000 | H50: 200000 | I50: 0 | J50: 380000 | K50: 450000 | L50: 500000
A51: Housing
A52: Health
A53: Economic and environmental services | C53: =SUM(C54:C56) -> 36150444.93 | D53: =SUM(D54:D56) -> 0 | E53: 163312 | F53: 43492701 | G53: 48547765 | H53: 48547765 | I53: 18541356.71 | J53: 56884000 | K53: 50578000 | L53: 52752000
A54: Planning and development | C54: 0 | D54: 0 | E54: 0 | F54: 450000 | G54: 700000 | H54: 700000 | I54: 146560 | J54: 70000 | K54: 170000 | L54: 170000
A55: Road transport | C55: 36150444.93 | D55: 0 | E55: 163312 | F55: 43042701 | G55: 47847765 | H55: 47847765 | I55: 18394796.71 | J55: 56814000 | K55: 50408000 | L55: 52582000
A56: Environmental protection
A57: Trading services | C57: =SUM(C58:C61) -> -6853647.37 | D57: =SUM(D58:D61) -> 1018018.33 | E57: 1269451.84 | F57: 10253087 | G57: 17247270 | H57: 17247270 | I57: 10742311.87 | J57: 3246383 | K57: 26498000 | L57: 25334880
A58: Energy sources | C58: -6853647.37 | D58: 1018018.33 | E58: 460879.05 | F58: 7903087 | G58: 14247270 | H58: 14247270 | I58: 10549332.71 | J58: 2296383 | K58: 25748000 | L58: 24534880
A59: Water management
A60: Waste water management | C60: 0 | D60: 0 | E60: 0 | F60: 0 | G60: 0 | H60: 0 | I60: 0 | J60: 0 | K60: 0 | L60: 0
A61: Waste management | C61: 0 | D61: 0 | E61: 808572.79 | F61: 2350000 | G61: 3000000 | H61: 3000000 | I61: 192979.16 | J61: 950000 | K61: 750000 | L61: 800000
A62: Other
A63: Total Capital Expenditure - Functional | B63: 3 | C63: =C43+C47+C53+C57+C62 -> 36098769.79 | D63: =D43+D47+D53+D57+D62 -> 2093058.11 | E63: 2292691.46 | F63: 60873788 | G63: 69583035 | H63: 69583035 | I63: 31197105.57 | J63: 64895383 | K63: 83603000 | L63: =L43+L47+L53+L57+L62 -> 84689880
A65: Funded by:
A66: National Government | C66: 5590792.56 | D66: 0 | E66: 256396.24 | F66: 47912701 | G66: 54486884 | H66: 54486884 | I66: 26654741.87 | J66: 56764000 | K66: 73508000 | L66: 72582000
A67: Provincial Government
A68: District Municipality
A69: ='A4-FinPerf RE'!A39 -> Transfers and subsidies - capital (monetary allocations) (National / Provincial Departmental Agencies, Households, Non-profit Institutions, Private Enterprises, Public Corporatons, Higher Educational Institutions) | C69: 0 | D69: 0 | E69: 0 | F69: 0 | G69: 0 | H69: 0 | I69: 0 | J69: 0 | K69: 0 | L69: 0
A70: Transfers recognised - capital | B70: 4 | C70: =SUM(C66:C69) -> 5590792.56 | D70: 0 | E70: 256396.24 | F70: 47912701 | G70: 54486884 | H70: 54486884 | I70: 26654741.87 | J70: 56764000 | K70: 73508000 | L70: 72582000
A72: Borrowing | B72: 6 | C72: 0 | D72: 0 | E72: 0 | F72: 0 | G72: 0 | H72: 0 | I72: 0 | J72: 0 | K72: 0 | L72: 0
A73: Internally generated funds | C73: 0 | D73: 499220.91 | E73: 2036295.22 | F73: 12961087 | G73: 15096151 | H73: 15096151 | I73: 4542363.7 | J73: 8131383 | K73: 10095000 | L73: 12107880
A74: Total Capital Funding | B74: 7 | C74: =+C70+C72+C73 -> 5590792.56 | D74: =+D70+D72+D73 -> 499220.91 | E74: 2292691.46 | F74: 60873788 | G74: 69583035 | H74: 69583035 | I74: 31197105.57 | J74: 64895383 | K74: 83603000 | L74: 84689880
A75: =head27a -> References
A76: 1. Municipalities may choose to appropriate for capital expenditure for three years or for one year (if one year appropriation projected expenditure required for yr2 and yr3).
A77: 2. Include capital component of PPP unitary payment. Note that capital transfers are only appropriated to municipalities for the budget year
A78: 3. Capital expenditure by functional classification must reconcile to the appropriations by vote
A79: 4. Must reconcile to supporting table SA20 and to Budgeted Financial Performance (revenue and expenditure)
A81: 6. Include finance leases and PPP capital funding component of unitary payment - total borrowing/repayments to reconcile to changes in Table SA17
A82: 7. Total Capital Funding must balance with Total Capital Expenditure
A83: 8. Include any capitalised interest (MFMA section 46) as part of relevant capital budget
A85: check balance | C85: =IF((C63-C74)=0,0,"Unbalanced") -> Unbalanced | D85: =IF((D63-D74)=0,0,"Unbalanced") -> Unbalanced | E85: 0 | F85: 0 | G85: 0 | H85: 0 | I85: 0 | J85: 0 | K85: 0 | L85: 0

Sheet A5A
A1: =muni&" - "&Approve5 -> LIM351 Blouberg - Table A5 Budgeted Capital Expenditure by vote, functional classification and funding
A2: =Vdesc -> Vote Description | B2: =head27 -> Ref | C2: =head1b -> 2017/18 | D2: =head1A -> 2018/19 | E2: =Head1 -> 2019/20 | F2: =Head2 -> Current Year 2020/21 | J2: =Head3 -> 2021/22 Medium Term Revenue & Expenditure Framework | N2: ="Multi-year appropriation for "&Head9& " in the "&Head2A&" Annual Budget" -> Multi-year appropriation for Budget Year 2021/22 in the 2020/21 Annual Budget | R2: ="Multi-year appropriation for "&RIGHT(Head10,7)& " in the "&Head2A&" Annual Budget" -> Multi-year appropriation for 2022/23 in the 2020/21 Annual Budget | V2: New multi-year appropriations (funds for new and existing projects)
A3: R thousand | B3: 1 | C3: =Head5 -> Audited Outcome | D3: =Head5 -> Audited Outcome | E3: =Head5 -> Audited Outcome | F3: =Head6 -> Original Budget | G3: =Head7 -> Adjusted Budget | H3: =Head8 -> Full Year Forecast | I3: =Head5b -> Pre-audit outcome | J3: =Head9 -> Budget Year 2021/22 | K3: =Head10 -> Budget Year +1 2022/23 | L3: =Head11 -> Budget Year +2 2023/24 | N3: ="Appropriation for "&RIGHT(Head9,7) -> Appropriation for 2021/22 | O3: ="Adjustments in "&Head2A -> Adjustments in 2020/21 | P3: ="Downward adjustments for "&RIGHT(Head9,7) -> Downward adjustments for 2021/22 | Q3: Appropriation carried forward | R3: ="Appropriation for "&RIGHT(Head9,7) -> Appropriation for 2021/22 | S3: ="Adjustments in "&Head2A -> Adjustments in 2020/21 | T3: ="Downward adjustments for "&RIGHT(Head9,7) -> Downward adjustments for 2021/22 | U3: Appropriation carried forward | V3: =Head9 -> Budget Year 2021/22 | W3: =Head10 -> Budget Year +1 2022/23 | X3: =Head11 -> Budget Year +2 2023/24
A4: Capital expenditure - Municipal Vote
A5: Multi-year expenditure appropriation | B5: 2
A6: ='Org structure'!A2 -> Vote 01 - Executive & Council | C6: =SUM(C7:C7) -> 0 | D6: 0 | E6: 0 | F6: 0 | G6: 0 | H6: 0 | I6: 0 | J6: 0 | K6: 0 | L6: 0 | N6: =SUM(N7:N7) -> 0 | O6: 0 | P6: 0 | Q6: 0 | R6: 0 | S6: 0 | T6: 0 | U6: 0 | V6: 0 | W6: 0 | X6: 0
A7: ='Org structure'!E3 -> 01.1 - Council General | C7: 0 | D7: 0 | E7: 0 | F7: 0 | G7: 0 | H7: 0 | I7: 0 | J7: =Q7+V7 -> 0 | K7: =U7+W7 -> 0 | L7: =X7 -> 0 | N7: 0 | O7: 0 | P7: 0 | Q7: =SUM(N7:P7) -> 0 | R7: 0 | S7: 0 | T7: 0 | U7: =SUM(R7:T7) -> 0 | V7: 0 | W7: 0 | X7: 0
A8: ='Org structure'!A3 -> Vote 02 - Finance And Administration | C8: =SUM(C9:C9) -> 0 | D8: 0 | E8: 0 | F8: 0 | G8: 0 | H8: 0 | I8: 0 | J8: 0 | K8: 0 | L8: 0 | N8: =SUM(N9:N9) -> 0 | O8: 0 | P8: 0 | Q8: 0 | R8: 0 | S8: 0 | T8: 0 | U8: 0 | V8: 0 | W8: 0 | X8: 0
A9: ='Org structure'!E5 -> 02.1 - Municipal Manager | C9: 0 | D9: 0 | E9: 0 | F9: 0 | G9: 0 | H9: 0 | I9: 0 | J9: =Q9+V9 -> 0 | K9: =U9+W9 -> 0 | L9: =X9 -> 0 | N9: 0 | O9: 0 | P9: 0 | Q9: =SUM(N9:P9) -> 0 | R9: 0 | S9: 0 | T9: 0 | U9: =SUM(R9:T9) -> 0 | V9: 0 | W9: 0 | X9: 0
A10: ='Org structure'!A4 -> Vote 03 - Community Service | C10: =SUM(C11:C11) -> 0 | D10: 0 | E10: 0 | F10: 0 | G10: 0 | H10: 0 | I10: 0 | J10: 0 | K10: 0 | L10: 0 | N10: =SUM(N11:N11) -> 0 | O10: 0 | P10: 0 | Q10: 0 | R10: 0 | S10: 0 | T10: 0 | U10: 0 | V10: 0 | W10: 0 | X10: 0
A11: ='Org structure'!E7 -> 03.1 - Finance Services Administration | C11: 0 | D11: 0 | E11: 0 | F11: 0 | G11: 0 | H11: 0 | I11: 0 | J11: =Q11+V11 -> 0 | K11: =U11+W11 -> 0 | L11: =X11 -> 0 | N11: 0 | O11: 0 | P11: 0 | Q11: =SUM(N11:P11) -> 0 | R11: 0 | S11: 0 | T11: 0 | U11: =SUM(R11:T11) -> 0 | V11: 0 | W11: 0 | X11: 0
A12: ='Org structure'!A5 -> Vote 04 - Public And Safety | C12: =SUM(C13:C13) -> 0 | D12: 0 | E12: 0 | F12: 0 | G12: 0 | H12: 0 | I12: 0 | J12: 0 | K12: 0 | L12: 0 | N12: =SUM(N13:N13) -> 0 | O12: 0 | P12: 0 | Q12: 0 | R12: 0 | S12: 0 | T12: 0 | U12: 0 | V12: 0 | W12: 0 | X12: 0
A13: ='Org structure'!E9 -> 04.1 - Corporate Services Administration | C13: 0 | D13: 0 | E13: 0 | F13: 0 | G13: 0 | H13: 0 | I13: 0 | J13: =Q13+V13 -> 0 | K13: =U13+W13 -> 0 | L13: =X13 -> 0 | N13: 0 | O13: 0 | P13: 0 | Q13: =SUM(N13:P13) -> 0 | R13: 0 | S13: 0 | T13: 0 | U13: =SUM(R13:T13) -> 0 | V13: 0 | W13: 0 | X13: 0
A14: ='Org structure'!A6 -> Vote 05 - Waste Management | C14: =SUM(C15:C21) -> 0 | D14: 0 | E14: 0 | F14: 0 | G14: 0 | H14: 0 | I14: 0 | J14: 0 | K14: 0 | L14: 0 | N14: =SUM(N15:N21) -> 0 | O14: 0 | P14: 0 | Q14: 0 | R14: 0 | S14: 0 | T14: 0 | U14: 0 | V14: 0 | W14: 0 | X14: 0
A15: ='Org structure'!E11 -> 05.1 - Technical Services Administration | C15: 0 | D15: 0 | E15: 0 | F15: 0 | G15: 0 | H15: 0 | I15: 0 | J15: =Q15+V15 -> 0 | K15: =U15+W15 -> 0 | L15: =X15 -> 0 | N15: 0 | O15: 0 | P15: 0 | Q15: =SUM(N15:P15) -> 0 | R15: 0 | S15: 0 | T15: 0 | U15: =SUM(R15:T15) -> 0 | V15: 0 | W15: 0 | X15: 0
A16: ='Org structure'!E12 -> 05.2 - Electrical Services | C16: 0 | D16: 0 | E16: 0 | F16: 0 | G16: 0 | H16: 0 | I16: 0 | J16: 0 | K16: 0 | L16: 0 | N16: 0 | O16: 0 | P16: 0 | Q16: 0 | R16: 0 | S16: 0 | T16: 0 | U16: 0 | V16: 0 | W16: 0 | X16: 0
A17: ='Org structure'!E13 -> 05.3 - Water Services | C17: 0 | D17: 0 | E17: 0 | F17: 0 | G17: 0 | H17: 0 | I17: 0 | J17: 0 | K17: 0 | L17: 0 | N17: 0 | O17: 0 | P17: 0 | Q17: 0 | R17: 0 | S17: 0 | T17: 0 | U17: 0 | V17: 0 | W17: 0 | X17: 0
A18: ='Org structure'!E14 -> 05.4 - Sanitation Services | C18: 0 | D18: 0 | E18: 0 | F18: 0 | G18: 0 | H18: 0 | I18: 0 | J18: 0 | K18: 0 | L18: 0 | N18: 0 | O18: 0 | P18: 0 | Q18: 0 | R18: 0 | S18: 0 | T18: 0 | U18: 0 | V18: 0 | W18: 0 | X18: 0
A19: ='Org structure'!E15 -> 05.5 - Roads Services | C19: 0 | D19: 0 | E19: 0 | F19: 0 | G19: 0 | H19: 0 | I19: 0 | J19: 0 | K19: 0 | L19: 0 | N19: 0 | O19: 0 | P19: 0 | Q19: 0 | R19: 0 | S19: 0 | T19: 0 | U19: 0 | V19: 0 | W19: 0 | X19: 0
A20: ='Org structure'!E16 -> 05.6 - Storm Water Services | C20: 0 | D20: 0 | E20: 0 | F20: 0 | G20: 0 | H20: 0 | I20: 0 | J20: 0 | K20: 0 | L20: 0 | N20: 0 | O20: 0 | P20: 0 | Q20: 0 | R20: 0 | S20: 0 | T20: 0 | U20: 0 | V20: 0 | W20: 0 | X20: 0
A21: ='Org structure'!E17 -> 05.7 - Water Reporting Function | C21: 0 | D21: 0 | E21: 0 | F21: 0 | G21: 0 | H21: 0 | I21: 0 | J21: 0 | K21: 0 | L21: 0 | N21: 0 | O21: 0 | P21: 0 | Q21: 0 | R21: 0 | S21: 0 | T21: 0 | U21: 0 | V21: 0 | W21: 0 | X21: 0
A22: ='Org structure'!A7 -> Vote 06 - Roads Services | C22: =SUM(C23:C36) -> 0 | D22: 0 | E22: 0 | F22: 0 | G22: 0 | H22: 0 | I22: 0 | J22: 0 | K22: 0 | L22: 0 | N22: =SUM(N23:N36) -> 0 | O22: 0 | P22: 0 | Q22: 0 | R22: 0 | S22: 0 | T22: 0 | U22: 0 | V22: 0 | W22: 0 | X22: 0
A23: ='Org structure'!E19 -> 06.1 - Community Services Administration | C23: 0 | D23: 0 | E23: 0 | F23: 0 | G23: 0 | H23: 0 | I23: 0 | J23: =Q23+V23 -> 0 | K23: =U23+W23 -> 0 | L23: =X23 -> 0 | N23: 0 | O23: 0 | P23: 0 | Q23: =SUM(N23:P23) -> 0 | R23: 0 | S23: 0 | T23: 0 | U23: =SUM(R23:T23) -> 0 | V23: 0 | W23: 0 | X23: 0
A24: ='Org structure'!E20 -> 06.2 - Traffic Services | C24: 0 | D24: 0 | E24: 0 | F24: 0 | G24: 0 | H24: 0 | I24: 0 | J24: 0 | K24: 0 | L24: 0 | N24: 0 | O24: 0 | P24: 0 | Q24: 0 | R24: 0 | S24: 0 | T24: 0 | U24: 0 | V24: 0 | W24: 0 | X24: 0
A25: ='Org structure'!E21 -> 06.3 - Traffic Services | C25: 0 | D25: 0 | E25: 0 | F25: 0 | G25: 0 | H25: 0 | I25: 0 | J25: 0 | K25: 0 | L25: 0 | N25: 0 | O25: 0 | P25: 0 | Q25: 0 | R25: 0 | S25: 0 | T25: 0 | U25: 0 | V25: 0 | W25: 0 | X25: 0
A26: ='Org structure'!E22 -> 06.4 - Libraries | C26: 0 | D26: 0 | E26: 0 | F26: 0 | G26: 0 | H26: 0 | I26: 0 | J26: 0 | K26: 0 | L26: 0 | N26: 0 | O26: 0 | P26: 0 | Q26: 0 | R26: 0 | S26: 0 | T26: 0 | U26: 0 | V26: 0 | W26: 0 | X26: 0
A27: ='Org structure'!E23 -> 06.5 - Sport | C27: 0 | D27: 0 | E27: 0 | F27: 0 | G27: 0 | H27: 0 | I27: 0 | J27: 0 | K27: 0 | L27: 0 | N27: 0 | O27: 0 | P27: 0 | Q27: 0 | R27: 0 | S27: 0 | T27: 0 | U27: 0 | V27: 0 | W27: 0 | X27: 0
A28: ='Org structure'!E24 -> 06.6 - Cemetery | C28: 0 | D28: 0 | E28: 0 | F28: 0 | G28: 0 | H28: 0 | I28: 0 | J28: 0 | K28: 0 | L28: 0 | N28: 0 | O28: 0 | P28: 0 | Q28: 0 | R28: 0 | S28: 0 | T28: 0 | U28: 0 | V28: 0 | W28: 0 | X28: 0
A29: ='Org structure'!E25 -> 06.7 - Refuse | C29: 0 | D29: 0 | E29: 0 | F29: 0 | G29: 0 | H29: 0 | I29: 0 | J29: 0 | K29: 0 | L29: 0 | N29: 0 | O29: 0 | P29: 0 | Q29: 0 | R29: 0 | S29: 0 | T29: 0 | U29: 0 | V29: 0 | W29: 0 | X29: 0
A30: ='Org structure'!E26 -> 06.8 - Pound Services | C30: 0 | D30: 0 | E30: 0 | F30: 0 | G30: 0 | H30: 0 | I30: 0 | J30: 0 | K30: 0 | L30: 0 | N30: 0 | O30: 0 | P30: 0 | Q30: 0 | R30: 0 | S30: 0 | T30: 0 | U30: 0 | V30: 0 | W30: 0 | X30: 0
A31: ='Org structure'!E27 -> 06.9 - Pound Services | C31: 0 | D31: 0 | E31: 0 | F31: 0 | G31: 0 | H31: 0 | I31: 0 | J31: 0 | K31: 0 | L31: 0 | N31: 0 | O31: 0 | P31: 0 | Q31: 0 | R31: 0 | S31: 0 | T31: 0 | U31: 0 | V31: 0 | W31: 0 | X31: 0
A32: ='Org structure'!E28 -> 06.10 - Satellite Offices | C32: 0 | D32: 0 | E32: 0 | F32: 0 | G32: 0 | H32: 0 | I32: 0 | J32: 0 | K32: 0 | L32: 0 | N32: 0 | O32: 0 | P32: 0 | Q32: 0 | R32: 0 | S32: 0 | T32: 0 | U32: 0 | V32: 0 | W32: 0 | X32: 0
A33: ='Org structure'!E29 -> 06.11 - Alldays Offices | C33: 0 | D33: 0 | E33: 0 | F33: 0 | G33: 0 | H33: 0 | I33: 0 | J33: 0 | K33: 0 | L33: 0 | N33: 0 | O33: 0 | P33: 0 | Q33: 0 | R33: 0 | S33: 0 | T33: 0 | U33: 0 | V33: 0 | W33: 0 | X33: 0
A34: ='Org structure'!E30 -> 06.12 - Eldorado Offices | C34: 0 | D34: 0 | E34: 0 | F34: 0 | G34: 0 | H34: 0 | I34: 0 | J34: 0 | K34: 0 | L34: 0 | N34: 0 | O34: 0 | P34: 0 | Q34: 0 | R34: 0 | S34: 0 | T34: 0 | U34: 0 | V34: 0 | W34: 0 | X34: 0
A35: ='Org structure'!E31 -> 06.13 - Tolwe Offices | C35: 0 | D35: 0 | E35: 0 | F35: 0 | G35: 0 | H35: 0 | I35: 0 | J35: 0 | K35: 0 | L35: 0 | N35: 0 | O35: 0 | P35: 0 | Q35: 0 | R35: 0 | S35: 0 | T35: 0 | U35: 0 | V35: 0 | W35: 0 | X35: 0
A36: ='Org structure'!E32 -> 06.14 - Senwabarwarna Offices | C36: 0 | D36: 0 | E36: 0 | F36: 0 | G36: 0 | H36: 0 | I36: 0 | J36: 0 | K36: 0 | L36: 0 | N36: 0 | O36: 0 | P36: 0 | Q36: 0 | R36: 0 | S36: 0 | T36: 0 | U36: 0 | V36: 0 | W36: 0 | X36: 0
A37: ='Org structure'!A8 -> Vote 07 - Econominc Development And Planning | C37: =SUM(C38:C38) -> 0 | D37: 0 | E37: 0 | F37: 0 | G37: 0 | H37: 0 | I37: 0 | J37: 0 | K37: 0 | L37: 0 | N37: =SUM(N38:N38) -> 0 | O37: 0 | P37: 0 | Q37: 0 | R37: 0 | S37: 0 | T37: 0 | U37: 0 | V37: 0 | W37: 0 | X37: 0
A38: ='Org structure'!E34 -> 07.1 - Economic Development And Planning | C38: 0 | D38: 0 | E38: 0 | F38: 0 | G38: 0 | H38: 0 | I38: 0 | J38: =Q38+V38 -> 0 | K38: =U38+W38 -> 0 | L38: =X38 -> 0 | N38: 0 | O38: 0 | P38: 0 | Q38: =SUM(N38:P38) -> 0 | R38: 0 | S38: 0 | T38: 0 | U38: =SUM(R38:T38) -> 0 | V38: 0 | W38: 0 | X38: 0
A39: ='Org structure'!A9 -> Vote 08 - | C39: 0 | D39: 0 | E39: 0 | F39: 0 | G39: 0 | H39: 0 | I39: 0 | J39: 0 | K39: 0 | L39: 0 | N39: 0 | O39: 0 | P39: 0 | Q39: 0 | R39: 0 | S39: 0 | T39: 0 | U39: 0 | V39: 0 | W39: 0
A40: ='Org structure'!A10 -> Vote 09 - | C40: 0 | D40: 0 | E40: 0 | F40: 0 | G40: 0 | H40: 0 | I40: 0 | J40: 0 | K40: 0 | L40: 0 | N40: 0 | O40: 0 | P40: 0 | Q40: 0 | R40: 0 | S40: 0 | T40: 0 | U40: 0 | V40: 0 | W40: 0
A41: ='Org structure'!A11 -> Vote 10 - | C41: 0 | D41: 0 | E41: 0 | F41: 0 | G41: 0 | H41: 0 | I41: 0 | J41: 0 | K41: 0 | L41: 0 | N41: 0 | O41: 0 | P41: 0 | Q41: 0 | R41: 0 | S41: 0 | T41: 0 | U41: 0 | V41: 0 | W41: 0
A42: ='Org structure'!A12 -> Vote 11 - | C42: 0 | D42: 0 | E42: 0 | F42: 0 | G42: 0 | H42: 0 | I42: 0 | J42: 0 | K42: 0 | L42: 0 | N42: 0 | O42: 0 | P42: 0 | Q42: 0 | R42: 0 | S42: 0 | T42: 0 | U42: 0 | V42: 0 | W42: 0
A43: ='Org structure'!A13 -> Vote 12 - | C43: 0 | D43: 0 | E43: 0 | F43: 0 | G43: 0 | H43: 0 | I43: 0 | J43: 0 | K43: 0 | L43: 0 | N43: 0 | O43: 0 | P43: 0 | Q43: 0 | R43: 0 | S43: 0 | T43: 0 | U43: 0 | V43: 0 | W43: 0
A44: ='Org structure'!A14 -> Vote 13 - | C44: 0 | D44: 0 | E44: 0 | F44: 0 | G44: 0 | H44: 0 | I44: 0 | J44: 0 | K44: 0 | L44: 0 | N44: 0 | O44: 0 | P44: 0 | Q44: 0 | R44: 0 | S44: 0 | T44: 0 | U44: 0 | V44: 0 | W44: 0
A45: ='Org structure'!A15 -> Vote 14 - | C45: 0 | D45: 0 | E45: 0 | F45: 0 | G45: 0 | H45: 0 | I45: 0 | J45: 0 | K45: 0 | L45: 0 | N45: 0 | O45: 0 | P45: 0 | Q45: 0 | R45: 0 | S45: 0 | T45: 0 | U45: 0 | V45: 0 | W45: 0
A46: ='Org structure'!A16 -> Vote 15 - Other | C46: 0 | D46: 0 | E46: 0 | F46: 0 | G46: 0 | H46: 0 | I46: 0 | J46: 0 | K46: 0 | L46: 0 | N46: 0 | O46: 0 | P46: 0 | Q46: 0 | R46: 0 | S46: 0 | T46: 0 | U46: 0 | V46: 0 | W46: 0
A47: Capital multi-year expenditure sub-total | C47: =C6+C8+C10+C12+C14+C22+C37+C39+C40+C41+C42+C43+C44+C45+C46 -> 0 | D47: 0 | E47: 0 | F47: 0 | G47: 0 | H47: 0 | I47: 0 | J47: 0 | K47: 0 | L47: 0 | N47: =N6+N8+N10+N12+N14+N22+N37+N39+N40+N41+N42+N43+N44+N45+N46 -> 0 | O47: 0 | P47: 0 | Q47: 0 | R47: 0 | S47: 0 | T47: 0 | U47: 0 | V47: 0 | W47: 0
A49: Capital expenditure - Municipal Vote
A50: Single-year expenditure appropriation | B50: 2
A51: ='Org structure'!A2 -> Vote 01 - Executive & Council | C51: =SUM(C52:C52) -> 0 | D51: 0 | E51: 0 | F51: 0 | G51: 0 | H51: 0 | I51: 0 | J51: 0 | K51: 0 | L51: 0
A52: ='Org structure'!E3 -> 01.1 - Council General | C52: 0 | D52: 0 | E52: 0 | F52: 0 | G52: 0 | H52: 0 | I52: 0 | J52: 0 | K52: 0 | L52: 0
A53: ='Org structure'!A3 -> Vote 02 - Finance And Administration | C53: =SUM(C54:C54) -> 0 | D53: 0 | E53: 0 | F53: 800000 | G53: 400000 | H53: 400000 | I53: 59750.4 | J53: 50000 | K53: 860000 | L53: 970000
A54: ='Org structure'!E5 -> 02.1 - Municipal Manager | C54: 0 | D54: 0 | E54: 0 | F54: 800000 | G54: 400000 | H54: 400000 | I54: 59750.4 | J54: 50000 | K54: 860000 | L54: 970000
A55: ='Org structure'!A4 -> Vote 03 - Community Service | C55: =SUM(C56:C56) -> 6801972.23 | D55: 931898.47 | E55: 514147.62 | F55: 350000 | G55: 100000 | H55: 100000 | I55: 228408.42 | J55: 0 | K55: 0 | L55: 0
A56: ='Org structure'!E7 -> 03.1 - Finance Services Administration | C56: 6801972.23 | D56: 931898.47 | E56: 514147.62 | F56: 350000 | G56: 100000 | H56: 100000 | I56: 228408.42 | J56: 0 | K56: 0 | L56: 0
A57: ='Org structure'!A5 -> Vote 04 - Public And Safety | C57: =SUM(C58:C58) -> 0 | D57: 0 | E57: 0 | F57: 5578000 | G57: 3088000 | H57: 3088000 | I57: 1625278.17 | J57: 4335000 | K57: 5217000 | L57: 5133000
A58: ='Org structure'!E9 -> 04.1 - Corporate Services Administration | C58: 0 | D58: 0 | E58: 0 | F58: 5578000 | G58: 3088000 | H58: 3088000 | I58: 1625278.17 | J58: 4335000 | K58: 5217000 | L58: 5133000
A59: ='Org structure'!A6 -> Vote 05 - Waste Management | C59: =SUM(C60:C66) -> 29296797.56 | D59: 1018018.33 | E59: 624191.05 | F59: 50945788 | G59: 62095035 | H59: 62095035 | I59: 28944129.42 | J59: 59110383 | K59: 76156000 | L59: 77116880
A60: ='Org structure'!E11 -> 05.1 - Technical Services Administration | C60: 0 | D60: 0 | E60: 0 | F60: 0 | G60: 0 | H60: 0 | I60: 0 | J60: 0 | K60: 0 | L60: 0
A61: ='Org structure'!E12 -> 05.2 - Electrical Services | C61: -6853647.37 | D61: 1018018.33 | E61: 460879.05 | F61: 7903087 | G61: 14247270 | H61: 14247270 | I61: 10549332.71 | J61: 2296383 | K61: 25748000 | L61: 24534880
A62: ='Org structure'!E13 -> 05.3 - Water Services | C62: 0 | D62: 0 | E62: 0 | F62: 0 | G62: 0 | H62: 0 | I62: 0 | J62: 0 | K62: 0 | L62: 0
A63: ='Org structure'!E14 -> 05.4 - Sanitation Services | C63: 0 | D63: 0 | E63: 0 | F63: 0 | G63: 0 | H63: 0 | I63: 0 | J63: 0 | K63: 0 | L63: 0
A64: ='Org structure'!E15 -> 05.5 - Roads Services | C64: 36150444.93 | D64: 0 | E64: 163312 | F64: 43042701 | G64: 47847765 | H64: 47847765 | I64: 18394796.71 | J64: 56814000 | K64: 50408000 | L64: 52582000
A65: ='Org structure'!E16 -> 05.6 - Storm Water Services | C65: 0 | D65: 0 | E65: 0 | F65: 0 | G65: 0 | H65: 0 | I65: 0 | J65: 0 | K65: 0 | L65: 0
A66: ='Org structure'!E17 -> 05.7 - Water Reporting Function | C66: 0 | D66: 0 | E66: 0 | F66: 0 | G66: 0 | H66: 0 | I66: 0 | J66: 0 | K66: 0 | L66: 0
A67: ='Org structure'!A7 -> Vote 06 - Roads Services | C67: =SUM(C68:C81) -> 0 | D67: 143141.31 | E67: 1154352.79 | F67: 2750000 | G67: 3200000 | H67: 3200000 | I67: 192979.16 | J67: 1330000 | K67: 1200000 | L67: 1300000
A68: ='Org structure'!E19 -> 06.1 - Community Services Administration | C68: 0 | D68: 0 | E68: 808572.79 | F68: 1850000 | G68: 1350000 | H68: 1350000 | I68: 164829.16 | J68: 950000 | K68: 750000 | L68: 800000
A69: ='Org structure'!E20 -> 06.2 - Traffic Services | C69: 0 | D69: 0 | E69: 0 | F69: 0 | G69: 0 | H69: 0 | I69: 0 | J69: 0 | K69: 0 | L69: 0
A70: ='Org structure'!E21 -> 06.3 - Traffic Services | C70: 0 | D70: 143141.31 | E70: 345780 | F70: 400000 | G70: 200000 | H70: 200000 | I70: 0 | J70: 380000 | K70: 450000 | L70: 500000
A71: ='Org structure'!E22 -> 06.4 - Libraries | C71: 0 | D71: 0 | E71: 0 | F71: 0 | G71: 0 | H71: 0 | I71: 0 | J71: 0 | K71: 0 | L71: 0
A72: ='Org structure'!E23 -> 06.5 - Sport | C72: 0 | D72: 0 | E72: 0 | F72: 0 | G72: 0 | H72: 0 | I72: 0 | J72: 0 | K72: 0 | L72: 0
A73: ='Org structure'!E24 -> 06.6 - Cemetery | C73: 0 | D73: 0 | E73: 0 | F73: 0 | G73: 0 | H73: 0 | I73: 0 | J73: 0 | K73: 0 | L73: 0
A74: ='Org structure'!E25 -> 06.7 - Refuse | C74: 0 | D74: 0 | E74: 0 | F74: 500000 | G74: 1650000 | H74: 1650000 | I74: 28150 | J74: 0 | K74: 0 | L74: 0
A75: ='Org structure'!E26 -> 06.8 - Pound Services | C75: 0 | D75: 0 | E75: 0 | F75: 0 | G75: 0 | H75: 0 | I75: 0 | J75: 0 | K75: 0 | L75: 0
A76: ='Org structure'!E27 -> 06.9 - Pound Services | C76: 0 | D76: 0 | E76: 0 | F76: 0 | G76: 0 | H76: 0 | I76: 0 | J76: 0 | K76: 0 | L76: 0
A77: ='Org structure'!E28 -> 06.10 - Satellite Offices | C77: 0 | D77: 0 | E77: 0 | F77: 0 | G77: 0 | H77: 0 | I77: 0 | J77: 0 | K77: 0 | L77: 0
A78: ='Org structure'!E29 -> 06.11 - Alldays Offices | C78: 0 | D78: 0 | E78: 0 | F78: 0 | G78: 0 | H78: 0 | I78: 0 | J78: 0 | K78: 0 | L78: 0
A79: ='Org structure'!E30 -> 06.12 - Eldorado Offices | C79: 0 | D79: 0 | E79: 0 | F79: 0 | G79: 0 | H79: 0 | I79: 0 | J79: 0 | K79: 0 | L79: 0
A80: ='Org structure'!E31 -> 06.13 - Tolwe Offices | C80: 0 | D80: 0 | E80: 0 | F80: 0 | G80: 0 | H80: 0 | I80: 0 | J80: 0 | K80: 0 | L80: 0
A81: ='Org structure'!E32 -> 06.14 - Senwabarwarna Offices | C81: 0 | D81: 0 | E81: 0 | F81: 0 | G81: 0 | H81: 0 | I81: 0 | J81: 0 | K81: 0 | L81: 0
A82: ='Org structure'!A8 -> Vote 07 - Econominc Development And Planning | C82: =SUM(C83:C83) -> 0 | D82: 0 | E82: 0 | F82: 450000 | G82: 700000 | H82: 700000 | I82: 146560 | J82: 70000 | K82: 170000 | L82: 170000
A83: ='Org structure'!E34 -> 07.1 - Economic Development And Planning | C83: 0 | D83: 0 | E83: 0 | F83: 450000 | G83: 700000 | H83: 700000 | I83: 146560 | J83: 70000 | K83: 170000 | L83: 170000
A84: ='Org structure'!A9 -> Vote 08 - | C84: 0 | D84: 0 | E84: 0 | F84: 0 | G84: 0 | H84: 0 | I84: 0 | J84: 0 | K84: 0 | L84: 0
A85: ='Org structure'!A10 -> Vote 09 - | C85: 0 | D85: 0 | E85: 0 | F85: 0 | G85: 0 | H85: 0 | I85: 0 | J85: 0 | K85: 0 | L85: 0
A86: ='Org structure'!A11 -> Vote 10 - | C86: 0 | D86: 0 | E86: 0 | F86: 0 | G86: 0 | H86: 0 | I86: 0 | J86: 0 | K86: 0 | L86: 0
A87: ='Org structure'!A12 -> Vote 11 - | C87: 0 | D87: 0 | E87: 0 | F87: 0 | G87: 0 | H87: 0 | I87: 0 | J87: 0 | K87: 0 | L87: 0
A88: ='Org structure'!A13 -> Vote 12 - | C88: 0 | D88: 0 | E88: 0 | F88: 0 | G88: 0 | H88: 0 | I88: 0 | J88: 0 | K88: 0 | L88: 0
A89: ='Org structure'!A14 -> Vote 13 - | C89: 0 | D89: 0 | E89: 0 | F89: 0 | G89: 0 | H89: 0 | I89: 0 | J89: 0 | K89: 0 | L89: 0
A90: ='Org structure'!A15 -> Vote 14 - | C90: 0 | D90: 0 | E90: 0 | F90: 0 | G90: 0 | H90: 0 | I90: 0 | J90: 0 | K90: 0 | L90: 0
A91: ='Org structure'!A16 -> Vote 15 - Other | C91: 0 | D91: 0 | E91: 0 | F91: 0 | G91: 0 | H91: 0 | I91: 0 | J91: 0 | K91: 0 | L91: 0
A92: Capital single-year expenditure sub-total | C92: =C51+C53+C55+C57+C59+C67+C82+C84+C85+C86+C87+C88+C89+C90+C91 -> 36098769.79 | D92: 2093058.11 | E92: 2292691.46 | F92: 60873788 | G92: 69583035 | H92: 69583035 | I92: 31197105.57 | J92: 64895383 | K92: 83603000 | L92: 84689880
A93: Total Capital Expenditure | C93: =C47+C92 -> 36098769.79 | D93: 2093058.11 | E93: 2292691.46 | F93: 60873788 | G93: 69583035 | H93: 69583035 | I93: 31197105.57 | J93: 64895383 | K93: 83603000 | L93: 84689880

Sheet A6-FinPos
A1: =muni&" - "&Approve6 -> LIM351 Blouberg - Table A6 Budgeted Financial Position
A2: =desc -> Description | B2: =head27 -> Ref | C2: =head1b -> 2017/18 | D2: =head1A -> 2018/19 | E2: =Head1 -> 2019/20 | F2: =Head2 -> Current Year 2020/21 | J2: =Head3 -> 2021/22 Medium Term Revenue & Expenditure Framework
A3: R thousand | C3: =Head5 -> Audited Outcome | D3: =Head5 -> Audited Outcome | E3: =Head5 -> Audited Outcome | F3: =Head6 -> Original Budget | G3: =Head7 -> Adjusted Budget | H3: =Head8 -> Full Year Forecast | I3: =Head5b -> Pre-audit outcome | J3: =Head9 -> Budget Year 2021/22 | K3: =Head10 -> Budget Year +1 2022/23 | L3: =Head11 -> Budget Year +2 2023/24
A4: ASSETS
A5: Current assets
A6: Cash | C6: 15583402.37 | D6: 7563567.5 | E6: 33151246.96 | F6: 83631176 | G6: 79913730 | H6: 79913730 | I6: 91711818.25 | J6: 105352007 | K6: 72117276 | L6: 74257749
A7: Call investment deposits | B7: 1 | C7: 3767074.32 | D7: 3090652.11 | E7: 8108656.43 | F7: 3252192 | G7: 3252192 | H7: 3252192 | I7: -1891343.57 | J7: 8108657 | K7: 8351918 | L7: 8351918
A8: Consumer debtors | B8: 1 | C8: ='SA3'!C14 -> 95664779.58 | D8: ='SA3'!D14 -> 100806671 | E8: ='SA3'!E14 -> 84145842.21 | F8: ='SA3'!F14 -> 119036199 | G8: ='SA3'!G14 -> 116836199 | H8: ='SA3'!H14 -> 116836199 | I8: ='SA3'!I14 -> 117170034.8 | J8: ='SA3'!J14 -> 88686103 | K8: ='SA3'!K14 -> 95179174 | L8: ='SA3'!L14 -> 95648499
A9: Other debtors | C9: 5353490.47 | D9: 14138191.79 | E9: 6009983.57 | F9: 13023385 | G9: 13023385 | H9: 13023385 | I9: 12634720.51 | J9: 2852175 | K9: 2852175 | L9: 2852175
A10: Current portion of long-term receivables
A11: Inventory | B11: 2 | C11: ='SA3'!C115 -> 2211354.66 | D11: ='SA3'!D115 -> 3281383.45 | E11: ='SA3'!E115 -> 4000084.04 | F11: ='SA3'!F115 -> 4350349.04 | G11: ='SA3'!G115 -> 4350349.04 | H11: ='SA3'!H115 -> 4350349.04 | I11: ='SA3'!I115 -> 4000084.04 | J11: ='SA3'!J115 -> 4350349.04 | K11: ='SA3'!K115 -> 4350349.04 | L11: ='SA3'!L115 -> 4350349.04
A12: Total current assets | C12: =SUM(C6:C11) -> 122580101.4 | D12: 128880465.8 | E12: 135415813.2 | F12: 223293301 | G12: 217375855 | H12: 217375855 | I12: 223625314 | J12: 209349291 | K12: 182850892 | L12: 185460690
A14: Non current assets
A15: Long-term receivables
A16: Investments
A17: Investment property | C17: 205000 | D17: 9760000 | E17: 8544772.22 | F17: 3010000 | G17: 3010000 | H17: 3010000 | I17: 8544772.22 | J17: 8544772 | K17: 8544772 | L17: 8544772
A18: Investment in Associate
A19: Property, plant and equipment | B19: 3 | C19: ='SA3'!C121 -> 893667373.2 | D19: ='SA3'!D121 -> 909641741.2 | E19: ='SA3'!E121 -> 923605527.8 | F19: ='SA3'!F121 -> 625749192 | G19: ='SA3'!G121 -> 634998439 | H19: ='SA3'!H121 -> 634998439 | I19: ='SA3'!I121 -> 953876636.4 | J19: ='SA3'!J121 -> 978239399 | K19: ='SA3'!K121 -> 1082937791 | L19: ='SA3'!L121 -> 1084022671
A21: Biological
A22: Intangible | C22: 286964.87 | D22: 543034.17 | E22: 372488.69 | F22: 2541961 | G22: 2001961 | H22: 2001961 | I22: 1298485.68 | J22: 611488 | K22: 713488 | L22: 715488
A23: Other non-current assets | C23: 0 | D23: 0 | E23: 0 | F23: 0 | G23: 0 | H23: 0 | I23: 0 | J23: 0 | K23: 0 | L23: 0
A24: Total non current assets | C24: =SUM(C15:C19)+SUM(C21:C23) -> 894159338.1 | D24: =SUM(D15:D19)+SUM(D21:D23) -> 919944775.4 | E24: 932522788.7 | F24: 631301153 | G24: 640010400 | H24: 640010400 | I24: 963719894.3 | J24: 987395659 | K24: 1092196051 | L24: 1093282931
A25: TOTAL ASSETS | C25: =C12+C24 -> 1016739439 | D25: =D12+D24 -> 1048825241 | E25: =E12+E24 -> 1067938602 | F25: =F12+F24 -> 854594454 | G25: 857386255 | H25: 857386255 | I25: 1187345208 | J25: 1196744950 | K25: 1275046943 | L25: 1278743621
A27: LIABILITIES
A28: Current liabilities
A29: Bank overdraft | B29: 1
A30: Borrowing | B30: 4 | C30: ='SA3'!C127 -> 0 | D30: ='SA3'!D127 -> 0 | E30: ='SA3'!E127 -> 0 | F30: ='SA3'!F127 -> 0 | G30: ='SA3'!G127 -> 0 | H30: ='SA3'!H127 -> 0 | I30: ='SA3'!I127 -> 0 | J30: ='SA3'!J127 -> 0 | K30: ='SA3'!K127 -> 0 | L30: ='SA3'!L127 -> 0
A31: Consumer deposits | C31: -8680.44 | D31: -8680.44 | E31: -8680.44 | F31: 0 | G31: 0 | H31: 0 | I31: -8680.44 | J31: -8681 | K31: -721 | L31: -721
A32: Trade and other payables | B32: 4 | C32: ='SA3'!C134 -> 52088091.91 | D32: ='SA3'!D134 -> 57542274.06 | E32: ='SA3'!E134 -> 55814372.61 | F32: ='SA3'!F134 -> 63398649 | G32: ='SA3'!G134 -> 63398649 | H32: ='SA3'!H134 -> 63398649 | I32: ='SA3'!I134 -> 54373341.24 | J32: ='SA3'!J134 -> 10445383 | K32: ='SA3'!K134 -> 44175466 | L32: ='SA3'!L134 -> 44175466
A33: Provisions
A34: Total current liabilities | C34: =SUM(C29:C33) -> 52079411.47 | D34: 57533593.62 | E34: 55805692.17 | F34: 63398649 | G34: 63398649 | H34: 63398649 | I34: 54364660.8 | J34: 10436702 | K34: 44174745 | L34: 44174745
A36: Non current liabilities
A37: Borrowing | C37: ='SA3'!C139 -> 1288648.61 | D37: ='SA3'!D139 -> 821130.68 | E37: ='SA3'!E139 -> 303748.22 | F37: ='SA3'!F139 -> 621060 | G37: ='SA3'!G139 -> 621060 | H37: ='SA3'!H139 -> 621060 | I37: ='SA3'!I139 -> 303748.22 | J37: ='SA3'!J139 -> 0 | K37: ='SA3'!K139 -> 0 | L37: ='SA3'!L139 -> 0
A38: Provisions | C38: ='SA3'!C146 -> 15477617.9 | D38: ='SA3'!D146 -> 17187235.47 | E38: ='SA3'!E146 -> 19940597.89 | F38: ='SA3'!F146 -> 20105265 | G38: ='SA3'!G146 -> 20105265 | H38: ='SA3'!H146 -> 20105265 | I38: ='SA3'!I146 -> 19940597.89 | J38: ='SA3'!J146 -> 19940599 | K38: ='SA3'!K146 -> 20535679 | L38: ='SA3'!L146 -> 20535679
A39: Total non current liabilities | C39: =SUM(C37:C38) -> 16766266.51 | D39: =SUM(D37:D38) -> 18008366.15 | E39: =SUM(E37:E38) -> 20244346.11 | F39: =SUM(F37:F38) -> 20726325 | G39: 20726325 | H39: 20726325 | I39: 20244346.11 | J39: 19940599 | K39: =SUM(K37:K38) -> 20535679 | L39: 20535679
A40: TOTAL LIABILITIES | C40: =C34+C39 -> 68845677.98 | D40: =D34+D39 -> 75541959.77 | E40: =E34+E39 -> 76050038.28 | F40: =F34+F39 -> 84124974 | G40: 84124974 | H40: 84124974 | I40: 74609006.91 | J40: 30377301 | K40: =K34+K39 -> 64710424 | L40: 64710424
A42: NET ASSETS | B42: 5 | C42: =C25-C40 -> 947893761.5 | D42: 973283281.4 | E42: 991888563.7 | F42: 770469480 | G42: 773261281 | H42: 773261281 | I42: 1112736201 | J42: 1166367649 | K42: 1210336519 | L42: 1214033197
A44: COMMUNITY WEALTH/EQUITY
A45: Accumulated Surplus/(Deficit) | C45: 947893761.5 | D45: 973283281.4 | E45: 991888563.7 | F45: 770469480 | G45: 773261281 | H45: 773261281 | I45: 1112736201 | J45: 1166367649 | K45: 1210336519 | L45: 1214033197
A46: Reserves | B46: 4 | C46: ='SA3'!C165 -> 0 | D46: ='SA3'!D165 -> 0 | E46: ='SA3'!E165 -> 0 | F46: ='SA3'!F165 -> 0 | G46: ='SA3'!G165 -> 0 | H46: ='SA3'!H165 -> 0 | I46: 0 | J46: 0 | K46: 0 | L46: 0
A48: TOTAL COMMUNITY WEALTH/EQUITY | B48: 5 | C48: =SUM(C45:C46) -> 947893761.5 | D48: =SUM(D45:D46) -> 973283281.4 | E48: 991888563.7 | F48: 770469480 | G48: 773261281 | H48: 773261281 | I48: 1112736201 | J48: 1166367649 | K48: 1210336519 | L48: 1214033197
A49: =head27a -> References
A50: 1. Detail to be provided in Table SA3
A51: 2. Include completed low cost housing to be transferred to beneficiaries within 12 months
A52: 3. Include 'Construction-work-in-progress' (disclosed separately in annual financial statements)
A53: 4. Detail to be provided in Table SA3. Includes reserves to be funded by statute.
A54: 5. Net assets must balance with Total Community Wealth/Equity
A55: check balance | C55: =IF((C42-C48)=0,0,"Unbalanced") -> 0 | D55: =IF((D42-D48)=0,0,"Unbalanced") -> 0 | E55: 0 | F55: 0 | G55: 0 | H55: 0 | I55: 0 | J55: 0 | K55: 0 | L55: 0

Sheet A7-CFlow
A1: =muni&" - "&Approve7 -> LIM351 Blouberg - Table A7 Budgeted Cash Flows
A2: =desc -> Description | B2: =head27 -> Ref | C2: =head1b -> 2017/18 | D2: =head1A -> 2018/19 | E2: =Head1 -> 2019/20 | F2: =Head2 -> Current Year 2020/21 | J2: =Head3 -> 2021/22 Medium Term Revenue & Expenditure Framework
A3: R thousand | C3: =Head5 -> Audited Outcome | D3: =Head5 -> Audited Outcome | E3: =Head5 -> Audited Outcome | F3: =Head6 -> Original Budget | G3: =Head7 -> Adjusted Budget | H3: =Head8 -> Full Year Forecast | I3: =Head5b -> Pre-audit outcome | J3: =Head9 -> Budget Year 2021/22 | K3: =Head10 -> Budget Year +1 2022/23 | L3: =Head11 -> Budget Year +2 2023/24
A4: CASH FLOW FROM OPERATING ACTIVITIES
A5: Receipts
A6: Property rates | C6: 0 | D6: 0 | E6: 0 | F6: 27674089 | G6: 27174089 | H6: 27174089 | I6: 3670078.11 | J6: ='SA30'!N5 -> 28119535 | K6: ='SA30'!O5 -> 29806709 | L6: ='SA30'!P5 -> 31595109
A7: Service charges | C7: 0 | D7: 0 | E7: 0 | F7: 38928291 | G7: 38928291 | H7: 38928291 | I7: 12172664.74 | J7: ='SA30'!N6+'SA30'!N7+'SA30'!N8+'SA30'!N9 -> 38294189.53 | K7: ='SA30'!O6+'SA30'!O7+'SA30'!O8+'SA30'!O9 -> 40591840.12 | L7: ='SA30'!P6+'SA30'!P7+'SA30'!P8+'SA30'!P9 -> 43027351.34
A8: Other revenue | C8: 0 | D8: 0 | E8: 0 | F8: 12103712 | G8: 11514712 | H8: 11514712 | I8: 142799949.5 | J8: ='SA30'!N11+'SA30'!N15+'SA30'!N16+'SA30'!N17+'SA30'!N19 -> 28442800 | K8: ='SA30'!O11+'SA30'!O15+'SA30'!O16+'SA30'!O17+'SA30'!O19 -> 25411769 | L8: ='SA30'!P11+'SA30'!P15+'SA30'!P16+'SA30'!P17+'SA30'!P19 -> 26396475
A9: Transfers and Subsidies - Operational | B9: 1 | C9: 0 | D9: 0 | E9: 0 | F9: 201645000 | G9: 239125000 | H9: 239125000 | I9: 0 | J9: ='SA30'!N18 -> 207281000 | K9: ='SA30'!O18 -> 214327000 | L9: ='SA30'!P18 -> 207572000
A10: Transfers and Subsidies - Capital | B10: 1 | C10: 0 | D10: 0 | E10: 0 | F10: 50066000 | G10: 56640183 | H10: 56640183 | I10: 0 | J10: ='SA30'!N23 -> 56764000 | K10: ='SA30'!O23 -> 74408000 | L10: ='SA30'!P23 -> 75582000
A11: Interest | C11: 0 | D11: 0 | E11: 0 | F11: 1802000 | G11: 1802000 | H11: 1802000 | I11: 0 | J11: ='SA30'!N12+'SA30'!N13 -> 1910120 | K11: ='SA30'!O12+'SA30'!O13 -> 2024728 | L11: ='SA30'!P12+'SA30'!P13 -> 2146212
A12: Dividends | J12: ='SA30'!N14 -> 0 | K12: ='SA30'!O14 -> 0 | L12: ='SA30'!P14 -> 0
A13: Payments
A14: Suppliers and employees | C14: 0 | D14: 0 | E14: 0 | F14: -258111224 | G14: -294393853 | H14: -294393853 | I14: -105901947.9 | J14: =-('SA30'!N35+'SA30'!N36+'SA30'!N38+'SA30'!N39+'SA30'!N40+'SA30'!N41+'SA30'!N44+'SA30'!N50) -> -293500201 | K14: =-('SA30'!O35+'SA30'!O36+'SA30'!O38+'SA30'!O39+'SA30'!O40+'SA30'!O41+'SA30'!O44+'SA30'!O50) -> -300802897 | L14: =-('SA30'!P35+'SA30'!P36+'SA30'!P38+'SA30'!P39+'SA30'!P40+'SA30'!P41+'SA30'!P44+'SA30'!P50) -> -299483053
A15: Finance charges | J15: =-('SA30'!N37) -> 0 | K15: =-('SA30'!O37) -> 0 | L15: =-('SA30'!P37) -> 0
A16: Transfers and Grants | B16: 1 | J16: =-('SA30'!N42+'SA30'!N43) -> 0 | K16: =-('SA30'!O42+'SA30'!O43) -> 0 | L16: =-('SA30'!P42+'SA30'!P43) -> 0
A17: NET CASH FROM/(USED) OPERATING ACTIVITIES | C17: =SUM(C6:C12)+SUM(C14:C16) -> 0 | D17: 0 | E17: 0 | F17: 74107868 | G17: 80790422 | H17: 80790422 | I17: 52740744.51 | J17: 67311443.53 | K17: 85767149.12 | L17: 86836094.34
A19: CASH FLOWS FROM INVESTING ACTIVITIES
A20: Receipts
A21: Proceeds on disposal of PPE | C21: 0 | D21: 0 | E21: 0 | F21: 0 | G21: 0 | H21: 0 | I21: 0 | J21: ='SA30'!N24+'SA30'!N25 -> 0 | K21: ='SA30'!O24+'SA30'!O25 -> 0 | L21: ='SA30'!P24+'SA30'!P25 -> 0
A23: Decrease (increase) in non-current receivables | J23: ='SA30'!N30 -> 0 | K23: ='SA30'!O30 -> 0 | L23: ='SA30'!P30 -> 0
A24: Decrease (increase) in non-current investments | J24: ='SA30'!N31 -> 0 | K24: ='SA30'!O31 -> 0 | L24: ='SA30'!P31 -> 0
A25: Payments
A26: Capital assets | C26: 0 | D26: 0 | E26: 0 | F26: -60873788 | G26: -69583035 | H26: -69583035 | I26: -27672444.33 | J26: =-('SA30'!N48) -> -64895383 | K26: =-('SA30'!O48) -> -83603000 | L26: =-('SA30'!P48) -> -84689880
A27: NET CASH FROM/(USED) INVESTING ACTIVITIES | C27: =+C21+C23+C24+C26 -> 0 | D27: =+D21+D23+D24+D26 -> 0 | E27: 0 | F27: -60873788 | G27: -69583035 | H27: -69583035 | I27: -27672444.33 | J27: -64895383 | K27: -83603000 | L27: -84689880
A29: CASH FLOWS FROM FINANCING ACTIVITIES
A30: Receipts
A31: Short term loans | J31: ='SA30'!N26 -> 0 | K31: ='SA30'!O26 -> 0 | L31: ='SA30'!P26 -> 0
A32: Borrowing long term/refinancing | J32: ='SA30'!N27 -> 0 | K32: ='SA30'!O27 -> 0 | L32: ='SA30'!P27 -> 0
A33: Increase (decrease) in consumer deposits | C33: 8680.44 | D33: 0 | E33: 0 | F33: -8680.44 | G33: 0 | H33: 0 | I33: 0 | J33: ='SA30'!N28 -> -8681 | K33: ='SA30'!O28 -> 7960 | L33: ='SA30'!P28 -> 0
A34: Payments
A35: Repayment of borrowing | J35: =-('SA30'!N49) -> 0 | K35: =-('SA30'!O49) -> 0 | L35: =-('SA30'!P49) -> 0
A36: NET CASH FROM/(USED) FINANCING ACTIVITIES | C36: =SUM(C31:C33)+C35 -> 8680.44 | D36: =SUM(D31:D33)+D35 -> 0 | E36: 0 | F36: -8680.44 | G36: 0 | H36: 0 | I36: 0 | J36: -8681 | K36: 7960 | L36: 0
A38: NET INCREASE/ (DECREASE) IN CASH HELD | C38: =C17+C27+C36 -> 8680.44 | D38: =D17+D27+D36 -> 0 | E38: 0 | F38: 13225399.56 | G38: 11207387 | H38: 11207387 | I38: 25068300.18 | J38: 2407379.526 | K38: 2172109.118 | L38: 2146214.345
A39: Cash/cash equivalents at the year begin: | B39: 2 | C39: 44204502.79 | D39: 18672940.14 | E39: 10654219.61 | F39: 12775500 | G39: 12775500 | H39: 12775500 | I39: 0 | J39: ='SA30'!N54 -> 6425610 | K39: =J40 -> 8832989.526 | L39: =K40 -> 11005098.64
A40: Cash/cash equivalents at the year end: | B40: 2 | C40: =C38+C39 -> 44213183.23 | D40: =D38+D39 -> 18672940.14 | E40: =E38+E39 -> 10654219.61 | F40: =F38+F39 -> 26000899.56 | G40: 23982887 | H40: 23982887 | I40: 25068300.18 | J40: 8832989.526 | K40: 11005098.64 | L40: 13151312.99
A41: =head27a -> References
A42: 1. Local/District municipalities to include transfers from/to District/Local Municipalities
A43: 2. Cash equivalents includes investments with maturities of 3 months or less
A44: 3. The MTREF is populated directly from SA30.
A45: Total receipts | C45: =SUM(C6:C12)+SUM(C21:C23) -> 0 | D45: 0 | E45: 0 | F45: 332219092 | G45: 375184275 | H45: 375184275 | I45: 158642692.4 | J45: 360811644.5 | K45: 386570046.1 | L45: 386319147.3
A46: Total payments | C46: =SUM(C14:C16)+C26 -> 0 | D46: =SUM(D14:D16)+D26 -> 0 | E46: 0 | F46: -318985012 | G46: -363976888 | H46: -363976888 | I46: -133574392.2 | J46: -358395584 | K46: -384405897 | L46: -384172933
C47: =C45+C46 -> 0 | D47: =D45+D46 -> 0 | E47: 0 | F47: 13234080 | G47: 11207387 | H47: 11207387 | I47: 25068300.18 | J47: 2416060.526 | K47: 2164149.118 | L47: 2146214.345
A48: Borrowings & investments & c.deposits | C48: =C24+C32+C33 -> 8680.44 | D48: =D24+D32+D33 -> 0 | E48: 0 | F48: -8680.44 | G48: 0 | H48: 0 | I48: 0 | J48: -8681 | K48: 7960 | L48: 0
A49: =A35 -> Repayment of borrowing | C49: =C35 -> 0 | D49: =D35 -> 0 | E49: 0 | F49: 0 | G49: 0 | H49: 0 | I49: =I35 -> 0 | J49: 0 | K49: 0 | L49: 0
C50: =C47+C48+C49 -> 8680.44 | D50: =D47+D48+D49 -> 0 | E50: 0 | F50: 13225399.56 | G50: 11207387 | H50: 11207387 | I50: 25068300.18 | J50: 2407379.526 | K50: 2172109.118 | L50: 2146214.345
C51: =C38-C50 -> 0 | D51: 0 | E51: 0 | F51: 0 | G51: 0 | H51: 0 | I51: 0 | J51: 0 | K51: 0 | L51: 0

Sheet A8-ResRecon
A1: =muni&" - "&Approve8 -> LIM351 Blouberg - Table A8 Cash backed reserves/accumulated surplus reconciliation
A2: =desc -> Description | B2: =head27 -> Ref | C2: =head1b -> 2017/18 | D2: =head1A -> 2018/19 | E2: =Head1 -> 2019/20 | F2: =Head2 -> Current Year 2020/21 | J2: =Head3 -> 2021/22 Medium Term Revenue & Expenditure Framework
A3: R thousand | C3: =Head5 -> Audited Outcome | D3: =Head5 -> Audited Outcome | E3: =Head5 -> Audited Outcome | F3: =Head6 -> Original Budget | G3: =Head7 -> Adjusted Budget | H3: =Head8 -> Full Year Forecast | I3: =Head5b -> Pre-audit outcome | J3: =Head9 -> Budget Year 2021/22 | K3: =Head10 -> Budget Year +1 2022/23 | L3: =Head11 -> Budget Year +2 2023/24
A4: Cash and investments available
A5: =LEFT('A7-CFlow'!A40,37) -> Cash/cash equivalents at the year end | B5: 1 | C5: ='A7-CFlow'!C40 -> 44213183.23 | D5: ='A7-CFlow'!D40 -> 18672940.14 | E5: ='A7-CFlow'!E40 -> 10654219.61 | F5: ='A7-CFlow'!F40 -> 26000899.56 | G5: ='A7-CFlow'!G40 -> 23982887 | H5: ='A7-CFlow'!H40 -> 23982887 | I5: ='A7-CFlow'!I40 -> 25068300.18 | J5: ='A7-CFlow'!J40 -> 8832989.526 | K5: ='A7-CFlow'!K40 -> 11005098.64 | L5: ='A7-CFlow'!L40 -> 13151312.99
A6: Other current investments > 90 days | C6: ='A6-FinPos'!C6+'A6-FinPos'!C7-'A6-FinPos'!C29-'A8-ResRecon'!C5 -> -24862706.54 | D6: ='A6-FinPos'!D6+'A6-FinPos'!D7-'A6-FinPos'!D29-'A8-ResRecon'!D5 -> -8018720.53 | E6: ='A6-FinPos'!E6+'A6-FinPos'!E7-'A6-FinPos'!E29-'A8-ResRecon'!E5 -> 30605683.78 | F6: ='A6-FinPos'!F6+'A6-FinPos'!F7-'A6-FinPos'!F29-'A8-ResRecon'!F5 -> 60882468.44 | G6: ='A6-FinPos'!G6+'A6-FinPos'!G7-'A6-FinPos'!G29-'A8-ResRecon'!G5 -> 59183035 | H6: ='A6-FinPos'!H6+'A6-FinPos'!H7-'A6-FinPos'!H29-'A8-ResRecon'!H5 -> 59183035 | I6: ='A6-FinPos'!I6+'A6-FinPos'!I7-'A6-FinPos'!I29-'A8-ResRecon'!I5 -> 64752174.5 | J6: ='A6-FinPos'!J6+'A6-FinPos'!J7-'A6-FinPos'!J29-'A8-ResRecon'!J5 -> 104627674.5 | K6: ='A6-FinPos'!K6+'A6-FinPos'!K7-'A6-FinPos'!K29-'A8-ResRecon'!K5 -> 69464095.36 | L6: ='A6-FinPos'!L6+'A6-FinPos'!L7-'A6-FinPos'!L29-'A8-ResRecon'!L5 -> 69458354.01
A7: ='A6-FinPos'!A14&" - "&'A6-FinPos'!A16 -> Non current assets - Investments | B7: 1 | C7: ='A6-FinPos'!C16 -> 0 | D7: ='A6-FinPos'!D16 -> 0 | E7: ='A6-FinPos'!E16 -> 0 | F7: ='A6-FinPos'!F16 -> 0 | G7: ='A6-FinPos'!G16 -> 0 | H7: ='A6-FinPos'!H16 -> 0 | I7: ='A6-FinPos'!I16 -> 0 | J7: ='A6-FinPos'!J16 -> 0 | K7: ='A6-FinPos'!K16 -> 0 | L7: ='A6-FinPos'!L16 -> 0
A8: Cash and investments available: | C8: =SUM(C5:C7) -> 19350476.69 | D8: =SUM(D5:D7) -> 10654219.61 | E8: 41259903.39 | F8: 86883368 | G8: 83165922 | H8: 83165922 | I8: 89820474.68 | J8: 113460664 | K8: 80469194 | L8: 82609667
A10: Application of cash and investments
A11: ='SA3'!A132 -> Unspent conditional transfers | C11: ='SA3'!C132 -> 699785.67 | D11: ='SA3'!D132 -> 1139231.07 | E11: ='SA3'!E132 -> 7057919.94 | F11: ='SA3'!F132 -> 725000 | G11: ='SA3'!G132 -> 725000 | H11: ='SA3'!H132 -> 725000 | I11: ='SA3'!I132 -> 7057919.94 | J11: ='SA3'!J132 -> 10000000 | K11: ='SA3'!K132 -> -650000 | L11: ='SA3'!L132 -> -650000
A12: Unspent borrowing | C12: ='SA17'!C67 -> 0 | D12: ='SA17'!D67 -> 0 | E12: ='SA17'!E67 -> 0 | F12: ='SA17'!F67 -> 0 | G12: ='SA17'!G67 -> 0 | H12: ='SA17'!H67 -> 0 | J12: ='SA17'!I67 -> 0 | K12: ='SA17'!J67 -> 0 | L12: ='SA17'!K67 -> 0
A13: Statutory requirements | B13: 2
A14: Other working capital requirements | B14: 3 | C14: =-C32 -> 50717580.55 | D14: =-D32 -> 48038393.14 | E14: 45406164.63 | F14: =-F32 -> -52659351 | G14: -53957351 | H14: -53957351 | I14: -332767796.5 | J14: -86102617 | K14: -47612534 | L14: -48026534
A15: Other provisions
A16: Long term investments committed | B16: 4 | C16: =C42 -> 0 | D16: =D42 -> 0 | E16: 0 | F16: 0 | G16: 0 | H16: 0 | I16: 0 | J16: 0 | K16: 0 | L16: 0
A17: Reserves to be backed by cash/investments | B17: 5 | C17: =SUM(C44:C48) -> 0 | D17: 0 | E17: 0 | F17: 0 | G17: 0 | H17: 0 | I17: 0 | J17: 0 | K17: 0 | L17: 0
A18: ="Total "&A10&":" -> Total Application of cash and investments: | C18: =SUM(C11:C17) -> 51417366.22 | D18: =SUM(D11:D17) -> 49177624.21 | E18: 52464084.57 | F18: -51934351 | G18: -53232351 | H18: -53232351 | I18: -325709876.6 | J18: -76102617 | K18: -48262534 | L18: -48676534
A19: Surplus(shortfall) | C19: =C8-C18 -> -32066889.53 | D19: =D8-D18 -> -38523404.6 | E19: -11204181.18 | F19: 138817719 | G19: 136398273 | H19: 136398273 | I19: 415530351.3 | J19: 189563281 | K19: 128731728 | L19: 131286201
A20: =head27a -> References
A21: 1. Must reconcile with Budgeted Cash Flows
A22: 2. For example: VAT, taxation
A23: 3. Council approval for policy required - include sufficient working capital (e.g. allowing for a % of current debtors > 90 days as uncollectable)
A24: 4. For example: sinking fund requirements for borrowing
A25: 5. Council approval required for each reserve created and basis of cash backing of reserves
A28: Other working capital requirements
A29: Debtors | C29: =IF(ISERROR(ROUND(C35*C36,-3)),0,(ROUND(C35*C36,-3))) -> 0 | D29: =IF(ISERROR(ROUND(D35*D36,-3)),0,(ROUND(D35*D36,-3))) -> 0 | E29: 0 | F29: 115333000 | G29: 116631000 | H29: 116631000 | I29: 372199000 | J29: 86548000 | K29: 92438000 | L29: 92852000
A31: Creditors due | C31: ='SA3'!C130+'SA3'!C131 -> 50717580.55 | D31: ='SA3'!D130+'SA3'!D131 -> 48038393.14 | E31: ='SA3'!E130+'SA3'!E131 -> 45406164.63 | F31: ='SA3'!F130+'SA3'!F131 -> 62673649 | G31: ='SA3'!G130+'SA3'!G131 -> 62673649 | H31: ='SA3'!H130+'SA3'!H131 -> 62673649 | I31: ='SA3'!I130+'SA3'!I131 -> 39431203.47 | J31: ='SA3'!J130+'SA3'!J131 -> 445383 | K31: ='SA3'!K130+'SA3'!K131 -> 44825466 | L31: ='SA3'!L130+'SA3'!L131 -> 44825466
A32: Total | C32: =C29-C31 -> -50717580.55 | D32: =D29-D31 -> -48038393.14 | E32: -45406164.63 | F32: 52659351 | G32: 53957351 | H32: 53957351 | I32: 332767796.5 | J32: 86102617 | K32: 47612534 | L32: 48026534
A34: Debtors collection assumptions
A35: Balance outstanding - debtors | C35: ='A6-FinPos'!C8+'A6-FinPos'!C9+'A6-FinPos'!C15 -> 101018270.1 | D35: ='A6-FinPos'!D8+'A6-FinPos'!D9+'A6-FinPos'!D15 -> 114944862.7 | E35: ='A6-FinPos'!E8+'A6-FinPos'!E9+'A6-FinPos'!E15 -> 90155825.78 | F35: ='A6-FinPos'!F8+'A6-FinPos'!F9+'A6-FinPos'!F15 -> 132059584 | G35: ='A6-FinPos'!G8+'A6-FinPos'!G9+'A6-FinPos'!G15 -> 129859584 | H35: ='A6-FinPos'!H8+'A6-FinPos'!H9+'A6-FinPos'!H15 -> 129859584 | I35: ='A6-FinPos'!I8+'A6-FinPos'!I9+'A6-FinPos'!I15 -> 129804755.3 | J35: ='A6-FinPos'!J8+'A6-FinPos'!J9+'A6-FinPos'!J15 -> 91538278 | K35: ='A6-FinPos'!K8+'A6-FinPos'!K9+'A6-FinPos'!K15 -> 98031349 | L35: ='A6-FinPos'!L8+'A6-FinPos'!L9+'A6-FinPos'!L15 -> 98500674
A36: Estimate of debtors collection rate | C36: =IF(ISERROR('SA10'!D10),0,('SA10'!D10)) -> 0 | D36: =IF(ISERROR('SA10'!E10),0,('SA10'!E10)) -> 0 | E36: =IF(ISERROR('SA10'!F10),0,('SA10'!F10)) -> 0 | F36: =IF(ISERROR('SA10'!G10),0,('SA10'!G10)) -> 0.8733435415 | G36: =IF(ISERROR('SA10'!H10),0,('SA10'!H10)) -> 0.8981336426 | H36: =IF(ISERROR('SA10'!I10),0,('SA10'!I10)) -> 0.8981336426 | I36: =IF(ISERROR('SA10'!J10),0,('SA10'!J10)) -> 2.867376151 | J36: =IF(ISERROR('SA10'!K10),0,('SA10'!K10)) -> 0.9454861561 | K36: =IF(ISERROR('SA10'!L10),0,('SA10'!L10)) -> 0.9429443326 | L36: =IF(ISERROR('SA10'!M10),0,('SA10'!M10)) -> 0.9426567719
K39: `
A40: =A16 -> Long term investments committed
A41: Balance (Insert description; eg sinking fund)
C42: =SUM(C41:C41) -> 0 | D42: 0 | E42: 0 | F42: 0 | G42: 0 | H42: 0 | I42: 0 | J42: 0 | K42: 0 | L42: 0
A43: =A17 -> Reserves to be backed by cash/investments
A44: ='SA3'!A160 -> Housing Development Fund | C44: ='SA3'!C160 -> 0 | D44: ='SA3'!D160 -> 0 | E44: ='SA3'!E160 -> 0 | F44: ='SA3'!F160 -> 0 | G44: ='SA3'!G160 -> 0 | H44: ='SA3'!H160 -> 0 | I44: ='SA3'!I160 -> 0 | J44: ='SA3'!J160 -> 0 | K44: ='SA3'!K160 -> 0 | L44: ='SA3'!L160 -> 0
A45: ='SA3'!A161 -> Capital replacement | C45: ='SA3'!C161 -> 0 | D45: ='SA3'!C161 -> 0 | E45: ='SA3'!C161 -> 0 | F45: ='SA3'!C161 -> 0 | G45: ='SA3'!C161 -> 0 | H45: ='SA3'!C161 -> 0 | I45: ='SA3'!C161 -> 0 | J45: ='SA3'!C161 -> 0 | K45: ='SA3'!C161 -> 0 | L45: ='SA3'!C161 -> 0
A46: ='SA3'!A162 -> Self-insurance | C46: ='SA3'!C162 -> 0 | D46: ='SA3'!C162 -> 0 | E46: ='SA3'!C162 -> 0 | F46: ='SA3'!C162 -> 0 | G46: ='SA3'!C162 -> 0 | H46: ='SA3'!C162 -> 0 | I46: ='SA3'!C162 -> 0 | J46: ='SA3'!C162 -> 0 | K46: ='SA3'!C162 -> 0 | L46: ='SA3'!C162 -> 0
A47: ='SA3'!C163 -> 0 | C47: ='SA3'!C163 -> 0 | D47: ='SA3'!C163 -> 0 | E47: ='SA3'!C163 -> 0 | F47: ='SA3'!C163 -> 0 | G47: ='SA3'!C163 -> 0 | H47: ='SA3'!C163 -> 0 | I47: ='SA3'!C163 -> 0 | J47: ='SA3'!C163 -> 0 | K47: ='SA3'!C163 -> 0 | L47: ='SA3'!C163 -> 0
A48: ='SA3'!C164 -> 0 | C48: ='SA3'!C164 -> 0 | D48: ='SA3'!C164 -> 0 | E48: ='SA3'!C164 -> 0 | F48: ='SA3'!C164 -> 0 | G48: ='SA3'!C164 -> 0 | H48: ='SA3'!C164 -> 0 | I48: ='SA3'!C164 -> 0 | J48: ='SA3'!C164 -> 0 | K48: ='SA3'!C164 -> 0 | L48: ='SA3'!C164 -> 0
C49: =SUM(C44:C48) -> 0 | D49: 0 | E49: 0 | F49: 0 | G49: 0 | H49: 0 | I49: 0 | J49: 0 | K49: 0 | L49: 0

Sheet A9-Asset
A1: =muni&" - "&Approve9 -> LIM351 Blouberg - Table A9 Asset Management
A2: =desc -> Description | B2: =head27 -> Ref | C2: =head1b -> 2017/18 | D2: =head1A -> 2018/19 | E2: =Head1 -> 2019/20 | F2: =Head2 -> Current Year 2020/21 | I2: =Head3 -> 2021/22 Medium Term Revenue & Expenditure Framework
A3: R thousand | C3: =Head5 -> Audited Outcome | D3: =Head5 -> Audited Outcome | E3: =Head5 -> Audited Outcome | F3: =Head6 -> Original Budget | G3: =Head7 -> Adjusted Budget | H3: =Head8 -> Full Year Forecast | I3: =Head9 -> Budget Year 2021/22 | J3: =Head10 -> Budget Year +1 2022/23 | K3: =Head11 -> Budget Year +2 2023/24
A4: CAPITAL EXPENDITURE
A5: Total New Assets | B5: 1 | C5: =C15+C18+C19+C22+C25+C26+SUM(C29:C35) -> 36098769.79 | D5: =D15+D18+D19+D22+D25+D26+SUM(D29:D35) -> 1593837.2 | E5: 1002170.69 | F5: 60873788 | G5: 67983035 | H5: 67983035 | I5: 59709099 | J5: 34867401 | K5: 41209000
A6: Roads Infrastructure | C6: =SA34a!C7 -> 20187191.49 | D6: =SA34a!D7 -> 0 | E6: =SA34a!E7 -> 0 | F6: =SA34a!F7 -> 23758518 | G6: =SA34a!G7 -> 24549695 | H6: =SA34a!H7 -> 24549695 | I6: =SA34a!I7 -> 12941483 | J6: =SA34a!J7 -> 0 | K6: =SA34a!K7 -> 0
A7: Storm water Infrastructure | C7: =SA34a!C12 -> 0 | D7: =SA34a!D12 -> 0 | E7: =SA34a!E12 -> 0 | F7: =SA34a!F12 -> 0 | G7: =SA34a!G12 -> 0 | H7: =SA34a!H12 -> 0 | I7: =SA34a!I12 -> 0 | J7: =SA34a!J12 -> 0 | K7: =SA34a!K12 -> 0
A8: Electrical Infrastructure | C8: =SA34a!C16 -> -6708935.49 | D8: =SA34a!D16 -> 1018018.33 | E8: =SA34a!E16 -> 460879.05 | F8: =SA34a!F16 -> 6550000 | G8: =SA34a!G16 -> 13194183 | H8: =SA34a!H16 -> 13194183 | I8: =SA34a!I16 -> 1550000 | J8: =SA34a!J16 -> 24900000 | K8: =SA34a!K16 -> 23636000
A9: Water Supply Infrastructure | C9: =SA34a!C26 -> 0 | D9: =SA34a!D26 -> 0 | E9: =SA34a!E26 -> 0 | F9: =SA34a!F26 -> 0 | G9: =SA34a!G26 -> 0 | H9: =SA34a!H26 -> 0 | I9: =SA34a!I26 -> 0 | J9: =SA34a!J26 -> 0 | K9: =SA34a!K26 -> 0
A10: Sanitation Infrastructure | C10: =SA34a!C37 -> 0 | D10: =SA34a!D37 -> 0 | E10: =SA34a!E37 -> 0 | F10: =SA34a!F37 -> 0 | G10: =SA34a!G37 -> 0 | H10: =SA34a!H37 -> 0 | I10: =SA34a!I37 -> 0 | J10: =SA34a!J37 -> 0 | K10: =SA34a!K37 -> 0
A11: Solid Waste Infrastructure | C11: =SA34a!C44 -> 739570.03 | D11: =SA34a!D44 -> 0 | E11: =SA34a!E44 -> 0 | F11: =SA34a!F44 -> 0 | G11: =SA34a!G44 -> 0 | H11: =SA34a!H44 -> 0 | I11: =SA34a!I44 -> 0 | J11: =SA34a!J44 -> 0 | K11: =SA34a!K44 -> 0
A12: Rail Infrastructure | C12: =SA34a!C52 -> 0 | D12: =SA34a!D52 -> 0 | E12: =SA34a!E52 -> 0 | F12: =SA34a!F52 -> 0 | G12: =SA34a!G52 -> 0 | H12: =SA34a!H52 -> 0 | I12: =SA34a!I52 -> 0 | J12: =SA34a!J52 -> 0 | K12: =SA34a!K52 -> 0
A13: Coastal Infrastructure | C13: =SA34a!C62 -> 0 | D13: =SA34a!D62 -> 0 | E13: =SA34a!E62 -> 0 | F13: =SA34a!F62 -> 0 | G13: =SA34a!G62 -> 0 | H13: =SA34a!H62 -> 0 | I13: =SA34a!I62 -> 0 | J13: =SA34a!J62 -> 0 | K13: =SA34a!K62 -> 0
A14: Information and Communication Infrastructure | C14: =SA34a!C68 -> 0 | D14: =SA34a!D68 -> 0 | E14: =SA34a!E68 -> 0 | F14: =SA34a!F68 -> 0 | G14: =SA34a!G68 -> 0 | H14: =SA34a!H68 -> 0 | I14: =SA34a!I68 -> 0 | J14: =SA34a!J68 -> 0 | K14: =SA34a!K68 -> 0
A15: Infrastructure | C15: =SUM(C6:C14) -> 14217826.03 | D15: =SUM(D6:D14) -> 1018018.33 | E15: 460879.05 | F15: 30308518 | G15: 37743878 | H15: 37743878 | I15: 14491483 | J15: 24900000 | K15: 23636000
A16: Community Facilities | C16: =SA34a!C75 -> 0 | D16: =SA34a!D75 -> 0 | E16: =SA34a!E75 -> 191724.96 | F16: =SA34a!F75 -> 1300000 | G16: =SA34a!G75 -> 1350000 | H16: =SA34a!H75 -> 1350000 | I16: =SA34a!I75 -> 350000 | J16: =SA34a!J75 -> 750000 | K16: =SA34a!K75 -> 800000
A17: Sport and Recreation Facilities | C17: =SA34a!C98 -> 15223683.41 | D17: =SA34a!D98 -> 0 | E17: =SA34a!E98 -> 163312 | F17: =SA34a!F98 -> 18104183 | G17: =SA34a!G98 -> 22229070 | H17: =SA34a!H98 -> 22229070 | I17: =SA34a!I98 -> 39982616 | J17: =SA34a!J98 -> 2520401 | K17: =SA34a!K98 -> 10000000
A18: Community Assets | C18: =SUM(C16:C17) -> 15223683.41 | D18: =SUM(D16:D17) -> 0 | E18: 355036.96 | F18: 19404183 | G18: 23579070 | H18: 23579070 | I18: 40332616 | J18: 3270401 | K18: 10800000
A19: Heritage Assets | C19: =SA34a!C103 -> 0 | D19: =SA34a!D103 -> 0 | E19: =SA34a!E103 -> 0 | F19: =SA34a!F103 -> 0 | G19: =SA34a!G103 -> 0 | H19: =SA34a!H103 -> 0 | I19: =SA34a!I103 -> 0 | J19: =SA34a!J103 -> 0 | K19: =SA34a!K103 -> 0
A20: Revenue Generating | C20: =SA34a!C111 -> 0 | D20: =SA34a!D111 -> 0 | E20: =SA34a!E111 -> 0 | F20: =SA34a!F111 -> 0 | G20: =SA34a!G111 -> 0 | H20: =SA34a!H111 -> 0 | I20: =SA34a!I111 -> 0 | J20: =SA34a!J111 -> 0 | K20: =SA34a!K111 -> 0
A21: Non-revenue Generating | C21: =SA34a!C114 -> 0 | D21: =SA34a!D114 -> 0 | E21: =SA34a!E114 -> 0 | F21: =SA34a!F114 -> 0 | G21: =SA34a!G114 -> 0 | H21: =SA34a!H114 -> 0 | I21: =SA34a!I114 -> 0 | J21: =SA34a!J114 -> 0 | K21: =SA34a!K114 -> 0
A22: Investment properties | C22: =SUM(C20:C21) -> 0 | D22: =SUM(D20:D21) -> 0 | E22: 0 | F22: 0 | G22: 0 | H22: 0 | I22: 0 | J22: 0 | K22: 0
A23: Operational Buildings | C23: =SA34a!C119 -> 44243.86 | D23: =SA34a!D119 -> 0 | E23: =SA34a!E119 -> 0 | F23: =SA34a!F119 -> 750000 | G23: =SA34a!G119 -> 800000 | H23: =SA34a!H119 -> 800000 | I23: =SA34a!I119 -> 0 | J23: =SA34a!J119 -> 0 | K23: =SA34a!K119 -> 50000
A24: Housing | C24: =SA34a!C131 -> 0 | D24: =SA34a!D131 -> 0 | E24: =SA34a!E131 -> 0 | F24: =SA34a!F131 -> 0 | G24: =SA34a!G131 -> 0 | H24: =SA34a!H131 -> 0 | I24: =SA34a!I131 -> 0 | J24: =SA34a!J131 -> 0 | K24: =SA34a!K131 -> 0
A25: Other Assets | C25: =SUM(C23:C24) -> 44243.86 | D25: =SUM(D23:D24) -> 0 | E25: 0 | F25: 750000 | G25: 800000 | H25: 800000 | I25: 0 | J25: 0 | K25: 50000
A26: Biological or Cultivated Assets | C26: =SA34a!C136 -> 0 | D26: =SA34a!D136 -> 0 | E26: =SA34a!E136 -> 0 | F26: =SA34a!F136 -> 0 | G26: =SA34a!G136 -> 0 | H26: =SA34a!H136 -> 0 | I26: =SA34a!I136 -> 0 | J26: =SA34a!J136 -> 0 | K26: =SA34a!K136 -> 0
A27: Servitudes | C27: =SA34a!C140 -> 0 | D27: =SA34a!D140 -> 0 | E27: =SA34a!E140 -> 0 | F27: =SA34a!F140 -> 0 | G27: =SA34a!G140 -> 0 | H27: =SA34a!H140 -> 0 | I27: =SA34a!I140 -> 0 | J27: =SA34a!J140 -> 0 | K27: =SA34a!K140 -> 0
A28: Licences and Rights | C28: =SA34a!C141 -> 156500 | D28: =SA34a!D141 -> 0 | E28: =SA34a!E141 -> 0 | F28: =SA34a!F141 -> 1998000 | G28: =SA34a!G141 -> 1458000 | H28: =SA34a!H141 -> 1458000 | I28: =SA34a!I141 -> 239000 | J28: =SA34a!J141 -> 341000 | K28: =SA34a!K141 -> 343000
A29: Intangible Assets | C29: =SUM(C27:C28) -> 156500 | D29: =SUM(D27:D28) -> 0 | E29: 0 | F29: 1998000 | G29: 1458000 | H29: 1458000 | I29: 239000 | J29: 341000 | K29: 343000
A30: Computer Equipment | C30: =SA34a!C149 -> 726705.27 | D30: =SA34a!D149 -> 575818.87 | E30: =SA34a!E149 -> 186254.68 | F30: =SA34a!F149 -> 2860000 | G30: =SA34a!G149 -> 1200000 | H30: =SA34a!H149 -> 1200000 | I30: =SA34a!I149 -> 2700000 | J30: =SA34a!J149 -> 2910000 | K30: =SA34a!K149 -> 3020000
A31: Furniture and Office Equipment | C31: =SA34a!C152 -> 1185796.9 | D31: =SA34a!D152 -> 0 | E31: =SA34a!E152 -> 0 | F31: =SA34a!F152 -> 320000 | G31: =SA34a!G152 -> 60000 | H31: =SA34a!H152 -> 60000 | I31: =SA34a!I152 -> 133000 | J31: =SA34a!J152 -> 246000 | K31: =SA34a!K152 -> 260000
A32: Machinery and Equipment | C32: =SA34a!C155 -> 0 | D32: =SA34a!D155 -> 0 | E32: =SA34a!E155 -> 0 | F32: =SA34a!F155 -> 3433087 | G32: =SA34a!G155 -> 2442087 | H32: =SA34a!H155 -> 2442087 | I32: =SA34a!I155 -> 513000 | J32: =SA34a!J155 -> 700000 | K32: =SA34a!K155 -> 600000
A33: Transport Assets | C33: =SA34a!C158 -> 4544014.32 | D33: =SA34a!D158 -> 0 | E33: =SA34a!E158 -> 0 | F33: =SA34a!F158 -> 1800000 | G33: =SA34a!G158 -> 700000 | H33: =SA34a!H158 -> 700000 | I33: =SA34a!I158 -> 1300000 | J33: =SA34a!J158 -> 2500000 | K33: =SA34a!K158 -> 2500000
A34: Land | C34: =SA34a!C161 -> 0 | D34: =SA34a!D161 -> 0 | E34: =SA34a!E161 -> 0 | F34: =SA34a!F161 -> 0 | G34: =SA34a!G161 -> 0 | H34: =SA34a!H161 -> 0 | I34: =SA34a!I161 -> 0 | J34: =SA34a!J161 -> 0 | K34: =SA34a!K161 -> 0
A35: Zoo's, Marine and Non-biological Animals | C35: =SA34a!C164 -> 0 | D35: =SA34a!D164 -> 0 | E35: =SA34a!E164 -> 0 | F35: =SA34a!F164 -> 0 | G35: =SA34a!G164 -> 0 | H35: =SA34a!H164 -> 0 | I35: =SA34a!I164 -> 0 | J35: =SA34a!J164 -> 0 | K35: =SA34a!K164 -> 0
A37: Total Renewal of Existing Assets | B37: 2 | C37: =C47+C50+C51+C54+C57+C58+SUM(C61:C67) -> 0 | D37: =D47+D50+D51+D54+D57+D58+SUM(D61:D67) -> 244079.6 | E37: 391300 | F37: 0 | G37: 0 | H37: 0 | I37: 4586284 | J37: 48735599 | K37: 43480880
A38: Roads Infrastructure | C38: =SA34b!C7 -> 0 | D38: =SA34b!D7 -> 0 | E38: =SA34b!E7 -> 0 | F38: =SA34b!F7 -> 0 | G38: =SA34b!G7 -> 0 | H38: =SA34b!H7 -> 0 | I38: =SA34b!I7 -> 3839901 | J38: =SA34b!J7 -> 47887599 | K38: =SA34b!K7 -> 42582000
A39: Storm water Infrastructure | C39: =SA34b!C12 -> 0 | D39: =SA34b!D12 -> 0 | E39: =SA34b!E12 -> 0 | F39: =SA34b!F12 -> 0 | G39: =SA34b!G12 -> 0 | H39: =SA34b!H12 -> 0 | I39: =SA34b!I12 -> 0 | J39: =SA34b!J12 -> 0 | K39: =SA34b!K12 -> 0
A40: Electrical Infrastructure | C40: =SA34b!C16 -> 0 | D40: =SA34b!D16 -> 0 | E40: =SA34b!E16 -> 0 | F40: =SA34b!F16 -> 0 | G40: =SA34b!G16 -> 0 | H40: =SA34b!H16 -> 0 | I40: =SA34b!I16 -> 746383 | J40: =SA34b!J16 -> 848000 | K40: =SA34b!K16 -> 898880
A41: Water Supply Infrastructure | C41: =SA34b!C26 -> 0 | D41: =SA34b!D26 -> 0 | E41: =SA34b!E26 -> 77600 | F41: =SA34b!F26 -> 0 | G41: =SA34b!G26 -> 0 | H41: =SA34b!H26 -> 0 | I41: =SA34b!I26 -> 0 | J41: =SA34b!J26 -> 0 | K41: =SA34b!K26 -> 0
A42: Sanitation Infrastructure | C42: =SA34b!C37 -> 0 | D42: =SA34b!D37 -> 0 | E42: =SA34b!E37 -> 0 | F42: =SA34b!F37 -> 0 | G42: =SA34b!G37 -> 0 | H42: =SA34b!H37 -> 0 | I42: =SA34b!I37 -> 0 | J42: =SA34b!J37 -> 0 | K42: =SA34b!K37 -> 0
A43: Solid Waste Infrastructure | C43: =SA34b!C44 -> 0 | D43: =SA34b!D44 -> 0 | E43: =SA34b!E44 -> 0 | F43: =SA34b!F44 -> 0 | G43: =SA34b!G44 -> 0 | H43: =SA34b!H44 -> 0 | I43: =SA34b!I44 -> 0 | J43: =SA34b!J44 -> 0 | K43: =SA34b!K44 -> 0
A44: Rail Infrastructure | C44: =SA34b!C52 -> 0 | D44: =SA34b!D52 -> 0 | E44: =SA34b!E52 -> 0 | F44: =SA34b!F52 -> 0 | G44: =SA34b!G52 -> 0 | H44: =SA34b!H52 -> 0 | I44: =SA34b!I52 -> 0 | J44: =SA34b!J52 -> 0 | K44: =SA34b!K52 -> 0
A45: Coastal Infrastructure | C45: =SA34b!C62 -> 0 | D45: =SA34b!D62 -> 0 | E45: =SA34b!E62 -> 0 | F45: =SA34b!F62 -> 0 | G45: =SA34b!G62 -> 0 | H45: =SA34b!H62 -> 0 | I45: =SA34b!I62 -> 0 | J45: =SA34b!J62 -> 0 | K45: =SA34b!K62 -> 0
A46: Information and Communication Infrastructure | C46: =SA34b!C68 -> 0 | D46: =SA34b!D68 -> 0 | E46: =SA34b!E68 -> 0 | F46: =SA34b!F68 -> 0 | G46: =SA34b!G68 -> 0 | H46: =SA34b!H68 -> 0 | I46: =SA34b!I68 -> 0 | J46: =SA34b!J68 -> 0 | K46: =SA34b!K68 -> 0
A47: Infrastructure | C47: =SUM(C38:C46) -> 0 | D47: =SUM(D38:D46) -> 0 | E47: 77600 | F47: 0 | G47: 0 | H47: 0 | I47: 4586284 | J47: 48735599 | K47: 43480880
A48: Community Facilities | C48: =SA34b!C75 -> 0 | D48: =SA34b!D75 -> 0 | E48: =SA34b!E75 -> 234400 | F48: =SA34b!F75 -> 0 | G48: =SA34b!G75 -> 0 | H48: =SA34b!H75 -> 0 | I48: =SA34b!I75 -> 0 | J48: =SA34b!J75 -> 0 | K48: =SA34b!K75 -> 0
A49: Sport and Recreation Facilities | C49: =SA34b!C98 -> 0 | D49: =SA34b!D98 -> 0 | E49: =SA34b!E98 -> 0 | F49: =SA34b!F98 -> 0 | G49: =SA34b!G98 -> 0 | H49: =SA34b!H98 -> 0 | I49: =SA34b!I98 -> 0 | J49: =SA34b!J98 -> 0 | K49: =SA34b!K98 -> 0
A50: Community Assets | C50: =SUM(C48:C49) -> 0 | D50: =SUM(D48:D49) -> 0 | E50: 234400 | F50: 0 | G50: 0 | H50: 0 | I50: 0 | J50: 0 | K50: 0
A51: Heritage Assets | C51: =SA34b!C103 -> 0 | D51: =SA34b!D103 -> 0 | E51: =SA34b!E103 -> 0 | F51: =SA34b!F103 -> 0 | G51: =SA34b!G103 -> 0 | H51: =SA34b!H103 -> 0 | I51: =SA34b!I103 -> 0 | J51: =SA34b!J103 -> 0 | K51: =SA34b!K103 -> 0
A52: Revenue Generating | C52: =SA34b!C111 -> 0 | D52: =SA34b!D111 -> 0 | E52: =SA34b!E111 -> 0 | F52: =SA34b!F111 -> 0 | G52: =SA34b!G111 -> 0 | H52: =SA34b!H111 -> 0 | I52: =SA34b!I111 -> 0 | J52: =SA34b!J111 -> 0 | K52: =SA34b!K111 -> 0
A53: Non-revenue Generating | C53: =SA34b!C114 -> 0 | D53: =SA34b!D114 -> 0 | E53: =SA34b!E114 -> 0 | F53: =SA34b!F114 -> 0 | G53: =SA34b!G114 -> 0 | H53: =SA34b!H114 -> 0 | I53: =SA34b!I114 -> 0 | J53: =SA34b!J114 -> 0 | K53: =SA34b!K114 -> 0
A54: Investment properties | C54: =SUM(C52:C53) -> 0 | D54: =SUM(D52:D53) -> 0 | E54: 0 | F54: 0 | G54: 0 | H54: 0 | I54: 0 | J54: 0 | K54: 0
A55: Operational Buildings | C55: =SA34b!C119 -> 0 | D55: =SA34b!D119 -> 0 | E55: =SA34b!E119 -> 0 | F55: =SA34b!F119 -> 0 | G55: =SA34b!G119 -> 0 | H55: =SA34b!H119 -> 0 | I55: =SA34b!I119 -> 0 | J55: =SA34b!J119 -> 0 | K55: =SA34b!K119 -> 0
A56: Housing | C56: =SA34b!C131 -> 0 | D56: =SA34b!D131 -> 0 | E56: =SA34b!E131 -> 0 | F56: =SA34b!F131 -> 0 | G56: =SA34b!G131 -> 0 | H56: =SA34b!H131 -> 0 | I56: =SA34b!I131 -> 0 | J56: =SA34b!J131 -> 0 | K56: =SA34b!K131 -> 0
A57: Other Assets | C57: =SUM(C55:C56) -> 0 | D57: =SUM(D55:D56) -> 0 | E57: 0 | F57: 0 | G57: 0 | H57: 0 | I57: 0 | J57: 0 | K57: 0
A58: Biological or Cultivated Assets | C58: =SA34b!C136 -> 0 | D58: =SA34b!D136 -> 0 | E58: =SA34b!E136 -> 0 | F58: =SA34b!F136 -> 0 | G58: =SA34b!G136 -> 0 | H58: =SA34b!H136 -> 0 | I58: =SA34b!I136 -> 0 | J58: =SA34b!J136 -> 0 | K58: =SA34b!K136 -> 0
A59: Servitudes | C59: =SA34b!C140 -> 0 | D59: =SA34b!D140 -> 0 | E59: =SA34b!E140 -> 0 | F59: =SA34b!F140 -> 0 | G59: =SA34b!G140 -> 0 | H59: =SA34b!H140 -> 0 | I59: =SA34b!I140 -> 0 | J59: =SA34b!J140 -> 0 | K59: =SA34b!K140 -> 0
A60: Licences and Rights | C60: =SA34b!C141 -> 0 | D60: =SA34b!D141 -> 0 | E60: =SA34b!E141 -> 0 | F60: =SA34b!F141 -> 0 | G60: =SA34b!G141 -> 0 | H60: =SA34b!H141 -> 0 | I60: =SA34b!I141 -> 0 | J60: =SA34b!J141 -> 0 | K60: =SA34b!K141 -> 0
A61: Intangible Assets | C61: =SUM(C59:C60) -> 0 | D61: =SUM(D59:D60) -> 0 | E61: 0 | F61: 0 | G61: 0 | H61: 0 | I61: 0 | J61: 0 | K61: 0
A62: Computer Equipment | C62: =SA34b!C149 -> 0 | D62: =SA34b!D149 -> 0 | E62: =SA34b!E149 -> 0 | F62: =SA34b!F149 -> 0 | G62: =SA34b!G149 -> 0 | H62: =SA34b!H149 -> 0 | I62: =SA34b!I149 -> 0 | J62: =SA34b!J149 -> 0 | K62: =SA34b!K149 -> 0
A63: Furniture and Office Equipment | C63: =SA34b!C152 -> 0 | D63: =SA34b!D152 -> 244079.6 | E63: =SA34b!E152 -> 79300 | F63: =SA34b!F152 -> 0 | G63: =SA34b!G152 -> 0 | H63: =SA34b!H152 -> 0 | I63: =SA34b!I152 -> 0 | J63: =SA34b!J152 -> 0 | K63: =SA34b!K152 -> 0
A64: Machinery and Equipment | C64: =SA34b!C155 -> 0 | D64: =SA34b!D155 -> 0 | E64: =SA34b!E155 -> 0 | F64: =SA34b!F155 -> 0 | G64: =SA34b!G155 -> 0 | H64: =SA34b!H155 -> 0 | I64: =SA34b!I155 -> 0 | J64: =SA34b!J155 -> 0 | K64: =SA34b!K155 -> 0
A65: Transport Assets | C65: =SA34b!C158 -> 0 | D65: =SA34b!D158 -> 0 | E65: =SA34b!E158 -> 0 | F65: =SA34b!F158 -> 0 | G65: =SA34b!G158 -> 0 | H65: =SA34b!H158 -> 0 | I65: =SA34b!I158 -> 0 | J65: =SA34b!J158 -> 0 | K65: =SA34b!K158 -> 0
A66: Land | C66: =SA34b!C161 -> 0 | D66: =SA34b!D161 -> 0 | E66: =SA34b!E161 -> 0 | F66: =SA34b!F161 -> 0 | G66: =SA34b!G161 -> 0 | H66: =SA34b!H161 -> 0 | I66: =SA34b!I161 -> 0 | J66: =SA34b!J161 -> 0 | K66: =SA34b!K161 -> 0
A67: Zoo's, Marine and Non-biological Animals | C67: =SA34b!C164 -> 0 | D67: =SA34b!D164 -> 0 | E67: =SA34b!E164 -> 0 | F67: =SA34b!F164 -> 0 | G67: =SA34b!G164 -> 0 | H67: =SA34b!H164 -> 0 | I67: =SA34b!I164 -> 0 | J67: =SA34b!J164 -> 0 | K67: =SA34b!K164 -> 0
A69: Total Upgrading of Existing Assets | B69: 6 | C69: =C79+C82+C83+C86+C89+C90+SUM(C93:C99) -> 0 | D69: =D79+D82+D83+D86+D89+D90+SUM(D93:D99) -> 255141.31 | E69: 899220.77 | F69: 0 | G69: 1600000 | H69: 1600000 | I69: 600000 | J69: 0 | K69: 0
A70: Roads Infrastructure | C70: =SA34e!C7 -> 0 | D70: =SA34e!D7 -> 0 | E70: =SA34e!E7 -> 0 | F70: =SA34e!F7 -> 0 | G70: =SA34e!G7 -> 0 | H70: =SA34e!H7 -> 0 | I70: =SA34e!I7 -> 0 | J70: =SA34e!J7 -> 0 | K70: =SA34e!K7 -> 0
A71: Storm water Infrastructure | C71: =SA34e!C12 -> 0 | D71: =SA34e!D12 -> 0 | E71: =SA34e!E12 -> 0 | F71: =SA34e!F12 -> 0 | G71: =SA34e!G12 -> 0 | H71: =SA34e!H12 -> 0 | I71: =SA34e!I12 -> 0 | J71: =SA34e!J12 -> 0 | K71: =SA34e!K12 -> 0
A72: Electrical Infrastructure | C72: =SA34e!C16 -> 0 | D72: =SA34e!D16 -> 0 | E72: =SA34e!E16 -> 0 | F72: =SA34e!F16 -> 0 | G72: =SA34e!G16 -> 0 | H72: =SA34e!H16 -> 0 | I72: =SA34e!I16 -> 0 | J72: =SA34e!J16 -> 0 | K72: =SA34e!K16 -> 0
A73: Water Supply Infrastructure | C73: =SA34e!C26 -> 0 | D73: =SA34e!D26 -> 0 | E73: =SA34e!E26 -> 0 | F73: =SA34e!F26 -> 0 | G73: =SA34e!G26 -> 0 | H73: =SA34e!H26 -> 0 | I73: =SA34e!I26 -> 0 | J73: =SA34e!J26 -> 0 | K73: =SA34e!K26 -> 0
A74: Sanitation Infrastructure | C74: =SA34e!C37 -> 0 | D74: =SA34e!D37 -> 0 | E74: =SA34e!E37 -> 0 | F74: =SA34e!F37 -> 0 | G74: =SA34e!G37 -> 0 | H74: =SA34e!H37 -> 0 | I74: =SA34e!I37 -> 0 | J74: =SA34e!J37 -> 0 | K74: =SA34e!K37 -> 0
A75: Solid Waste Infrastructure | C75: =SA34e!C44 -> 0 | D75: =SA34e!D44 -> 0 | E75: =SA34e!E44 -> 0 | F75: =SA34e!F44 -> 0 | G75: =SA34e!G44 -> 0 | H75: =SA34e!H44 -> 0 | I75: =SA34e!I44 -> 0 | J75: =SA34e!J44 -> 0 | K75: =SA34e!K44 -> 0
A76: Rail Infrastructure | C76: =SA34e!C52 -> 0 | D76: =SA34e!D52 -> 0 | E76: =SA34e!E52 -> 0 | F76: =SA34e!F52 -> 0 | G76: =SA34e!G52 -> 0 | H76: =SA34e!H52 -> 0 | I76: =SA34e!I52 -> 0 | J76: =SA34e!J52 -> 0 | K76: =SA34e!K52 -> 0
A77: Coastal Infrastructure | C77: =SA34e!C62 -> 0 | D77: =SA34e!D62 -> 0 | E77: =SA34e!E62 -> 0 | F77: =SA34e!F62 -> 0 | G77: =SA34e!G62 -> 0 | H77: =SA34e!H62 -> 0 | I77: =SA34e!I62 -> 0 | J77: =SA34e!J62 -> 0 | K77: =SA34e!K62 -> 0
A78: Information and Communication Infrastructure | C78: =SA34e!C68 -> 0 | D78: =SA34e!D68 -> 0 | E78: =SA34e!E68 -> 0 | F78: =SA34e!F68 -> 0 | G78: =SA34e!G68 -> 0 | H78: =SA34e!H68 -> 0 | I78: =SA34e!I68 -> 0 | J78: =SA34e!J68 -> 0 | K78: =SA34e!K68 -> 0
A79: Infrastructure | C79: =SUM(C70:C78) -> 0 | D79: 0 | E79: 0 | F79: 0 | G79: 0 | H79: 0 | I79: 0 | J79: 0 | K79: 0
A80: Community Facilities | C80: =SA34e!C75 -> 0 | D80: =SA34e!D75 -> 0 | E80: =SA34e!E75 -> 0 | F80: =SA34e!F75 -> 0 | G80: =SA34e!G75 -> 0 | H80: =SA34e!H75 -> 0 | I80: =SA34e!I75 -> 0 | J80: =SA34e!J75 -> 0 | K80: =SA34e!K75 -> 0
A81: Sport and Recreation Facilities | C81: =SA34e!C98 -> 0 | D81: =SA34e!D98 -> 0 | E81: =SA34e!E98 -> 0 | F81: =SA34e!F98 -> 0 | G81: =SA34e!G98 -> 0 | H81: =SA34e!H98 -> 0 | I81: =SA34e!I98 -> 0 | J81: =SA34e!J98 -> 0 | K81: =SA34e!K98 -> 0
A82: Community Assets | C82: =SUM(C80:C81) -> 0 | D82: 0 | E82: 0 | F82: 0 | G82: 0 | H82: 0 | I82: 0 | J82: 0 | K82: 0
A83: Heritage Assets | C83: =SA34e!C103 -> 0 | D83: =SA34e!D103 -> 0 | E83: =SA34e!E103 -> 0 | F83: =SA34e!F103 -> 0 | G83: =SA34e!G103 -> 0 | H83: =SA34e!H103 -> 0 | I83: =SA34e!I103 -> 0 | J83: =SA34e!J103 -> 0 | K83: =SA34e!K103 -> 0
A84: Revenue Generating | C84: =SA34e!C111 -> 0 | D84: =SA34e!D111 -> 0 | E84: =SA34e!E111 -> 0 | F84: =SA34e!F111 -> 0 | G84: =SA34e!G111 -> 0 | H84: =SA34e!H111 -> 0 | I84: =SA34e!I111 -> 0 | J84: =SA34e!J111 -> 0 | K84: =SA34e!K111 -> 0
A85: Non-revenue Generating | C85: =SA34e!C114 -> 0 | D85: =SA34e!D114 -> 0 | E85: =SA34e!E114 -> 0 | F85: =SA34e!F114 -> 0 | G85: =SA34e!G114 -> 0 | H85: =SA34e!H114 -> 0 | I85: =SA34e!I114 -> 0 | J85: =SA34e!J114 -> 0 | K85: =SA34e!K114 -> 0
A86: Investment properties | C86: =SUM(C84:C85) -> 0 | D86: 0 | E86: 0 | F86: 0 | G86: 0 | H86: 0 | I86: 0 | J86: 0 | K86: 0
A87: Operational Buildings | C87: =SA34e!C119 -> 0 | D87: =SA34e!D119 -> 0 | E87: =SA34e!E119 -> 0 | F87: =SA34e!F119 -> 0 | G87: =SA34e!G119 -> 0 | H87: =SA34e!H119 -> 0 | I87: =SA34e!I119 -> 0 | J87: =SA34e!J119 -> 0 | K87: =SA34e!K119 -> 0
A88: Housing | C88: =SA34e!C131 -> 0 | D88: =SA34e!D131 -> 0 | E88: =SA34e!E131 -> 0 | F88: =SA34e!F131 -> 0 | G88: =SA34e!G131 -> 0 | H88: =SA34e!H131 -> 0 | I88: =SA34e!I131 -> 0 | J88: =SA34e!J131 -> 0 | K88: =SA34e!K131 -> 0
A89: Other Assets | C89: =SUM(C87:C88) -> 0 | D89: 0 | E89: 0 | F89: 0 | G89: 0 | H89: 0 | I89: 0 | J89: 0 | K89: 0
A90: Biological or Cultivated Assets | C90: =SA34e!C136 -> 0 | D90: =SA34e!D136 -> 0 | E90: =SA34e!E136 -> 0 | F90: =SA34e!F136 -> 0 | G90: =SA34e!G136 -> 0 | H90: =SA34e!H136 -> 0 | I90: =SA34e!I136 -> 0 | J90: =SA34e!J136 -> 0 | K90: =SA34e!K136 -> 0
A91: Servitudes | C91: =SA34e!C140 -> 0 | D91: =SA34e!D140 -> 0 | E91: =SA34e!E140 -> 0 | F91: =SA34e!F140 -> 0 | G91: =SA34e!G140 -> 0 | H91: =SA34e!H140 -> 0 | I91: =SA34e!I140 -> 0 | J91: =SA34e!J140 -> 0 | K91: =SA34e!K140 -> 0
A92: Licences and Rights | C92: =SA34e!C141 -> 0 | D92: =SA34e!D141 -> 0 | E92: =SA34e!E141 -> 0 | F92: =SA34e!F141 -> 0 | G92: =SA34e!G141 -> 0 | H92: =SA34e!H141 -> 0 | I92: =SA34e!I141 -> 0 | J92: =SA34e!J141 -> 0 | K92: =SA34e!K141 -> 0
A93: Intangible Assets | C93: =SUM(C91:C92) -> 0 | D93: 0 | E93: 0 | F93: 0 | G93: 0 | H93: 0 | I93: 0 | J93: 0 | K93: 0
A94: Computer Equipment | C94: =SA34e!C149 -> 0 | D94: =SA34e!D149 -> 0 | E94: =SA34e!E149 -> 0 | F94: =SA34e!F149 -> 0 | G94: =SA34e!G149 -> 0 | H94: =SA34e!H149 -> 0 | I94: =SA34e!I149 -> 0 | J94: =SA34e!J149 -> 0 | K94: =SA34e!K149 -> 0
A95: Furniture and Office Equipment | C95: =SA34e!C152 -> 0 | D95: =SA34e!D152 -> 143141.31 | E95: =SA34e!E152 -> 345780 | F95: =SA34e!F152 -> 0 | G95: =SA34e!G152 -> 0 | H95: =SA34e!H152 -> 0 | I95: =SA34e!I152 -> 0 | J95: =SA34e!J152 -> 0 | K95: =SA34e!K152 -> 0
A96: Machinery and Equipment | C96: =SA34e!C155 -> 0 | D96: =SA34e!D155 -> 112000 | E96: =SA34e!E155 -> 553440.77 | F96: =SA34e!F155 -> 0 | G96: =SA34e!G155 -> 1600000 | H96: =SA34e!H155 -> 1600000 | I96: =SA34e!I155 -> 600000 | J96: =SA34e!J155 -> 0 | K96: =SA34e!K155 -> 0
A97: Transport Assets | C97: =SA34e!C158 -> 0 | D97: =SA34e!D158 -> 0 | E97: =SA34e!E158 -> 0 | F97: =SA34e!F158 -> 0 | G97: =SA34e!G158 -> 0 | H97: =SA34e!H158 -> 0 | I97: =SA34e!I158 -> 0 | J97: =SA34e!J158 -> 0 | K97: =SA34e!K158 -> 0
A98: Land | C98: =SA34e!C161 -> 0 | D98: =SA34e!D161 -> 0 | E98: =SA34e!E161 -> 0 | F98: =SA34e!F161 -> 0 | G98: =SA34e!G161 -> 0 | H98: =SA34e!H161 -> 0 | I98: =SA34e!I161 -> 0 | J98: =SA34e!J161 -> 0 | K98: =SA34e!K161 -> 0
A99: Zoo's, Marine and Non-biological Animals | C99: =SA34e!C164 -> 0 | D99: =SA34e!D164 -> 0 | E99: =SA34e!E164 -> 0 | F99: =SA34e!F164 -> 0 | G99: =SA34e!G164 -> 0 | H99: =SA34e!H164 -> 0 | I99: =SA34e!I164 -> 0 | J99: =SA34e!J164 -> 0 | K99: =SA34e!K164 -> 0
A101: Total Capital Expenditure | B101: 4 | C101: =+C5+C37+C69 -> 36098769.79 | D101: =+D5+D37+D69 -> 2093058.11 | E101: 2292691.46 | F101: 60873788 | G101: 69583035 | H101: 69583035 | I101: 64895383 | J101: 83603000 | K101: 84689880
A102: Roads Infrastructure | C102: =+C6+C38+C70 -> 20187191.49 | D102: =+D6+D38+D70 -> 0 | E102: 0 | F102: 23758518 | G102: 24549695 | H102: 24549695 | I102: 16781384 | J102: 47887599 | K102: 42582000
A103: Storm water Infrastructure | C103: =+C7+C39+C71 -> 0 | D103: 0 | E103: 0 | F103: 0 | G103: 0 | H103: 0 | I103: 0 | J103: 0 | K103: 0
A104: Electrical Infrastructure | C104: -6708935.49 | D104: 1018018.33 | E104: 460879.05 | F104: 6550000 | G104: 13194183 | H104: 13194183 | I104: 2296383 | J104: 25748000 | K104: 24534880
A105: Water Supply Infrastructure | C105: 0 | D105: 0 | E105: 77600 | F105: 0 | G105: 0 | H105: 0 | I105: 0 | J105: 0 | K105: 0
A106: Sanitation Infrastructure | C106: 0 | D106: 0 | E106: 0 | F106: 0 | G106: 0 | H106: 0 | I106: 0 | J106: 0 | K106: 0
A107: Solid Waste Infrastructure | C107: 739570.03 | D107: 0 | E107: 0 | F107: 0 | G107: 0 | H107: 0 | I107: 0 | J107: 0 | K107: 0
A108: Rail Infrastructure | C108: 0 | D108: 0 | E108: 0 | F108: 0 | G108: 0 | H108: 0 | I108: 0 | J108: 0 | K108: 0
A109: Coastal Infrastructure | C109: 0 | D109: 0 | E109: 0 | F109: 0 | G109: 0 | H109: 0 | I109: 0 | J109: 0 | K109: 0
A110: Information and Communication Infrastructure | C110: 0 | D110: 0 | E110: 0 | F110: 0 | G110: 0 | H110: 0 | I110: 0 | J110: 0 | K110: 0
A111: Infrastructure | C111: =SUM(C102:C110) -> 14217826.03 | D111: =SUM(D102:D110) -> 1018018.33 | E111: 538479.05 | F111: 30308518 | G111: 37743878 | H111: 37743878 | I111: 19077767 | J111: 73635599 | K111: 67116880
A112: Community Facilities | C112: =+C16+C48+C80 -> 0 | D112: =+D16+D48+D80 -> 0 | E112: 426124.96 | F112: 1300000 | G112: 1350000 | H112: 1350000 | I112: 350000 | J112: 750000 | K112: 800000
A113: Sport and Recreation Facilities | C113: =+C17+C49+C81 -> 15223683.41 | D113: =+D17+D49+D81 -> 0 | E113: 163312 | F113: 18104183 | G113: 22229070 | H113: 22229070 | I113: 39982616 | J113: 2520401 | K113: 10000000
A114: Community Assets | C114: =SUM(C112:C113) -> 15223683.41 | D114: =SUM(D112:D113) -> 0 | E114: 589436.96 | F114: 19404183 | G114: 23579070 | H114: 23579070 | I114: 40332616 | J114: 3270401 | K114: 10800000
A115: Heritage Assets | C115: =+C19+C51+C83 -> 0 | D115: =+D19+D51+D83 -> 0 | E115: 0 | F115: 0 | G115: 0 | H115: 0 | I115: 0 | J115: 0 | K115: 0
A116: Revenue Generating | C116: =+C20+C52+C84 -> 0 | D116: =+D20+D52+D84 -> 0 | E116: 0 | F116: 0 | G116: 0 | H116: 0 | I116: 0 | J116: 0 | K116: 0
A117: Non-revenue Generating | C117: =+C21+C53+C85 -> 0 | D117: =+D21+D53+D85 -> 0 | E117: 0 | F117: 0 | G117: 0 | H117: 0 | I117: 0 | J117: 0 | K117: 0
A118: Investment properties | C118: =SUM(C116:C117) -> 0 | D118: =SUM(D116:D117) -> 0 | E118: 0 | F118: 0 | G118: 0 | H118: 0 | I118: 0 | J118: 0 | K118: 0
A119: Operational Buildings | C119: =+C23+C55+C87 -> 44243.86 | D119: =+D23+D55+D87 -> 0 | E119: 0 | F119: 750000 | G119: 800000 | H119: 800000 | I119: 0 | J119: 0 | K119: 50000
A120: Housing | C120: =+C24+C56+C88 -> 0 | D120: =+D24+D56+D88 -> 0 | E120: 0 | F120: 0 | G120: 0 | H120: 0 | I120: 0 | J120: 0 | K120: 0
A121: Other Assets | C121: =SUM(C119:C120) -> 44243.86 | D121: 0 | E121: 0 | F121: 750000 | G121: 800000 | H121: 800000 | I121: 0 | J121: 0 | K121: 50000
A122: Biological or Cultivated Assets | C122: =+C26+C58+C90 -> 0 | D122: =+D26+D58+D90 -> 0 | E122: 0 | F122: 0 | G122: 0 | H122: 0 | I122: 0 | J122: 0 | K122: 0
A123: Servitudes | C123: =+C27+C59+C91 -> 0 | D123: =+D27+D59+D91 -> 0 | E123: 0 | F123: 0 | G123: 0 | H123: 0 | I123: 0 | J123: 0 | K123: 0
A124: Licences and Rights | C124: =+C28+C60+C92 -> 156500 | D124: =+D28+D60+D92 -> 0 | E124: 0 | F124: 1998000 | G124: 1458000 | H124: 1458000 | I124: 239000 | J124: 341000 | K124: 343000
A125: Intangible Assets | C125: =SUM(C123:C124) -> 156500 | D125: =SUM(D123:D124) -> 0 | E125: 0 | F125: 1998000 | G125: 1458000 | H125: 1458000 | I125: 239000 | J125: 341000 | K125: 343000
A126: Computer Equipment | C126: =+C30+C62+C94 -> 726705.27 | D126: =+D30+D62+D94 -> 575818.87 | E126: 186254.68 | F126: 2860000 | G126: 1200000 | H126: 1200000 | I126: 2700000 | J126: 2910000 | K126: 3020000
A127: Furniture and Office Equipment | C127: =+C31+C63+C95 -> 1185796.9 | D127: 387220.91 | E127: 425080 | F127: 320000 | G127: 60000 | H127: 60000 | I127: 133000 | J127: 246000 | K127: 260000
A128: Machinery and Equipment | C128: 0 | D128: 112000 | E128: 553440.77 | F128: 3433087 | G128: 4042087 | H128: 4042087 | I128: 1113000 | J128: 700000 | K128: 600000
A129: Transport Assets | C129: 4544014.32 | D129: 0 | E129: 0 | F129: 1800000 | G129: 700000 | H129: 700000 | I129: 1300000 | J129: 2500000 | K129: 2500000
A130: Land | C130: 0 | D130: 0 | E130: 0 | F130: 0 | G130: 0 | H130: 0 | I130: 0 | J130: 0 | K130: 0
A131: Zoo's, Marine and Non-biological Animals | C131: 0 | D131: 0 | E131: 0 | F131: 0 | G131: 0 | H131: 0 | I131: 0 | J131: 0 | K131: 0
A132: TOTAL CAPITAL EXPENDITURE - Asset class | C132: =+C5+C37+C69 -> 36098769.79 | D132: =+D5+D37+D69 -> 2093058.11 | E132: 2292691.46 | F132: 60873788 | G132: 69583035 | H132: 69583035 | I132: 64895383 | J132: 83603000 | K132: 84689880
A134: ASSET REGISTER SUMMARY - PPE (WDV) | B134: 5 | C134: =C144+C147+C148+C151+C154+C155+C158+C159+C160+C161+C162+C163+C164 -> 855172870 | D134: =D144+D147+D148+D151+D154+D155+D158+D159+D160+D161+D162+D163+D164 -> 846254840.8 | E134: 839831760.3 | F134: 557611219 | G134: 566320466 | H134: 566320466 | I134: 894704630 | J134: 1001298704 | K134: 1002385584
A135: Roads Infrastructure | C135: 183569326.6 | D135: 195434829 | E135: 189774751.2 | F135: 192997970 | G135: 193789147 | H135: 193789147 | I135: 16781384 | J135: 47887599 | K135: 42582000
A136: Storm water Infrastructure | C136: 0 | D136: 0 | E136: 23961836.61 | F136: 0 | G136: 0 | H136: 0 | I136: 0 | J136: 0 | K136: 0
A137: Electrical Infrastructure | C137: 463287175.4 | D137: 441031719.7 | E137: 427854576.9 | F137: 154541557 | G137: 161185740 | H137: 161185740 | I137: 643865551 | J137: 750675273 | K137: 749462153
A138: Water Supply Infrastructure | C138: 0 | D138: 0 | E138: 77600 | F138: 77600 | G138: 77600 | H138: 77600 | I138: 0 | J138: 0 | K138: 0
A139: Sanitation Infrastructure
A140: Solid Waste Infrastructure | C140: 0 | D140: 0 | E140: 0 | F140: 0 | G140: 0 | H140: 0 | I140: 0 | J140: 0 | K140: 0
A141: Rail Infrastructure
A142: Coastal Infrastructure
A143: Information and Communication Infrastructure
A144: Infrastructure | C144: =SUM(C135:C143) -> 646856502 | D144: =SUM(D135:D143) -> 636466548.7 | E144: 641668764.7 | F144: 347617127 | G144: 355052487 | H144: 355052487 | I144: 660646935 | J144: 798562872 | K144: 792044153
A147: Community Assets | C147: 138450015 | D147: 167591935.7 | E147: 159192223.3 | F147: 116012881 | G147: 120187768 | H147: 120187768 | I147: 199668359 | J147: 167386216 | K147: 174915815
A148: Heritage Assets | C148: 0 | D148: 0 | E148: 0 | F148: 0 | G148: 0 | H148: 0 | I148: 0 | J148: 0 | K148: 0
A151: Investment properties | C151: 205000 | D151: 9760000 | E151: 8544772.22 | F151: 3010000 | G151: 3010000 | H151: 3010000 | I151: 8544772 | J151: 8544772 | K151: 8544772
A154: Other Assets | C154: 4.01 | D154: 0 | E154: 65921.2 | F154: 750000 | G154: 800000 | H154: 800000 | I154: 0 | J154: 0 | K154: 50000
A155: Biological or Cultivated Assets
A158: Intangible Assets | C158: 286964.87 | D158: 543034.17 | E158: 372488.69 | F158: 2541961 | G158: 2001961 | H158: 2001961 | I158: 611488 | J158: 713488 | K158: 715488
A159: Computer Equipment | C159: 2964873 | D159: 3307789.19 | E159: 3146976.52 | F159: 4699742 | G159: 3039742 | H159: 3039742 | I159: 4329474 | J159: 4588358 | K159: 4698358
A160: Furniture and Office Equipment | C160: 616929.15 | D160: 4526196.61 | E160: 3214343.02 | F160: 4996196 | G160: 4736196 | H160: 4736196 | I160: 3635685 | J160: 3853765 | K160: 3867765
A161: Machinery and Equipment | C161: 6185434.87 | D161: 2245650.16 | E161: 2205891.48 | F161: 8043668 | G161: 8652668 | H161: 8652668 | I161: 2932731 | J161: 2574322 | K161: 2474322
A162: Transport Assets | C162: 8994900.18 | D162: 13787396.26 | E162: 13394089.22 | F162: 15587397 | G162: 14487397 | H162: 14487397 | I162: 6308896 | J162: 7048621 | K162: 7048621
A163: Land | C163: 50612246.86 | D163: 8026290 | E163: 8026290 | F163: 54352247 | G163: 54352247 | H163: 54352247 | I163: 8026290 | J163: 8026290 | K163: 8026290
A164: Zoo's, Marine and Non-biological Animals
A165: TOTAL ASSET REGISTER SUMMARY - PPE (WDV) | B165: 5 | C165: =C144+C147+C148+C151+C154+C155+C158+C159+C160+C161+C162+C163+C164 -> 855172870 | D165: =D144+D147+D148+D151+D154+D155+D158+D159+D160+D161+D162+D163+D164 -> 846254840.8 | E165: 839831760.3 | F165: 557611219 | G165: 566320466 | H165: 566320466 | I165: 894704630 | J165: 1001298704 | K165: 1002385584
A167: EXPENDITURE OTHER ITEMS | C167: =SUM(C168:C169) -> 38069159.28 | D167: =SUM(D168:D169) -> 37110386.18 | E167: 39073742.47 | F167: 53970357 | G167: 60827924 | H167: 60827924 | I167: 50087687 | J167: 55272247 | K167: 55972884
A168: Depreciation | B168: 7 | C168: =SA34d!C167 -> 35462508.13 | D168: =SA34d!D167 -> 35257581.19 | E168: =SA34d!E167 -> 35725380.62 | F168: =SA34d!F167 -> 43988216 | G168: =SA34d!G167 -> 43988216 | H168: =SA34d!H167 -> 43988216 | I168: =SA34d!I167 -> 40140615 | J168: =SA34d!J167 -> 42549050 | K168: =SA34d!K167 -> 45101995
A169: Repairs and Maintenance by Asset Class | B169: 3 | C169: =C179+C182+C183+C186+C189+C190+SUM(C193:C199) -> 2606651.15 | D169: =D179+D182+D183+D186+D189+D190+SUM(D193:D199) -> 1852804.99 | E169: 3348361.85 | F169: 9982141 | G169: 16839708 | H169: 16839708 | I169: 9947072 | J169: 12723197 | K169: 10870889
A170: Roads Infrastructure | C170: =SA34c!C7 -> 186500.37 | D170: =SA34c!D7 -> 214273.75 | E170: =SA34c!E7 -> 184571.76 | F170: =SA34c!F7 -> 679694 | G170: =SA34c!G7 -> 977261 | H170: =SA34c!H7 -> 977261 | I170: =SA34c!I7 -> 1490000 | J170: =SA34c!J7 -> 1540000 | K170: =SA34c!K7 -> 1655000
A171: Storm water Infrastructure | C171: =SA34c!C12 -> 0 | D171: =SA34c!D12 -> 0 | E171: =SA34c!E12 -> 0 | F171: =SA34c!F12 -> 3450000 | G171: =SA34c!G12 -> 8950000 | H171: =SA34c!H12 -> 8950000 | I171: =SA34c!I12 -> 3500000 | J171: =SA34c!J12 -> 5050000 | K171: =SA34c!K12 -> 3350000
A172: Electrical Infrastructure | C172: =SA34c!C16 -> 927727.85 | D172: =SA34c!D16 -> 933437.4 | E172: =SA34c!E16 -> 882148.25 | F172: =SA34c!F16 -> 1383087 | G172: =SA34c!G16 -> 1683087 | H172: =SA34c!H16 -> 1683087 | I172: =SA34c!I16 -> 1784072 | J172: =SA34c!J16 -> 1891117 | K172: =SA34c!K16 -> 2004584
A173: Water Supply Infrastructure | C173: =SA34c!C26 -> 0 | D173: =SA34c!D26 -> 0 | E173: =SA34c!E26 -> 0 | F173: =SA34c!F26 -> 0 | G173: =SA34c!G26 -> 0 | H173: =SA34c!H26 -> 0 | I173: =SA34c!I26 -> 0 | J173: =SA34c!J26 -> 0 | K173: =SA34c!K26 -> 0
A174: Sanitation Infrastructure | C174: =SA34c!C37 -> 0 | D174: =SA34c!D37 -> 0 | E174: =SA34c!E37 -> 0 | F174: =SA34c!F37 -> 0 | G174: =SA34c!G37 -> 0 | H174: =SA34c!H37 -> 0 | I174: =SA34c!I37 -> 0 | J174: =SA34c!J37 -> 0 | K174: =SA34c!K37 -> 0
A175: Solid Waste Infrastructure | C175: =SA34c!C44 -> 0 | D175: =SA34c!D44 -> 0 | E175: =SA34c!E44 -> 0 | F175: =SA34c!F44 -> 0 | G175: =SA34c!G44 -> 0 | H175: =SA34c!H44 -> 0 | I175: =SA34c!I44 -> 0 | J175: =SA34c!J44 -> 0 | K175: =SA34c!K44 -> 0
A176: Rail Infrastructure | C176: =SA34c!C52 -> 0 | D176: =SA34c!D52 -> 0 | E176: =SA34c!E52 -> 0 | F176: =SA34c!F52 -> 0 | G176: =SA34c!G52 -> 0 | H176: =SA34c!H52 -> 0 | I176: =SA34c!I52 -> 0 | J176: =SA34c!J52 -> 0 | K176: =SA34c!K52 -> 0
A177: Coastal Infrastructure | C177: =SA34c!C62 -> 0 | D177: =SA34c!D62 -> 0 | E177: =SA34c!E62 -> 0 | F177: =SA34c!F62 -> 0 | G177: =SA34c!G62 -> 0 | H177: =SA34c!H62 -> 0 | I177: =SA34c!I62 -> 0 | J177: =SA34c!J62 -> 0 | K177: =SA34c!K62 -> 0
A178: Information and Communication Infrastructure | C178: =SA34c!C68 -> 0 | D178: =SA34c!D68 -> 0 | E178: =SA34c!E68 -> 0 | F178: =SA34c!F68 -> 0 | G178: =SA34c!G68 -> 0 | H178: =SA34c!H68 -> 0 | I178: =SA34c!I68 -> 0 | J178: =SA34c!J68 -> 0 | K178: =SA34c!K68 -> 0
A179: Infrastructure | C179: =SUM(C170:C178) -> 1114228.22 | D179: =SUM(D170:D178) -> 1147711.15 | E179: 1066720.01 | F179: 5512781 | G179: 11610348 | H179: 11610348 | I179: 6774072 | J179: 8481117 | K179: 7009584
A180: Community Facilities | C180: =SA34c!C75 -> 85111.21 | D180: =SA34c!D75 -> 23440 | E180: =SA34c!E75 -> 0 | F180: =SA34c!F75 -> 182320 | G180: =SA34c!G75 -> 222320 | H180: =SA34c!H75 -> 222320 | I180: =SA34c!I75 -> 400000 | J180: =SA34c!J75 -> 525000 | K180: =SA34c!K75 -> 550000
A181: Sport and Recreation Facilities | C181: =SA34c!C98 -> 3375.09 | D181: =SA34c!D98 -> 0 | E181: =SA34c!E98 -> 85364.23 | F181: =SA34c!F98 -> 400000 | G181: =SA34c!G98 -> 400000 | H181: =SA34c!H98 -> 400000 | I181: =SA34c!I98 -> 300000 | J181: =SA34c!J98 -> 400000 | K181: =SA34c!K98 -> 500000
A182: Community Assets | C182: =SUM(C180:C181) -> 88486.3 | D182: 23440 | E182: 85364.23 | F182: 582320 | G182: 622320 | H182: 622320 | I182: 700000 | J182: 925000 | K182: 1050000
A183: Heritage Assets | C183: =SA34c!C103 -> 0 | D183: =SA34c!D103 -> 0 | E183: =SA34c!E103 -> 0 | F183: =SA34c!F103 -> 0 | G183: =SA34c!G103 -> 0 | H183: =SA34c!H103 -> 0 | I183: =SA34c!I103 -> 0 | J183: =SA34c!J103 -> 0 | K183: =SA34c!K103 -> 0
A184: Revenue Generating | C184: =SA34c!C111 -> 0 | D184: =SA34c!D111 -> 0 | E184: =SA34c!E111 -> 0 | F184: =SA34c!F111 -> 0 | G184: =SA34c!G111 -> 0 | H184: =SA34c!H111 -> 0 | I184: =SA34c!I111 -> 0 | J184: =SA34c!J111 -> 0 | K184: =SA34c!K111 -> 0
A185: Non-revenue Generating | C185: =SA34c!C114 -> 0 | D185: =SA34c!D114 -> 0 | E185: =SA34c!E114 -> 0 | F185: =SA34c!F114 -> 0 | G185: =SA34c!G114 -> 0 | H185: =SA34c!H114 -> 0 | I185: =SA34c!I114 -> 0 | J185: =SA34c!J114 -> 0 | K185: =SA34c!K114 -> 0
A186: Investment properties | C186: =SUM(C184:C185) -> 0 | D186: 0 | E186: 0 | F186: 0 | G186: 0 | H186: 0 | I186: 0 | J186: 0 | K186: 0
A187: Operational Buildings | C187: =SA34c!C119 -> 244792.55 | D187: =SA34c!D119 -> 9378.26 | E187: =SA34c!E119 -> 16821.91 | F187: =SA34c!F119 -> 1100000 | G187: =SA34c!G119 -> 1130000 | H187: =SA34c!H119 -> 1130000 | I187: =SA34c!I119 -> 520000 | J187: =SA34c!J119 -> 640000 | K187: =SA34c!K119 -> 860000
A188: Housing | C188: =SA34c!C131 -> 0 | D188: =SA34c!D131 -> 0 | E188: =SA34c!E131 -> 0 | F188: =SA34c!F131 -> 0 | G188: =SA34c!G131 -> 0 | H188: =SA34c!H131 -> 0 | I188: =SA34c!I131 -> 0 | J188: =SA34c!J131 -> 0 | K188: =SA34c!K131 -> 0
A189: Other Assets | C189: =SUM(C187:C188) -> 244792.55 | D189: 9378.26 | E189: 16821.91 | F189: 1100000 | G189: 1130000 | H189: 1130000 | I189: 520000 | J189: 640000 | K189: 860000
A190: Biological or Cultivated Assets | C190: =SA34c!C136 -> 0 | D190: =SA34c!D136 -> 0 | E190: =SA34c!E136 -> 0 | F190: =SA34c!F136 -> 0 | G190: =SA34c!G136 -> 0 | H190: =SA34c!H136 -> 0 | I190: =SA34c!I136 -> 0 | J190: =SA34c!J136 -> 0 | K190: =SA34c!K136 -> 0
A191: Servitudes | C191: =SA34c!C140 -> 0 | D191: =SA34c!D140 -> 0 | E191: =SA34c!E140 -> 0 | F191: =SA34c!F140 -> 0 | G191: =SA34c!G140 -> 0 | H191: =SA34c!H140 -> 0 | I191: =SA34c!I140 -> 0 | J191: =SA34c!J140 -> 0 | K191: =SA34c!K140 -> 0
A192: Licences and Rights | C192: =SA34c!C141 -> 0 | D192: =SA34c!D141 -> 0 | E192: =SA34c!E141 -> 0 | F192: =SA34c!F141 -> 0 | G192: =SA34c!G141 -> 0 | H192: =SA34c!H141 -> 0 | I192: =SA34c!I141 -> 0 | J192: =SA34c!J141 -> 0 | K192: =SA34c!K141 -> 0
A193: Intangible Assets | C193: =SUM(C191:C192) -> 0 | D193: 0 | E193: 0 | F193: 0 | G193: 0 | H193: 0 | I193: 0 | J193: 0 | K193: 0
A194: Computer Equipment | C194: =SA34c!C149 -> -107520 | D194: =SA34c!D149 -> 0 | E194: =SA34c!E149 -> 0 | F194: =SA34c!F149 -> 330000 | G194: =SA34c!G149 -> 330000 | H194: =SA34c!H149 -> 330000 | I194: =SA34c!I149 -> 359000 | J194: =SA34c!J149 -> 381000 | K194: =SA34c!K149 -> 393000
A195: Furniture and Office Equipment | C195: =SA34c!C152 -> 91575.54 | D195: =SA34c!D152 -> 19382.75 | E195: =SA34c!E152 -> 1672407.14 | F195: =SA34c!F152 -> 150000 | G195: =SA34c!G152 -> 150000 | H195: =SA34c!H152 -> 150000 | I195: =SA34c!I152 -> 200000 | J195: =SA34c!J152 -> 800000 | K195: =SA34c!K152 -> 350000
A196: Machinery and Equipment | C196: =SA34c!C155 -> 972530.68 | D196: =SA34c!D155 -> 351886.49 | E196: =SA34c!E155 -> 415548.56 | F196: =SA34c!F155 -> 307040 | G196: =SA34c!G155 -> 197040 | H196: =SA34c!H155 -> 197040 | I196: =SA34c!I155 -> 276000 | J196: =SA34c!J155 -> 289000 | K196: =SA34c!K155 -> 301000
A197: Transport Assets | C197: =SA34c!C158 -> 202557.86 | D197: =SA34c!D158 -> 301006.34 | E197: =SA34c!E158 -> 91500 | F197: =SA34c!F158 -> 2000000 | G197: =SA34c!G158 -> 2800000 | H197: =SA34c!H158 -> 2800000 | I197: =SA34c!I158 -> 1118000 | J197: =SA34c!J158 -> 1207080 | K197: =SA34c!K158 -> 907305
A198: Land | C198: =SA34c!C161 -> 0 | D198: =SA34c!D161 -> 0 | E198: =SA34c!E161 -> 0 | F198: =SA34c!F161 -> 0 | G198: =SA34c!G161 -> 0 | H198: =SA34c!H161 -> 0 | I198: =SA34c!I161 -> 0 | J198: =SA34c!J161 -> 0 | K198: =SA34c!K161 -> 0
A199: Zoo's, Marine and Non-biological Animals | C199: =SA34c!C164 -> 0 | D199: =SA34c!D164 -> 0 | E199: =SA34c!E164 -> 0 | F199: =SA34c!F164 -> 0 | G199: =SA34c!G164 -> 0 | H199: =SA34c!H164 -> 0 | I199: =SA34c!I164 -> 0 | J199: =SA34c!J164 -> 0 | K199: =SA34c!K164 -> 0
A201: TOTAL EXPENDITURE OTHER ITEMS | C201: =SUM(C168:C169) -> 38069159.28 | D201: 37110386.18 | E201: 39073742.47 | F201: 53970357 | G201: 60827924 | H201: 60827924 | I201: 50087687 | J201: 55272247 | K201: 55972884
A203: Renewal and upgrading of Existing Assets as % of total capex | C203: =IF(ISERROR((C37+C69)/C132),0,((C37+C69)/C132)) -> 0 | D203: =IF(ISERROR((D37+D69)/D132),0,((D37+D69)/D132)) -> 0.2385126852 | E203: 0.5628846238 | F203: 0 | G203: 0.02299411056 | H203: 0.02299411056 | I203: 0.0799176114 | J203: 0.5829407916 | K203: 0.5134129367
A204: Renewal and upgrading of Existing Assets as % of deprecn | C204: =IF(ISERROR((C37+C69)/C168),0,((C37+C69)/C168)) -> 0 | D204: =IF(ISERROR((D37+D69)/D168),0,((D37+D69)/D168)) -> 0.0141592501 | E204: 0.03612335957 | F204: 0 | G204: 0.03637337782 | H204: 0.03637337782 | I204: 0.1292029033 | J204: 1.145398052 | K204: 0.9640566897
A205: R&M as a % of PPE | C205: =IF(ISERROR(ROUND(C169/'A6-FinPos'!C19,3)),0,(ROUND(C169/'A6-FinPos'!C19,3))) -> 0.003 | D205: =IF(ISERROR(ROUND(D169/'A6-FinPos'!D19,3)),0,(ROUND(D169/'A6-FinPos'!D19,3))) -> 0.002 | E205: =IF(ISERROR(ROUND(E169/'A6-FinPos'!E19,3)),0,(ROUND(E169/'A6-FinPos'!E19,3))) -> 0.004 | F205: =IF(ISERROR(ROUND(F169/'A6-FinPos'!F19,3)),0,(ROUND(F169/'A6-FinPos'!F19,3))) -> 0.016 | G205: =IF(ISERROR(ROUND(G169/'A6-FinPos'!G19,3)),0,(ROUND(G169/'A6-FinPos'!G19,3))) -> 0.027 | H205: =IF(ISERROR(ROUND(H169/'A6-FinPos'!H19,3)),0,(ROUND(H169/'A6-FinPos'!H19,3))) -> 0.027 | I205: =IF(ISERROR(ROUND(I169/'A6-FinPos'!J19,3)),0,(ROUND(I169/'A6-FinPos'!J19,3))) -> 0.01 | J205: =IF(ISERROR(ROUND(J169/'A6-FinPos'!K19,3)),0,(ROUND(J169/'A6-FinPos'!K19,3))) -> 0.012 | K205: =IF(ISERROR(ROUND(K169/'A6-FinPos'!L19,3)),0,(ROUND(K169/'A6-FinPos'!L19,3))) -> 0.01
A206: Renewal and upgrading and R&M as a % of PPE | C206: =IF(ISERROR(ROUND((C37+C69+C169)/C165,2)),0,(ROUND((C37+C69+C169)/C165,2))) -> 0 | D206: =IF(ISERROR(ROUND((D37+D69+D169)/D165,2)),0,(ROUND((D37+D69+D169)/D165,2))) -> 0 | E206: 0.01 | F206: 0.02 | G206: 0.03 | H206: 0.03 | I206: 0.02 | J206: 0.06 | K206: 0.05
A208: =head27a -> References
A209: 1. Detail of new assets provided in Table SA34a
A210: 2. Detail of renewal of existing assets provided in Table SA34b
A211: 3. Detail of Repairs and Maintenance by Asset Class provided in Table SA34c
A212: 4. Must reconcile to total capital expenditure on Budgeted Capital Expenditure
A213: 5. Must reconcile to 'Budgeted Financial Position' (written down value)
A214: 6. Detail of upgrading of existing assets provided in Table SA34e
A215: 7. Detail of depreciation provided in Table SA34d
A217: Check balance to A6 | C217: =C165-'A6-FinPos'!D17-'A6-FinPos'!D19-'A6-FinPos'!D20-'A6-FinPos'!D21-'A6-FinPos'!D22-C148 -> -64771905.44 | D217: =D165-'A6-FinPos'!E17-'A6-FinPos'!E19-'A6-FinPos'!E20-'A6-FinPos'!E21-'A6-FinPos'!E22-D148 -> -86267947.94 | E217: =E165-'A6-FinPos'!F17-'A6-FinPos'!F19-'A6-FinPos'!F20-'A6-FinPos'!F21-'A6-FinPos'!F22-E148 -> 208530607.3 | F217: =F165-'A6-FinPos'!G17-'A6-FinPos'!G19-'A6-FinPos'!G20-'A6-FinPos'!G21-'A6-FinPos'!G22-F148 -> -82399181 | G217: =G165-'A6-FinPos'!H17-'A6-FinPos'!H19-'A6-FinPos'!H20-'A6-FinPos'!H21-'A6-FinPos'!H22-G148 -> -73689934 | H217: =H165-'A6-FinPos'!I17-'A6-FinPos'!I19-'A6-FinPos'!I20-'A6-FinPos'!I21-'A6-FinPos'!I22-H148 -> -397399428.3 | I217: =I165-'A6-FinPos'!J17-'A6-FinPos'!J19-'A6-FinPos'!J20-'A6-FinPos'!J21-'A6-FinPos'!J22-I148 -> -92691029 | J217: =J165-'A6-FinPos'!K17-'A6-FinPos'!K19-'A6-FinPos'!K20-'A6-FinPos'!K21-'A6-FinPos'!K22-J148 -> -90897347 | K217: =K165-'A6-FinPos'!L17-'A6-FinPos'!L19-'A6-FinPos'!L20-'A6-FinPos'!L21-'A6-FinPos'!L22-K148 -> -90897347

Sheet A10-SerDel
A1: =muni&" - "&Approve10 -> LIM351 Blouberg - Table A10 Basic service delivery measurement
A2: =desc -> Description | B2: =head27 -> Ref | C2: =head1b -> 2017/18 | D2: =head1A -> 2018/19 | E2: =Head1 -> 2019/20 | F2: =Head2 -> Current Year 2020/21 | I2: =Head3 -> 2021/22 Medium Term Revenue & Expenditure Framework
C3: =Head5A -> Outcome | D3: =Head5A -> Outcome | E3: =Head5A -> Outcome | F3: =Head6 -> Original Budget | G3: =Head7 -> Adjusted Budget | H3: =Head8 -> Full Year Forecast | I3: =Head9 -> Budget Year 2021/22 | J3: =Head10 -> Budget Year +1 2022/23 | K3: =Head11 -> Budget Year +2 2023/24
A4: Household service targets | B4: 1
A5: Water:
A6: Piped water inside dwelling | C6: ='SA9'!E67 -> 0 | D6: ='SA9'!F67 -> 0 | E6: ='SA9'!G67 -> 0 | F6: ='SA9'!H67 -> 0 | G6: ='SA9'!I67 -> 0 | H6: ='SA9'!J67 -> 0 | I6: ='SA9'!K67 -> 0 | J6: ='SA9'!L67 -> 0 | K6: ='SA9'!M67 -> 0
A7: Piped water inside yard (but not in dwelling) | C7: ='SA9'!E68 -> 0 | D7: ='SA9'!F68 -> 0 | E7: ='SA9'!G68 -> 0 | F7: ='SA9'!H68 -> 0 | G7: ='SA9'!I68 -> 0 | H7: ='SA9'!J68 -> 0 | I7: ='SA9'!K68 -> 0 | J7: ='SA9'!L68 -> 0 | K7: ='SA9'!M68 -> 0
A8: Using public tap (at least min.service level) | B8: 2 | C8: ='SA9'!E69 -> 0 | D8: ='SA9'!F69 -> 0 | E8: ='SA9'!G69 -> 0 | F8: ='SA9'!H69 -> 0 | G8: ='SA9'!I69 -> 0 | H8: ='SA9'!J69 -> 0 | I8: ='SA9'!K69 -> 0 | J8: ='SA9'!L69 -> 0 | K8: ='SA9'!M69 -> 0
A9: Other water supply (at least min.service level) | B9: 4 | C9: ='SA9'!E70 -> 0 | D9: ='SA9'!F70 -> 0 | E9: ='SA9'!G70 -> 0 | F9: ='SA9'!H70 -> 0 | G9: ='SA9'!I70 -> 0 | H9: ='SA9'!J70 -> 0 | I9: ='SA9'!K70 -> 0 | J9: ='SA9'!L70 -> 0 | K9: ='SA9'!M70 -> 0
A10: Minimum Service Level and Above sub-total | C10: =SUM(C6:C9) -> 0 | D10: =SUM(D6:D9) -> 0 | E10: 0 | F10: 0 | G10: 0 | H10: 0 | I10: 0 | J10: 0 | K10: 0
A11: Using public tap (< min.service level) | B11: 3 | C11: ='SA9'!E72 -> 0 | D11: ='SA9'!F72 -> 0 | E11: ='SA9'!G72 -> 0 | F11: ='SA9'!H72 -> 0 | G11: ='SA9'!I72 -> 0 | H11: ='SA9'!J72 -> 0 | I11: ='SA9'!K72 -> 0 | J11: ='SA9'!L72 -> 0 | K11: ='SA9'!M72 -> 0
A12: Other water supply (< min.service level) | B12: =B9 -> 4 | C12: ='SA9'!E73 -> 0 | D12: ='SA9'!F73 -> 0 | E12: ='SA9'!G73 -> 0 | F12: ='SA9'!H73 -> 0 | G12: ='SA9'!I73 -> 0 | H12: ='SA9'!J73 -> 0 | I12: ='SA9'!K73 -> 0 | J12: ='SA9'!L73 -> 0 | K12: ='SA9'!M73 -> 0
A13: No water supply | C13: ='SA9'!E74 -> 0 | D13: ='SA9'!F74 -> 0 | E13: ='SA9'!G74 -> 0 | F13: ='SA9'!H74 -> 0 | G13: ='SA9'!I74 -> 0 | H13: ='SA9'!J74 -> 0 | I13: ='SA9'!K74 -> 0 | J13: ='SA9'!L74 -> 0 | K13: ='SA9'!M74 -> 0
A14: Below Minimum Service Level sub-total | C14: =SUM(C11:C13) -> 0 | D14: =SUM(D11:D13) -> 0 | E14: 0 | F14: 0 | G14: 0 | H14: 0 | I14: 0 | J14: 0 | K14: 0
A15: Total number of households | B15: 5 | C15: =C10+C14 -> 0 | D15: =D10+D14 -> 0 | E15: 0 | F15: 0 | G15: 0 | H15: 0 | I15: 0 | J15: 0 | K15: 0
A16: Sanitation/sewerage:
A17: Flush toilet (connected to sewerage) | C17: ='SA9'!E78 -> 0 | D17: ='SA9'!F78 -> 0 | E17: ='SA9'!G78 -> 0 | F17: ='SA9'!H78 -> 0 | G17: ='SA9'!I78 -> 0 | H17: ='SA9'!J78 -> 0 | I17: ='SA9'!K78 -> 0 | J17: ='SA9'!L78 -> 0 | K17: ='SA9'!M78 -> 0
A18: Flush toilet (with septic tank) | C18: ='SA9'!E79 -> 0 | D18: ='SA9'!F79 -> 0 | E18: ='SA9'!G79 -> 0 | F18: ='SA9'!H79 -> 0 | G18: ='SA9'!I79 -> 0 | H18: ='SA9'!J79 -> 0 | I18: ='SA9'!K79 -> 0 | J18: ='SA9'!L79 -> 0 | K18: ='SA9'!M79 -> 0
A19: Chemical toilet | C19: ='SA9'!E80 -> 0 | D19: ='SA9'!F80 -> 0 | E19: ='SA9'!G80 -> 0 | F19: ='SA9'!H80 -> 0 | G19: ='SA9'!I80 -> 0 | H19: ='SA9'!J80 -> 0 | I19: ='SA9'!K80 -> 0 | J19: ='SA9'!L80 -> 0 | K19: ='SA9'!M80 -> 0
A20: Pit toilet (ventilated) | C20: ='SA9'!E81 -> 0 | D20: ='SA9'!F81 -> 0 | E20: ='SA9'!G81 -> 0 | F20: ='SA9'!H81 -> 0 | G20: ='SA9'!I81 -> 0 | H20: ='SA9'!J81 -> 0 | I20: ='SA9'!K81 -> 0 | J20: ='SA9'!L81 -> 0 | K20: ='SA9'!M81 -> 0
A21: Other toilet provisions (> min.service level) | C21: ='SA9'!E82 -> 0 | D21: ='SA9'!F82 -> 0 | E21: ='SA9'!G82 -> 0 | F21: ='SA9'!H82 -> 0 | G21: ='SA9'!I82 -> 0 | H21: ='SA9'!J82 -> 0 | I21: ='SA9'!K82 -> 0 | J21: ='SA9'!L82 -> 0 | K21: ='SA9'!M82 -> 0
A22: =$A$10 -> Minimum Service Level and Above sub-total | C22: =SUM(C17:C21) -> 0 | D22: =SUM(D17:D21) -> 0 | E22: 0 | F22: 0 | G22: 0 | H22: 0 | I22: 0 | J22: 0 | K22: 0
A23: Bucket toilet | C23: ='SA9'!E84 -> 0 | D23: ='SA9'!F84 -> 0 | E23: ='SA9'!G84 -> 0 | F23: ='SA9'!H84 -> 0 | G23: ='SA9'!I84 -> 0 | H23: ='SA9'!J84 -> 0 | I23: ='SA9'!K84 -> 0 | J23: ='SA9'!L84 -> 0 | K23: ='SA9'!M84 -> 0
A24: Other toilet provisions (< min.service level) | C24: ='SA9'!E85 -> 0 | D24: ='SA9'!F85 -> 0 | E24: ='SA9'!G85 -> 0 | F24: ='SA9'!H85 -> 0 | G24: ='SA9'!I85 -> 0 | H24: ='SA9'!J85 -> 0 | I24: ='SA9'!K85 -> 0 | J24: ='SA9'!L85 -> 0 | K24: ='SA9'!M85 -> 0
A25: No toilet provisions | C25: ='SA9'!E86 -> 0 | D25: ='SA9'!F86 -> 0 | E25: ='SA9'!G86 -> 0 | F25: ='SA9'!H86 -> 0 | G25: ='SA9'!I86 -> 0 | H25: ='SA9'!J86 -> 0 | I25: ='SA9'!K86 -> 0 | J25: ='SA9'!L86 -> 0 | K25: ='SA9'!M86 -> 0
A26: =$A$14 -> Below Minimum Service Level sub-total | C26: =SUM(C23:C25) -> 0 | D26: =SUM(D23:D25) -> 0 | E26: 0 | F26: 0 | G26: 0 | H26: 0 | I26: 0 | J26: 0 | K26: 0
A27: =$A$15 -> Total number of households | B27: =$B$15 -> 5 | C27: =C22+C26 -> 0 | D27: =D22+D26 -> 0 | E27: 0 | F27: 0 | G27: 0 | H27: 0 | I27: 0 | J27: 0 | K27: 0
A28: Energy:
A29: Electricity (at least min.service level) | C29: ='SA9'!E90 -> 0 | D29: ='SA9'!F90 -> 0 | E29: ='SA9'!G90 -> 0 | F29: ='SA9'!H90 -> 0 | G29: ='SA9'!I90 -> 0 | H29: ='SA9'!J90 -> 0 | I29: ='SA9'!K90 -> 60 | J29: ='SA9'!L90 -> 60 | K29: ='SA9'!M90 -> 60
A30: Electricity - prepaid (min.service level) | C30: ='SA9'!E91 -> 0 | D30: ='SA9'!F91 -> 0 | E30: ='SA9'!G91 -> 0 | F30: ='SA9'!H91 -> 0 | G30: ='SA9'!I91 -> 0 | H30: ='SA9'!J91 -> 0 | I30: ='SA9'!K91 -> 43747 | J30: ='SA9'!L91 -> 44243 | K30: ='SA9'!M91 -> 44749
A31: =$A$10 -> Minimum Service Level and Above sub-total | C31: =SUM(C29:C30) -> 0 | D31: =SUM(D29:D30) -> 0 | E31: 0 | F31: 0 | G31: 0 | H31: 0 | I31: 43807 | J31: 44303 | K31: 44809
A32: Electricity (< min.service level) | C32: ='SA9'!E93 -> 0 | D32: ='SA9'!F93 -> 0 | E32: ='SA9'!G93 -> 0 | F32: ='SA9'!H93 -> 0 | G32: ='SA9'!I93 -> 0 | H32: ='SA9'!J93 -> 0 | I32: ='SA9'!K93 -> 0 | J32: ='SA9'!L93 -> 0 | K32: ='SA9'!M93 -> 0
A33: Electricity - prepaid (< min. service level) | C33: ='SA9'!E94 -> 0 | D33: ='SA9'!F94 -> 0 | E33: ='SA9'!G94 -> 0 | F33: ='SA9'!H94 -> 0 | G33: ='SA9'!I94 -> 0 | H33: ='SA9'!J94 -> 0 | I33: ='SA9'!K94 -> 0 | J33: ='SA9'!L94 -> 0 | K33: ='SA9'!M94 -> 0
A34: Other energy sources | C34: ='SA9'!E95 -> 0 | D34: ='SA9'!F95 -> 0 | E34: ='SA9'!G95 -> 0 | F34: ='SA9'!H95 -> 0 | G34: ='SA9'!I95 -> 0 | H34: ='SA9'!J95 -> 0 | I34: ='SA9'!K95 -> 0 | J34: ='SA9'!L95 -> 0 | K34: ='SA9'!M95 -> 0
A35: =$A$14 -> Below Minimum Service Level sub-total | C35: =SUM(C32:C34) -> 0 | D35: =SUM(D32:D34) -> 0 | E35: 0 | F35: 0 | G35: 0 | H35: 0 | I35: 0 | J35: 0 | K35: 0
A36: =$A$15 -> Total number of households | B36: =$B$15 -> 5 | C36: =C31+C35 -> 0 | D36: =D31+D35 -> 0 | E36: 0 | F36: 0 | G36: 0 | H36: 0 | I36: 43807 | J36: 44303 | K36: 44809
A37: Refuse:
A38: Removed at least once a week | C38: ='SA9'!E99 -> 0 | D38: ='SA9'!F99 -> 0 | E38: ='SA9'!G99 -> 0 | F38: ='SA9'!H99 -> 0 | G38: ='SA9'!I99 -> 0 | H38: ='SA9'!J99 -> 0 | I38: ='SA9'!K99 -> 200 | J38: ='SA9'!L99 -> 350 | K38: ='SA9'!M99 -> 350
A39: =$A$10 -> Minimum Service Level and Above sub-total | C39: =SUM(C38) -> 0 | D39: =SUM(D38) -> 0 | E39: 0 | F39: 0 | G39: 0 | H39: 0 | I39: 200 | J39: 350 | K39: 350
A40: Removed less frequently than once a week | C40: ='SA9'!E101 -> 0 | D40: ='SA9'!F101 -> 0 | E40: ='SA9'!G101 -> 0 | F40: ='SA9'!H101 -> 0 | G40: ='SA9'!I101 -> 0 | H40: ='SA9'!J101 -> 0 | I40: ='SA9'!K101 -> 0 | J40: ='SA9'!L101 -> 0 | K40: ='SA9'!M101 -> 0
A41: Using communal refuse dump | C41: ='SA9'!E102 -> 0 | D41: ='SA9'!F102 -> 0 | E41: ='SA9'!G102 -> 0 | F41: ='SA9'!H102 -> 0 | G41: ='SA9'!I102 -> 0 | H41: ='SA9'!J102 -> 0 | I41: ='SA9'!K102 -> 0 | J41: ='SA9'!L102 -> 0 | K41: ='SA9'!M102 -> 0
A42: Using own refuse dump | C42: ='SA9'!E103 -> 0 | D42: ='SA9'!F103 -> 0 | E42: ='SA9'!G103 -> 0 | F42: ='SA9'!H103 -> 0 | G42: ='SA9'!I103 -> 0 | H42: ='SA9'!J103 -> 0 | I42: ='SA9'!K103 -> 0 | J42: ='SA9'!L103 -> 0 | K42: ='SA9'!M103 -> 0
A43: Other rubbish disposal | C43: ='SA9'!E104 -> 0 | D43: ='SA9'!F104 -> 0 | E43: ='SA9'!G104 -> 0 | F43: ='SA9'!H104 -> 0 | G43: ='SA9'!I104 -> 0 | H43: ='SA9'!J104 -> 0 | I43: ='SA9'!K104 -> 0 | J43: ='SA9'!L104 -> 0 | K43: ='SA9'!M104 -> 0
A44: No rubbish disposal | C44: ='SA9'!E105 -> 0 | D44: ='SA9'!F105 -> 0 | E44: ='SA9'!G105 -> 0 | F44: ='SA9'!H105 -> 0 | G44: ='SA9'!I105 -> 0 | H44: ='SA9'!J105 -> 0 | I44: ='SA9'!K105 -> 0 | J44: ='SA9'!L105 -> 0 | K44: ='SA9'!M105 -> 0
A45: =$A$14 -> Below Minimum Service Level sub-total | C45: =SUM(C40:C44) -> 0 | D45: 0 | E45: 0 | F45: 0 | G45: 0 | H45: 0 | I45: 0 | J45: 0 | K45: 0
A46: =$A$15 -> Total number of households | B46: =$B$15 -> 5 | C46: =C39+C45 -> 0 | D46: =D39+D45 -> 0 | E46: 0 | F46: 0 | G46: 0 | H46: 0 | I46: 200 | J46: 350 | K46: 350
A48: Households receiving Free Basic Service | B48: 7
A49: Water (6 kilolitres per household per month) | C49: ='SA9'!E263 -> 0 | D49: ='SA9'!F263 -> 0 | E49: ='SA9'!G263 -> 0 | F49: ='SA9'!H263 -> 0 | G49: ='SA9'!I263 -> 0 | H49: ='SA9'!J263 -> 0 | I49: ='SA9'!K263 -> 0 | J49: ='SA9'!L263 -> 0 | K49: ='SA9'!M263 -> 0
A50: Sanitation (free minimum level service) | C50: ='SA9'!E275 -> 0 | D50: ='SA9'!F275 -> 0 | E50: ='SA9'!G275 -> 0 | F50: ='SA9'!H275 -> 0 | G50: ='SA9'!I275 -> 0 | H50: ='SA9'!J275 -> 0 | I50: ='SA9'!K275 -> 0 | J50: ='SA9'!L275 -> 0 | K50: ='SA9'!M275 -> 0
A51: Electricity/other energy (50kwh per household per month) | C51: ='SA9'!E251 -> 0 | D51: ='SA9'!F251 -> 0 | E51: ='SA9'!G251 -> 0 | F51: ='SA9'!H251 -> 0 | G51: ='SA9'!I251 -> 0 | H51: ='SA9'!J251 -> 0 | I51: ='SA9'!K251 -> 0 | J51: ='SA9'!L251 -> 0 | K51: ='SA9'!M251 -> 0
A52: Refuse (removed at least once a week) | C52: ='SA9'!E287 -> 0 | D52: ='SA9'!F287 -> 0 | E52: ='SA9'!G287 -> 0 | F52: ='SA9'!H287 -> 0 | G52: ='SA9'!I287 -> 0 | H52: ='SA9'!J287 -> 0 | I52: ='SA9'!K287 -> 0 | J52: ='SA9'!L287 -> 0 | K52: ='SA9'!M287 -> 0
A54: Cost of Free Basic Services provided - Formal Settlements (R'000) | B54: 8
A55: Water (6 kilolitres per indigent household per month) | C55: ='SA1'!C20 -> 0 | D55: ='SA1'!D20 -> 0 | E55: ='SA1'!E20 -> 0 | F55: ='SA1'!F20 -> 0 | G55: ='SA1'!G20 -> 0 | H55: ='SA1'!H20 -> 0 | I55: ='SA1'!J20 -> 0 | J55: ='SA1'!K20 -> 0 | K55: ='SA1'!L20 -> 0
A56: Sanitation (free sanitation service to indigent households) | C56: ='SA1'!C26 -> 0 | D56: ='SA1'!D26 -> 0 | E56: ='SA1'!E26 -> 0 | F56: ='SA1'!F26 -> 0 | G56: ='SA1'!G26 -> 0 | H56: ='SA1'!H26 -> 0 | I56: ='SA1'!J26 -> 0 | J56: ='SA1'!K26 -> 0 | K56: ='SA1'!L26 -> 0
A57: Electricity/other energy (50kwh per indigent household per month) | C57: ='SA1'!C14 -> 50 | D57: ='SA1'!D14 -> 50 | E57: ='SA1'!E14 -> 50 | F57: ='SA1'!F14 -> 50 | G57: ='SA1'!G14 -> 50 | H57: ='SA1'!H14 -> 50 | I57: ='SA1'!J14 -> 50 | J57: ='SA1'!K14 -> 50 | K57: ='SA1'!L14 -> 50
A58: Refuse (removed once a week for indigent households) | C58: ='SA1'!C33 -> 0 | D58: ='SA1'!D33 -> 0 | E58: ='SA1'!E33 -> 0 | F58: ='SA1'!F33 -> 0 | G58: ='SA1'!G33 -> 0 | H58: ='SA1'!H33 -> 0 | I58: ='SA1'!J33 -> 0 | J58: ='SA1'!K33 -> 0 | K58: ='SA1'!L33 -> 0
A59: Cost of Free Basic Services provided - Informal Formal Settlements (R'000) | C59: ='SA9'!E260+'SA9'!E272+'SA9'!E284+'SA9'!E296 -> 0 | D59: ='SA9'!F260+'SA9'!F272+'SA9'!F284+'SA9'!F296 -> 0 | E59: ='SA9'!G260+'SA9'!G272+'SA9'!G284+'SA9'!G296 -> 0 | F59: ='SA9'!H260+'SA9'!H272+'SA9'!H284+'SA9'!H296 -> 0 | G59: ='SA9'!I260+'SA9'!I272+'SA9'!I284+'SA9'!I296 -> 0 | H59: ='SA9'!J260+'SA9'!J272+'SA9'!J284+'SA9'!J296 -> 0 | I59: ='SA9'!K260+'SA9'!K272+'SA9'!K284+'SA9'!K296 -> 0 | J59: ='SA9'!L260+'SA9'!L272+'SA9'!L284+'SA9'!L296 -> 0 | K59: ='SA9'!M260+'SA9'!M272+'SA9'!M284+'SA9'!M296 -> 0
A60: Total cost of FBS provided | C60: =SUM(C55:C59) -> 50 | D60: 50 | E60: 50 | F60: 50 | G60: 50 | H60: 50 | I60: 50 | J60: 50 | K60: 50
A62: Highest level of free service provided per household
A63: Property rates (R value threshold)
A64: Water (kilolitres per household per month)
A65: Sanitation (kilolitres per household per month)
A66: Sanitation (Rand per household per month)
A67: Electricity (kwh per household per month) | C67: 11563 | D67: 10763 | E67: 11763 | F67: 11763 | G67: 11763 | H67: 11763 | I67: 11763 | J67: 11763 | K67: 11763
A68: Refuse (average litres per week) | C68: 1170 | D68: 1170 | E68: 1170 | F68: 1170 | G68: 1170 | H68: 1170 | I68: 1170 | J68: 1170 | K68: 1170
A69: Revenue cost of subsidised services provided (R'000) | B69: 9
A70: Property rates (tariff adjustment) ( impermissable values per section 17 of MPRA) | C70: 15000000 | D70: 15000000 | E70: 15000000 | F70: 15000000 | G70: 15000000 | H70: 15000000 | I70: 15000000 | J70: 15000000 | K70: 15000000
A71: Property rates exemptions, reductions and rebates and impermissable values in excess of section 17 of MPRA) | C71: ='SA1'!C8 -> 10151231.21 | D71: ='SA1'!D8 -> 6466415.36 | E71: ='SA1'!E8 -> 6199410.54 | F71: ='SA1'!F8 -> 6009013 | G71: ='SA1'!G8 -> 6009013 | H71: ='SA1'!H8 -> 6009013 | I71: ='SA1'!J8 -> 6369556 | J71: ='SA1'!K8 -> 6751729 | K71: ='SA1'!L8 -> 7156834
A72: Water (in excess of 6 kilolitres per indigent household per month) | C72: ='SA1'!C19 -> 0 | D72: ='SA1'!D19 -> 0 | E72: ='SA1'!E19 -> 0 | F72: ='SA1'!F19 -> 0 | G72: ='SA1'!G19 -> 0 | H72: ='SA1'!H19 -> 0 | I72: ='SA1'!J19 -> 0 | J72: ='SA1'!K19 -> 0 | K72: ='SA1'!L19 -> 0
A73: Sanitation (in excess of free sanitation service to indigent households) | C73: ='SA1'!C25 -> 0 | D73: ='SA1'!D25 -> 0 | E73: ='SA1'!E25 -> 0 | F73: ='SA1'!F25 -> 0 | G73: ='SA1'!G25 -> 0 | H73: ='SA1'!H25 -> 0 | I73: ='SA1'!J25 -> 0 | J73: ='SA1'!K25 -> 0 | K73: ='SA1'!L25 -> 0
A74: Electricity/other energy (in excess of 50 kwh per indigent household per month) | C74: ='SA1'!C13 -> 0 | D74: ='SA1'!D13 -> 0 | E74: ='SA1'!E13 -> 0 | F74: ='SA1'!F13 -> 0 | G74: ='SA1'!G13 -> 0 | H74: ='SA1'!H13 -> 0 | I74: ='SA1'!J13 -> 0 | J74: ='SA1'!K13 -> 0 | K74: ='SA1'!L13 -> 0
A75: Refuse (in excess of one removal a week for indigent households) | C75: ='SA1'!C32 -> 0 | D75: ='SA1'!D32 -> 0 | E75: ='SA1'!E32 -> 0 | F75: ='SA1'!F32 -> 0 | G75: ='SA1'!G32 -> 0 | H75: ='SA1'!H32 -> 0 | I75: ='SA1'!J32 -> 0 | J75: ='SA1'!K32 -> 0 | K75: ='SA1'!L32 -> 0
A76: Municipal Housing - rental rebates
A77: Housing - top structure subsidies | B77: 6
A78: Other
A79: Total revenue cost of subsidised services provided | C79: =SUM(C70:C78) -> 25151231.21 | D79: =SUM(D70:D78) -> 21466415.36 | E79: 21199410.54 | F79: 21009013 | G79: 21009013 | H79: 21009013 | I79: 21369556 | J79: =SUM(J70:J78) -> 21751729 | K79: =SUM(K70:K78) -> 22156834
A80: =head27a -> References
A81: 1. Include services provided by another entity; e.g. Eskom
A82: 2. Stand distance <= 200m from dwelling
A83: 3. Stand distance > 200m from dwelling
A84: 4. Borehole, spring, rain-water tank etc.
A85: 5. Must agree to total number of households in municipal area (informal settlements receiving services must be included)
A86: 6. Include value of subsidy provided by municipality above provincial subsidy level
A87: 7. Show number of households receiving at least these levels of services completely free (informal settlements must be included)
A88: 8. Must reflect the cost to the municipality of providing the Free Basic Service
A89: 9. Reflect the cost to the municipality in terms of 'revenue foregone' of providing free services (note this will not equal 'Revenue Foregone' on SA1)

Sheet SA1
A1: =muni&" - "&TableA1 -> LIM351 Blouberg - Supporting Table SA1 Supportinging detail to 'Budgeted Financial Performance'
A2: =desc -> Description | B2: =head27 -> Ref | C2: =head1b -> 2017/18 | D2: =head1A -> 2018/19 | E2: =Head1 -> 2019/20 | F2: =Head2 -> Current Year 2020/21 | J2: =Head3 -> 2021/22 Medium Term Revenue & Expenditure Framework
C3: =Head5 -> Audited Outcome | D3: =Head5 -> Audited Outcome | E3: =Head5 -> Audited Outcome | F3: =Head6 -> Original Budget | G3: =Head7 -> Adjusted Budget | H3: =Head8 -> Full Year Forecast | I3: =Head5b -> Pre-audit outcome | J3: =Head9 -> Budget Year 2021/22 | K3: =Head10 -> Budget Year +1 2022/23 | L3: =Head11 -> Budget Year +2 2023/24
A4: R thousand
A5: REVENUE ITEMS:
A6: ='A4-FinPerf RE'!A5 -> Property rates | B6: 6
A7: Total Property Rates | C7: 36753011.47 | D7: 30522841.96 | E7: 31766775.54 | F7: 38484414 | G7: 35484414 | H7: 35484414 | I7: 32106538.26 | J7: 37613483 | K7: 39870291 | L7: 42262510
A8: Less Revenue Foregone (exemptions, reductions and rebates and impermissable values in excess of section 17 of MPRA) | C8: 10151231.21 | D8: 6466415.36 | E8: 6199410.54 | F8: 6009013 | G8: 6009013 | H8: 6009013 | I8: 5887679.24 | J8: 6369556 | K8: 6751729 | L8: 7156834
A9: Net Property Rates | C9: =C7-C8 -> 26601780.26 | D9: =D7-D8 -> 24056426.6 | E9: 25567365 | F9: 32475401 | G9: 29475401 | H9: 29475401 | I9: 26218859.02 | J9: 31243927 | K9: 33118562 | L9: 35105676
A11: ='A4-FinPerf RE'!A6 -> Service charges - electricity revenue | B11: 6
A12: ="Total "&A11 -> Total Service charges - electricity revenue | C12: 22515604.9 | D12: 22470453.13 | E12: 28093005.95 | F12: 39317019 | G12: 39317019 | H12: 39317019 | I12: 19666084.33 | J12: 41676042 | K12: 44176604 | L12: 46827200
A13: Less Revenue Foregone (in excess of 50 kwh per indigent household per month)
A14: Less Cost of Free Basis Services (50 kwh per indigent household per month) | C14: ='SA9'!E250 -> 50 | D14: ='SA9'!F250 -> 50 | E14: ='SA9'!G250 -> 50 | F14: ='SA9'!H250 -> 50 | G14: ='SA9'!I250 -> 50 | H14: ='SA9'!J250 -> 50 | J14: ='SA9'!K250 -> 50 | K14: ='SA9'!L250 -> 50 | L14: ='SA9'!M250 -> 50
A15: ="Net "& A11 -> Net Service charges - electricity revenue | C15: =C12-C13-C14 -> 22515554.9 | D15: =D12-D13-D14 -> 22470403.13 | E15: 28092955.95 | F15: 39316969 | G15: 39316969 | H15: 39316969 | I15: 19666084.33 | J15: 41675992 | K15: 44176554 | L15: 46827150
A17: ='A4-FinPerf RE'!A7 -> Service charges - water revenue | B17: 6
A18: ="Total "&A17 -> Total Service charges - water revenue | C18: 0 | D18: 0 | E18: 0 | F18: 0 | G18: 0 | H18: 0 | I18: 3388746.91 | J18: 0 | K18: 0 | L18: 0
A19: Less Revenue Foregone (in excess of 6 kilolitres per indigent household per month) | C19: 0 | D19: 0 | E19: 0 | F19: 0 | G19: 0 | H19: 0 | I19: 0 | J19: 0 | K19: 0 | L19: 0
A20: Less Cost of Free Basis Services (6 kilolitres per indigent household per month) | C20: ='SA9'!E262 -> 0 | D20: ='SA9'!F262 -> 0 | E20: ='SA9'!G262 -> 0 | F20: ='SA9'!H262 -> 0 | G20: ='SA9'!I262 -> 0 | H20: ='SA9'!J262 -> 0 | J20: ='SA9'!K262 -> 0 | K20: ='SA9'!L262 -> 0 | L20: ='SA9'!M262 -> 0
A21: ="Net "& A17 -> Net Service charges - water revenue | C21: =C18-C19-C20 -> 0 | D21: =D18-D19-D20 -> 0 | E21: 0 | F21: 0 | G21: 0 | H21: 0 | I21: 3388746.91 | J21: 0 | K21: 0 | L21: 0
A23: ='A4-FinPerf RE'!A8 -> Service charges - sanitation revenue
A24: ="Total "&A23 -> Total Service charges - sanitation revenue | C24: 0 | D24: 0 | E24: 4371.39 | F24: 0 | G24: 0 | H24: 0 | I24: 24841.6 | J24: 0 | K24: 0 | L24: 0
A25: Less Revenue Foregone (in excess of free sanitation service to indigent households)
A26: Less Cost of Free Basis Services (free sanitation service to indigent households) | C26: ='SA9'!E274 -> 0 | D26: ='SA9'!F274 -> 0 | E26: ='SA9'!G274 -> 0 | F26: ='SA9'!H274 -> 0 | G26: ='SA9'!I274 -> 0 | H26: ='SA9'!J274 -> 0 | J26: ='SA9'!K274 -> 0 | K26: ='SA9'!L274 -> 0 | L26: ='SA9'!M274 -> 0
A27: ="Net "& A23 -> Net Service charges - sanitation revenue | C27: =C24-C25-C26 -> 0 | D27: =D24-D25-D26 -> 0 | E27: 4371.39 | F27: 0 | G27: 0 | H27: 0 | I27: 24841.6 | J27: 0 | K27: 0 | L27: 0
A29: ='A4-FinPerf RE'!A9 -> Service charges - refuse revenue | B29: 6
A30: Total refuse removal revenue | C30: 426832.3 | D30: 513631.81 | E30: 1171854.6 | F30: 831040 | G30: 1131040 | H30: 1131040 | I30: 956716.38 | J30: 1198903 | K30: 1270837 | L30: 1347088
A31: Total landfill revenue
A32: Less Revenue Foregone (in excess of one removal a week to indigent households)
A33: Less Cost of Free Basis Services (removed once a week to indigent households) | C33: ='SA9'!E286 -> 0 | D33: ='SA9'!F286 -> 0 | E33: ='SA9'!G286 -> 0 | F33: ='SA9'!H286 -> 0 | G33: ='SA9'!I286 -> 0 | H33: ='SA9'!J286 -> 0 | J33: ='SA9'!K286 -> 0 | K33: ='SA9'!L286 -> 0 | L33: ='SA9'!M286 -> 0
A34: ="Net "& A29 -> Net Service charges - refuse revenue | C34: =SUM(C30:C31)-C32-C33 -> 426832.3 | D34: =SUM(D30:D31)-D32-D33 -> 513631.81 | E34: 1171854.6 | F34: 831040 | G34: 1131040 | H34: 1131040 | I34: 956716.38 | J34: 1198903 | K34: 1270837 | L34: 1347088
A36: Other Revenue by source
A37: Fuel Levy
A38: Other Revenue | C38: 3298871.85 | D38: 2774480.98 | E38: 2440146.78 | F38: 6642352 | G38: 5642352 | H38: 5642352 | I38: 909554.98 | J38: 14700894 | K38: 10845350 | L38: 10956071
A49: Total 'Other' Revenue | B49: 1 | C49: =SUM(C37:C38) -> 3298871.85 | D49: =SUM(D37:D38) -> 2774480.98 | E49: =SUM(E37:E38) -> 2440146.78 | F49: 6642352 | G49: 5642352 | H49: 5642352 | I49: 909554.98 | J49: 14700894 | K49: 10845350 | L49: 10956071
A51: EXPENDITURE ITEMS:
A52: ='A4-FinPerf RE'!A24 -> Employee related costs
A53: Basic Salaries and Wages | B53: 2 | C53: 56911920.91 | D53: 60172068.86 | E53: 63741641.9 | F53: 73769670 | G53: 73769670 | H53: 73769670 | I53: 43957082.63 | J53: 76720471 | K53: 79942729 | L53: 83460208
A54: Pension and UIF Contributions | C54: 12149757.13 | D54: 13400270.27 | E54: 14376296.9 | F54: 17295210 | G54: 17295210 | H54: 17295210 | I54: 9978133.02 | J54: 17987028 | K54: 18742490 | L54: 19567158
A55: Medical Aid Contributions | C55: 3611306.6 | D55: 3881926.8 | E55: 4183758.2 | F55: 4065772 | G55: 4065772 | H55: 4065772 | I55: 2919315.7 | J55: 4228406 | K55: 4406000 | L55: 4599866
A56: Overtime | C56: 2217803.95 | D56: 2453117.46 | E56: 2208536.26 | F56: 2500384 | G56: 2440384 | H56: 2440384 | I56: 1785716.7 | J56: 2538003 | K56: 2644600 | L56: 2760961
A57: Performance Bonus | C57: 5205688.75 | D57: 4673687.67 | E57: 5563749.33 | F57: 6707708 | G57: 6707708 | H57: 6707708 | I57: 3270432.16 | J57: 6976023 | K57: 7269015 | L57: 7588852
A58: Motor Vehicle Allowance | C58: 13463676.75 | D58: 14337610.55 | E58: 15250611.63 | F58: 17123216 | G58: 17123216 | H58: 17123216 | I58: 10654801.44 | J58: 17808150 | K58: 18556093 | L58: 19372562
A59: Cellphone Allowance | C59: 1820107.75 | D59: 1995294.69 | E59: 2163996.78 | F59: 2230429 | G59: 2230429 | H59: 2230429 | I59: 1485485.39 | J59: 2319655 | K59: 2417079 | L59: 2523429
A60: Housing Allowances | C60: 191491.82 | D60: 156015.65 | E60: 177015.15 | F60: 529158 | G60: 529158 | H60: 529158 | I60: 138775.96 | J60: 550328 | K60: 573441 | L60: 598672
A61: Other benefits and allowances | C61: 636163.63 | D61: 736444.16 | E61: 670905.06 | F61: 1002065 | G61: 972065 | H61: 972065 | I61: 365689.9 | J61: 927758 | K61: 966723 | L61: 1009262
A62: Payments in lieu of leave | C62: 2598111.73 | D62: 596589.99 | E62: 1485528.24 | F62: 2076805 | G62: 2076805 | H62: 2076805 | I62: 882355.11 | J62: 2159883 | K62: 2250597 | L62: 2349623
A63: Long service awards | C63: 0 | D63: 0 | E63: 0 | F63: 758312 | G63: 758312 | H63: 758312 | I63: 0 | J63: 788645 | K63: 821771 | L63: 857928
A64: Post-retirement benefit obligations | B64: 4 | C64: 521637.7 | D64: 1209585 | E64: 906228 | F64: 0 | G64: 0 | H64: 0 | I64: 0 | J64: 0 | K64: 0 | L64: 0
A65: sub-total | B65: 5 | C65: =SUM(C53:C64) -> 99327666.72 | D65: =SUM(D53:D64) -> 103612611.1 | E65: 110728267.5 | F65: 128058729 | G65: 127968729 | H65: 127968729 | I65: 75437788.01 | J65: 133004350 | K65: 138590538 | L65: 144688521
A66: Less: Employees costs capitalised to PPE | C66: 0 | D66: 0 | E66: 0 | F66: 0 | G66: 0 | H66: 0 | I66: 0 | J66: 0 | K66: 0 | L66: 0
A67: ="Total "&A52 -> Total Employee related costs | B67: 1 | C67: =C65-C66 -> 99327666.72 | D67: =D65-D66 -> 103612611.1 | E67: 110728267.5 | F67: 128058729 | G67: 127968729 | H67: 127968729 | I67: 75437788.01 | J67: 133004350 | K67: 138590538 | L67: 144688521
A78: ='A4-FinPerf RE'!A27 -> Depreciation & asset impairment
A79: Depreciation of Property, Plant & Equipment | C79: 35215642.13 | D79: 35111134.19 | E79: 35553908.48 | F79: 43988216 | G79: 43988216 | H79: 43988216 | I79: 0 | J79: 40140615 | K79: 42549050 | L79: 45101995
A80: Lease amortisation | C80: 0 | D80: 146447 | E80: 171472.14 | F80: 0 | G80: 0 | H80: 0 | I80: 0 | J80: 0 | K80: 0 | L80: 0
A81: Capital asset impairment | C81: 246866 | D81: 0 | E81: 0 | F81: 0 | G81: 0 | H81: 0 | I81: 0 | J81: 0 | K81: 0 | L81: 0
A83: ="Total "&LEFT(A78,35) -> Total Depreciation & asset impairment | B83: 1 | C83: =SUM(C79:C81) -> 35462508.13 | D83: =SUM(D79:D81) -> 35257581.19 | E83: 35725380.62 | F83: 43988216 | G83: 43988216 | H83: 43988216 | I83: 0 | J83: 40140615 | K83: 42549050 | L83: 45101995
A85: Bulk purchases - electricity
A86: Electricity bulk purchases | C86: 30340752.49 | D86: 31566418.79 | E86: 33970658.28 | F86: 37100000 | G86: 40100000 | H86: 40100000 | I86: 27622330.85 | J86: 42506000 | K86: 45056360 | L86: 45056360
A88: Total bulk purchases | B88: 1 | C88: =SUM(C86:C87) -> 30340752.49 | D88: =SUM(D86:D87) -> 31566418.79 | E88: 33970658.28 | F88: 37100000 | G88: 40100000 | H88: 40100000 | I88: 27622330.85 | J88: 42506000 | K88: 45056360 | L88: 45056360
A90: Transfers and grants
A91: Cash transfers and grants | C91: ='SA21'!C32 -> 0 | D91: ='SA21'!D32 -> 73220 | E91: ='SA21'!E32 -> 0 | F91: ='SA21'!F32 -> 0 | G91: ='SA21'!G32 -> 0 | H91: ='SA21'!H32 -> 0 | I91: ='SA21'!I32 -> 0 | J91: ='SA21'!J32 -> 0 | K91: ='SA21'!K32 -> 0 | L91: ='SA21'!L32 -> 0
A92: Non-cash transfers and grants | C92: ='SA21'!C65 -> 0 | D92: ='SA21'!D65 -> 0 | E92: ='SA21'!E65 -> 0 | F92: ='SA21'!F65 -> 0 | G92: ='SA21'!G65 -> 0 | H92: ='SA21'!H65 -> 0 | I92: ='SA21'!I65 -> 0 | J92: ='SA21'!J65 -> 0 | K92: ='SA21'!K65 -> 0 | L92: ='SA21'!L65 -> 0
A93: Total transfers and grants | B93: 1 | C93: =SUM(C91:C92) -> 0 | D93: =SUM(D91:D92) -> 73220 | E93: 0 | F93: 0 | G93: 0 | H93: 0 | I93: 0 | J93: 0 | K93: 0 | L93: 0
A95: ='A4-FinPerf RE'!A31 -> Contracted services
A96: Outsourced Services | C96: 2494695.98 | D96: 3913345.26 | E96: 3628796.15 | F96: 5484107 | G96: 6973407 | H96: 6973407 | I96: 3946412.13 | J96: 4489072 | K96: 5676117 | L96: 5453584
A97: Consultants and Professional Services | C97: 32045200.12 | D97: 25243528.46 | E97: 25883197.8 | F97: 27689314 | G97: 28754247 | H97: 28754247 | I97: 17281378.33 | J97: 28882433 | K97: 25538298 | L97: 19874039
A98: Contractors | C98: 31992323.22 | D98: 16416636.95 | E98: 15988385.91 | F98: 23832569 | G98: 38415836 | H98: 38415836 | I98: 15663536.11 | J98: 22171835 | K98: 21558571 | L98: 17621590
A127: Total contracted services | C127: =SUM(C96:C98) -> 66532219.32 | D127: =SUM(D96:D98) -> 45573510.67 | E127: 45500379.86 | F127: 57005990 | G127: 74143490 | H127: 74143490 | I127: 36891326.57 | J127: 55543340 | K127: 52772986 | L127: 42949213
A129: Other Expenditure By Type
A130: Collection costs | C130: 9685941.86 | D130: 12930610.08 | E130: 2820695.53 | F130: 3200000 | G130: 3478500 | H130: 3478500 | I130: 1936690.85 | J130: 3224000 | K130: 3417440 | L130: 3622478
A131: Contributions to 'other' provisions | C131: 789437.02 | D131: 920899.16 | E131: 819580.39 | F131: 1159045 | G131: 1159045 | H131: 1159045 | I131: 591233.57 | J131: 1483050 | K131: 1550337 | L131: 1311304
A133: Audit fees | C133: 907022.25 | D133: 661188.98 | E133: 60434.52 | F133: 4000000 | G133: 4000000 | H133: 4000000 | I133: 1222043.63 | J133: 4000000 | K133: 4240000 | L133: 4494400
A136: Other Expenditure | C136: 34421317.39 | D136: 29602757.16 | E136: 34297834.03 | F136: 30443798 | G136: 33007444 | H136: 33007444 | I136: 19146447.66 | J136: 34106142 | K136: 35093154 | L136: 36430034
A157: Total 'Other' Expenditure | B157: 1 | C157: =+C130+C131+C133+C136 -> 45803718.52 | D157: =+D130+D131+D133+D136 -> 44115455.38 | E157: 37998544.47 | F157: 38802843 | G157: 41644989 | H157: 41644989 | I157: 22896415.71 | J157: 42813192 | K157: 44300931 | L157: 45858216
A159: Repairs and Maintenance by Expenditure Item | B159: 8
A160: Employee related costs
A161: Inventory Consumed (Project Maintenance) | C161: -15944.46 | D161: 166882.75 | E161: 0 | F161: 0 | G161: 0 | H161: 0 | I161: 0 | J161: 150000 | K161: 70000 | L161: 50000
A162: Contracted Services | C162: 2622595.61 | D162: 1685922.24 | E162: 3348361.85 | F162: 9477141 | G162: 16534708 | H162: 16534708 | I162: 8539143.76 | J162: 9479072 | K162: 12316117 | L162: 10463584
A163: Other Expenditure | C163: 0 | D163: 0 | E163: 0 | F163: 505000 | G163: 305000 | H163: 305000 | I163: 181905.27 | J163: 318000 | K163: 337080 | L163: 357305
A164: Total Repairs and Maintenance Expenditure | B164: 9 | C164: =SUM(C160:C163) -> 2606651.15 | D164: =SUM(D160:D163) -> 1852804.99 | E164: 3348361.85 | F164: 9982141 | G164: 16839708 | H164: 16839708 | I164: 8721049.03 | J164: 9947072 | K164: 12723197 | L164: 10870889
A166: Inventory Consumed
A167: Inventory Consumed - Water | C167: =-'SA3'!C29 -> 0 | D167: =-'SA3'!D29 -> 0 | E167: =-'SA3'!E29 -> 0 | F167: =-'SA3'!F29 -> 0 | G167: =-'SA3'!G29 -> 0 | H167: =-'SA3'!H29 -> 0 | I167: =-'SA3'!I29 -> 0 | J167: =-'SA3'!J29 -> 0 | K167: =-'SA3'!K29 -> 0 | L167: =-'SA3'!L29 -> 0
A168: Inventory Consumed - Other | C168: =-'SA3'!C58-'SA3'!C67-'SA3'!C74-'SA3'!C82-'SA3'!C90 -> 0 | D168: =-'SA3'!D58-'SA3'!D67-'SA3'!D74-'SA3'!D82-'SA3'!D90 -> 5775124.94 | E168: =-'SA3'!E58-'SA3'!E67-'SA3'!E74-'SA3'!E82-'SA3'!E90 -> 5665897.92 | F168: =-'SA3'!F58-'SA3'!F67-'SA3'!F74-'SA3'!F82-'SA3'!F90 -> 0 | G168: =-'SA3'!G58-'SA3'!G67-'SA3'!G74-'SA3'!G82-'SA3'!G90 -> 0 | H168: =-'SA3'!H58-'SA3'!H67-'SA3'!H74-'SA3'!H82-'SA3'!H90 -> 0 | I168: =-'SA3'!I58-'SA3'!I67-'SA3'!I74-'SA3'!I82-'SA3'!I90 -> 0 | J168: =-'SA3'!J58-'SA3'!J67-'SA3'!J74-'SA3'!J82-'SA3'!J90 -> 0 | K168: =-'SA3'!K58-'SA3'!K67-'SA3'!K74-'SA3'!K82-'SA3'!K90 -> 0 | L168: =-'SA3'!L58-'SA3'!L67-'SA3'!L74-'SA3'!L82-'SA3'!L90 -> 0
A169: Total Inventory Consumed & Other Material | C169: =SUM(C167:C168) -> 0 | D169: 5775124.94 | E169: 5665897.92 | F169: 0 | G169: 0 | H169: 0 | I169: 0 | J169: 0 | K169: 0 | L169: 0
A171: check | C171: =C164-SA34c!C167 -> 0 | D171: =D164-SA34c!D167 -> 0 | E171: =E164-SA34c!E167 -> 0 | F171: =F164-SA34c!F167 -> 0 | G171: =G164-SA34c!G167 -> 0 | H171: =H164-SA34c!H167 -> 0 | J171: =J164-SA34c!I167 -> 0 | K171: =K164-SA34c!J167 -> 0 | L171: =L164-SA34c!K167 -> 0
A172: =head27a -> References
A173: 1. Must reconcile with 'Budgeted Financial Performance (Revenue and Expenditure)
A174: 2. Must reconcile to supporting documentation on staff salaries
A176: 4. Expenditure to meet any 'unfunded obligations'
A177: 5 This sub-total must agree with the total on SA22, but excluding councillor and board member items
A178: 6. Include a note for each revenue item that is affected by 'revenue foregone'
A179: 7. Special consideration may have to be given to including 'goodwill arising' or 'joint venture' budgets where circumstances require this (include separately under relevant notes)
A180: 8. Repairs and Maintenance is not a GRAP item. However to facilitate transparency, municipalities must provide a breakdown of the amounts included in the relevant GRAP items that will be spent on Repairs and Maintenance.
A181: 9. Must reconcile with Repairs and Maintenance by Asset Class (Total Repairs and Maintenance) on Table SA34c.
A182: 10. Only applicable to municipalities that have adopted the 'revaluation method' in GRAP 17. The aim is to prevent overstating 'depreciation and asset impairment'

Sheet SA2
A1: =muni&" - "&TableA2 -> LIM351 Blouberg - Supporting Table SA2 Matrix Financial Performance Budget (revenue source/expenditure type and dept.)
A2: =desc -> Description | B2: =head27 -> Ref | C2: ='A3-FinPerf V'!A5 -> Vote 01 - Executive & Council | D2: ='A3-FinPerf V'!A6 -> Vote 02 - Finance And Administration | E2: ='A3-FinPerf V'!A7 -> Vote 03 - Community Service | F2: ='A3-FinPerf V'!A8 -> Vote 04 - Public And Safety | G2: ='A3-FinPerf V'!A9 -> Vote 05 - Waste Management | H2: ='A3-FinPerf V'!A10 -> Vote 06 - Roads Services | I2: ='A3-FinPerf V'!A11 -> Vote 07 - Econominc Development And Planning | J2: ='A3-FinPerf V'!A12 -> Vote 08 - | K2: ='A3-FinPerf V'!A13 -> Vote 09 - | L2: ='A3-FinPerf V'!A14 -> Vote 10 - | M2: ='A3-FinPerf V'!A15 -> Vote 11 - | N2: ='A3-FinPerf V'!A16 -> Vote 12 - | O2: ='A3-FinPerf V'!A17 -> Vote 13 - | P2: ='A3-FinPerf V'!A18 -> Vote 14 - | Q2: ='A3-FinPerf V'!A19 -> Vote 15 - Other | R2: Total
A3: R thousand | B3: 1 | R3: R'000
A4: ='A4-FinPerf RE'!A4 -> Revenue By Source
A5: ='A4-FinPerf RE'!A5 -> Property rates | C5: 0 | D5: 0 | E5: 31243927 | F5: 0 | G5: 0 | H5: 0 | I5: 0 | J5: 0 | K5: 0 | L5: 0 | M5: 0 | N5: 0 | O5: 0 | P5: 0 | Q5: 0 | R5: =SUM(C5:Q5) -> 31243927
A6: ='A4-FinPerf RE'!A6 -> Service charges - electricity revenue | C6: 0 | D6: 0 | E6: 0 | F6: 0 | G6: 41676042 | H6: 0 | I6: 0 | J6: 0 | K6: 0 | L6: 0 | M6: 0 | N6: 0 | O6: 0 | P6: 0 | Q6: 0 | R6: =SUM(C6:Q6) -> 41676042
A7: ='A4-FinPerf RE'!A7 -> Service charges - water revenue | C7: 0 | D7: 0 | E7: 0 | F7: 0 | G7: 0 | H7: 0 | I7: 0 | J7: 0 | K7: 0 | L7: 0 | M7: 0 | N7: 0 | O7: 0 | P7: 0 | Q7: 0 | R7: 0
A8: ='A4-FinPerf RE'!A8 -> Service charges - sanitation revenue | C8: 0 | D8: 0 | E8: 0 | F8: 0 | G8: 0 | H8: 0 | I8: 0 | J8: 0 | K8: 0 | L8: 0 | M8: 0 | N8: 0 | O8: 0 | P8: 0 | Q8: 0 | R8: 0
A9: ='A4-FinPerf RE'!A9 -> Service charges - refuse revenue | C9: 0 | D9: 0 | E9: 0 | F9: 0 | G9: 0 | H9: 1198903 | I9: 0 | J9: 0 | K9: 0 | L9: 0 | M9: 0 | N9: 0 | O9: 0 | P9: 0 | Q9: 0 | R9: 1198903
C10: 0 | D10: 0 | E10: 0 | F10: 0 | G10: 0 | H10: 0 | I10: 0 | J10: 0 | K10: 0 | L10: 0 | M10: 0 | N10: 0 | O10: 0 | P10: 0 | Q10: 0
A11: ='A4-FinPerf RE'!A11 -> Rental of facilities and equipment | C11: 0 | D11: 0 | E11: 231080 | F11: 0 | G11: 0 | H11: 0 | I11: 0 | J11: 0 | K11: 0 | L11: 0 | M11: 0 | N11: 0 | O11: 0 | P11: 0 | Q11: 0 | R11: 231080
A12: ='A4-FinPerf RE'!A12 -> Interest earned - external investments | C12: 0 | D12: 0 | E12: 1910120 | F12: 0 | G12: 0 | H12: 0 | I12: 0 | J12: 0 | K12: 0 | L12: 0 | M12: 0 | N12: 0 | O12: 0 | P12: 0 | Q12: 0 | R12: 1910120
A13: ='A4-FinPerf RE'!A13 -> Interest earned - outstanding debtors | C13: 0 | D13: 0 | E13: 1337645 | F13: 0 | G13: 288475 | H13: 56180 | I13: 0 | J13: 0 | K13: 0 | L13: 0 | M13: 0 | N13: 0 | O13: 0 | P13: 0 | Q13: 0 | R13: 1682300
A14: ='A4-FinPerf RE'!A14 -> Dividends received | C14: 0 | D14: 0 | E14: 0 | F14: 0 | G14: 0 | H14: 0 | I14: 0 | J14: 0 | K14: 0 | L14: 0 | M14: 0 | N14: 0 | O14: 0 | P14: 0 | Q14: 0 | R14: 0
A15: ='A4-FinPerf RE'!A15 -> Fines, penalties and forfeits | C15: 0 | D15: 0 | E15: 0 | F15: 0 | G15: 45330 | H15: 3764060 | I15: 0 | J15: 0 | K15: 0 | L15: 0 | M15: 0 | N15: 0 | O15: 0 | P15: 0 | Q15: 0 | R15: 3809390
A16: ='A4-FinPerf RE'!A16 -> Licences and permits | C16: 0 | D16: 0 | E16: 1168544 | F16: 0 | G16: 0 | H16: 3325857 | I16: 122775 | J16: 0 | K16: 0 | L16: 0 | M16: 0 | N16: 0 | O16: 0 | P16: 0 | Q16: 0 | R16: 4617176
A17: ='A4-FinPerf RE'!A17 -> Agency services | C17: 0 | D17: 0 | E17: 0 | F17: 0 | G17: 0 | H17: 1166000 | I17: 0 | J17: 0 | K17: 0 | L17: 0 | M17: 0 | N17: 0 | O17: 0 | P17: 0 | Q17: 0 | R17: 1166000
A18: ='A4-FinPerf RE'!A19 -> Other revenue | C18: 0 | D18: 0 | E18: 1067420 | F18: 401846 | G18: 0 | H18: 44944 | I18: 13186684 | J18: 0 | K18: 0 | L18: 0 | M18: 0 | N18: 0 | O18: 0 | P18: 0 | Q18: 0 | R18: 14700894
A19: ='A4-FinPerf RE'!A18 -> Transfers and subsidies | C19: 0 | D19: 0 | E19: 206015000 | F19: 0 | G19: 0 | H19: 1266000 | I19: 0 | J19: 0 | K19: 0 | L19: 0 | M19: 0 | N19: 0 | O19: 0 | P19: 0 | Q19: 0 | R19: 207281000
A20: ='A4-FinPerf RE'!A20 -> Gains | C20: 0 | D20: 0 | E20: 0 | F20: 0 | G20: 0 | H20: 0 | I20: 0 | J20: 0 | K20: 0 | L20: 0 | M20: 0 | N20: 0 | O20: 0 | P20: 0 | Q20: 0 | R20: 0
A21: ='A4-FinPerf RE'!A21 -> Total Revenue (excluding capital transfers and contributions) | C21: =SUM(C5:C9)+SUM(C11:C20) -> 0 | D21: =SUM(D5:D9)+SUM(D11:D20) -> 0 | E21: 242973736 | F21: 401846 | G21: 42009847 | H21: 10821944 | I21: 13309459 | J21: 0 | K21: 0 | L21: 0 | M21: 0 | N21: 0 | O21: 0 | P21: 0 | Q21: 0 | R21: =SUM(R5:R9)+SUM(R11:R20) -> 309516832
A23: ='A4-FinPerf RE'!A23 -> Expenditure By Type
A24: ='A4-FinPerf RE'!A24 -> Employee related costs | C24: 0 | D24: 15636843 | E24: 18278508 | F24: 39337773 | G24: 22980691 | H24: 27272518 | I24: 9498017 | R24: =SUM(C24:Q24) -> 133004350
A25: ='A4-FinPerf RE'!A25 -> Remuneration of councillors | C25: 18841061 | D25: 0 | E25: 0 | F25: 0 | G25: 0 | H25: 0 | I25: 0 | J25: 0 | K25: 0 | L25: 0 | M25: 0 | N25: 0 | O25: 0 | P25: 0 | Q25: 0 | R25: =SUM(C25:Q25) -> 18841061
A26: ='A4-FinPerf RE'!A26 -> Debt impairment | C26: 0 | D26: 0 | E26: 9271744 | F26: 0 | G26: 0 | H26: 0 | I26: 0 | J26: 0 | K26: 0 | L26: 0 | M26: 0 | N26: 0 | O26: 0 | P26: 0 | Q26: 0 | R26: 9271744
A27: ='A4-FinPerf RE'!A27 -> Depreciation & asset impairment | C27: 0 | D27: 0 | E27: 3614758 | F27: 0 | G27: 36525857 | H27: 0 | I27: 0 | J27: 0 | K27: 0 | L27: 0 | M27: 0 | N27: 0 | O27: 0 | P27: 0 | Q27: 0 | R27: 40140615
A28: ='A4-FinPerf RE'!A28 -> Finance charges | C28: 0 | D28: 0 | E28: 0 | F28: 0 | G28: 0 | H28: 0 | I28: 0 | J28: 0 | K28: 0 | L28: 0 | M28: 0 | N28: 0 | O28: 0 | P28: 0 | Q28: 0 | R28: 0
A29: ='A4-FinPerf RE'!A29 -> Bulk purchases - electricity | C29: 0 | D29: 0 | E29: 0 | F29: 0 | G29: 42506000 | H29: 0 | I29: 0 | J29: 0 | K29: 0 | L29: 0 | M29: 0 | N29: 0 | O29: 0 | P29: 0 | Q29: 0 | R29: 42506000
A30: ='A4-FinPerf RE'!A30 -> Inventory consumed | C30: 0 | D30: 0 | E30: 1000000 | F30: 950000 | G30: 0 | H30: 700000 | I30: 0 | J30: 0 | K30: 0 | L30: 0 | M30: 0 | N30: 0 | O30: 0 | P30: 0 | Q30: 0 | R30: 2650000
A31: ='A4-FinPerf RE'!A31 -> Contracted services | C31: 711220 | D31: 18809884 | E31: 10411835 | F31: 2565500 | G31: 6857072 | H31: 12187829 | I31: 4000000 | J31: 0 | K31: 0 | L31: 0 | M31: 0 | N31: 0 | O31: 0 | P31: 0 | Q31: 0 | R31: 55543340
A32: ='A4-FinPerf RE'!A32 -> Transfers and subsidies | C32: 0 | D32: 0 | E32: 0 | F32: 0 | G32: 0 | H32: 0 | I32: 0 | J32: 0 | K32: 0 | L32: 0 | M32: 0 | N32: 0 | O32: 0 | P32: 0 | Q32: 0 | R32: 0
A33: ='A4-FinPerf RE'!A33 -> Other expenditure | C33: 559624 | D33: 5719742 | E33: 5868188 | F33: 24135868 | G33: 2797053 | H33: 2849855 | I33: 882862 | J33: 0 | K33: 0 | L33: 0 | M33: 0 | N33: 0 | O33: 0 | P33: 0 | Q33: 0 | R33: 42813192
A34: ='A4-FinPerf RE'!A34 -> Losses | C34: 0 | D34: 0 | E34: 0 | F34: 0 | G34: 0 | H34: 0 | I34: 0 | J34: 0 | K34: 0 | L34: 0 | M34: 0 | N34: 0 | O34: 0 | P34: 0 | Q34: 0 | R34: 0
A35: Total Expenditure | C35: =SUM(C24:C34) -> 20111905 | D35: 40166469 | E35: 48445033 | F35: 66989141 | G35: 111666673 | H35: 43010202 | I35: 14380879 | J35: 0 | K35: 0 | L35: 0 | M35: 0 | N35: 0 | O35: 0 | P35: 0 | Q35: 0 | R35: 344770302
A37: ='A4-FinPerf RE'!A37 -> Surplus/(Deficit) | C37: =C21-C35 -> -20111905 | D37: -40166469 | E37: 194528703 | F37: -66587295 | G37: -69656826 | H37: -32188258 | I37: =I21-I35 -> -1071420 | J37: 0 | K37: 0 | L37: 0 | M37: 0 | N37: 0 | O37: 0 | P37: 0 | Q37: 0 | R37: =R21-R35 -> -35253470
A38: ='A4-FinPerf RE'!A38 -> Transfers and subsidies - capital (monetary allocations) (National / Provincial and District) | G38: 56764000 | R38: =SUM(C38:Q38) -> 56764000
A39: ='A4-FinPerf RE'!A39 -> Transfers and subsidies - capital (monetary allocations) (National / Provincial Departmental Agencies, Households, Non-profit Institutions, Private Enterprises, Public Corporatons, Higher Educational Institutions) | R39: =SUM(C39:Q39) -> 0
A40: ='A4-FinPerf RE'!A40 -> Transfers and subsidies - capital (in-kind - all) | G40: 0 | R40: =SUM(C40:Q40) -> 0
A41: ='A4-FinPerf RE'!A41 -> Surplus/(Deficit) after capital transfers & contributions | C41: =SUM(C37:C40) -> -20111905 | D41: -40166469 | E41: 194528703 | F41: -66587295 | G41: -12892826 | H41: -32188258 | I41: -1071420 | J41: 0 | K41: 0 | L41: 0 | M41: 0 | N41: 0 | O41: 0 | P41: 0 | Q41: =SUM(Q37:Q40) -> 0 | R41: =SUM(R37:R40) -> 21510530
A42: =head27a -> References
A43: 1. Departmental columns to be based on municipal organisation structure
A44: check balance | R44: ='A4-FinPerf RE'!J41-'SA2'!R41 -> 2649950

Sheet SA3
A1: =muni&" - "&TableA3 -> LIM351 Blouberg - Supporting Table SA3 Supportinging detail to 'Budgeted Financial Position'
A2: =desc -> Description | B2: =head27 -> Ref | C2: =head1b -> 2017/18 | D2: =head1A -> 2018/19 | E2: =Head1 -> 2019/20 | F2: =Head2 -> Current Year 2020/21 | J2: =Head3 -> 2021/22 Medium Term Revenue & Expenditure Framework
C3: =Head5 -> Audited Outcome | D3: =Head5 -> Audited Outcome | E3: =Head5 -> Audited Outcome | F3: =Head6 -> Original Budget | G3: =Head7 -> Adjusted Budget | H3: =Head8 -> Full Year Forecast | I3: =Head5b -> Pre-audit outcome | J3: =Head9 -> Budget Year 2021/22 | K3: =Head10 -> Budget Year +1 2022/23 | L3: =Head11 -> Budget Year +2 2023/24
A4: R thousand
A5: ASSETS
A11: ='A6-FinPos'!A8 -> Consumer debtors
A12: =A11 -> Consumer debtors | C12: 125454270.3 | D12: 116600236.5 | E12: 110118798.3 | F12: 153555802 | G12: 151355802 | H12: 151355802 | I12: 143142990.9 | J12: 114659065 | K12: 115250491 | L12: 115719816
A13: Less: Provision for debt impairment | C13: =C20 -> -29789490.76 | D13: -15793565.6 | E13: -25972956.13 | F13: -34519603 | G13: -34519603 | H13: -34519603 | I13: -25972956.13 | J13: -25972962 | K13: -20071317 | L13: -20071317
A14: ="Total "&A11 -> Total Consumer debtors | B14: 2 | C14: =SUM(C12:C13) -> 95664779.58 | D14: =SUM(D12:D13) -> 100806671 | E14: 84145842.21 | F14: =SUM(F12:F13) -> 119036199 | G14: 116836199 | H14: 116836199 | I14: 117170034.8 | J14: 88686103 | K14: 95179174 | L14: 95648499
A16: Debt impairment provision
A17: Balance at the beginning of the year | C17: -33312963.9 | D17: -19583805.59 | E17: -15793565.6 | F17: -24123971 | G17: -24123971 | H17: -24123971 | I17: -25972956.13 | J17: -25972962 | K17: -20071317 | L17: -20071317
A18: Contributions to the provision | C18: 13729158.31 | D18: 3790239.99 | E18: -10179390.53 | F18: -10395632 | G18: -10395632 | H18: -10395632 | I18: 0 | J18: 0 | K18: 0 | L18: 0
A19: Bad debts written off | C19: -10205685.17 | D19: 0 | E19: 0 | F19: 0 | G19: 0 | H19: 0 | I19: 0 | J19: 0 | K19: 0 | L19: 0
A20: Balance at end of year | C20: =SUM(C17:C19) -> -29789490.76 | D20: =SUM(D17:D19) -> -15793565.6 | E20: -25972956.13 | F20: -34519603 | G20: -34519603 | H20: -34519603 | I20: -25972956.13 | J20: -25972962 | K20: -20071317 | L20: -20071317
A22: Inventory
A23: Water
A24: Opening Balance | C24: 2211354.66 | D24: =C53 -> 2211354.66 | E24: =D53 -> 2211354.66 | F24: =E53 -> 2211354.66 | G24: =E53 -> 2211354.66 | H24: =E53 -> 2211354.66 | I24: =E53 -> 2211354.66 | J24: =G53 -> 2211354.66 | K24: =J53 -> 2211354.66 | L24: =K53 -> 2211354.66
A25: System Input Volume | C25: =(SUM(C26:C28)) -> 0 | D25: =(SUM(D26:D28)) -> 0 | E25: 0 | F25: 0 | G25: 0 | H25: 0 | I25: 0 | J25: 0 | K25: 0 | L25: 0
A26: Water Treatment Works | C26: 0 | D26: 0 | E26: 0 | F26: 0 | G26: 0 | H26: 0 | I26: 0 | J26: 0 | K26: 0 | L26: 0
A27: Bulk Purchases | C27: 0 | D27: 0 | E27: 0 | F27: 0 | G27: 0 | H27: 0 | I27: 0 | J27: 0 | K27: 0 | L27: 0
A28: Natural Sources | C28: 0 | D28: 0 | E28: 0 | F28: 0 | G28: 0 | H28: 0 | I28: 0 | J28: 0 | K28: 0 | L28: 0
A29: Authorised Consumption | B29: 6 | C29: =C30+C39 -> 0 | D29: =D30+D39 -> 0 | E29: 0 | F29: 0 | G29: 0 | H29: 0 | I29: 0 | J29: 0 | K29: 0 | L29: 0
A30: Billed Authorised Consumption | C30: =C35+C31 -> 0 | D30: =D35+D31 -> 0 | E30: 0 | F30: 0 | G30: 0 | H30: 0 | I30: 0 | J30: 0 | K30: 0 | L30: 0
A31: Billed Metered Consumption | C31: =SUM(C32:C34) -> 0 | D31: =SUM(D32:D34) -> 0 | E31: 0 | F31: 0 | G31: 0 | H31: 0 | I31: 0 | J31: 0 | K31: 0 | L31: 0
A32: Free Basic Water | C32: 0 | D32: 0 | E32: 0 | F32: 0 | G32: 0 | H32: 0 | I32: 0 | J32: 0 | K32: 0 | L32: 0
A33: Subsidised Water | C33: 0 | D33: 0 | E33: 0 | F33: 0 | G33: 0 | H33: 0 | I33: 0 | J33: 0 | K33: 0 | L33: 0
A34: Revenue Water | C34: 0 | D34: 0 | E34: 0 | F34: 0 | G34: 0 | H34: 0 | I34: 0 | J34: 0 | K34: 0 | L34: 0
A35: Billed Unmetered Consumption | C35: =SUM(C36:C38) -> 0 | D35: =SUM(D36:D38) -> 0 | E35: 0 | F35: 0 | G35: 0 | H35: 0 | I35: 0 | J35: 0 | K35: 0 | L35: 0
A36: Free Basic Water | C36: 0 | D36: 0 | E36: 0 | F36: 0 | G36: 0 | H36: 0 | I36: 0 | J36: 0 | K36: 0 | L36: 0
A37: Subsidised Water | C37: 0 | D37: 0 | E37: 0 | F37: 0 | G37: 0 | H37: 0 | I37: 0 | J37: 0 | K37: 0 | L37: 0
A38: Revenue Water | C38: 0 | D38: 0 | E38: 0 | F38: 0 | G38: 0 | H38: 0 | I38: 0 | J38: 0 | K38: 0 | L38: 0
A39: UnBilled Authorised Consumption | C39: =SUM(C40:C41) -> 0 | D39: =SUM(D40:D41) -> 0 | E39: 0 | F39: 0 | G39: 0 | H39: 0 | I39: 0 | J39: 0 | K39: 0 | L39: 0
A40: Unbilled Metered Consumption | C40: 0 | D40: 0 | E40: 0 | F40: 0 | G40: 0 | H40: 0 | I40: 0 | J40: 0 | K40: 0 | L40: 0
A41: Unbilled Unmetered Consumption | C41: 0 | D41: 0 | E41: 0 | F41: 0 | G41: 0 | H41: 0 | I41: 0 | J41: 0 | K41: 0 | L41: 0
A42: Water Losses | C42: =C43+C46 -> 0 | D42: =D43+D46 -> 0 | E42: 0 | F42: 0 | G42: 0 | H42: 0 | I42: 0 | J42: 0 | K42: 0 | L42: 0
A43: Apparent losses | C43: =SUM(C44:C45) -> 0 | D43: =SUM(D44:D45) -> 0 | E43: 0 | F43: 0 | G43: 0 | H43: 0 | I43: 0 | J43: 0 | K43: 0 | L43: 0
A44: Unauthorised Consumption | C44: 0 | D44: 0 | E44: 0 | F44: 0 | G44: 0 | H44: 0 | I44: 0 | J44: 0 | K44: 0 | L44: 0
A45: Customer Meter Inaccuracies | C45: 0 | D45: 0 | E45: 0 | F45: 0 | G45: 0 | H45: 0 | I45: 0 | J45: 0 | K45: 0 | L45: 0
A46: Real losses | C46: =SUM(C47:C51) -> 0 | D46: =SUM(D47:D51) -> 0 | E46: 0 | F46: 0 | G46: 0 | H46: 0 | I46: 0 | J46: 0 | K46: 0 | L46: 0
A47: Leakage on Transmission and Distribution Mains | C47: 0 | D47: 0 | E47: 0 | F47: 0 | G47: 0 | H47: 0 | I47: 0 | J47: 0 | K47: 0 | L47: 0
A48: Leakage and Overflows at Storage Tanks/Reservoirs | C48: 0 | D48: 0 | E48: 0 | F48: 0 | G48: 0 | H48: 0 | I48: 0 | J48: 0 | K48: 0 | L48: 0
A49: Leakage on Service Connections up to the point of Customer Meter | C49: 0 | D49: 0 | E49: 0 | F49: 0 | G49: 0 | H49: 0 | I49: 0 | J49: 0 | K49: 0 | L49: 0
A50: Data Transfer and Management Errors | C50: 0 | D50: 0 | E50: 0 | F50: 0 | G50: 0 | H50: 0 | I50: 0 | J50: 0 | K50: 0 | L50: 0
A51: Unavoidable Annual Real Losses | C51: 0 | D51: 0 | E51: 0 | F51: 0 | G51: 0 | H51: 0 | I51: 0 | J51: 0 | K51: 0 | L51: 0
A52: Non-revenue Water | C52: =C39+C42 -> 0 | D52: =D39+D42 -> 0 | E52: 0 | F52: 0 | G52: 0 | H52: 0 | I52: 0 | J52: 0 | K52: 0 | L52: 0
A53: Closing Balance Water | C53: =C24+C25+C29+C42 -> 2211354.66 | D53: =D24+D25+D29+D42 -> 2211354.66 | E53: 2211354.66 | F53: 2211354.66 | G53: 2211354.66 | H53: 2211354.66 | I53: 2211354.66 | J53: 2211354.66 | K53: 2211354.66 | L53: 2211354.66
A55: Agricultural
A56: Opening Balance | D56: =C61 -> 0 | E56: =D61 -> 0 | F56: =E61 -> 0 | G56: =E61 -> 0 | H56: =E61 -> 0 | I56: =E61 -> 0 | J56: =G61 -> 0 | K56: =J61 -> 0 | L56: =K61 -> 0
A57: Acquisitions
A58: Issues | B58: 7
A59: Adjustments | B59: 8
A60: Write-offs | B60: 9
A61: Closing balance - Agricultural | C61: =SUM(C56:C60) -> 0 | D61: 0 | E61: 0 | F61: 0 | G61: 0 | H61: 0 | I61: 0 | J61: 0 | K61: 0 | L61: 0
A63: Consumables
A64: Standard Rated
A65: Opening Balance | C65: 0 | D65: =C70 -> 0 | E65: =D70 -> 1070028.79 | F65: =E70 -> 1433501.35 | G65: =E70 -> 1433501.35 | H65: =E70 -> 1433501.35 | I65: =E70 -> 1433501.35 | J65: =G70 -> 1783766.35 | K65: =J70 -> 1783766.35 | L65: =K70 -> 1783766.35
A66: Acquisitions | C66: 0 | D66: 6845153.73 | E66: 6029370.48 | F66: 350265 | G66: 350265 | H66: 350265 | I66: 0 | J66: 0 | K66: 0 | L66: 0
A67: Issues | B67: 7 | C67: 0 | D67: -5775124.94 | E67: -5665897.92 | F67: 0 | G67: 0 | H67: 0 | I67: 0 | J67: 0 | K67: 0 | L67: 0
A68: Adjustments | B68: 8 | C68: 0 | D68: 0 | E68: 0 | F68: 0 | G68: 0 | H68: 0 | I68: 0 | J68: 0 | K68: 0 | L68: 0
A69: Write-offs | B69: 9 | C69: 0 | D69: 0 | E69: 0 | F69: 0 | G69: 0 | H69: 0 | I69: 0 | J69: 0 | K69: 0 | L69: 0
A70: Closing balance - Consumables Standard Rated | C70: =SUM(C65:C69) -> 0 | D70: =SUM(D65:D69) -> 1070028.79 | E70: 1433501.35 | F70: 1783766.35 | G70: 1783766.35 | H70: 1783766.35 | I70: 1433501.35 | J70: 1783766.35 | K70: 1783766.35 | L70: 1783766.35
A71: Zero Rated
A72: Opening Balance | C72: 0 | D72: =C77 -> 0 | E72: =D77 -> 0 | F72: =E77 -> 0 | G72: =E77 -> 0 | H72: =E77 -> 0 | I72: =E77 -> 0 | J72: =G77 -> 0 | K72: =J77 -> 0 | L72: =K77 -> 0
A73: Acquisitions | C73: 0 | D73: 0 | E73: 0 | F73: 0 | G73: 0 | H73: 0 | I73: 0 | J73: 0 | K73: 0 | L73: 0
A74: Issues | B74: 7 | C74: 0 | D74: 0 | E74: 0 | F74: 0 | G74: 0 | H74: 0 | I74: 0 | J74: 0 | K74: 0 | L74: 0
